Workbook

Sheet DropDowns (hidden)
A1: 250 | B1: Rounds and Readings | C1: 250
A2: 104 | B2: Rounds and Readings | C2: 104
A3: 52 | B3: Rounds and Readings | C3: 52
A4: 26 | B4: Rounds and Readings | C4: 26
A5: 12 | B5: Rounds and Readings | C5: 12
A7: 250 | B7: Water Treatment | C7: 250
A8: 104 | B8: Water Treatment | C8: 104
A9: 52 | B9: Water Treatment | C9: 52
A10: 26 | B10: Water Treatment | C10: 26
A11: 12 | B11: Water Treatment | C11: 12

Sheet Summary Pricing Sheet
A1: JCC- Facility Operation and Maintenance Service Provider - Summary Pricing Sheet and Systems Matrix
A2: RFP # | B2: RFP-FS-SP-2019-03-JP
A3: Proposer | B3: Firm Name TBD
H4: System | I4: HVAC | T4: Electrical | AB4: Plumbing | AF4: Building Systems | AQ4: Corporate | AU4: Fixed Price - Facility Total Annual Cost Year 1
H5: Subsystem | I5: Access Doors, Gates, Sally Port | J5: Air Cooled DX (Package / Split System) | K5: Air Handling Unit (Air-cooled DX) | L5: Air-Cooled Chiller | M5: Centrifugal Chiller | N5: Cooling Tower (Induced Draft) | O5: Ice Chiller | P5: MultiStack (Geothermal) | Q5: Water Source Heat Pump | R5: Fan Coil System | S5: Exhaust Fan | T5: HVAC Unique System | U5: Electrical Panels | V5: Emergency Generator | W5: Motor Control Center | X5: Primary Switch (High) | Y5: Primary Switch (Low) | Z5: Transformer (Dry-Type) | AA5: Uninterruptible Power Supply (UPS) | AB5: Electrical Unique System | AC5: Life Safety | AD5: Backflow Preventor | AE5: Hot Water Boiler | AF5: Condensing Water Heater | AG5: Electric Water Heater | AH5: Plumbing Unique System | AI5: Steam System | AJ5: Pneumatic Compressor | AK5: Rounds and Readings | AL5: Vertical Transportation | AM5: Water Treatment | AN5: Building Exterior / Hardscape (Monthly) | AO5: Fountain Maintenance (Monthly) | AP5: Fuel Storage Tanks (Quarterly) If applicable | AQ5: Landscape Maintenance * | AR5: Account Management and Supervision (Monthly) | AS5: Fee (Monthly) | AW5: Snow Removal - (crew hourly rate) | AX5: Unclogging Blocked Toilet - In-custody holding cell (labor) | AY5: Unclogging Blocked Toilet - Public/Court Staff (labor) | AZ5: Hourly Rate | BA5: Markup on Materials | BB5: Markup on Subcontractors/Third-Parties
A6: JCC ID | B6: Facility Name | C6: Address | D6: City / Town | E6: Zip Code | F6: County | G6: Region | H6: System ID | I6: A1 | J6: H1 | K6: H2 | L6: H3 | M6: H4 | N6: H5 | O6: H6 | P6: H7 | Q6: H8 | R6: H9 | S6: H10 | T6: H11 | U6: E1 | V6: E2 | W6: E3 | X6: E4 | Y6: E5 | Z6: E6 | AA6: E7 | AB6: E8 | AC6: L1 | AD6: L2 | AE6: P1 | AF6: P2 | AG6: P3 | AH6: P4 | AI6: P5 | AJ6: P6 | AK6: R1 | AL6: V1 | AM6: W1 | AN6: B1 | AO6: F1 | AP6: F2 | AQ6: G1 | AR6: C1 | AS6: C2 | AW6: S1 | AX6: I1 | AY6: I2 | AZ6: Hr 1 | BA6: M1 | BB6: Sub1
A7: =+'01-B3'!Z$6 -> 01-B3 | B7: =+'01-B3'!AA$6 -> Wiley W. Manuel Courthouse | C7: =+'01-B3'!AB$6 -> 661 Washington St. | D7: =+'01-B3'!AC$6 -> Oakland | E7: =+'01-B3'!AD$6 -> 94607 | F7: =+'01-B3'!AE$6 -> Alameda | G7: =+'01-B3'!AF$6 -> BANCRO | I7: =+'01-B3'!AH$6 -> 0 | J7: =+'01-B3'!AI$6 -> 0 | K7: =+'01-B3'!AJ$6 -> 0 | L7: =+'01-B3'!AK$6 -> 0 | M7: =+'01-B3'!AL$6 -> 0 | N7: =+'01-B3'!AM$6 -> 0 | O7: =+'01-B3'!AN$6 -> 0 | P7: =+'01-B3'!AO$6 -> 0 | Q7: =+'01-B3'!AP$6 -> 0 | R7: =+'01-B3'!AQ$6 -> 0 | S7: =+'01-B3'!AR$6 -> 0 | T7: =+'01-B3'!AS$6 -> 0 | U7: =+'01-B3'!AT$6 -> 0 | V7: =+'01-B3'!AU$6 -> 0 | W7: =+'01-B3'!AV$6 -> 0 | X7: =+'01-B3'!AW$6 -> 0 | Y7: =+'01-B3'!AX$6 -> 0 | Z7: =+'01-B3'!AY$6 -> 0 | AA7: =+'01-B3'!AZ$6 -> 0 | AB7: =+'01-B3'!BA$6 -> 0 | AC7: =+'01-B3'!BB$6 -> 0 | AD7: =+'01-B3'!BC$6 -> 0 | AE7: =+'01-B3'!BD$6 -> 0 | AF7: =+'01-B3'!BE$6 -> 0 | AG7: =+'01-B3'!BF$6 -> 0 | AH7: =+'01-B3'!BG$6 -> 0 | AI7: =+'01-B3'!BH$6 -> 0 | AJ7: =+'01-B3'!BI$6 -> 0 | AK7: =+'01-B3'!BJ$6 -> 0 | AL7: =+'01-B3'!BK$6 -> 0 | AM7: =+'01-B3'!BL$6 -> 0 | AN7: =+'01-B3'!BM$6 -> 0 | AO7: =+'01-B3'!BN$6 -> 0 | AP7: =+'01-B3'!BO$6 -> 0 | AQ7: =+'01-B3'!BP$6 -> 0 | AR7: =+'01-B3'!BQ$6 -> 0 | AS7: =+'01-B3'!BR$6 -> 0 | AU7: =+'01-B3'!BT$6 -> 0 | AW7: =+'01-B3'!BV$6 -> 0 | AX7: =+'01-B3'!BW$6 -> 0 | AY7: =+'01-B3'!BX$6 -> 0 | AZ7: =+'01-B3'!BY$6 -> 0 | BA7: =+'01-B3'!BZ$6 -> 0 | BB7: =+'01-B3'!CA$6 -> 0
A8: =+'01-D1'!Z$6 -> 01-D1 | B8: =+'01-D1'!AA$6 -> Hayward Hall of Justice | C8: =+'01-D1'!AB$6 -> 24405 Amador St. | D8: =+'01-D1'!AC$6 -> Hayward | E8: =+'01-D1'!AD$6 -> 94544 | F8: =+'01-D1'!AE$6 -> Alameda | G8: =+'01-D1'!AF$6 -> BANCRO | I8: =+'01-D1'!AH$6 -> 0 | J8: =+'01-D1'!AI$6 -> 0 | K8: =+'01-D1'!AJ$6 -> 0 | L8: =+'01-D1'!AK$6 -> 0 | M8: =+'01-D1'!AL$6 -> 0 | N8: =+'01-D1'!AM$6 -> 0 | O8: =+'01-D1'!AN$6 -> 0 | P8: =+'01-D1'!AO$6 -> 0 | Q8: =+'01-D1'!AP$6 -> 0 | R8: =+'01-D1'!AQ$6 -> 0 | S8: =+'01-D1'!AR$6 -> 0 | T8: =+'01-D1'!AS$6 -> 0 | U8: =+'01-D1'!AT$6 -> 0 | V8: =+'01-D1'!AU$6 -> 0 | W8: =+'01-D1'!AV$6 -> 0 | X8: =+'01-D1'!AW$6 -> 0 | Y8: =+'01-D1'!AX$6 -> 0 | Z8: =+'01-D1'!AY$6 -> 0 | AA8: =+'01-D1'!AZ$6 -> 0 | AB8: =+'01-D1'!BA$6 -> 0 | AC8: =+'01-D1'!BB$6 -> 0 | AD8: =+'01-D1'!BC$6 -> 0 | AE8: =+'01-D1'!BD$6 -> 0 | AF8: =+'01-D1'!BE$6 -> 0 | AG8: =+'01-D1'!BF$6 -> 0 | AH8: =+'01-D1'!BG$6 -> 0 | AI8: =+'01-D1'!BH$6 -> 0 | AJ8: =+'01-D1'!BI$6 -> 0 | AK8: =+'01-D1'!BJ$6 -> 0 | AL8: =+'01-D1'!BK$6 -> 0 | AM8: =+'01-D1'!BL$6 -> 0 | AN8: =+'01-D1'!BM$6 -> 0 | AO8: =+'01-D1'!BN$6 -> 0 | AP8: =+'01-D1'!BO$6 -> 0 | AQ8: =+'01-D1'!BP$6 -> 0 | AR8: =+'01-D1'!BQ$6 -> 0 | AS8: =+'01-D1'!BR$6 -> 0 | AU8: =+'01-D1'!BT$6 -> 0 | AW8: =+'01-D1'!BV$6 -> 0 | AX8: =+'01-D1'!BW$6 -> 0 | AY8: =+'01-D1'!BX$6 -> 0 | AZ8: =+'01-D1'!BY$6 -> 0 | BA8: =+'01-D1'!BZ$6 -> 0 | BB8: =+'01-D1'!CA$6 -> 0
A9: =+'01-F1'!Z$6 -> 01-F1 | B9: =+'01-F1'!AA$6 -> George E. McDonald Hall of Justice | C9: =+'01-F1'!AB$6 -> 2233 Shoreline Drive | D9: =+'01-F1'!AC$6 -> Alameda | E9: =+'01-F1'!AD$6 -> 94501 | F9: =+'01-F1'!AE$6 -> Alameda | G9: =+'01-F1'!AF$6 -> BANCRO | I9: =+'01-F1'!AH$6 -> 0 | J9: =+'01-F1'!AI$6 -> 0 | K9: =+'01-F1'!AJ$6 -> 0 | L9: =+'01-F1'!AK$6 -> 0 | M9: =+'01-F1'!AL$6 -> 0 | N9: =+'01-F1'!AM$6 -> 0 | O9: =+'01-F1'!AN$6 -> 0 | P9: =+'01-F1'!AO$6 -> 0 | Q9: =+'01-F1'!AP$6 -> 0 | R9: =+'01-F1'!AQ$6 -> 0 | S9: =+'01-F1'!AR$6 -> 0 | T9: =+'01-F1'!AS$6 -> 0 | U9: =+'01-F1'!AT$6 -> 0 | V9: =+'01-F1'!AU$6 -> 0 | W9: =+'01-F1'!AV$6 -> 0 | X9: =+'01-F1'!AW$6 -> 0 | Y9: =+'01-F1'!AX$6 -> 0 | Z9: =+'01-F1'!AY$6 -> 0 | AA9: =+'01-F1'!AZ$6 -> 0 | AB9: =+'01-F1'!BA$6 -> 0 | AC9: =+'01-F1'!BB$6 -> 0 | AD9: =+'01-F1'!BC$6 -> 0 | AE9: =+'01-F1'!BD$6 -> 0 | AF9: =+'01-F1'!BE$6 -> 0 | AG9: =+'01-F1'!BF$6 -> 0 | AH9: =+'01-F1'!BG$6 -> 0 | AI9: =+'01-F1'!BH$6 -> 0 | AJ9: =+'01-F1'!BI$6 -> 0 | AK9: =+'01-F1'!BJ$6 -> 0 | AL9: =+'01-F1'!BK$6 -> 0 | AM9: =+'01-F1'!BL$6 -> 0 | AN9: =+'01-F1'!BM$6 -> 0 | AO9: =+'01-F1'!BN$6 -> 0 | AP9: =+'01-F1'!BO$6 -> 0 | AQ9: =+'01-F1'!BP$6 -> 0 | AR9: =+'01-F1'!BQ$6 -> 0 | AS9: =+'01-F1'!BR$6 -> 0 | AU9: =+'01-F1'!BT$6 -> 0 | AW9: =+'01-F1'!BV$6 -> 0 | AX9: =+'01-F1'!BW$6 -> 0 | AY9: =+'01-F1'!BX$6 -> 0 | AZ9: =+'01-F1'!BY$6 -> 0 | BA9: =+'01-F1'!BZ$6 -> 0 | BB9: =+'01-F1'!CA$6 -> 0
A10: =+'01-G1'!Z$6 -> 01-G1 | B10: =+'01-G1'!AA$6 -> Berkeley Courthouse | C10: =+'01-G1'!AB$6 -> 2120 Martin Luther King, Jr. Way | D10: =+'01-G1'!AC$6 -> Berkeley | E10: =+'01-G1'!AD$6 -> 94704 | F10: =+'01-G1'!AE$6 -> Alameda | G10: =+'01-G1'!AF$6 -> BANCRO | I10: =+'01-G1'!AH$6 -> 0 | J10: =+'01-G1'!AI$6 -> 0 | K10: =+'01-G1'!AJ$6 -> 0 | L10: =+'01-G1'!AK$6 -> 0 | M10: =+'01-G1'!AL$6 -> 0 | N10: =+'01-G1'!AM$6 -> 0 | O10: =+'01-G1'!AN$6 -> 0 | P10: =+'01-G1'!AO$6 -> 0 | Q10: =+'01-G1'!AP$6 -> 0 | R10: =+'01-G1'!AQ$6 -> 0 | S10: =+'01-G1'!AR$6 -> 0 | T10: =+'01-G1'!AS$6 -> 0 | U10: =+'01-G1'!AT$6 -> 0 | V10: =+'01-G1'!AU$6 -> 0 | W10: =+'01-G1'!AV$6 -> 0 | X10: =+'01-G1'!AW$6 -> 0 | Y10: =+'01-G1'!AX$6 -> 0 | Z10: =+'01-G1'!AY$6 -> 0 | AA10: =+'01-G1'!AZ$6 -> 0 | AB10: =+'01-G1'!BA$6 -> 0 | AC10: =+'01-G1'!BB$6 -> 0 | AD10: =+'01-G1'!BC$6 -> 0 | AE10: =+'01-G1'!BD$6 -> 0 | AF10: =+'01-G1'!BE$6 -> 0 | AG10: =+'01-G1'!BF$6 -> 0 | AH10: =+'01-G1'!BG$6 -> 0 | AI10: =+'01-G1'!BH$6 -> 0 | AJ10: =+'01-G1'!BI$6 -> 0 | AK10: =+'01-G1'!BJ$6 -> 0 | AL10: =+'01-G1'!BK$6 -> 0 | AM10: =+'01-G1'!BL$6 -> 0 | AN10: =+'01-G1'!BM$6 -> 0 | AO10: =+'01-G1'!BN$6 -> 0 | AP10: =+'01-G1'!BO$6 -> 0 | AQ10: =+'01-G1'!BP$6 -> 0 | AR10: =+'01-G1'!BQ$6 -> 0 | AS10: =+'01-G1'!BR$6 -> 0 | AU10: =+'01-G1'!BT$6 -> 0 | AW10: =+'01-G1'!BV$6 -> 0 | AX10: =+'01-G1'!BW$6 -> 0 | AY10: =+'01-G1'!BX$6 -> 0 | AZ10: =+'01-G1'!BY$6 -> 0 | BA10: =+'01-G1'!BZ$6 -> 0 | BB10: =+'01-G1'!CA$6 -> 0
A11: =+'01-H1'!Z$6 -> 01-H1 | B11: =+'01-H1'!AA$6 -> Fremont Hall of Justice | C11: =+'01-H1'!AB$6 -> 39439 Paseo Padre Pkwy. | D11: =+'01-H1'!AC$6 -> Fremont | E11: =+'01-H1'!AD$6 -> 94538 | F11: =+'01-H1'!AE$6 -> Alameda | G11: =+'01-H1'!AF$6 -> BANCRO | I11: =+'01-H1'!AH$6 -> 0 | J11: =+'01-H1'!AI$6 -> 0 | K11: =+'01-H1'!AJ$6 -> 0 | L11: =+'01-H1'!AK$6 -> 0 | M11: =+'01-H1'!AL$6 -> 0 | N11: =+'01-H1'!AM$6 -> 0 | O11: =+'01-H1'!AN$6 -> 0 | P11: =+'01-H1'!AO$6 -> 0 | Q11: =+'01-H1'!AP$6 -> 0 | R11: =+'01-H1'!AQ$6 -> 0 | S11: =+'01-H1'!AR$6 -> 0 | T11: =+'01-H1'!AS$6 -> 0 | U11: =+'01-H1'!AT$6 -> 0 | V11: =+'01-H1'!AU$6 -> 0 | W11: =+'01-H1'!AV$6 -> 0 | X11: =+'01-H1'!AW$6 -> 0 | Y11: =+'01-H1'!AX$6 -> 0 | Z11: =+'01-H1'!AY$6 -> 0 | AA11: =+'01-H1'!AZ$6 -> 0 | AB11: =+'01-H1'!BA$6 -> 0 | AC11: =+'01-H1'!BB$6 -> 0 | AD11: =+'01-H1'!BC$6 -> 0 | AE11: =+'01-H1'!BD$6 -> 0 | AF11: =+'01-H1'!BE$6 -> 0 | AG11: =+'01-H1'!BF$6 -> 0 | AH11: =+'01-H1'!BG$6 -> 0 | AI11: =+'01-H1'!BH$6 -> 0 | AJ11: =+'01-H1'!BI$6 -> 0 | AK11: =+'01-H1'!BJ$6 -> 0 | AL11: =+'01-H1'!BK$6 -> 0 | AM11: =+'01-H1'!BL$6 -> 0 | AN11: =+'01-H1'!BM$6 -> 0 | AO11: =+'01-H1'!BN$6 -> 0 | AP11: =+'01-H1'!BO$6 -> 0 | AQ11: =+'01-H1'!BP$6 -> 0 | AR11: =+'01-H1'!BQ$6 -> 0 | AS11: =+'01-H1'!BR$6 -> 0 | AU11: =+'01-H1'!BT$6 -> 0 | AW11: =+'01-H1'!BV$6 -> 0 | AX11: =+'01-H1'!BW$6 -> 0 | AY11: =+'01-H1'!BX$6 -> 0 | AZ11: =+'01-H1'!BY$6 -> 0 | BA11: =+'01-H1'!BZ$6 -> 0 | BB11: =+'01-H1'!CA$6 -> 0
A12: =+'01-J1'!Z$6 -> 01-J1 | B12: =+'01-J1'!AA$6 -> New East County Hall of Justice | C12: =+'01-J1'!AB$6 -> 5151 Gleason Drive | D12: =+'01-J1'!AC$6 -> Dublin | E12: =+'01-J1'!AD$6 -> 94568 | F12: =+'01-J1'!AE$6 -> Alameda | G12: =+'01-J1'!AF$6 -> BANCRO | I12: =+'01-J1'!AH$6 -> 0 | J12: =+'01-J1'!AI$6 -> 0 | K12: =+'01-J1'!AJ$6 -> 0 | L12: =+'01-J1'!AK$6 -> 0 | M12: =+'01-J1'!AL$6 -> 0 | N12: =+'01-J1'!AM$6 -> 0 | O12: =+'01-J1'!AN$6 -> 0 | P12: =+'01-J1'!AO$6 -> 0 | Q12: =+'01-J1'!AP$6 -> 0 | R12: =+'01-J1'!AQ$6 -> 0 | S12: =+'01-J1'!AR$6 -> 0 | T12: =+'01-J1'!AS$6 -> 0 | U12: =+'01-J1'!AT$6 -> 0 | V12: =+'01-J1'!AU$6 -> 0 | W12: =+'01-J1'!AV$6 -> 0 | X12: =+'01-J1'!AW$6 -> 0 | Y12: =+'01-J1'!AX$6 -> 0 | Z12: =+'01-J1'!AY$6 -> 0 | AA12: =+'01-J1'!AZ$6 -> 0 | AB12: =+'01-J1'!BA$6 -> 0 | AC12: =+'01-J1'!BB$6 -> 0 | AD12: =+'01-J1'!BC$6 -> 0 | AE12: =+'01-J1'!BD$6 -> 0 | AF12: =+'01-J1'!BE$6 -> 0 | AG12: =+'01-J1'!BF$6 -> 0 | AH12: =+'01-J1'!BG$6 -> 0 | AI12: =+'01-J1'!BH$6 -> 0 | AJ12: =+'01-J1'!BI$6 -> 0 | AK12: =+'01-J1'!BJ$6 -> 0 | AL12: =+'01-J1'!BK$6 -> 0 | AM12: =+'01-J1'!BL$6 -> 0 | AN12: =+'01-J1'!BM$6 -> 0 | AO12: =+'01-J1'!BN$6 -> 0 | AP12: =+'01-J1'!BO$6 -> 0 | AQ12: =+'01-J1'!BP$6 -> 0 | AR12: =+'01-J1'!BQ$6 -> 0 | AS12: =+'01-J1'!BR$6 -> 0 | AU12: =+'01-J1'!BT$6 -> 0 | AW12: =+'01-J1'!BV$6 -> 0 | AX12: =+'01-J1'!BW$6 -> 0 | AY12: =+'01-J1'!BX$6 -> 0 | AZ12: =+'01-J1'!BY$6 -> 0 | BA12: =+'01-J1'!BZ$6 -> 0 | BB12: =+'01-J1'!CA$6 -> 0
A13: =+'07-A14'!Z$6 -> 07-A14 | B13: =+'07-A14'!AA$6 -> Family Law Center | C13: =+'07-A14'!AB$6 -> 751 Pine Street | D13: =+'07-A14'!AC$6 -> Martinez | E13: =+'07-A14'!AD$6 -> 94553 | F13: =+'07-A14'!AE$6 -> Contra Costa | G13: =+'07-A14'!AF$6 -> BANCRO | I13: =+'07-A14'!AH$6 -> 0 | J13: =+'07-A14'!AI$6 -> 0 | K13: =+'07-A14'!AJ$6 -> 0 | L13: =+'07-A14'!AK$6 -> 0 | M13: =+'07-A14'!AL$6 -> 0 | N13: =+'07-A14'!AM$6 -> 0 | O13: =+'07-A14'!AN$6 -> 0 | P13: =+'07-A14'!AO$6 -> 0 | Q13: =+'07-A14'!AP$6 -> 0 | R13: =+'07-A14'!AQ$6 -> 0 | S13: =+'07-A14'!AR$6 -> 0 | T13: =+'07-A14'!AS$6 -> 0 | U13: =+'07-A14'!AT$6 -> 0 | V13: =+'07-A14'!AU$6 -> 0 | W13: =+'07-A14'!AV$6 -> 0 | X13: =+'07-A14'!AW$6 -> 0 | Y13: =+'07-A14'!AX$6 -> 0 | Z13: =+'07-A14'!AY$6 -> 0 | AA13: =+'07-A14'!AZ$6 -> 0 | AB13: =+'07-A14'!BA$6 -> 0 | AC13: =+'07-A14'!BB$6 -> 0 | AD13: =+'07-A14'!BC$6 -> 0 | AE13: =+'07-A14'!BD$6 -> 0 | AF13: =+'07-A14'!BE$6 -> 0 | AG13: =+'07-A14'!BF$6 -> 0 | AH13: =+'07-A14'!BG$6 -> 0 | AI13: =+'07-A14'!BH$6 -> 0 | AJ13: =+'07-A14'!BI$6 -> 0 | AK13: =+'07-A14'!BJ$6 -> 0 | AL13: =+'07-A14'!BK$6 -> 0 | AM13: =+'07-A14'!BL$6 -> 0 | AN13: =+'07-A14'!BM$6 -> 0 | AO13: =+'07-A14'!BN$6 -> 0 | AP13: =+'07-A14'!BO$6 -> 0 | AQ13: =+'07-A14'!BP$6 -> 0 | AR13: =+'07-A14'!BQ$6 -> 0 | AS13: =+'07-A14'!BR$6 -> 0 | AU13: =+'07-A14'!BT$6 -> 0 | AW13: =+'07-A14'!BV$6 -> 0 | AX13: =+'07-A14'!BW$6 -> 0 | AY13: =+'07-A14'!BX$6 -> 0 | AZ13: =+'07-A14'!BY$6 -> 0 | BA13: =+'07-A14'!BZ$6 -> 0 | BB13: =+'07-A14'!CA$6 -> 0
A14: =+'07-A2'!Z$6 -> 07-A2 | B14: =+'07-A2'!AA$6 -> Wakefield Taylor Courthouse | C14: =+'07-A2'!AB$6 -> 725 Court St. | D14: =+'07-A2'!AC$6 -> Martinez | E14: =+'07-A2'!AD$6 -> 94553 | F14: =+'07-A2'!AE$6 -> Contra Costa | G14: =+'07-A2'!AF$6 -> BANCRO | I14: =+'07-A2'!AH$6 -> 0 | J14: =+'07-A2'!AI$6 -> 0 | K14: =+'07-A2'!AJ$6 -> 0 | L14: =+'07-A2'!AK$6 -> 0 | M14: =+'07-A2'!AL$6 -> 0 | N14: =+'07-A2'!AM$6 -> 0 | O14: =+'07-A2'!AN$6 -> 0 | P14: =+'07-A2'!AO$6 -> 0 | Q14: =+'07-A2'!AP$6 -> 0 | R14: =+'07-A2'!AQ$6 -> 0 | S14: =+'07-A2'!AR$6 -> 0 | T14: =+'07-A2'!AS$6 -> 0 | U14: =+'07-A2'!AT$6 -> 0 | V14: =+'07-A2'!AU$6 -> 0 | W14: =+'07-A2'!AV$6 -> 0 | X14: =+'07-A2'!AW$6 -> 0 | Y14: =+'07-A2'!AX$6 -> 0 | Z14: =+'07-A2'!AY$6 -> 0 | AA14: =+'07-A2'!AZ$6 -> 0 | AB14: =+'07-A2'!BA$6 -> 0 | AC14: =+'07-A2'!BB$6 -> 0 | AD14: =+'07-A2'!BC$6 -> 0 | AE14: =+'07-A2'!BD$6 -> 0 | AF14: =+'07-A2'!BE$6 -> 0 | AG14: =+'07-A2'!BF$6 -> 0 | AH14: =+'07-A2'!BG$6 -> 0 | AI14: =+'07-A2'!BH$6 -> 0 | AJ14: =+'07-A2'!BI$6 -> 0 | AK14: =+'07-A2'!BJ$6 -> 0 | AL14: =+'07-A2'!BK$6 -> 0 | AM14: =+'07-A2'!BL$6 -> 0 | AN14: =+'07-A2'!BM$6 -> 0 | AO14: =+'07-A2'!BN$6 -> 0 | AP14: =+'07-A2'!BO$6 -> 0 | AQ14: =+'07-A2'!BP$6 -> 0 | AR14: =+'07-A2'!BQ$6 -> 0 | AS14: =+'07-A2'!BR$6 -> 0 | AU14: =+'07-A2'!BT$6 -> 0 | AW14: =+'07-A2'!BV$6 -> 0 | AX14: =+'07-A2'!BW$6 -> 0 | AY14: =+'07-A2'!BX$6 -> 0 | AZ14: =+'07-A2'!BY$6 -> 0 | BA14: =+'07-A2'!BZ$6 -> 0 | BB14: =+'07-A2'!CA$6 -> 0
A15: =+'07-A3'!Z$6 -> 07-A3 | B15: =+'07-A3'!AA$6 -> Bray Courts | C15: =+'07-A3'!AB$6 -> 1020 Ward St. | D15: =+'07-A3'!AC$6 -> Martinez | E15: =+'07-A3'!AD$6 -> 94553 | F15: =+'07-A3'!AE$6 -> Contra Costa | G15: =+'07-A3'!AF$6 -> BANCRO | I15: =+'07-A3'!AH$6 -> 0 | J15: =+'07-A3'!AI$6 -> 0 | K15: =+'07-A3'!AJ$6 -> 0 | L15: =+'07-A3'!AK$6 -> 0 | M15: =+'07-A3'!AL$6 -> 0 | N15: =+'07-A3'!AM$6 -> 0 | O15: =+'07-A3'!AN$6 -> 0 | P15: =+'07-A3'!AO$6 -> 0 | Q15: =+'07-A3'!AP$6 -> 0 | R15: =+'07-A3'!AQ$6 -> 0 | S15: =+'07-A3'!AR$6 -> 0 | T15: =+'07-A3'!AS$6 -> 0 | U15: =+'07-A3'!AT$6 -> 0 | V15: =+'07-A3'!AU$6 -> 0 | W15: =+'07-A3'!AV$6 -> 0 | X15: =+'07-A3'!AW$6 -> 0 | Y15: =+'07-A3'!AX$6 -> 0 | Z15: =+'07-A3'!AY$6 -> 0 | AA15: =+'07-A3'!AZ$6 -> 0 | AB15: =+'07-A3'!BA$6 -> 0 | AC15: =+'07-A3'!BB$6 -> 0 | AD15: =+'07-A3'!BC$6 -> 0 | AE15: =+'07-A3'!BD$6 -> 0 | AF15: =+'07-A3'!BE$6 -> 0 | AG15: =+'07-A3'!BF$6 -> 0 | AH15: =+'07-A3'!BG$6 -> 0 | AI15: =+'07-A3'!BH$6 -> 0 | AJ15: =+'07-A3'!BI$6 -> 0 | AK15: =+'07-A3'!BJ$6 -> 0 | AL15: =+'07-A3'!BK$6 -> 0 | AM15: =+'07-A3'!BL$6 -> 0 | AN15: =+'07-A3'!BM$6 -> 0 | AO15: =+'07-A3'!BN$6 -> 0 | AP15: =+'07-A3'!BO$6 -> 0 | AQ15: =+'07-A3'!BP$6 -> 0 | AR15: =+'07-A3'!BQ$6 -> 0 | AS15: =+'07-A3'!BR$6 -> 0 | AU15: =+'07-A3'!BT$6 -> 0 | AW15: =+'07-A3'!BV$6 -> 0 | AX15: =+'07-A3'!BW$6 -> 0 | AY15: =+'07-A3'!BX$6 -> 0 | AZ15: =+'07-A3'!BY$6 -> 0 | BA15: =+'07-A3'!BZ$6 -> 0 | BB15: =+'07-A3'!CA$6 -> 0
A16: =+'07-C1'!Z$6 -> 07-C1 | B16: =+'07-C1'!AA$6 -> Walnut Creek Courthouse | C16: =+'07-C1'!AB$6 -> 640 Ygnacio Valley Rd. | D16: =+'07-C1'!AC$6 -> Walnut Creek | E16: =+'07-C1'!AD$6 -> 94596 | F16: =+'07-C1'!AE$6 -> Contra Costa | G16: =+'07-C1'!AF$6 -> BANCRO | I16: =+'07-C1'!AH$6 -> 0 | J16: =+'07-C1'!AI$6 -> 0 | K16: =+'07-C1'!AJ$6 -> 0 | L16: =+'07-C1'!AK$6 -> 0 | M16: =+'07-C1'!AL$6 -> 0 | N16: =+'07-C1'!AM$6 -> 0 | O16: =+'07-C1'!AN$6 -> 0 | P16: =+'07-C1'!AO$6 -> 0 | Q16: =+'07-C1'!AP$6 -> 0 | R16: =+'07-C1'!AQ$6 -> 0 | S16: =+'07-C1'!AR$6 -> 0 | T16: =+'07-C1'!AS$6 -> 0 | U16: =+'07-C1'!AT$6 -> 0 | V16: =+'07-C1'!AU$6 -> 0 | W16: =+'07-C1'!AV$6 -> 0 | X16: =+'07-C1'!AW$6 -> 0 | Y16: =+'07-C1'!AX$6 -> 0 | Z16: =+'07-C1'!AY$6 -> 0 | AA16: =+'07-C1'!AZ$6 -> 0 | AB16: =+'07-C1'!BA$6 -> 0 | AC16: =+'07-C1'!BB$6 -> 0 | AD16: =+'07-C1'!BC$6 -> 0 | AE16: =+'07-C1'!BD$6 -> 0 | AF16: =+'07-C1'!BE$6 -> 0 | AG16: =+'07-C1'!BF$6 -> 0 | AH16: =+'07-C1'!BG$6 -> 0 | AI16: =+'07-C1'!BH$6 -> 0 | AJ16: =+'07-C1'!BI$6 -> 0 | AK16: =+'07-C1'!BJ$6 -> 0 | AL16: =+'07-C1'!BK$6 -> 0 | AM16: =+'07-C1'!BL$6 -> 0 | AN16: =+'07-C1'!BM$6 -> 0 | AO16: =+'07-C1'!BN$6 -> 0 | AP16: =+'07-C1'!BO$6 -> 0 | AQ16: =+'07-C1'!BP$6 -> 0 | AR16: =+'07-C1'!BQ$6 -> 0 | AS16: =+'07-C1'!BR$6 -> 0 | AU16: =+'07-C1'!BT$6 -> 0 | AW16: =+'07-C1'!BV$6 -> 0 | AX16: =+'07-C1'!BW$6 -> 0 | AY16: =+'07-C1'!BX$6 -> 0 | AZ16: =+'07-C1'!BY$6 -> 0 | BA16: =+'07-C1'!BZ$6 -> 0 | BB16: =+'07-C1'!CA$6 -> 0
A17: =+'07-E3'!Z$6 -> 07-E3 | B17: =+'07-E3'!AA$6 -> Richard E. Arnason Justice Center | C17: =+'07-E3'!AB$6 -> 1000 Center Drive | D17: =+'07-E3'!AC$6 -> Pittsburg | E17: =+'07-E3'!AD$6 -> 94565 | F17: =+'07-E3'!AE$6 -> Contra Costa | G17: =+'07-E3'!AF$6 -> BANCRO | I17: =+'07-E3'!AH$6 -> 0 | J17: =+'07-E3'!AI$6 -> 0 | K17: =+'07-E3'!AJ$6 -> 0 | L17: =+'07-E3'!AK$6 -> 0 | M17: =+'07-E3'!AL$6 -> 0 | N17: =+'07-E3'!AM$6 -> 0 | O17: =+'07-E3'!AN$6 -> 0 | P17: =+'07-E3'!AO$6 -> 0 | Q17: =+'07-E3'!AP$6 -> 0 | R17: =+'07-E3'!AQ$6 -> 0 | S17: =+'07-E3'!AR$6 -> 0 | T17: =+'07-E3'!AS$6 -> 0 | U17: =+'07-E3'!AT$6 -> 0 | V17: =+'07-E3'!AU$6 -> 0 | W17: =+'07-E3'!AV$6 -> 0 | X17: =+'07-E3'!AW$6 -> 0 | Y17: =+'07-E3'!AX$6 -> 0 | Z17: =+'07-E3'!AY$6 -> 0 | AA17: =+'07-E3'!AZ$6 -> 0 | AB17: =+'07-E3'!BA$6 -> 0 | AC17: =+'07-E3'!BB$6 -> 0 | AD17: =+'07-E3'!BC$6 -> 0 | AE17: =+'07-E3'!BD$6 -> 0 | AF17: =+'07-E3'!BE$6 -> 0 | AG17: =+'07-E3'!BF$6 -> 0 | AH17: =+'07-E3'!BG$6 -> 0 | AI17: =+'07-E3'!BH$6 -> 0 | AJ17: =+'07-E3'!BI$6 -> 0 | AK17: =+'07-E3'!BJ$6 -> 0 | AL17: =+'07-E3'!BK$6 -> 0 | AM17: =+'07-E3'!BL$6 -> 0 | AN17: =+'07-E3'!BM$6 -> 0 | AO17: =+'07-E3'!BN$6 -> 0 | AP17: =+'07-E3'!BO$6 -> 0 | AQ17: =+'07-E3'!BP$6 -> 0 | AR17: =+'07-E3'!BQ$6 -> 0 | AS17: =+'07-E3'!BR$6 -> 0 | AU17: =+'07-E3'!BT$6 -> 0 | AW17: =+'07-E3'!BV$6 -> 0 | AX17: =+'07-E3'!BW$6 -> 0 | AY17: =+'07-E3'!BX$6 -> 0 | AZ17: =+'07-E3'!BY$6 -> 0 | BA17: =+'07-E3'!BZ$6 -> 0 | BB17: =+'07-E3'!CA$6 -> 0
A18: =+'07-F1'!Z$6 -> 07-F1 | B18: =+'07-F1'!AA$6 -> George D. Carroll Courthouse | C18: =+'07-F1'!AB$6 -> 100 37th St. | D18: =+'07-F1'!AC$6 -> Richmond | E18: =+'07-F1'!AD$6 -> 94805 | F18: =+'07-F1'!AE$6 -> Contra Costa | G18: =+'07-F1'!AF$6 -> BANCRO | I18: =+'07-F1'!AH$6 -> 0 | J18: =+'07-F1'!AI$6 -> 0 | K18: =+'07-F1'!AJ$6 -> 0 | L18: =+'07-F1'!AK$6 -> 0 | M18: =+'07-F1'!AL$6 -> 0 | N18: =+'07-F1'!AM$6 -> 0 | O18: =+'07-F1'!AN$6 -> 0 | P18: =+'07-F1'!AO$6 -> 0 | Q18: =+'07-F1'!AP$6 -> 0 | R18: =+'07-F1'!AQ$6 -> 0 | S18: =+'07-F1'!AR$6 -> 0 | T18: =+'07-F1'!AS$6 -> 0 | U18: =+'07-F1'!AT$6 -> 0 | V18: =+'07-F1'!AU$6 -> 0 | W18: =+'07-F1'!AV$6 -> 0 | X18: =+'07-F1'!AW$6 -> 0 | Y18: =+'07-F1'!AX$6 -> 0 | Z18: =+'07-F1'!AY$6 -> 0 | AA18: =+'07-F1'!AZ$6 -> 0 | AB18: =+'07-F1'!BA$6 -> 0 | AC18: =+'07-F1'!BB$6 -> 0 | AD18: =+'07-F1'!BC$6 -> 0 | AE18: =+'07-F1'!BD$6 -> 0 | AF18: =+'07-F1'!BE$6 -> 0 | AG18: =+'07-F1'!BF$6 -> 0 | AH18: =+'07-F1'!BG$6 -> 0 | AI18: =+'07-F1'!BH$6 -> 0 | AJ18: =+'07-F1'!BI$6 -> 0 | AK18: =+'07-F1'!BJ$6 -> 0 | AL18: =+'07-F1'!BK$6 -> 0 | AM18: =+'07-F1'!BL$6 -> 0 | AN18: =+'07-F1'!BM$6 -> 0 | AO18: =+'07-F1'!BN$6 -> 0 | AP18: =+'07-F1'!BO$6 -> 0 | AQ18: =+'07-F1'!BP$6 -> 0 | AR18: =+'07-F1'!BQ$6 -> 0 | AS18: =+'07-F1'!BR$6 -> 0 | AU18: =+'07-F1'!BT$6 -> 0 | AW18: =+'07-F1'!BV$6 -> 0 | AX18: =+'07-F1'!BW$6 -> 0 | AY18: =+'07-F1'!BX$6 -> 0 | AZ18: =+'07-F1'!BY$6 -> 0 | BA18: =+'07-F1'!BZ$6 -> 0 | BB18: =+'07-F1'!CA$6 -> 0
A19: =+'08-A1'!Z$6 -> 08-A1 | B19: =+'08-A1'!AA$6 -> Del Norte County Superior Court | C19: =+'08-A1'!AB$6 -> 450 'H' St. | D19: =+'08-A1'!AC$6 -> Crescent City | E19: =+'08-A1'!AD$6 -> 95531 | F19: =+'08-A1'!AE$6 -> Del Norte | G19: =+'08-A1'!AF$6 -> BANCRO | I19: =+'08-A1'!AH$6 -> 0 | J19: =+'08-A1'!AI$6 -> 0 | K19: =+'08-A1'!AJ$6 -> 0 | L19: =+'08-A1'!AK$6 -> 0 | M19: =+'08-A1'!AL$6 -> 0 | N19: =+'08-A1'!AM$6 -> 0 | O19: =+'08-A1'!AN$6 -> 0 | P19: =+'08-A1'!AO$6 -> 0 | Q19: =+'08-A1'!AP$6 -> 0 | R19: =+'08-A1'!AQ$6 -> 0 | S19: =+'08-A1'!AR$6 -> 0 | T19: =+'08-A1'!AS$6 -> 0 | U19: =+'08-A1'!AT$6 -> 0 | V19: =+'08-A1'!AU$6 -> 0 | W19: =+'08-A1'!AV$6 -> 0 | X19: =+'08-A1'!AW$6 -> 0 | Y19: =+'08-A1'!AX$6 -> 0 | Z19: =+'08-A1'!AY$6 -> 0 | AA19: =+'08-A1'!AZ$6 -> 0 | AB19: =+'08-A1'!BA$6 -> 0 | AC19: =+'08-A1'!BB$6 -> 0 | AD19: =+'08-A1'!BC$6 -> 0 | AE19: =+'08-A1'!BD$6 -> 0 | AF19: =+'08-A1'!BE$6 -> 0 | AG19: =+'08-A1'!BF$6 -> 0 | AH19: =+'08-A1'!BG$6 -> 0 | AI19: =+'08-A1'!BH$6 -> 0 | AJ19: =+'08-A1'!BI$6 -> 0 | AK19: =+'08-A1'!BJ$6 -> 0 | AL19: =+'08-A1'!BK$6 -> 0 | AM19: =+'08-A1'!BL$6 -> 0 | AN19: =+'08-A1'!BM$6 -> 0 | AO19: =+'08-A1'!BN$6 -> 0 | AP19: =+'08-A1'!BO$6 -> 0 | AQ19: =+'08-A1'!BP$6 -> 0 | AR19: =+'08-A1'!BQ$6 -> 0 | AS19: =+'08-A1'!BR$6 -> 0 | AU19: =+'08-A1'!BT$6 -> 0 | AW19: =+'08-A1'!BV$6 -> 0 | AX19: =+'08-A1'!BW$6 -> 0 | AY19: =+'08-A1'!BX$6 -> 0 | AZ19: =+'08-A1'!BY$6 -> 0 | BA19: =+'08-A1'!BZ$6 -> 0 | BB19: =+'08-A1'!CA$6 -> 0
A20: =+'17-B1'!Z$6 -> 17-B1 | B20: =+'17-B1'!AA$6 -> South Civic Center | C20: =+'17-B1'!AB$6 -> 7000A S. Center Dr. | D20: =+'17-B1'!AC$6 -> Clearlake | E20: =+'17-B1'!AD$6 -> 95422 | F20: =+'17-B1'!AE$6 -> Lake | G20: =+'17-B1'!AF$6 -> BANCRO | I20: =+'17-B1'!AH$6 -> 0 | J20: =+'17-B1'!AI$6 -> 0 | K20: =+'17-B1'!AJ$6 -> 0 | L20: =+'17-B1'!AK$6 -> 0 | M20: =+'17-B1'!AL$6 -> 0 | N20: =+'17-B1'!AM$6 -> 0 | O20: =+'17-B1'!AN$6 -> 0 | P20: =+'17-B1'!AO$6 -> 0 | Q20: =+'17-B1'!AP$6 -> 0 | R20: =+'17-B1'!AQ$6 -> 0 | S20: =+'17-B1'!AR$6 -> 0 | T20: =+'17-B1'!AS$6 -> 0 | U20: =+'17-B1'!AT$6 -> 0 | V20: =+'17-B1'!AU$6 -> 0 | W20: =+'17-B1'!AV$6 -> 0 | X20: =+'17-B1'!AW$6 -> 0 | Y20: =+'17-B1'!AX$6 -> 0 | Z20: =+'17-B1'!AY$6 -> 0 | AA20: =+'17-B1'!AZ$6 -> 0 | AB20: =+'17-B1'!BA$6 -> 0 | AC20: =+'17-B1'!BB$6 -> 0 | AD20: =+'17-B1'!BC$6 -> 0 | AE20: =+'17-B1'!BD$6 -> 0 | AF20: =+'17-B1'!BE$6 -> 0 | AG20: =+'17-B1'!BF$6 -> 0 | AH20: =+'17-B1'!BG$6 -> 0 | AI20: =+'17-B1'!BH$6 -> 0 | AJ20: =+'17-B1'!BI$6 -> 0 | AK20: =+'17-B1'!BJ$6 -> 0 | AL20: =+'17-B1'!BK$6 -> 0 | AM20: =+'17-B1'!BL$6 -> 0 | AN20: =+'17-B1'!BM$6 -> 0 | AO20: =+'17-B1'!BN$6 -> 0 | AP20: =+'17-B1'!BO$6 -> 0 | AQ20: =+'17-B1'!BP$6 -> 0 | AR20: =+'17-B1'!BQ$6 -> 0 | AS20: =+'17-B1'!BR$6 -> 0 | AU20: =+'17-B1'!BT$6 -> 0 | AW20: =+'17-B1'!BV$6 -> 0 | AX20: =+'17-B1'!BW$6 -> 0 | AY20: =+'17-B1'!BX$6 -> 0 | AZ20: =+'17-B1'!BY$6 -> 0 | BA20: =+'17-B1'!BZ$6 -> 0 | BB20: =+'17-B1'!CA$6 -> 0
A21: =+'23-A1'!Z$6 -> 23-A1 | B21: =+'23-A1'!AA$6 -> County Courthouse | C21: =+'23-A1'!AB$6 -> 100 N. State St. | D21: =+'23-A1'!AC$6 -> Ukiah | E21: =+'23-A1'!AD$6 -> 95482 | F21: =+'23-A1'!AE$6 -> Mendocino | G21: =+'23-A1'!AF$6 -> BANCRO | I21: =+'23-A1'!AH$6 -> 0 | J21: =+'23-A1'!AI$6 -> 0 | K21: =+'23-A1'!AJ$6 -> 0 | L21: =+'23-A1'!AK$6 -> 0 | M21: =+'23-A1'!AL$6 -> 0 | N21: =+'23-A1'!AM$6 -> 0 | O21: =+'23-A1'!AN$6 -> 0 | P21: =+'23-A1'!AO$6 -> 0 | Q21: =+'23-A1'!AP$6 -> 0 | R21: =+'23-A1'!AQ$6 -> 0 | S21: =+'23-A1'!AR$6 -> 0 | T21: =+'23-A1'!AS$6 -> 0 | U21: =+'23-A1'!AT$6 -> 0 | V21: =+'23-A1'!AU$6 -> 0 | W21: =+'23-A1'!AV$6 -> 0 | X21: =+'23-A1'!AW$6 -> 0 | Y21: =+'23-A1'!AX$6 -> 0 | Z21: =+'23-A1'!AY$6 -> 0 | AA21: =+'23-A1'!AZ$6 -> 0 | AB21: =+'23-A1'!BA$6 -> 0 | AC21: =+'23-A1'!BB$6 -> 0 | AD21: =+'23-A1'!BC$6 -> 0 | AE21: =+'23-A1'!BD$6 -> 0 | AF21: =+'23-A1'!BE$6 -> 0 | AG21: =+'23-A1'!BF$6 -> 0 | AH21: =+'23-A1'!BG$6 -> 0 | AI21: =+'23-A1'!BH$6 -> 0 | AJ21: =+'23-A1'!BI$6 -> 0 | AK21: =+'23-A1'!BJ$6 -> 0 | AL21: =+'23-A1'!BK$6 -> 0 | AM21: =+'23-A1'!BL$6 -> 0 | AN21: =+'23-A1'!BM$6 -> 0 | AO21: =+'23-A1'!BN$6 -> 0 | AP21: =+'23-A1'!BO$6 -> 0 | AQ21: =+'23-A1'!BP$6 -> 0 | AR21: =+'23-A1'!BQ$6 -> 0 | AS21: =+'23-A1'!BR$6 -> 0 | AU21: =+'23-A1'!BT$6 -> 0 | AW21: =+'23-A1'!BV$6 -> 0 | AX21: =+'23-A1'!BW$6 -> 0 | AY21: =+'23-A1'!BX$6 -> 0 | AZ21: =+'23-A1'!BY$6 -> 0 | BA21: =+'23-A1'!BZ$6 -> 0 | BB21: =+'23-A1'!CA$6 -> 0
A22: =+'27-A1'!Z$6 -> 27-A1 | B22: =+'27-A1'!AA$6 -> Salinas Courthouse- North Wing | C22: =+'27-A1'!AB$6 -> 240 Church St. | D22: =+'27-A1'!AC$6 -> Salinas | E22: =+'27-A1'!AD$6 -> 93901 | F22: =+'27-A1'!AE$6 -> Monterey | G22: =+'27-A1'!AF$6 -> BANCRO | I22: =+'27-A1'!AH$6 -> 0 | J22: =+'27-A1'!AI$6 -> 0 | K22: =+'27-A1'!AJ$6 -> 0 | L22: =+'27-A1'!AK$6 -> 0 | M22: =+'27-A1'!AL$6 -> 0 | N22: =+'27-A1'!AM$6 -> 0 | O22: =+'27-A1'!AN$6 -> 0 | P22: =+'27-A1'!AO$6 -> 0 | Q22: =+'27-A1'!AP$6 -> 0 | R22: =+'27-A1'!AQ$6 -> 0 | S22: =+'27-A1'!AR$6 -> 0 | T22: =+'27-A1'!AS$6 -> 0 | U22: =+'27-A1'!AT$6 -> 0 | V22: =+'27-A1'!AU$6 -> 0 | W22: =+'27-A1'!AV$6 -> 0 | X22: =+'27-A1'!AW$6 -> 0 | Y22: =+'27-A1'!AX$6 -> 0 | Z22: =+'27-A1'!AY$6 -> 0 | AA22: =+'27-A1'!AZ$6 -> 0 | AB22: =+'27-A1'!BA$6 -> 0 | AC22: =+'27-A1'!BB$6 -> 0 | AD22: =+'27-A1'!BC$6 -> 0 | AE22: =+'27-A1'!BD$6 -> 0 | AF22: =+'27-A1'!BE$6 -> 0 | AG22: =+'27-A1'!BF$6 -> 0 | AH22: =+'27-A1'!BG$6 -> 0 | AI22: =+'27-A1'!BH$6 -> 0 | AJ22: =+'27-A1'!BI$6 -> 0 | AK22: =+'27-A1'!BJ$6 -> 0 | AL22: =+'27-A1'!BK$6 -> 0 | AM22: =+'27-A1'!BL$6 -> 0 | AN22: =+'27-A1'!BM$6 -> 0 | AO22: =+'27-A1'!BN$6 -> 0 | AP22: =+'27-A1'!BO$6 -> 0 | AQ22: =+'27-A1'!BP$6 -> 0 | AR22: =+'27-A1'!BQ$6 -> 0 | AS22: =+'27-A1'!BR$6 -> 0 | AU22: =+'27-A1'!BT$6 -> 0 | AW22: =+'27-A1'!BV$6 -> 0 | AX22: =+'27-A1'!BW$6 -> 0 | AY22: =+'27-A1'!BX$6 -> 0 | AZ22: =+'27-A1'!BY$6 -> 0 | BA22: =+'27-A1'!BZ$6 -> 0 | BB22: =+'27-A1'!CA$6 -> 0
A23: =+'27-B1'!Z$6 -> 27-B1 | B23: =+'27-B1'!AA$6 -> Marina Courthouse | C23: =+'27-B1'!AB$6 -> 3180 Del Monte Blvd. | D23: =+'27-B1'!AC$6 -> Marina | E23: =+'27-B1'!AD$6 -> 93933 | F23: =+'27-B1'!AE$6 -> Monterey | G23: =+'27-B1'!AF$6 -> BANCRO | I23: =+'27-B1'!AH$6 -> 0 | J23: =+'27-B1'!AI$6 -> 0 | K23: =+'27-B1'!AJ$6 -> 0 | L23: =+'27-B1'!AK$6 -> 0 | M23: =+'27-B1'!AL$6 -> 0 | N23: =+'27-B1'!AM$6 -> 0 | O23: =+'27-B1'!AN$6 -> 0 | P23: =+'27-B1'!AO$6 -> 0 | Q23: =+'27-B1'!AP$6 -> 0 | R23: =+'27-B1'!AQ$6 -> 0 | S23: =+'27-B1'!AR$6 -> 0 | T23: =+'27-B1'!AS$6 -> 0 | U23: =+'27-B1'!AT$6 -> 0 | V23: =+'27-B1'!AU$6 -> 0 | W23: =+'27-B1'!AV$6 -> 0 | X23: =+'27-B1'!AW$6 -> 0 | Y23: =+'27-B1'!AX$6 -> 0 | Z23: =+'27-B1'!AY$6 -> 0 | AA23: =+'27-B1'!AZ$6 -> 0 | AB23: =+'27-B1'!BA$6 -> 0 | AC23: =+'27-B1'!BB$6 -> 0 | AD23: =+'27-B1'!BC$6 -> 0 | AE23: =+'27-B1'!BD$6 -> 0 | AF23: =+'27-B1'!BE$6 -> 0 | AG23: =+'27-B1'!BF$6 -> 0 | AH23: =+'27-B1'!BG$6 -> 0 | AI23: =+'27-B1'!BH$6 -> 0 | AJ23: =+'27-B1'!BI$6 -> 0 | AK23: =+'27-B1'!BJ$6 -> 0 | AL23: =+'27-B1'!BK$6 -> 0 | AM23: =+'27-B1'!BL$6 -> 0 | AN23: =+'27-B1'!BM$6 -> 0 | AO23: =+'27-B1'!BN$6 -> 0 | AP23: =+'27-B1'!BO$6 -> 0 | AQ23: =+'27-B1'!BP$6 -> 0 | AR23: =+'27-B1'!BQ$6 -> 0 | AS23: =+'27-B1'!BR$6 -> 0 | AU23: =+'27-B1'!BT$6 -> 0 | AW23: =+'27-B1'!BV$6 -> 0 | AX23: =+'27-B1'!BW$6 -> 0 | AY23: =+'27-B1'!BX$6 -> 0 | AZ23: =+'27-B1'!BY$6 -> 0 | BA23: =+'27-B1'!BZ$6 -> 0 | BB23: =+'27-B1'!CA$6 -> 0
A24: =+'28-A1'!Z$6 -> 28-A1 | B24: =+'28-A1'!AA$6 -> Criminal Court Building | C24: =+'28-A1'!AB$6 -> 1111 Third St. | D24: =+'28-A1'!AC$6 -> Napa | E24: =+'28-A1'!AD$6 -> 94559 | F24: =+'28-A1'!AE$6 -> Napa | G24: =+'28-A1'!AF$6 -> BANCRO | I24: =+'28-A1'!AH$6 -> 0 | J24: =+'28-A1'!AI$6 -> 0 | K24: =+'28-A1'!AJ$6 -> 0 | L24: =+'28-A1'!AK$6 -> 0 | M24: =+'28-A1'!AL$6 -> 0 | N24: =+'28-A1'!AM$6 -> 0 | O24: =+'28-A1'!AN$6 -> 0 | P24: =+'28-A1'!AO$6 -> 0 | Q24: =+'28-A1'!AP$6 -> 0 | R24: =+'28-A1'!AQ$6 -> 0 | S24: =+'28-A1'!AR$6 -> 0 | T24: =+'28-A1'!AS$6 -> 0 | U24: =+'28-A1'!AT$6 -> 0 | V24: =+'28-A1'!AU$6 -> 0 | W24: =+'28-A1'!AV$6 -> 0 | X24: =+'28-A1'!AW$6 -> 0 | Y24: =+'28-A1'!AX$6 -> 0 | Z24: =+'28-A1'!AY$6 -> 0 | AA24: =+'28-A1'!AZ$6 -> 0 | AB24: =+'28-A1'!BA$6 -> 0 | AC24: =+'28-A1'!BB$6 -> 0 | AD24: =+'28-A1'!BC$6 -> 0 | AE24: =+'28-A1'!BD$6 -> 0 | AF24: =+'28-A1'!BE$6 -> 0 | AG24: =+'28-A1'!BF$6 -> 0 | AH24: =+'28-A1'!BG$6 -> 0 | AI24: =+'28-A1'!BH$6 -> 0 | AJ24: =+'28-A1'!BI$6 -> 0 | AK24: =+'28-A1'!BJ$6 -> 0 | AL24: =+'28-A1'!BK$6 -> 0 | AM24: =+'28-A1'!BL$6 -> 0 | AN24: =+'28-A1'!BM$6 -> 0 | AO24: =+'28-A1'!BN$6 -> 0 | AP24: =+'28-A1'!BO$6 -> 0 | AQ24: =+'28-A1'!BP$6 -> 0 | AR24: =+'28-A1'!BQ$6 -> 0 | AS24: =+'28-A1'!BR$6 -> 0 | AU24: =+'28-A1'!BT$6 -> 0 | AW24: =+'28-A1'!BV$6 -> 0 | AX24: =+'28-A1'!BW$6 -> 0 | AY24: =+'28-A1'!BX$6 -> 0 | AZ24: =+'28-A1'!BY$6 -> 0 | BA24: =+'28-A1'!BZ$6 -> 0 | BB24: =+'28-A1'!CA$6 -> 0
A25: =+'28-B1'!Z$6 -> 28-B1 | B25: =+'28-B1'!AA$6 -> Historic Courthouse | C25: =+'28-B1'!AB$6 -> 825 Brown St. | D25: =+'28-B1'!AC$6 -> Napa | E25: =+'28-B1'!AD$6 -> 94559 | F25: =+'28-B1'!AE$6 -> Napa | G25: =+'28-B1'!AF$6 -> BANCRO | I25: =+'28-B1'!AH$6 -> 0 | J25: =+'28-B1'!AI$6 -> 0 | K25: =+'28-B1'!AJ$6 -> 0 | L25: =+'28-B1'!AK$6 -> 0 | M25: =+'28-B1'!AL$6 -> 0 | N25: =+'28-B1'!AM$6 -> 0 | O25: =+'28-B1'!AN$6 -> 0 | P25: =+'28-B1'!AO$6 -> 0 | Q25: =+'28-B1'!AP$6 -> 0 | R25: =+'28-B1'!AQ$6 -> 0 | S25: =+'28-B1'!AR$6 -> 0 | T25: =+'28-B1'!AS$6 -> 0 | U25: =+'28-B1'!AT$6 -> 0 | V25: =+'28-B1'!AU$6 -> 0 | W25: =+'28-B1'!AV$6 -> 0 | X25: =+'28-B1'!AW$6 -> 0 | Y25: =+'28-B1'!AX$6 -> 0 | Z25: =+'28-B1'!AY$6 -> 0 | AA25: =+'28-B1'!AZ$6 -> 0 | AB25: =+'28-B1'!BA$6 -> 0 | AC25: =+'28-B1'!BB$6 -> 0 | AD25: =+'28-B1'!BC$6 -> 0 | AE25: =+'28-B1'!BD$6 -> 0 | AF25: =+'28-B1'!BE$6 -> 0 | AG25: =+'28-B1'!BF$6 -> 0 | AH25: =+'28-B1'!BG$6 -> 0 | AI25: =+'28-B1'!BH$6 -> 0 | AJ25: =+'28-B1'!BI$6 -> 0 | AK25: =+'28-B1'!BJ$6 -> 0 | AL25: =+'28-B1'!BK$6 -> 0 | AM25: =+'28-B1'!BL$6 -> 0 | AN25: =+'28-B1'!BM$6 -> 0 | AO25: =+'28-B1'!BN$6 -> 0 | AP25: =+'28-B1'!BO$6 -> 0 | AQ25: =+'28-B1'!BP$6 -> 0 | AR25: =+'28-B1'!BQ$6 -> 0 | AS25: =+'28-B1'!BR$6 -> 0 | AU25: =+'28-B1'!BT$6 -> 0 | AW25: =+'28-B1'!BV$6 -> 0 | AX25: =+'28-B1'!BW$6 -> 0 | AY25: =+'28-B1'!BX$6 -> 0 | AZ25: =+'28-B1'!BY$6 -> 0 | BA25: =+'28-B1'!BZ$6 -> 0 | BB25: =+'28-B1'!CA$6 -> 0
A26: =+'28-C1'!Z$6 -> 28-C1 | B26: =+'28-C1'!AA$6 -> Napa Juvenile Court | C26: =+'28-C1'!AB$6 -> 2350 Old Sonoma Rd. | D26: =+'28-C1'!AC$6 -> Napa | E26: =+'28-C1'!AD$6 -> 94559 | F26: =+'28-C1'!AE$6 -> Napa | G26: =+'28-C1'!AF$6 -> BANCRO | I26: =+'28-C1'!AH$6 -> 0 | J26: =+'28-C1'!AI$6 -> 0 | K26: =+'28-C1'!AJ$6 -> 0 | L26: =+'28-C1'!AK$6 -> 0 | M26: =+'28-C1'!AL$6 -> 0 | N26: =+'28-C1'!AM$6 -> 0 | O26: =+'28-C1'!AN$6 -> 0 | P26: =+'28-C1'!AO$6 -> 0 | Q26: =+'28-C1'!AP$6 -> 0 | R26: =+'28-C1'!AQ$6 -> 0 | S26: =+'28-C1'!AR$6 -> 0 | T26: =+'28-C1'!AS$6 -> 0 | U26: =+'28-C1'!AT$6 -> 0 | V26: =+'28-C1'!AU$6 -> 0 | W26: =+'28-C1'!AV$6 -> 0 | X26: =+'28-C1'!AW$6 -> 0 | Y26: =+'28-C1'!AX$6 -> 0 | Z26: =+'28-C1'!AY$6 -> 0 | AA26: =+'28-C1'!AZ$6 -> 0 | AB26: =+'28-C1'!BA$6 -> 0 | AC26: =+'28-C1'!BB$6 -> 0 | AD26: =+'28-C1'!BC$6 -> 0 | AE26: =+'28-C1'!BD$6 -> 0 | AF26: =+'28-C1'!BE$6 -> 0 | AG26: =+'28-C1'!BF$6 -> 0 | AH26: =+'28-C1'!BG$6 -> 0 | AI26: =+'28-C1'!BH$6 -> 0 | AJ26: =+'28-C1'!BI$6 -> 0 | AK26: =+'28-C1'!BJ$6 -> 0 | AL26: =+'28-C1'!BK$6 -> 0 | AM26: =+'28-C1'!BL$6 -> 0 | AN26: =+'28-C1'!BM$6 -> 0 | AO26: =+'28-C1'!BN$6 -> 0 | AP26: =+'28-C1'!BO$6 -> 0 | AQ26: =+'28-C1'!BP$6 -> 0 | AR26: =+'28-C1'!BQ$6 -> 0 | AS26: =+'28-C1'!BR$6 -> 0 | AU26: =+'28-C1'!BT$6 -> 0 | AW26: =+'28-C1'!BV$6 -> 0 | AX26: =+'28-C1'!BW$6 -> 0 | AY26: =+'28-C1'!BX$6 -> 0 | AZ26: =+'28-C1'!BY$6 -> 0 | BA26: =+'28-C1'!BZ$6 -> 0 | BB26: =+'28-C1'!CA$6 -> 0
A27: =+'35-C1'!Z$6 -> 35-C1 | B27: =+'35-C1'!AA$6 -> New Hollister Courthouse | C27: =+'35-C1'!AB$6 -> 450 Fourth Street | D27: =+'35-C1'!AC$6 -> Hollister | E27: =+'35-C1'!AD$6 -> 95023 | F27: =+'35-C1'!AE$6 -> San Benito | G27: =+'35-C1'!AF$6 -> BANCRO | I27: =+'35-C1'!AH$6 -> 0 | J27: =+'35-C1'!AI$6 -> 0 | K27: =+'35-C1'!AJ$6 -> 0 | L27: =+'35-C1'!AK$6 -> 0 | M27: =+'35-C1'!AL$6 -> 0 | N27: =+'35-C1'!AM$6 -> 0 | O27: =+'35-C1'!AN$6 -> 0 | P27: =+'35-C1'!AO$6 -> 0 | Q27: =+'35-C1'!AP$6 -> 0 | R27: =+'35-C1'!AQ$6 -> 0 | S27: =+'35-C1'!AR$6 -> 0 | T27: =+'35-C1'!AS$6 -> 0 | U27: =+'35-C1'!AT$6 -> 0 | V27: =+'35-C1'!AU$6 -> 0 | W27: =+'35-C1'!AV$6 -> 0 | X27: =+'35-C1'!AW$6 -> 0 | Y27: =+'35-C1'!AX$6 -> 0 | Z27: =+'35-C1'!AY$6 -> 0 | AA27: =+'35-C1'!AZ$6 -> 0 | AB27: =+'35-C1'!BA$6 -> 0 | AC27: =+'35-C1'!BB$6 -> 0 | AD27: =+'35-C1'!BC$6 -> 0 | AE27: =+'35-C1'!BD$6 -> 0 | AF27: =+'35-C1'!BE$6 -> 0 | AG27: =+'35-C1'!BF$6 -> 0 | AH27: =+'35-C1'!BG$6 -> 0 | AI27: =+'35-C1'!BH$6 -> 0 | AJ27: =+'35-C1'!BI$6 -> 0 | AK27: =+'35-C1'!BJ$6 -> 0 | AL27: =+'35-C1'!BK$6 -> 0 | AM27: =+'35-C1'!BL$6 -> 0 | AN27: =+'35-C1'!BM$6 -> 0 | AO27: =+'35-C1'!BN$6 -> 0 | AP27: =+'35-C1'!BO$6 -> 0 | AQ27: =+'35-C1'!BP$6 -> 0 | AR27: =+'35-C1'!BQ$6 -> 0 | AS27: =+'35-C1'!BR$6 -> 0 | AU27: =+'35-C1'!BT$6 -> 0 | AW27: =+'35-C1'!BV$6 -> 0 | AX27: =+'35-C1'!BW$6 -> 0 | AY27: =+'35-C1'!BX$6 -> 0 | AZ27: =+'35-C1'!BY$6 -> 0 | BA27: =+'35-C1'!BZ$6 -> 0 | BB27: =+'35-C1'!CA$6 -> 0
A28: =+'38-A1'!Z$6 -> 38-A1 | B28: =+'38-A1'!AA$6 -> Civic Center Courthouse | C28: =+'38-A1'!AB$6 -> 400 McAllister St. | D28: =+'38-A1'!AC$6 -> San Francisco | E28: =+'38-A1'!AD$6 -> 94102 | F28: =+'38-A1'!AE$6 -> San Francisco | G28: =+'38-A1'!AF$6 -> BANCRO | I28: =+'38-A1'!AH$6 -> 0 | J28: =+'38-A1'!AI$6 -> 0 | K28: =+'38-A1'!AJ$6 -> 0 | L28: =+'38-A1'!AK$6 -> 0 | M28: =+'38-A1'!AL$6 -> 0 | N28: =+'38-A1'!AM$6 -> 0 | O28: =+'38-A1'!AN$6 -> 0 | P28: =+'38-A1'!AO$6 -> 0 | Q28: =+'38-A1'!AP$6 -> 0 | R28: =+'38-A1'!AQ$6 -> 0 | S28: =+'38-A1'!AR$6 -> 0 | T28: =+'38-A1'!AS$6 -> 0 | U28: =+'38-A1'!AT$6 -> 0 | V28: =+'38-A1'!AU$6 -> 0 | W28: =+'38-A1'!AV$6 -> 0 | X28: =+'38-A1'!AW$6 -> 0 | Y28: =+'38-A1'!AX$6 -> 0 | Z28: =+'38-A1'!AY$6 -> 0 | AA28: =+'38-A1'!AZ$6 -> 0 | AB28: =+'38-A1'!BA$6 -> 0 | AC28: =+'38-A1'!BB$6 -> 0 | AD28: =+'38-A1'!BC$6 -> 0 | AE28: =+'38-A1'!BD$6 -> 0 | AF28: =+'38-A1'!BE$6 -> 0 | AG28: =+'38-A1'!BF$6 -> 0 | AH28: =+'38-A1'!BG$6 -> 0 | AI28: =+'38-A1'!BH$6 -> 0 | AJ28: =+'38-A1'!BI$6 -> 0 | AK28: =+'38-A1'!BJ$6 -> 0 | AL28: =+'38-A1'!BK$6 -> 0 | AM28: =+'38-A1'!BL$6 -> 0 | AN28: =+'38-A1'!BM$6 -> 0 | AO28: =+'38-A1'!BN$6 -> 0 | AP28: =+'38-A1'!BO$6 -> 0 | AQ28: =+'38-A1'!BP$6 -> 0 | AR28: =+'38-A1'!BQ$6 -> 0 | AS28: =+'38-A1'!BR$6 -> 0 | AU28: =+'38-A1'!BT$6 -> 0 | AW28: =+'38-A1'!BV$6 -> 0 | AX28: =+'38-A1'!BW$6 -> 0 | AY28: =+'38-A1'!BX$6 -> 0 | AZ28: =+'38-A1'!BY$6 -> 0 | BA28: =+'38-A1'!BZ$6 -> 0 | BB28: =+'38-A1'!CA$6 -> 0
A29: =+'38-C2'!Z$6 -> 38-C2 | B29: =+'38-C2'!AA$6 -> Family Justice Center | C29: =+'38-C2'!AB$6 -> Woodside Ave. and Portola | D29: =+'38-C2'!AC$6 -> San Francisco | E29: =+'38-C2'!AD$6 -> 94127 | F29: =+'38-C2'!AE$6 -> San Francisco | G29: =+'38-C2'!AF$6 -> BANCRO | I29: =+'38-C2'!AH$6 -> 0 | J29: =+'38-C2'!AI$6 -> 0 | K29: =+'38-C2'!AJ$6 -> 0 | L29: =+'38-C2'!AK$6 -> 0 | M29: =+'38-C2'!AL$6 -> 0 | N29: =+'38-C2'!AM$6 -> 0 | O29: =+'38-C2'!AN$6 -> 0 | P29: =+'38-C2'!AO$6 -> 0 | Q29: =+'38-C2'!AP$6 -> 0 | R29: =+'38-C2'!AQ$6 -> 0 | S29: =+'38-C2'!AR$6 -> 0 | T29: =+'38-C2'!AS$6 -> 0 | U29: =+'38-C2'!AT$6 -> 0 | V29: =+'38-C2'!AU$6 -> 0 | W29: =+'38-C2'!AV$6 -> 0 | X29: =+'38-C2'!AW$6 -> 0 | Y29: =+'38-C2'!AX$6 -> 0 | Z29: =+'38-C2'!AY$6 -> 0 | AA29: =+'38-C2'!AZ$6 -> 0 | AB29: =+'38-C2'!BA$6 -> 0 | AC29: =+'38-C2'!BB$6 -> 0 | AD29: =+'38-C2'!BC$6 -> 0 | AE29: =+'38-C2'!BD$6 -> 0 | AF29: =+'38-C2'!BE$6 -> 0 | AG29: =+'38-C2'!BF$6 -> 0 | AH29: =+'38-C2'!BG$6 -> 0 | AI29: =+'38-C2'!BH$6 -> 0 | AJ29: =+'38-C2'!BI$6 -> 0 | AK29: =+'38-C2'!BJ$6 -> 0 | AL29: =+'38-C2'!BK$6 -> 0 | AM29: =+'38-C2'!BL$6 -> 0 | AN29: =+'38-C2'!BM$6 -> 0 | AO29: =+'38-C2'!BN$6 -> 0 | AP29: =+'38-C2'!BO$6 -> 0 | AQ29: =+'38-C2'!BP$6 -> 0 | AR29: =+'38-C2'!BQ$6 -> 0 | AS29: =+'38-C2'!BR$6 -> 0 | AU29: =+'38-C2'!BT$6 -> 0 | AW29: =+'38-C2'!BV$6 -> 0 | AX29: =+'38-C2'!BW$6 -> 0 | AY29: =+'38-C2'!BX$6 -> 0 | AZ29: =+'38-C2'!BY$6 -> 0 | BA29: =+'38-C2'!BZ$6 -> 0 | BB29: =+'38-C2'!CA$6 -> 0
A30: =+'38-C3'!Z$6 -> 38-C3 | B30: =+'38-C3'!AA$6 -> Family Justice Center Site - Bldg 1 | C30: =+'38-C3'!AB$6 -> 375 Woodside Avenue | D30: =+'38-C3'!AC$6 -> San Francisco | E30: =+'38-C3'!AD$6 -> 94127 | F30: =+'38-C3'!AE$6 -> San Francisco | G30: =+'38-C3'!AF$6 -> BANCRO | I30: =+'38-C3'!AH$6 -> 0 | J30: =+'38-C3'!AI$6 -> 0 | K30: =+'38-C3'!AJ$6 -> 0 | L30: =+'38-C3'!AK$6 -> 0 | M30: =+'38-C3'!AL$6 -> 0 | N30: =+'38-C3'!AM$6 -> 0 | O30: =+'38-C3'!AN$6 -> 0 | P30: =+'38-C3'!AO$6 -> 0 | Q30: =+'38-C3'!AP$6 -> 0 | R30: =+'38-C3'!AQ$6 -> 0 | S30: =+'38-C3'!AR$6 -> 0 | T30: =+'38-C3'!AS$6 -> 0 | U30: =+'38-C3'!AT$6 -> 0 | V30: =+'38-C3'!AU$6 -> 0 | W30: =+'38-C3'!AV$6 -> 0 | X30: =+'38-C3'!AW$6 -> 0 | Y30: =+'38-C3'!AX$6 -> 0 | Z30: =+'38-C3'!AY$6 -> 0 | AA30: =+'38-C3'!AZ$6 -> 0 | AB30: =+'38-C3'!BA$6 -> 0 | AC30: =+'38-C3'!BB$6 -> 0 | AD30: =+'38-C3'!BC$6 -> 0 | AE30: =+'38-C3'!BD$6 -> 0 | AF30: =+'38-C3'!BE$6 -> 0 | AG30: =+'38-C3'!BF$6 -> 0 | AH30: =+'38-C3'!BG$6 -> 0 | AI30: =+'38-C3'!BH$6 -> 0 | AJ30: =+'38-C3'!BI$6 -> 0 | AK30: =+'38-C3'!BJ$6 -> 0 | AL30: =+'38-C3'!BK$6 -> 0 | AM30: =+'38-C3'!BL$6 -> 0 | AN30: =+'38-C3'!BM$6 -> 0 | AO30: =+'38-C3'!BN$6 -> 0 | AP30: =+'38-C3'!BO$6 -> 0 | AQ30: =+'38-C3'!BP$6 -> 0 | AR30: =+'38-C3'!BQ$6 -> 0 | AS30: =+'38-C3'!BR$6 -> 0 | AU30: =+'38-C3'!BT$6 -> 0 | AW30: =+'38-C3'!BV$6 -> 0 | AX30: =+'38-C3'!BW$6 -> 0 | AY30: =+'38-C3'!BX$6 -> 0 | AZ30: =+'38-C3'!BY$6 -> 0 | BA30: =+'38-C3'!BZ$6 -> 0 | BB30: =+'38-C3'!CA$6 -> 0
A31: =+'38-C4'!Z$6 -> 38-C4 | B31: =+'38-C4'!AA$6 -> Family Justice Center Site - Bldg 2 | C31: =+'38-C4'!AB$6 -> 375 Woodside Avenue | D31: =+'38-C4'!AC$6 -> San Francisco | E31: =+'38-C4'!AD$6 -> 94127 | F31: =+'38-C4'!AE$6 -> San Francisco | G31: =+'38-C4'!AF$6 -> BANCRO | I31: =+'38-C4'!AH$6 -> 0 | J31: =+'38-C4'!AI$6 -> 0 | K31: =+'38-C4'!AJ$6 -> 0 | L31: =+'38-C4'!AK$6 -> 0 | M31: =+'38-C4'!AL$6 -> 0 | N31: =+'38-C4'!AM$6 -> 0 | O31: =+'38-C4'!AN$6 -> 0 | P31: =+'38-C4'!AO$6 -> 0 | Q31: =+'38-C4'!AP$6 -> 0 | R31: =+'38-C4'!AQ$6 -> 0 | S31: =+'38-C4'!AR$6 -> 0 | T31: =+'38-C4'!AS$6 -> 0 | U31: =+'38-C4'!AT$6 -> 0 | V31: =+'38-C4'!AU$6 -> 0 | W31: =+'38-C4'!AV$6 -> 0 | X31: =+'38-C4'!AW$6 -> 0 | Y31: =+'38-C4'!AX$6 -> 0 | Z31: =+'38-C4'!AY$6 -> 0 | AA31: =+'38-C4'!AZ$6 -> 0 | AB31: =+'38-C4'!BA$6 -> 0 | AC31: =+'38-C4'!BB$6 -> 0 | AD31: =+'38-C4'!BC$6 -> 0 | AE31: =+'38-C4'!BD$6 -> 0 | AF31: =+'38-C4'!BE$6 -> 0 | AG31: =+'38-C4'!BF$6 -> 0 | AH31: =+'38-C4'!BG$6 -> 0 | AI31: =+'38-C4'!BH$6 -> 0 | AJ31: =+'38-C4'!BI$6 -> 0 | AK31: =+'38-C4'!BJ$6 -> 0 | AL31: =+'38-C4'!BK$6 -> 0 | AM31: =+'38-C4'!BL$6 -> 0 | AN31: =+'38-C4'!BM$6 -> 0 | AO31: =+'38-C4'!BN$6 -> 0 | AP31: =+'38-C4'!BO$6 -> 0 | AQ31: =+'38-C4'!BP$6 -> 0 | AR31: =+'38-C4'!BQ$6 -> 0 | AS31: =+'38-C4'!BR$6 -> 0 | AU31: =+'38-C4'!BT$6 -> 0 | AW31: =+'38-C4'!BV$6 -> 0 | AX31: =+'38-C4'!BW$6 -> 0 | AY31: =+'38-C4'!BX$6 -> 0 | AZ31: =+'38-C4'!BY$6 -> 0 | BA31: =+'38-C4'!BZ$6 -> 0 | BB31: =+'38-C4'!CA$6 -> 0
A32: =+'38-C5'!Z$6 -> 38-C5 | B32: =+'38-C5'!AA$6 -> Family Justice Center Site - Bldg 3 | C32: =+'38-C5'!AB$6 -> 375 Woodside Avenue | D32: =+'38-C5'!AC$6 -> San Francisco | E32: =+'38-C5'!AD$6 -> 94127 | F32: =+'38-C5'!AE$6 -> San Francisco | G32: =+'38-C5'!AF$6 -> BANCRO | I32: =+'38-C5'!AH$6 -> 0 | J32: =+'38-C5'!AI$6 -> 0 | K32: =+'38-C5'!AJ$6 -> 0 | L32: =+'38-C5'!AK$6 -> 0 | M32: =+'38-C5'!AL$6 -> 0 | N32: =+'38-C5'!AM$6 -> 0 | O32: =+'38-C5'!AN$6 -> 0 | P32: =+'38-C5'!AO$6 -> 0 | Q32: =+'38-C5'!AP$6 -> 0 | R32: =+'38-C5'!AQ$6 -> 0 | S32: =+'38-C5'!AR$6 -> 0 | T32: =+'38-C5'!AS$6 -> 0 | U32: =+'38-C5'!AT$6 -> 0 | V32: =+'38-C5'!AU$6 -> 0 | W32: =+'38-C5'!AV$6 -> 0 | X32: =+'38-C5'!AW$6 -> 0 | Y32: =+'38-C5'!AX$6 -> 0 | Z32: =+'38-C5'!AY$6 -> 0 | AA32: =+'38-C5'!AZ$6 -> 0 | AB32: =+'38-C5'!BA$6 -> 0 | AC32: =+'38-C5'!BB$6 -> 0 | AD32: =+'38-C5'!BC$6 -> 0 | AE32: =+'38-C5'!BD$6 -> 0 | AF32: =+'38-C5'!BE$6 -> 0 | AG32: =+'38-C5'!BF$6 -> 0 | AH32: =+'38-C5'!BG$6 -> 0 | AI32: =+'38-C5'!BH$6 -> 0 | AJ32: =+'38-C5'!BI$6 -> 0 | AK32: =+'38-C5'!BJ$6 -> 0 | AL32: =+'38-C5'!BK$6 -> 0 | AM32: =+'38-C5'!BL$6 -> 0 | AN32: =+'38-C5'!BM$6 -> 0 | AO32: =+'38-C5'!BN$6 -> 0 | AP32: =+'38-C5'!BO$6 -> 0 | AQ32: =+'38-C5'!BP$6 -> 0 | AR32: =+'38-C5'!BQ$6 -> 0 | AS32: =+'38-C5'!BR$6 -> 0 | AU32: =+'38-C5'!BT$6 -> 0 | AW32: =+'38-C5'!BV$6 -> 0 | AX32: =+'38-C5'!BW$6 -> 0 | AY32: =+'38-C5'!BX$6 -> 0 | AZ32: =+'38-C5'!BY$6 -> 0 | BA32: =+'38-C5'!BZ$6 -> 0 | BB32: =+'38-C5'!CA$6 -> 0
A33: =+'41-A2'!Z$6 -> 41-A2 | B33: =+'41-A2'!AA$6 -> Traffic/ Small Claims Annex | C33: =+'41-A2'!AB$6 -> 500 County Center | D33: =+'41-A2'!AC$6 -> Redwood City | E33: =+'41-A2'!AD$6 -> 94063 | F33: =+'41-A2'!AE$6 -> San Mateo | G33: =+'41-A2'!AF$6 -> BANCRO | I33: =+'41-A2'!AH$6 -> 0 | J33: =+'41-A2'!AI$6 -> 0 | K33: =+'41-A2'!AJ$6 -> 0 | L33: =+'41-A2'!AK$6 -> 0 | M33: =+'41-A2'!AL$6 -> 0 | N33: =+'41-A2'!AM$6 -> 0 | O33: =+'41-A2'!AN$6 -> 0 | P33: =+'41-A2'!AO$6 -> 0 | Q33: =+'41-A2'!AP$6 -> 0 | R33: =+'41-A2'!AQ$6 -> 0 | S33: =+'41-A2'!AR$6 -> 0 | T33: =+'41-A2'!AS$6 -> 0 | U33: =+'41-A2'!AT$6 -> 0 | V33: =+'41-A2'!AU$6 -> 0 | W33: =+'41-A2'!AV$6 -> 0 | X33: =+'41-A2'!AW$6 -> 0 | Y33: =+'41-A2'!AX$6 -> 0 | Z33: =+'41-A2'!AY$6 -> 0 | AA33: =+'41-A2'!AZ$6 -> 0 | AB33: =+'41-A2'!BA$6 -> 0 | AC33: =+'41-A2'!BB$6 -> 0 | AD33: =+'41-A2'!BC$6 -> 0 | AE33: =+'41-A2'!BD$6 -> 0 | AF33: =+'41-A2'!BE$6 -> 0 | AG33: =+'41-A2'!BF$6 -> 0 | AH33: =+'41-A2'!BG$6 -> 0 | AI33: =+'41-A2'!BH$6 -> 0 | AJ33: =+'41-A2'!BI$6 -> 0 | AK33: =+'41-A2'!BJ$6 -> 0 | AL33: =+'41-A2'!BK$6 -> 0 | AM33: =+'41-A2'!BL$6 -> 0 | AN33: =+'41-A2'!BM$6 -> 0 | AO33: =+'41-A2'!BN$6 -> 0 | AP33: =+'41-A2'!BO$6 -> 0 | AQ33: =+'41-A2'!BP$6 -> 0 | AR33: =+'41-A2'!BQ$6 -> 0 | AS33: =+'41-A2'!BR$6 -> 0 | AU33: =+'41-A2'!BT$6 -> 0 | AW33: =+'41-A2'!BV$6 -> 0 | AX33: =+'41-A2'!BW$6 -> 0 | AY33: =+'41-A2'!BX$6 -> 0 | AZ33: =+'41-A2'!BY$6 -> 0 | BA33: =+'41-A2'!BZ$6 -> 0 | BB33: =+'41-A2'!CA$6 -> 0
A34: =+'41-B1'!Z$6 -> 41-B1 | B34: =+'41-B1'!AA$6 -> Central Branch | C34: =+'41-B1'!AB$6 -> 800 North Humboldt St. | D34: =+'41-B1'!AC$6 -> San Mateo | E34: =+'41-B1'!AD$6 -> 94401 | F34: =+'41-B1'!AE$6 -> San Mateo | G34: =+'41-B1'!AF$6 -> BANCRO | I34: =+'41-B1'!AH$6 -> 0 | J34: =+'41-B1'!AI$6 -> 0 | K34: =+'41-B1'!AJ$6 -> 0 | L34: =+'41-B1'!AK$6 -> 0 | M34: =+'41-B1'!AL$6 -> 0 | N34: =+'41-B1'!AM$6 -> 0 | O34: =+'41-B1'!AN$6 -> 0 | P34: =+'41-B1'!AO$6 -> 0 | Q34: =+'41-B1'!AP$6 -> 0 | R34: =+'41-B1'!AQ$6 -> 0 | S34: =+'41-B1'!AR$6 -> 0 | T34: =+'41-B1'!AS$6 -> 0 | U34: =+'41-B1'!AT$6 -> 0 | V34: =+'41-B1'!AU$6 -> 0 | W34: =+'41-B1'!AV$6 -> 0 | X34: =+'41-B1'!AW$6 -> 0 | Y34: =+'41-B1'!AX$6 -> 0 | Z34: =+'41-B1'!AY$6 -> 0 | AA34: =+'41-B1'!AZ$6 -> 0 | AB34: =+'41-B1'!BA$6 -> 0 | AC34: =+'41-B1'!BB$6 -> 0 | AD34: =+'41-B1'!BC$6 -> 0 | AE34: =+'41-B1'!BD$6 -> 0 | AF34: =+'41-B1'!BE$6 -> 0 | AG34: =+'41-B1'!BF$6 -> 0 | AH34: =+'41-B1'!BG$6 -> 0 | AI34: =+'41-B1'!BH$6 -> 0 | AJ34: =+'41-B1'!BI$6 -> 0 | AK34: =+'41-B1'!BJ$6 -> 0 | AL34: =+'41-B1'!BK$6 -> 0 | AM34: =+'41-B1'!BL$6 -> 0 | AN34: =+'41-B1'!BM$6 -> 0 | AO34: =+'41-B1'!BN$6 -> 0 | AP34: =+'41-B1'!BO$6 -> 0 | AQ34: =+'41-B1'!BP$6 -> 0 | AR34: =+'41-B1'!BQ$6 -> 0 | AS34: =+'41-B1'!BR$6 -> 0 | AU34: =+'41-B1'!BT$6 -> 0 | AW34: =+'41-B1'!BV$6 -> 0 | AX34: =+'41-B1'!BW$6 -> 0 | AY34: =+'41-B1'!BX$6 -> 0 | AZ34: =+'41-B1'!BY$6 -> 0 | BA34: =+'41-B1'!BZ$6 -> 0 | BB34: =+'41-B1'!CA$6 -> 0
A35: =+'41-C1'!Z$6 -> 41-C1 | B35: =+'41-C1'!AA$6 -> Northern Branch Courthouse | C35: =+'41-C1'!AB$6 -> 1050 Mission Rd. | D35: =+'41-C1'!AC$6 -> South San Francisco | E35: =+'41-C1'!AD$6 -> 94080 | F35: =+'41-C1'!AE$6 -> San Mateo | G35: =+'41-C1'!AF$6 -> BANCRO | I35: =+'41-C1'!AH$6 -> 0 | J35: =+'41-C1'!AI$6 -> 0 | K35: =+'41-C1'!AJ$6 -> 0 | L35: =+'41-C1'!AK$6 -> 0 | M35: =+'41-C1'!AL$6 -> 0 | N35: =+'41-C1'!AM$6 -> 0 | O35: =+'41-C1'!AN$6 -> 0 | P35: =+'41-C1'!AO$6 -> 0 | Q35: =+'41-C1'!AP$6 -> 0 | R35: =+'41-C1'!AQ$6 -> 0 | S35: =+'41-C1'!AR$6 -> 0 | T35: =+'41-C1'!AS$6 -> 0 | U35: =+'41-C1'!AT$6 -> 0 | V35: =+'41-C1'!AU$6 -> 0 | W35: =+'41-C1'!AV$6 -> 0 | X35: =+'41-C1'!AW$6 -> 0 | Y35: =+'41-C1'!AX$6 -> 0 | Z35: =+'41-C1'!AY$6 -> 0 | AA35: =+'41-C1'!AZ$6 -> 0 | AB35: =+'41-C1'!BA$6 -> 0 | AC35: =+'41-C1'!BB$6 -> 0 | AD35: =+'41-C1'!BC$6 -> 0 | AE35: =+'41-C1'!BD$6 -> 0 | AF35: =+'41-C1'!BE$6 -> 0 | AG35: =+'41-C1'!BF$6 -> 0 | AH35: =+'41-C1'!BG$6 -> 0 | AI35: =+'41-C1'!BH$6 -> 0 | AJ35: =+'41-C1'!BI$6 -> 0 | AK35: =+'41-C1'!BJ$6 -> 0 | AL35: =+'41-C1'!BK$6 -> 0 | AM35: =+'41-C1'!BL$6 -> 0 | AN35: =+'41-C1'!BM$6 -> 0 | AO35: =+'41-C1'!BN$6 -> 0 | AP35: =+'41-C1'!BO$6 -> 0 | AQ35: =+'41-C1'!BP$6 -> 0 | AR35: =+'41-C1'!BQ$6 -> 0 | AS35: =+'41-C1'!BR$6 -> 0 | AU35: =+'41-C1'!BT$6 -> 0 | AW35: =+'41-C1'!BV$6 -> 0 | AX35: =+'41-C1'!BW$6 -> 0 | AY35: =+'41-C1'!BX$6 -> 0 | AZ35: =+'41-C1'!BY$6 -> 0 | BA35: =+'41-C1'!BZ$6 -> 0 | BB35: =+'41-C1'!CA$6 -> 0
A36: =+'43-A1'!Z$6 -> 43-A1 | B36: =+'43-A1'!AA$6 -> Hall of Justice (East) | C36: =+'43-A1'!AB$6 -> 190 W. Hedding | D36: =+'43-A1'!AC$6 -> San Jose | E36: =+'43-A1'!AD$6 -> 95110 | F36: =+'43-A1'!AE$6 -> Santa Clara | G36: =+'43-A1'!AF$6 -> BANCRO | I36: =+'43-A1'!AH$6 -> 0 | J36: =+'43-A1'!AI$6 -> 0 | K36: =+'43-A1'!AJ$6 -> 0 | L36: =+'43-A1'!AK$6 -> 0 | M36: =+'43-A1'!AL$6 -> 0 | N36: =+'43-A1'!AM$6 -> 0 | O36: =+'43-A1'!AN$6 -> 0 | P36: =+'43-A1'!AO$6 -> 0 | Q36: =+'43-A1'!AP$6 -> 0 | R36: =+'43-A1'!AQ$6 -> 0 | S36: =+'43-A1'!AR$6 -> 0 | T36: =+'43-A1'!AS$6 -> 0 | U36: =+'43-A1'!AT$6 -> 0 | V36: =+'43-A1'!AU$6 -> 0 | W36: =+'43-A1'!AV$6 -> 0 | X36: =+'43-A1'!AW$6 -> 0 | Y36: =+'43-A1'!AX$6 -> 0 | Z36: =+'43-A1'!AY$6 -> 0 | AA36: =+'43-A1'!AZ$6 -> 0 | AB36: =+'43-A1'!BA$6 -> 0 | AC36: =+'43-A1'!BB$6 -> 0 | AD36: =+'43-A1'!BC$6 -> 0 | AE36: =+'43-A1'!BD$6 -> 0 | AF36: =+'43-A1'!BE$6 -> 0 | AG36: =+'43-A1'!BF$6 -> 0 | AH36: =+'43-A1'!BG$6 -> 0 | AI36: =+'43-A1'!BH$6 -> 0 | AJ36: =+'43-A1'!BI$6 -> 0 | AK36: =+'43-A1'!BJ$6 -> 0 | AL36: =+'43-A1'!BK$6 -> 0 | AM36: =+'43-A1'!BL$6 -> 0 | AN36: =+'43-A1'!BM$6 -> 0 | AO36: =+'43-A1'!BN$6 -> 0 | AP36: =+'43-A1'!BO$6 -> 0 | AQ36: =+'43-A1'!BP$6 -> 0 | AR36: =+'43-A1'!BQ$6 -> 0 | AS36: =+'43-A1'!BR$6 -> 0 | AU36: =+'43-A1'!BT$6 -> 0 | AW36: =+'43-A1'!BV$6 -> 0 | AX36: =+'43-A1'!BW$6 -> 0 | AY36: =+'43-A1'!BX$6 -> 0 | AZ36: =+'43-A1'!BY$6 -> 0 | BA36: =+'43-A1'!BZ$6 -> 0 | BB36: =+'43-A1'!CA$6 -> 0
A37: =+'43-A2'!Z$6 -> 43-A2 | B37: =+'43-A2'!AA$6 -> Hall of Justice (West) | C37: =+'43-A2'!AB$6 -> 200 W. Hedding | D37: =+'43-A2'!AC$6 -> San Jose | E37: =+'43-A2'!AD$6 -> 95110 | F37: =+'43-A2'!AE$6 -> Santa Clara | G37: =+'43-A2'!AF$6 -> BANCRO | I37: =+'43-A2'!AH$6 -> 0 | J37: =+'43-A2'!AI$6 -> 0 | K37: =+'43-A2'!AJ$6 -> 0 | L37: =+'43-A2'!AK$6 -> 0 | M37: =+'43-A2'!AL$6 -> 0 | N37: =+'43-A2'!AM$6 -> 0 | O37: =+'43-A2'!AN$6 -> 0 | P37: =+'43-A2'!AO$6 -> 0 | Q37: =+'43-A2'!AP$6 -> 0 | R37: =+'43-A2'!AQ$6 -> 0 | S37: =+'43-A2'!AR$6 -> 0 | T37: =+'43-A2'!AS$6 -> 0 | U37: =+'43-A2'!AT$6 -> 0 | V37: =+'43-A2'!AU$6 -> 0 | W37: =+'43-A2'!AV$6 -> 0 | X37: =+'43-A2'!AW$6 -> 0 | Y37: =+'43-A2'!AX$6 -> 0 | Z37: =+'43-A2'!AY$6 -> 0 | AA37: =+'43-A2'!AZ$6 -> 0 | AB37: =+'43-A2'!BA$6 -> 0 | AC37: =+'43-A2'!BB$6 -> 0 | AD37: =+'43-A2'!BC$6 -> 0 | AE37: =+'43-A2'!BD$6 -> 0 | AF37: =+'43-A2'!BE$6 -> 0 | AG37: =+'43-A2'!BF$6 -> 0 | AH37: =+'43-A2'!BG$6 -> 0 | AI37: =+'43-A2'!BH$6 -> 0 | AJ37: =+'43-A2'!BI$6 -> 0 | AK37: =+'43-A2'!BJ$6 -> 0 | AL37: =+'43-A2'!BK$6 -> 0 | AM37: =+'43-A2'!BL$6 -> 0 | AN37: =+'43-A2'!BM$6 -> 0 | AO37: =+'43-A2'!BN$6 -> 0 | AP37: =+'43-A2'!BO$6 -> 0 | AQ37: =+'43-A2'!BP$6 -> 0 | AR37: =+'43-A2'!BQ$6 -> 0 | AS37: =+'43-A2'!BR$6 -> 0 | AU37: =+'43-A2'!BT$6 -> 0 | AW37: =+'43-A2'!BV$6 -> 0 | AX37: =+'43-A2'!BW$6 -> 0 | AY37: =+'43-A2'!BX$6 -> 0 | AZ37: =+'43-A2'!BY$6 -> 0 | BA37: =+'43-A2'!BZ$6 -> 0 | BB37: =+'43-A2'!CA$6 -> 0
A38: =+'43-B1'!Z$6 -> 43-B1 | B38: =+'43-B1'!AA$6 -> Downtown Superior Court | C38: =+'43-B1'!AB$6 -> 191 N. First St. | D38: =+'43-B1'!AC$6 -> San Jose | E38: =+'43-B1'!AD$6 -> 95113 | F38: =+'43-B1'!AE$6 -> Santa Clara | G38: =+'43-B1'!AF$6 -> BANCRO | I38: =+'43-B1'!AH$6 -> 0 | J38: =+'43-B1'!AI$6 -> 0 | K38: =+'43-B1'!AJ$6 -> 0 | L38: =+'43-B1'!AK$6 -> 0 | M38: =+'43-B1'!AL$6 -> 0 | N38: =+'43-B1'!AM$6 -> 0 | O38: =+'43-B1'!AN$6 -> 0 | P38: =+'43-B1'!AO$6 -> 0 | Q38: =+'43-B1'!AP$6 -> 0 | R38: =+'43-B1'!AQ$6 -> 0 | S38: =+'43-B1'!AR$6 -> 0 | T38: =+'43-B1'!AS$6 -> 0 | U38: =+'43-B1'!AT$6 -> 0 | V38: =+'43-B1'!AU$6 -> 0 | W38: =+'43-B1'!AV$6 -> 0 | X38: =+'43-B1'!AW$6 -> 0 | Y38: =+'43-B1'!AX$6 -> 0 | Z38: =+'43-B1'!AY$6 -> 0 | AA38: =+'43-B1'!AZ$6 -> 0 | AB38: =+'43-B1'!BA$6 -> 0 | AC38: =+'43-B1'!BB$6 -> 0 | AD38: =+'43-B1'!BC$6 -> 0 | AE38: =+'43-B1'!BD$6 -> 0 | AF38: =+'43-B1'!BE$6 -> 0 | AG38: =+'43-B1'!BF$6 -> 0 | AH38: =+'43-B1'!BG$6 -> 0 | AI38: =+'43-B1'!BH$6 -> 0 | AJ38: =+'43-B1'!BI$6 -> 0 | AK38: =+'43-B1'!BJ$6 -> 0 | AL38: =+'43-B1'!BK$6 -> 0 | AM38: =+'43-B1'!BL$6 -> 0 | AN38: =+'43-B1'!BM$6 -> 0 | AO38: =+'43-B1'!BN$6 -> 0 | AP38: =+'43-B1'!BO$6 -> 0 | AQ38: =+'43-B1'!BP$6 -> 0 | AR38: =+'43-B1'!BQ$6 -> 0 | AS38: =+'43-B1'!BR$6 -> 0 | AU38: =+'43-B1'!BT$6 -> 0 | AW38: =+'43-B1'!BV$6 -> 0 | AX38: =+'43-B1'!BW$6 -> 0 | AY38: =+'43-B1'!BX$6 -> 0 | AZ38: =+'43-B1'!BY$6 -> 0 | BA38: =+'43-B1'!BZ$6 -> 0 | BB38: =+'43-B1'!CA$6 -> 0
A39: =+'43-B2'!Z$6 -> 43-B2 | B39: =+'43-B2'!AA$6 -> Historic Courthouse | C39: =+'43-B2'!AB$6 -> 161 N. First St. | D39: =+'43-B2'!AC$6 -> San Jose | E39: =+'43-B2'!AD$6 -> 95113 | F39: =+'43-B2'!AE$6 -> Santa Clara | G39: =+'43-B2'!AF$6 -> BANCRO | I39: =+'43-B2'!AH$6 -> 0 | J39: =+'43-B2'!AI$6 -> 0 | K39: =+'43-B2'!AJ$6 -> 0 | L39: =+'43-B2'!AK$6 -> 0 | M39: =+'43-B2'!AL$6 -> 0 | N39: =+'43-B2'!AM$6 -> 0 | O39: =+'43-B2'!AN$6 -> 0 | P39: =+'43-B2'!AO$6 -> 0 | Q39: =+'43-B2'!AP$6 -> 0 | R39: =+'43-B2'!AQ$6 -> 0 | S39: =+'43-B2'!AR$6 -> 0 | T39: =+'43-B2'!AS$6 -> 0 | U39: =+'43-B2'!AT$6 -> 0 | V39: =+'43-B2'!AU$6 -> 0 | W39: =+'43-B2'!AV$6 -> 0 | X39: =+'43-B2'!AW$6 -> 0 | Y39: =+'43-B2'!AX$6 -> 0 | Z39: =+'43-B2'!AY$6 -> 0 | AA39: =+'43-B2'!AZ$6 -> 0 | AB39: =+'43-B2'!BA$6 -> 0 | AC39: =+'43-B2'!BB$6 -> 0 | AD39: =+'43-B2'!BC$6 -> 0 | AE39: =+'43-B2'!BD$6 -> 0 | AF39: =+'43-B2'!BE$6 -> 0 | AG39: =+'43-B2'!BF$6 -> 0 | AH39: =+'43-B2'!BG$6 -> 0 | AI39: =+'43-B2'!BH$6 -> 0 | AJ39: =+'43-B2'!BI$6 -> 0 | AK39: =+'43-B2'!BJ$6 -> 0 | AL39: =+'43-B2'!BK$6 -> 0 | AM39: =+'43-B2'!BL$6 -> 0 | AN39: =+'43-B2'!BM$6 -> 0 | AO39: =+'43-B2'!BN$6 -> 0 | AP39: =+'43-B2'!BO$6 -> 0 | AQ39: =+'43-B2'!BP$6 -> 0 | AR39: =+'43-B2'!BQ$6 -> 0 | AS39: =+'43-B2'!BR$6 -> 0 | AU39: =+'43-B2'!BT$6 -> 0 | AW39: =+'43-B2'!BV$6 -> 0 | AX39: =+'43-B2'!BW$6 -> 0 | AY39: =+'43-B2'!BX$6 -> 0 | AZ39: =+'43-B2'!BY$6 -> 0 | BA39: =+'43-B2'!BZ$6 -> 0 | BB39: =+'43-B2'!CA$6 -> 0
A40: =+'43-B5'!Z$6 -> 43-B5 | B40: =+'43-B5'!AA$6 -> New Santa Clara Family Justice Center | C40: =+'43-B5'!AB$6 -> 201 N. First Street | D40: =+'43-B5'!AC$6 -> San Jose | E40: =+'43-B5'!AD$6 -> 95113 | F40: =+'43-B5'!AE$6 -> Santa Clara | G40: =+'43-B5'!AF$6 -> BANCRO | I40: =+'43-B5'!AH$6 -> 0 | J40: =+'43-B5'!AI$6 -> 0 | K40: =+'43-B5'!AJ$6 -> 0 | L40: =+'43-B5'!AK$6 -> 0 | M40: =+'43-B5'!AL$6 -> 0 | N40: =+'43-B5'!AM$6 -> 0 | O40: =+'43-B5'!AN$6 -> 0 | P40: =+'43-B5'!AO$6 -> 0 | Q40: =+'43-B5'!AP$6 -> 0 | R40: =+'43-B5'!AQ$6 -> 0 | S40: =+'43-B5'!AR$6 -> 0 | T40: =+'43-B5'!AS$6 -> 0 | U40: =+'43-B5'!AT$6 -> 0 | V40: =+'43-B5'!AU$6 -> 0 | W40: =+'43-B5'!AV$6 -> 0 | X40: =+'43-B5'!AW$6 -> 0 | Y40: =+'43-B5'!AX$6 -> 0 | Z40: =+'43-B5'!AY$6 -> 0 | AA40: =+'43-B5'!AZ$6 -> 0 | AB40: =+'43-B5'!BA$6 -> 0 | AC40: =+'43-B5'!BB$6 -> 0 | AD40: =+'43-B5'!BC$6 -> 0 | AE40: =+'43-B5'!BD$6 -> 0 | AF40: =+'43-B5'!BE$6 -> 0 | AG40: =+'43-B5'!BF$6 -> 0 | AH40: =+'43-B5'!BG$6 -> 0 | AI40: =+'43-B5'!BH$6 -> 0 | AJ40: =+'43-B5'!BI$6 -> 0 | AK40: =+'43-B5'!BJ$6 -> 0 | AL40: =+'43-B5'!BK$6 -> 0 | AM40: =+'43-B5'!BL$6 -> 0 | AN40: =+'43-B5'!BM$6 -> 0 | AO40: =+'43-B5'!BN$6 -> 0 | AP40: =+'43-B5'!BO$6 -> 0 | AQ40: =+'43-B5'!BP$6 -> 0 | AR40: =+'43-B5'!BQ$6 -> 0 | AS40: =+'43-B5'!BR$6 -> 0 | AU40: =+'43-B5'!BT$6 -> 0 | AW40: =+'43-B5'!BV$6 -> 0 | AX40: =+'43-B5'!BW$6 -> 0 | AY40: =+'43-B5'!BX$6 -> 0 | AZ40: =+'43-B5'!BY$6 -> 0 | BA40: =+'43-B5'!BZ$6 -> 0 | BB40: =+'43-B5'!CA$6 -> 0
A41: =+'43-D1'!Z$6 -> 43-D1 | B41: =+'43-D1'!AA$6 -> Palo Alto Courthouse | C41: =+'43-D1'!AB$6 -> 270 Grant St. | D41: =+'43-D1'!AC$6 -> Palo Alto | E41: =+'43-D1'!AD$6 -> 94306 | F41: =+'43-D1'!AE$6 -> Santa Clara | G41: =+'43-D1'!AF$6 -> BANCRO | I41: =+'43-D1'!AH$6 -> 0 | J41: =+'43-D1'!AI$6 -> 0 | K41: =+'43-D1'!AJ$6 -> 0 | L41: =+'43-D1'!AK$6 -> 0 | M41: =+'43-D1'!AL$6 -> 0 | N41: =+'43-D1'!AM$6 -> 0 | O41: =+'43-D1'!AN$6 -> 0 | P41: =+'43-D1'!AO$6 -> 0 | Q41: =+'43-D1'!AP$6 -> 0 | R41: =+'43-D1'!AQ$6 -> 0 | S41: =+'43-D1'!AR$6 -> 0 | T41: =+'43-D1'!AS$6 -> 0 | U41: =+'43-D1'!AT$6 -> 0 | V41: =+'43-D1'!AU$6 -> 0 | W41: =+'43-D1'!AV$6 -> 0 | X41: =+'43-D1'!AW$6 -> 0 | Y41: =+'43-D1'!AX$6 -> 0 | Z41: =+'43-D1'!AY$6 -> 0 | AA41: =+'43-D1'!AZ$6 -> 0 | AB41: =+'43-D1'!BA$6 -> 0 | AC41: =+'43-D1'!BB$6 -> 0 | AD41: =+'43-D1'!BC$6 -> 0 | AE41: =+'43-D1'!BD$6 -> 0 | AF41: =+'43-D1'!BE$6 -> 0 | AG41: =+'43-D1'!BF$6 -> 0 | AH41: =+'43-D1'!BG$6 -> 0 | AI41: =+'43-D1'!BH$6 -> 0 | AJ41: =+'43-D1'!BI$6 -> 0 | AK41: =+'43-D1'!BJ$6 -> 0 | AL41: =+'43-D1'!BK$6 -> 0 | AM41: =+'43-D1'!BL$6 -> 0 | AN41: =+'43-D1'!BM$6 -> 0 | AO41: =+'43-D1'!BN$6 -> 0 | AP41: =+'43-D1'!BO$6 -> 0 | AQ41: =+'43-D1'!BP$6 -> 0 | AR41: =+'43-D1'!BQ$6 -> 0 | AS41: =+'43-D1'!BR$6 -> 0 | AU41: =+'43-D1'!BT$6 -> 0 | AW41: =+'43-D1'!BV$6 -> 0 | AX41: =+'43-D1'!BW$6 -> 0 | AY41: =+'43-D1'!BX$6 -> 0 | AZ41: =+'43-D1'!BY$6 -> 0 | BA41: =+'43-D1'!BZ$6 -> 0 | BB41: =+'43-D1'!CA$6 -> 0
A42: =+'43-G1'!Z$6 -> 43-G1 | B42: =+'43-G1'!AA$6 -> Santa Clara Courthouse | C42: =+'43-G1'!AB$6 -> 1095 Homestead Rd. | D42: =+'43-G1'!AC$6 -> Santa Clara | E42: =+'43-G1'!AD$6 -> 95050 | F42: =+'43-G1'!AE$6 -> Santa Clara | G42: =+'43-G1'!AF$6 -> BANCRO | I42: =+'43-G1'!AH$6 -> 0 | J42: =+'43-G1'!AI$6 -> 0 | K42: =+'43-G1'!AJ$6 -> 0 | L42: =+'43-G1'!AK$6 -> 0 | M42: =+'43-G1'!AL$6 -> 0 | N42: =+'43-G1'!AM$6 -> 0 | O42: =+'43-G1'!AN$6 -> 0 | P42: =+'43-G1'!AO$6 -> 0 | Q42: =+'43-G1'!AP$6 -> 0 | R42: =+'43-G1'!AQ$6 -> 0 | S42: =+'43-G1'!AR$6 -> 0 | T42: =+'43-G1'!AS$6 -> 0 | U42: =+'43-G1'!AT$6 -> 0 | V42: =+'43-G1'!AU$6 -> 0 | W42: =+'43-G1'!AV$6 -> 0 | X42: =+'43-G1'!AW$6 -> 0 | Y42: =+'43-G1'!AX$6 -> 0 | Z42: =+'43-G1'!AY$6 -> 0 | AA42: =+'43-G1'!AZ$6 -> 0 | AB42: =+'43-G1'!BA$6 -> 0 | AC42: =+'43-G1'!BB$6 -> 0 | AD42: =+'43-G1'!BC$6 -> 0 | AE42: =+'43-G1'!BD$6 -> 0 | AF42: =+'43-G1'!BE$6 -> 0 | AG42: =+'43-G1'!BF$6 -> 0 | AH42: =+'43-G1'!BG$6 -> 0 | AI42: =+'43-G1'!BH$6 -> 0 | AJ42: =+'43-G1'!BI$6 -> 0 | AK42: =+'43-G1'!BJ$6 -> 0 | AL42: =+'43-G1'!BK$6 -> 0 | AM42: =+'43-G1'!BL$6 -> 0 | AN42: =+'43-G1'!BM$6 -> 0 | AO42: =+'43-G1'!BN$6 -> 0 | AP42: =+'43-G1'!BO$6 -> 0 | AQ42: =+'43-G1'!BP$6 -> 0 | AR42: =+'43-G1'!BQ$6 -> 0 | AS42: =+'43-G1'!BR$6 -> 0 | AU42: =+'43-G1'!BT$6 -> 0 | AW42: =+'43-G1'!BV$6 -> 0 | AX42: =+'43-G1'!BW$6 -> 0 | AY42: =+'43-G1'!BX$6 -> 0 | AZ42: =+'43-G1'!BY$6 -> 0 | BA42: =+'43-G1'!BZ$6 -> 0 | BB42: =+'43-G1'!CA$6 -> 0
A43: =+'44-A3'!Z$6 -> 44-A3 | B43: =+'44-A3'!AA$6 -> Jury Assembly Room | C43: =+'44-A3'!AB$6 -> 701 Ocean Street | D43: =+'44-A3'!AC$6 -> Santa Cruz | E43: =+'44-A3'!AD$6 -> 95060 | F43: =+'44-A3'!AE$6 -> Santa Cruz | G43: =+'44-A3'!AF$6 -> BANCRO | I43: =+'44-A3'!AH$6 -> 0 | J43: =+'44-A3'!AI$6 -> 0 | K43: =+'44-A3'!AJ$6 -> 0 | L43: =+'44-A3'!AK$6 -> 0 | M43: =+'44-A3'!AL$6 -> 0 | N43: =+'44-A3'!AM$6 -> 0 | O43: =+'44-A3'!AN$6 -> 0 | P43: =+'44-A3'!AO$6 -> 0 | Q43: =+'44-A3'!AP$6 -> 0 | R43: =+'44-A3'!AQ$6 -> 0 | S43: =+'44-A3'!AR$6 -> 0 | T43: =+'44-A3'!AS$6 -> 0 | U43: =+'44-A3'!AT$6 -> 0 | V43: =+'44-A3'!AU$6 -> 0 | W43: =+'44-A3'!AV$6 -> 0 | X43: =+'44-A3'!AW$6 -> 0 | Y43: =+'44-A3'!AX$6 -> 0 | Z43: =+'44-A3'!AY$6 -> 0 | AA43: =+'44-A3'!AZ$6 -> 0 | AB43: =+'44-A3'!BA$6 -> 0 | AC43: =+'44-A3'!BB$6 -> 0 | AD43: =+'44-A3'!BC$6 -> 0 | AE43: =+'44-A3'!BD$6 -> 0 | AF43: =+'44-A3'!BE$6 -> 0 | AG43: =+'44-A3'!BF$6 -> 0 | AH43: =+'44-A3'!BG$6 -> 0 | AI43: =+'44-A3'!BH$6 -> 0 | AJ43: =+'44-A3'!BI$6 -> 0 | AK43: =+'44-A3'!BJ$6 -> 0 | AL43: =+'44-A3'!BK$6 -> 0 | AM43: =+'44-A3'!BL$6 -> 0 | AN43: =+'44-A3'!BM$6 -> 0 | AO43: =+'44-A3'!BN$6 -> 0 | AP43: =+'44-A3'!BO$6 -> 0 | AQ43: =+'44-A3'!BP$6 -> 0 | AR43: =+'44-A3'!BQ$6 -> 0 | AS43: =+'44-A3'!BR$6 -> 0 | AU43: =+'44-A3'!BT$6 -> 0 | AW43: =+'44-A3'!BV$6 -> 0 | AX43: =+'44-A3'!BW$6 -> 0 | AY43: =+'44-A3'!BX$6 -> 0 | AZ43: =+'44-A3'!BY$6 -> 0 | BA43: =+'44-A3'!BZ$6 -> 0 | BB43: =+'44-A3'!CA$6 -> 0
A44: =+'44-B2'!Z$6 -> 44-B2 | B44: =+'44-B2'!AA$6 -> Watsonville Courthouse | C44: =+'44-B2'!AB$6 -> 1 Second Street | D44: =+'44-B2'!AC$6 -> Watsonville | E44: =+'44-B2'!AD$6 -> 95076 | F44: =+'44-B2'!AE$6 -> Santa Cruz | G44: =+'44-B2'!AF$6 -> BANCRO | I44: =+'44-B2'!AH$6 -> 0 | J44: =+'44-B2'!AI$6 -> 0 | K44: =+'44-B2'!AJ$6 -> 0 | L44: =+'44-B2'!AK$6 -> 0 | M44: =+'44-B2'!AL$6 -> 0 | N44: =+'44-B2'!AM$6 -> 0 | O44: =+'44-B2'!AN$6 -> 0 | P44: =+'44-B2'!AO$6 -> 0 | Q44: =+'44-B2'!AP$6 -> 0 | R44: =+'44-B2'!AQ$6 -> 0 | S44: =+'44-B2'!AR$6 -> 0 | T44: =+'44-B2'!AS$6 -> 0 | U44: =+'44-B2'!AT$6 -> 0 | V44: =+'44-B2'!AU$6 -> 0 | W44: =+'44-B2'!AV$6 -> 0 | X44: =+'44-B2'!AW$6 -> 0 | Y44: =+'44-B2'!AX$6 -> 0 | Z44: =+'44-B2'!AY$6 -> 0 | AA44: =+'44-B2'!AZ$6 -> 0 | AB44: =+'44-B2'!BA$6 -> 0 | AC44: =+'44-B2'!BB$6 -> 0 | AD44: =+'44-B2'!BC$6 -> 0 | AE44: =+'44-B2'!BD$6 -> 0 | AF44: =+'44-B2'!BE$6 -> 0 | AG44: =+'44-B2'!BF$6 -> 0 | AH44: =+'44-B2'!BG$6 -> 0 | AI44: =+'44-B2'!BH$6 -> 0 | AJ44: =+'44-B2'!BI$6 -> 0 | AK44: =+'44-B2'!BJ$6 -> 0 | AL44: =+'44-B2'!BK$6 -> 0 | AM44: =+'44-B2'!BL$6 -> 0 | AN44: =+'44-B2'!BM$6 -> 0 | AO44: =+'44-B2'!BN$6 -> 0 | AP44: =+'44-B2'!BO$6 -> 0 | AQ44: =+'44-B2'!BP$6 -> 0 | AR44: =+'44-B2'!BQ$6 -> 0 | AS44: =+'44-B2'!BR$6 -> 0 | AU44: =+'44-B2'!BT$6 -> 0 | AW44: =+'44-B2'!BV$6 -> 0 | AX44: =+'44-B2'!BW$6 -> 0 | AY44: =+'44-B2'!BX$6 -> 0 | AZ44: =+'44-B2'!BY$6 -> 0 | BA44: =+'44-B2'!BZ$6 -> 0 | BB44: =+'44-B2'!CA$6 -> 0
A45: =+'48-A1'!Z$6 -> 48-A1 | B45: =+'48-A1'!AA$6 -> Hall of Justice | C45: =+'48-A1'!AB$6 -> 600 Union Ave. | D45: =+'48-A1'!AC$6 -> Fairfield | E45: =+'48-A1'!AD$6 -> 94533 | F45: =+'48-A1'!AE$6 -> Solano | G45: =+'48-A1'!AF$6 -> BANCRO | I45: =+'48-A1'!AH$6 -> 0 | J45: =+'48-A1'!AI$6 -> 0 | K45: =+'48-A1'!AJ$6 -> 0 | L45: =+'48-A1'!AK$6 -> 0 | M45: =+'48-A1'!AL$6 -> 0 | N45: =+'48-A1'!AM$6 -> 0 | O45: =+'48-A1'!AN$6 -> 0 | P45: =+'48-A1'!AO$6 -> 0 | Q45: =+'48-A1'!AP$6 -> 0 | R45: =+'48-A1'!AQ$6 -> 0 | S45: =+'48-A1'!AR$6 -> 0 | T45: =+'48-A1'!AS$6 -> 0 | U45: =+'48-A1'!AT$6 -> 0 | V45: =+'48-A1'!AU$6 -> 0 | W45: =+'48-A1'!AV$6 -> 0 | X45: =+'48-A1'!AW$6 -> 0 | Y45: =+'48-A1'!AX$6 -> 0 | Z45: =+'48-A1'!AY$6 -> 0 | AA45: =+'48-A1'!AZ$6 -> 0 | AB45: =+'48-A1'!BA$6 -> 0 | AC45: =+'48-A1'!BB$6 -> 0 | AD45: =+'48-A1'!BC$6 -> 0 | AE45: =+'48-A1'!BD$6 -> 0 | AF45: =+'48-A1'!BE$6 -> 0 | AG45: =+'48-A1'!BF$6 -> 0 | AH45: =+'48-A1'!BG$6 -> 0 | AI45: =+'48-A1'!BH$6 -> 0 | AJ45: =+'48-A1'!BI$6 -> 0 | AK45: =+'48-A1'!BJ$6 -> 0 | AL45: =+'48-A1'!BK$6 -> 0 | AM45: =+'48-A1'!BL$6 -> 0 | AN45: =+'48-A1'!BM$6 -> 0 | AO45: =+'48-A1'!BN$6 -> 0 | AP45: =+'48-A1'!BO$6 -> 0 | AQ45: =+'48-A1'!BP$6 -> 0 | AR45: =+'48-A1'!BQ$6 -> 0 | AS45: =+'48-A1'!BR$6 -> 0 | AU45: =+'48-A1'!BT$6 -> 0 | AW45: =+'48-A1'!BV$6 -> 0 | AX45: =+'48-A1'!BW$6 -> 0 | AY45: =+'48-A1'!BX$6 -> 0 | AZ45: =+'48-A1'!BY$6 -> 0 | BA45: =+'48-A1'!BZ$6 -> 0 | BB45: =+'48-A1'!CA$6 -> 0
A46: =+'48-A3'!Z$6 -> 48-A3 | B46: =+'48-A3'!AA$6 -> Old Solano Courthouse | C46: =+'48-A3'!AB$6 -> 580 Texas Street | D46: =+'48-A3'!AC$6 -> Fairfield | E46: =+'48-A3'!AD$6 -> 94533 | F46: =+'48-A3'!AE$6 -> Solano | G46: =+'48-A3'!AF$6 -> BANCRO | I46: =+'48-A3'!AH$6 -> 0 | J46: =+'48-A3'!AI$6 -> 0 | K46: =+'48-A3'!AJ$6 -> 0 | L46: =+'48-A3'!AK$6 -> 0 | M46: =+'48-A3'!AL$6 -> 0 | N46: =+'48-A3'!AM$6 -> 0 | O46: =+'48-A3'!AN$6 -> 0 | P46: =+'48-A3'!AO$6 -> 0 | Q46: =+'48-A3'!AP$6 -> 0 | R46: =+'48-A3'!AQ$6 -> 0 | S46: =+'48-A3'!AR$6 -> 0 | T46: =+'48-A3'!AS$6 -> 0 | U46: =+'48-A3'!AT$6 -> 0 | V46: =+'48-A3'!AU$6 -> 0 | W46: =+'48-A3'!AV$6 -> 0 | X46: =+'48-A3'!AW$6 -> 0 | Y46: =+'48-A3'!AX$6 -> 0 | Z46: =+'48-A3'!AY$6 -> 0 | AA46: =+'48-A3'!AZ$6 -> 0 | AB46: =+'48-A3'!BA$6 -> 0 | AC46: =+'48-A3'!BB$6 -> 0 | AD46: =+'48-A3'!BC$6 -> 0 | AE46: =+'48-A3'!BD$6 -> 0 | AF46: =+'48-A3'!BE$6 -> 0 | AG46: =+'48-A3'!BF$6 -> 0 | AH46: =+'48-A3'!BG$6 -> 0 | AI46: =+'48-A3'!BH$6 -> 0 | AJ46: =+'48-A3'!BI$6 -> 0 | AK46: =+'48-A3'!BJ$6 -> 0 | AL46: =+'48-A3'!BK$6 -> 0 | AM46: =+'48-A3'!BL$6 -> 0 | AN46: =+'48-A3'!BM$6 -> 0 | AO46: =+'48-A3'!BN$6 -> 0 | AP46: =+'48-A3'!BO$6 -> 0 | AQ46: =+'48-A3'!BP$6 -> 0 | AR46: =+'48-A3'!BQ$6 -> 0 | AS46: =+'48-A3'!BR$6 -> 0 | AU46: =+'48-A3'!BT$6 -> 0 | AW46: =+'48-A3'!BV$6 -> 0 | AX46: =+'48-A3'!BW$6 -> 0 | AY46: =+'48-A3'!BX$6 -> 0 | AZ46: =+'48-A3'!BY$6 -> 0 | BA46: =+'48-A3'!BZ$6 -> 0 | BB46: =+'48-A3'!CA$6 -> 0
AU47: =SUM(AU7:AU46) -> 0 | AW47: =SUM(AW7:AW46)/C48 -> 0 | AX47: =SUM(AX7:AX46)/C48 -> 0 | AY47: =SUM(AY7:AY46)/C48 -> 0 | AZ47: =SUM(AZ7:AZ46)/C48 -> 0 | BA47: =SUM(BA7:BA46)/C48 -> 0 | BB47: =SUM(BB7:BB46)/C48 -> 0
B48: Number of Facilities in Region | C48: 40
A49: 1 | B49: Year One Firm Fixed Price | C49: =+AU47 -> 0 | D49: 1. Year One Firm Fixed Price Total
A50: 2 | B50: Evaluated Hourly Cost | C50: =+(AZ47*C48)*1000 -> 0 | D50: 2. Average Hourly Rate for all facilities within a region: total of Hourly Rates proposed in cost proposal, divided by the Number of Facilities in Region, equals Average Hourly Rate. The Average Hourly Rate will be multiplied by the Number of Facilities in Region and then multiplied by 1,000 to provide an Evaluated Hourly Cost value for the Region.
A51: 3 | B51: Mark-up On Materials Value | C51: =+C50*0.3*BA47 -> 0 | D51: 3. Markup on Materials will be calculated by taking the Evaluated Hourly Cost value, multiplying that value by 0.3 to establish the Materials value and multiplying the proposed percentage value to establish the Markup on Materials value.
A52: 4 | B52: Mark-up On Subcontractor/Third-Parties Value | C52: =+C50*0.25*BB47 -> 0 | D52: 4. Markup on Subcontractor/Third-Parties will be calculated by taking the Evaluated Hourly Cost value, multiplying that value by 0.25 to establish the Materials value and multiplying the proposed Percentage value to establish the Markup on Subcontractor/Third-Parties value.
A53: 5 | B53: Snow Removal | C53: =+AW47*4*C48 -> 0 | D53: 5. Snow Removal (crew hourly rate) average costs throughout the Region, multiplied by the Number of Facilities in Region, multiplied by four (4) events per facility, to establish the Snow Removal evaluation value.
A54: 6 | B54: Unclogging Blocked Toilet – In-custody holding cell | C54: =+AX47*26*C48 -> 0 | D54: 6. Unclogging Blocked Toilet – In-custody holding cell (labor only) average costs throughout the Region, multiplied by the Number of Facilities in Region, multiplied by twenty-six (26) events per facility, to establish the Unclogging Blocked Toilet – In-custody holding cell evaluation value.
A55: 7 | B55: Unclogging Blocked Toilet – Public / Court Staff | C55: =+AY47*104*C48 -> 0 | D55: 7. Unclogging Blocked Toilet – Public / Court Staff (labor only) average costs throughout the Region, multiplied by the Number of Facilities in Region, multiplied by one hundred and four (104) events per facility, to establish the Unclogging Blocked Toilet – Public / Court Staff evaluation value.
A56: 8 | B56: Phase-In Costs | C56: 0 | D56: 8. Phase-In Costs - Lump Sum Amount
A57: 9 | B57: Phase-Out Costs | C57: 0 | D57: 9. Phase-Out Costs - Lump Sum Amount at end of Contract Term
A58: 10 | B58: Total Evaluated Price | C58: =SUM(C49:C57) -> 0 | D58: 10. Each of the values for items 1 through 9 above will be calculated and added together to establish the Total Evaluated Price value.

Sheet Equipment List Template (hidden)
I1: Subsystem | J1: Access Doors, Gates, Sally Port | K1: Air Cooled DX (Package / Split System) | L1: Air Handling Unit (Air-cooled DX) | M1: Air-Cooled Chiller | N1: Centrifugal Chiller | O1: Cooling Tower (Induced Draft) | P1: Ice Chiller | Q1: MultiStack (Geothermal) | R1: Water Source Heat Pump | S1: Fan Coil System | T1: Exhaust Fan | U1: HVAC Unique System | V1: Electrical Panels | W1: Emergency Generator | X1: Motor Control Center | Y1: Primary Switch (High) | Z1: Primary Switch (Low) | AA1: Transformer (Dry-Type) | AB1: Uninterruptible Power Supply (UPS) | AC1: Electrical Unique System | AD1: Life Safety | AE1: Backflow Preventor | AF1: Hot Water Boiler | AG1: Condensing Water Heater | AH1: Electric Water Heater | AI1: Plumbing Unique System | AJ1: Steam System | AK1: Pneumatic Compressor | AL1: Rounds and Readings | AM1: Vertical Transportation | AN1: Water Treatment | AO1: Building Exterior / Hardscape (Monthly) | AP1: Fountain Maintenance (Monthly) | AQ1: Fuel Storage Tanks (Quarterly) If applicable | AR1: Landscape Maintenance * | AS1: Account Management and Supervision (Monthly) | AT1: Fee (Monthly)
A2: JCC ID | B2: Facility Name | C2: Address | D2: City / Town | E2: Zip Code | F2: County | G2: Region | H2: Notes | I2: System ID | J2: A1 | K2: H1 | L2: H2 | M2: H3 | N2: H4 | O2: H5 | P2: H6 | Q2: H7 | R2: H8 | S2: H9 | T2: H10 | U2: H11 | V2: E1 | W2: E2 | X2: E3 | Y2: E4 | Z2: E5 | AA2: E6 | AB2: E7 | AC2: E8 | AD2: L1 | AE2: L2 | AF2: P1 | AG2: P2 | AH2: P3 | AI2: P4 | AJ2: P5 | AK2: P6 | AL2: R1 | AM2: V1 | AN2: W1 | AO2: B1 | AP2: F1 | AQ2: F2 | AR2: G1 | AS2: C1 | AT2: C2
A3: 01-B3 | B3: Wiley W. Manuel Courthouse | C3: 661 Washington St. | D3: Oakland | E3: 94607 | F3: Alameda | G3: BANCRO | H3: County Plant maintains the Chiller and Boiler | J3: 1 | K3: 5 | L3: 3 | M3: 0 | N3: 0 | O3: 0 | P3: 0 | Q3: 0 | R3: 0 | S3: 4 | T3: 2 | U3: 0 | V3: 0 | W3: 0 | X3: 0 | Y3: 0 | Z3: 0 | AA3: 8 | AB3: 0 | AC3: 0 | AD3: 1 | AE3: 6 | AF3: 0 | AG3: 0 | AH3: 0 | AI3: 0 | AJ3: 0 | AK3: 1 | AL3: =IF(OR($N3>0,$O3>0),260,52) -> 52 | AM3: 6 | AN3: =IF(OR($N3>0,$O3>0),260,52) -> 52 | AO3: 0 | AP3: 0 | AQ3: 2 | AR3: 0 | AS3: 16 | AT3: 0
A4: 01-D1 | B4: Hayward Hall of Justice | C4: 24405 Amador St. | D4: Hayward | E4: 94544 | F4: Alameda | G4: BANCRO | J4: 1 | K4: 3 | L4: 0 | M4: 0 | N4: 0 | O4: 1 | P4: 0 | Q4: 0 | R4: 2 | S4: 0 | T4: 4 | U4: 0 | V4: 1 | W4: 0 | X4: 0 | Y4: 1 | Z4: 0 | AA4: 0 | AB4: 0 | AC4: 0 | AD4: 1 | AE4: 4 | AF4: 2 | AG4: 0 | AH4: 0 | AI4: 0 | AJ4: 0 | AK4: 3 | AL4: 260 | AM4: 7 | AN4: 260 | AO4: 0 | AP4: 0 | AQ4: 1 | AR4: 0 | AS4: 10 | AT4: 0
A5: 01-F1 | B5: George E. McDonald Hall of Justice | C5: 2233 Shoreline Drive | D5: Alameda | E5: 94501 | F5: Alameda | G5: BANCRO | J5: 1 | K5: 0 | L5: 1 | M5: 1 | N5: 0 | O5: 0 | P5: 0 | Q5: 0 | R5: 0 | S5: 0 | T5: 1 | U5: 0 | V5: 1 | W5: 1 | X5: 0 | Y5: 1 | Z5: 0 | AA5: 0 | AB5: 0 | AC5: 0 | AD5: 1 | AE5: 4 | AF5: 1 | AG5: 1 | AH5: 0 | AI5: 0 | AJ5: 0 | AK5: 0 | AL5: 52 | AM5: 4 | AN5: 52 | AO5: 0 | AP5: 0 | AQ5: 0 | AR5: 0 | AS5: 7 | AT5: 0
A6: 01-G1 | B6: Berkeley Courthouse | C6: 2120 Martin Luther King, Jr. Way | D6: Berkeley | E6: 94704 | F6: Alameda | G6: BANCRO | J6: 1 | K6: 1 | L6: 2 | M6: 0 | N6: 0 | O6: 0 | P6: 0 | Q6: 0 | R6: 0 | S6: 0 | T6: 9 | U6: 0 | V6: 0 | W6: 0 | X6: 0 | Y6: 1 | Z6: 0 | AA6: 0 | AB6: 0 | AC6: 0 | AD6: 1 | AE6: 4 | AF6: 1 | AG6: 1 | AH6: 0 | AI6: 0 | AJ6: 0 | AK6: 0 | AL6: 52 | AM6: 3 | AN6: 52 | AO6: 0 | AP6: 0 | AQ6: 0 | AR6: 0 | AS6: 6 | AT6: 0
A7: 01-H1 | B7: Fremont Hall of Justice | C7: 39439 Paseo Padre Pkwy. | D7: Fremont | E7: 94538 | F7: Alameda | G7: BANCRO | J7: 1 | K7: 2 | L7: 13 | M7: 1 | N7: 0 | O7: 0 | P7: 0 | Q7: 0 | R7: 0 | S7: 0 | T7: 0 | U7: 0 | V7: 0 | W7: 1 | X7: 0 | Y7: 1 | Z7: 0 | AA7: 0 | AB7: 0 | AC7: 0 | AD7: 1 | AE7: 1 | AF7: 2 | AG7: 0 | AH7: 0 | AI7: 0 | AJ7: 0 | AK7: 2 | AL7: 52 | AM7: 4 | AN7: 52 | AO7: 0 | AP7: 0 | AQ7: 0 | AR7: 0 | AS7: 20 | AT7: 0
A8: 01-J1 | B8: New East County Hall of Justice | C8: 5151 Gleason Drive | D8: Dublin | E8: 94568 | F8: Alameda | G8: BANCRO | J8: 1 | K8: 0 | L8: 2 | M8: 0 | N8: 2 | O8: 1 | P8: 0 | Q8: 0 | R8: 20 | S8: 20 | T8: 0 | U8: 0 | V8: 0 | W8: 1 | X8: 0 | Y8: 0 | Z8: 0 | AA8: 0 | AB8: 0 | AC8: 0 | AD8: 1 | AE8: 3 | AF8: 3 | AG8: 0 | AH8: 0 | AI8: 0 | AJ8: 0 | AK8: 0 | AL8: 260 | AM8: 9 | AN8: 260 | AO8: 0 | AP8: 0 | AQ8: 0 | AR8: 0 | AS8: 29 | AT8: 0
A9: 07-A14 | B9: Family Law Center | C9: 751 Pine Street | D9: Martinez | E9: 94553 | F9: Contra Costa | G9: BANCRO | J9: 1 | K9: 4 | L9: 1 | M9: 0 | N9: 0 | O9: 0 | P9: 0 | Q9: 0 | R9: 0 | S9: 0 | T9: 0 | U9: 0 | V9: 0 | W9: 0 | X9: 0 | Y9: 1 | Z9: 0 | AA9: 0 | AB9: 0 | AC9: 0 | AD9: 1 | AE9: 4 | AF9: 1 | AG9: 1 | AH9: 0 | AI9: 0 | AJ9: 0 | AK9: 0 | AL9: 52 | AM9: 1 | AN9: 52 | AO9: 0 | AP9: 0 | AQ9: 0 | AR9: 0 | AS9: 8 | AT9: 0
A10: 07-A2 | B10: Wakefield Taylor Courthouse | C10: 725 Court St. | D10: Martinez | E10: 94553 | F10: Contra Costa | G10: BANCRO | J10: 1 | K10: 3 | L10: 0 | M10: 0 | N10: 0 | O10: 1 | P10: 0 | Q10: 0 | R10: 2 | S10: 0 | T10: 6 | U10: 0 | V10: 0 | W10: 1 | X10: 0 | Y10: 1 | Z10: 0 | AA10: 0 | AB10: 0 | AC10: 0 | AD10: 1 | AE10: 6 | AF10: 2 | AG10: 0 | AH10: 0 | AI10: 0 | AJ10: 0 | AK10: 3 | AL10: 260 | AM10: 2 | AN10: 260 | AO10: 0 | AP10: 0 | AQ10: 0 | AR10: 0 | AS10: 10 | AT10: 0
A11: 07-A3 | B11: Bray Courts | C11: 1020 Ward St. | D11: Martinez | E11: 94553 | F11: Contra Costa | G11: BANCRO | J11: 1 | K11: 6 | L11: 0 | M11: 0 | N11: 0 | O11: 0 | P11: 0 | Q11: 0 | R11: 0 | S11: 0 | T11: 12 | U11: 0 | V11: 0 | W11: 1 | X11: 0 | Y11: 1 | Z11: 0 | AA11: 0 | AB11: 0 | AC11: 0 | AD11: 1 | AE11: 5 | AF11: 1 | AG11: 0 | AH11: 0 | AI11: 0 | AJ11: 0 | AK11: 0 | AL11: 52 | AM11: 3 | AN11: 52 | AO11: 0 | AP11: 0 | AQ11: 0 | AR11: 0 | AS11: 9 | AT11: 0
A12: 07-C1 | B12: Walnut Creek Courthouse | C12: 640 Ygnacio Valley Rd. | D12: Walnut Creek | E12: 94596 | F12: Contra Costa | G12: BANCRO | J12: 1 | K12: 0 | L12: 11 | M12: 0 | N12: 0 | O12: 0 | P12: 0 | Q12: 0 | R12: 0 | S12: 0 | T12: 6 | U12: 0 | V12: 0 | W12: 1 | X12: 0 | Y12: 1 | Z12: 0 | AA12: 0 | AB12: 0 | AC12: 0 | AD12: 1 | AE12: 0 | AF12: 0 | AG12: 0 | AH12: 0 | AI12: 0 | AJ12: 0 | AK12: 1 | AL12: 52 | AM12: 1 | AN12: 52 | AO12: 0 | AP12: 0 | AQ12: 0 | AR12: 0 | AS12: 13 | AT12: 0
A13: 07-E3 | B13: Richard E. Arnason Justice Center | C13: 1000 Center Drive | D13: Pittsburg | E13: 94565 | F13: Contra Costa | G13: BANCRO | J13: 1 | K13: 12 | L13: 1 | M13: 0 | N13: 2 | O13: 1 | P13: 0 | Q13: 0 | R13: 2 | S13: 1 | T13: 2 | U13: 0 | V13: 0 | W13: 1 | X13: 0 | Y13: 1 | Z13: 0 | AA13: 0 | AB13: 1 | AC13: 0 | AD13: 1 | AE13: 11 | AF13: 2 | AG13: 0 | AH13: 0 | AI13: 0 | AJ13: 0 | AK13: 0 | AL13: 260 | AM13: 5 | AN13: 260 | AO13: 0 | AP13: 0 | AQ13: 0 | AR13: 0 | AS13: 23 | AT13: 0
A14: 07-F1 | B14: George D. Carroll Courthouse | C14: 100 37th St. | D14: Richmond | E14: 94805 | F14: Contra Costa | G14: BANCRO | H14: window shakers? | J14: 1 | K14: 2 | L14: 14 | M14: 0 | N14: 0 | O14: 0 | P14: 0 | Q14: 0 | R14: 0 | S14: 0 | T14: 0 | U14: 0 | V14: 0 | W14: 0 | X14: 0 | Y14: 1 | Z14: 0 | AA14: 0 | AB14: 0 | AC14: 0 | AD14: 1 | AE14: 1 | AF14: 2 | AG14: 0 | AH14: 0 | AI14: 0 | AJ14: 0 | AK14: 2 | AL14: 52 | AM14: 1 | AN14: 52 | AO14: 0 | AP14: 0 | AQ14: 0 | AR14: 0 | AS14: 19 | AT14: 0
A15: 08-A1 | B15: Del Norte County Superior Court | C15: 450 'H' St. | D15: Crescent City | E15: 95531 | F15: Del Norte | G15: BANCRO | H15: forced heat combi? | J15: 1 | K15: 0 | L15: 6 | M15: 0 | N15: 0 | O15: 0 | P15: 0 | Q15: 0 | R15: 0 | S15: 0 | T15: 0 | U15: 0 | V15: 0 | W15: 1 | X15: 0 | Y15: 1 | Z15: 0 | AA15: 0 | AB15: 0 | AC15: 0 | AD15: 1 | AE15: 2 | AF15: 0 | AG15: 0 | AH15: 0 | AI15: 0 | AJ15: 0 | AK15: 0 | AL15: 52 | AM15: 0 | AN15: 52 | AO15: 0 | AP15: 0 | AQ15: 0 | AR15: 0 | AS15: 8 | AT15: 0
A16: 17-B1 | B16: South Civic Center | C16: 7000A S. Center Dr. | D16: Clearlake | E16: 95422 | F16: Lake | G16: BANCRO | J16: 1 | K16: 4 | L16: 3 | M16: 0 | N16: 0 | O16: 0 | P16: 0 | Q16: 0 | R16: 0 | S16: 0 | T16: 0 | U16: 0 | V16: 0 | W16: 0 | X16: 0 | Y16: 0 | Z16: 0 | AA16: 0 | AB16: 0 | AC16: 0 | AD16: 1 | AE16: 1 | AF16: 0 | AG16: 0 | AH16: 0 | AI16: 0 | AJ16: 0 | AK16: 0 | AL16: 52 | AM16: 0 | AN16: 52 | AO16: 0 | AP16: 0 | AQ16: 0 | AR16: 0 | AS16: 7 | AT16: 0
A17: 23-A1 | B17: County Courthouse | C17: 100 N. State St. | D17: Ukiah | E17: 95482 | F17: Mendocino | G17: BANCRO | J17: 1 | K17: 5 | L17: 5 | M17: 0 | N17: 0 | O17: 0 | P17: 0 | Q17: 0 | R17: 0 | S17: 0 | T17: 1 | U17: 0 | V17: 0 | W17: 0 | X17: 0 | Y17: 1 | Z17: 0 | AA17: 0 | AB17: 0 | AC17: 0 | AD17: 1 | AE17: 6 | AF17: 2 | AG17: 1 | AH17: 0 | AI17: 0 | AJ17: 0 | AK17: 0 | AL17: 52 | AM17: 1 | AN17: 52 | AO17: 0 | AP17: 0 | AQ17: 0 | AR17: 0 | AS17: 14 | AT17: 0
A18: 27-A1 | B18: Salinas Courthouse- North Wing | C18: 240 Church St. | D18: Salinas | E18: 93901 | F18: Monterey | G18: BANCRO | J18: 1 | K18: 17 | L18: 2 | M18: 0 | N18: 2 | O18: 2 | P18: 0 | Q18: 0 | R18: 0 | S18: 1 | T18: 2 | U18: 0 | V18: 0 | W18: 0 | X18: 1 | Y18: 2 | Z18: 0 | AA18: 2 | AB18: 0 | AC18: 0 | AD18: 1 | AE18: 9 | AF18: 1 | AG18: 0 | AH18: 0 | AI18: 0 | AJ18: 0 | AK18: 1 | AL18: 260 | AM18: 8 | AN18: 260 | AO18: 0 | AP18: 0 | AQ18: 0 | AR18: 0 | AS18: 29 | AT18: 0
A19: 27-B1 | B19: Marina Courthouse | C19: 3180 Del Monte Blvd. | D19: Marina | E19: 93933 | F19: Monterey | G19: BANCRO | J19: 1 | K19: 2 | L19: 6 | M19: 0 | N19: 0 | O19: 0 | P19: 0 | Q19: 0 | R19: 0 | S19: 0 | T19: 0 | U19: 0 | V19: 0 | W19: 1 | X19: 0 | Y19: 1 | Z19: 0 | AA19: 0 | AB19: 0 | AC19: 0 | AD19: 1 | AE19: 3 | AF19: 0 | AG19: 0 | AH19: 1 | AI19: 0 | AJ19: 0 | AK19: 0 | AL19: 52 | AM19: 0 | AN19: 52 | AO19: 0 | AP19: 0 | AQ19: 0 | AR19: 0 | AS19: 11 | AT19: 0
A20: 28-A1 | B20: Criminal Court Building | C20: 1111 Third St. | D20: Napa | E20: 94559 | F20: Napa | G20: BANCRO | J20: 1 | K20: 3 | L20: 1 | M20: 0 | N20: 0 | O20: 0 | P20: 0 | Q20: 0 | R20: 0 | S20: 0 | T20: 0 | U20: 0 | V20: 0 | W20: 0 | X20: 0 | Y20: 1 | Z20: 0 | AA20: 2 | AB20: 0 | AC20: 0 | AD20: 1 | AE20: 3 | AF20: 1 | AG20: 1 | AH20: 0 | AI20: 0 | AJ20: 0 | AK20: 0 | AL20: 52 | AM20: 12 | AN20: 52 | AO20: 0 | AP20: 0 | AQ20: 0 | AR20: 0 | AS20: 9 | AT20: 0
A21: 28-B1 | B21: Historic Courthouse | C21: 825 Brown St. | D21: Napa | E21: 94559 | F21: Napa | G21: BANCRO | J21: 1 | K21: 2 | L21: 2 | M21: 0 | N21: 0 | O21: 0 | P21: 0 | Q21: 0 | R21: 0 | S21: 0 | T21: 0 | U21: 0 | V21: 0 | W21: 0 | X21: 0 | Y21: 1 | Z21: 0 | AA21: 2 | AB21: 0 | AC21: 0 | AD21: 1 | AE21: 1 | AF21: 1 | AG21: 1 | AH21: 0 | AI21: 0 | AJ21: 0 | AK21: 2 | AL21: 52 | AM21: 1 | AN21: 52 | AO21: 0 | AP21: 0 | AQ21: 0 | AR21: 0 | AS21: 9 | AT21: 0
A22: 28-C1 | B22: Napa Juvenile Court | C22: 2350 Old Sonoma Rd. | D22: Napa | E22: 94559 | F22: Napa | G22: BANCRO | J22: 1 | K22: 1 | L22: 7 | M22: 0 | N22: 0 | O22: 0 | P22: 0 | Q22: 0 | R22: 0 | S22: 0 | T22: 3 | U22: 0 | V22: 0 | W22: 0 | X22: 0 | Y22: 1 | Z22: 0 | AA22: 0 | AB22: 0 | AC22: 0 | AD22: 1 | AE22: 4 | AF22: 0 | AG22: 1 | AH22: 0 | AI22: 0 | AJ22: 0 | AK22: 0 | AL22: 52 | AM22: 0 | AN22: 52 | AO22: 0 | AP22: 0 | AQ22: 0 | AR22: 0 | AS22: 10 | AT22: 0
A23: 35-C1 | B23: New Hollister Courthouse | C23: 450 Fourth Street | D23: Hollister | E23: 95023 | F23: San Benito | G23: BANCRO | J23: 1 | K23: 5 | L23: 2 | M23: 0 | N23: 0 | O23: 0 | P23: 0 | Q23: 0 | R23: 0 | S23: 0 | T23: 0 | U23: 0 | V23: 0 | W23: 0 | X23: 0 | Y23: 1 | Z23: 0 | AA23: 1 | AB23: 0 | AC23: 0 | AD23: 1 | AE23: 8 | AF23: 2 | AG23: 0 | AH23: 1 | AI23: 0 | AJ23: 0 | AK23: 0 | AL23: 52 | AM23: 4 | AN23: 52 | AO23: 0 | AP23: 0 | AQ23: 0 | AR23: 0 | AS23: 12 | AT23: 0
A24: 38-A1 | B24: Civic Center Courthouse | C24: 400 McAllister St. | D24: San Francisco | E24: 94102 | F24: San Francisco | G24: BANCRO | J24: 1 | K24: 0 | L24: 0 | M24: 1 | N24: 2 | O24: 2 | P24: 0 | Q24: 0 | R24: 15 | S24: 15 | T24: 11 | U24: 0 | V24: 0 | W24: 0 | X24: 0 | Y24: 1 | Z24: 0 | AA24: 0 | AB24: 0 | AC24: 0 | AD24: 1 | AE24: 5 | AF24: 0 | AG24: 0 | AH24: 0 | AI24: 0 | AJ24: 0 | AK24: 2 | AL24: 260 | AM24: 41 | AN24: 260 | AO24: 0 | AP24: 0 | AQ24: 1 | AR24: 0 | AS24: 21 | AT24: 0
A25: 38-C2 | B25: Family Justice Center | C25: Woodside Ave. and Portola | D25: San Francisco | E25: 94127 | F25: San Francisco | G25: BANCRO | H25: Cost Plus List | J25: 1 | K25: 0 | L25: 0 | M25: 0 | N25: 0 | O25: 0 | P25: 0 | Q25: 0 | R25: 0 | S25: 0 | T25: 0 | U25: 0 | V25: 0 | W25: 0 | X25: 0 | Y25: 0 | Z25: 0 | AA25: 0 | AB25: 0 | AC25: 0 | AD25: 1 | AE25: 0 | AF25: 0 | AG25: 0 | AH25: 0 | AI25: 0 | AJ25: 0 | AK25: 0 | AL25: 52 | AM25: 0 | AN25: 52 | AO25: 0 | AP25: 0 | AQ25: 0 | AR25: 0 | AS25: 0 | AT25: 0
A26: 38-C3 | B26: Family Justice Center Site - Bldg 1 | C26: 375 Woodside Avenue | D26: San Francisco | E26: 94127 | F26: San Francisco | G26: BANCRO | H26: Cost Plus List missing from list | J26: 1 | K26: 0 | L26: 0 | M26: 0 | N26: 0 | O26: 0 | P26: 0 | Q26: 0 | R26: 0 | S26: 0 | T26: 0 | U26: 0 | V26: 0 | W26: 0 | X26: 0 | Y26: 0 | Z26: 0 | AA26: 0 | AB26: 0 | AC26: 0 | AD26: 1 | AE26: 0 | AF26: 0 | AG26: 0 | AH26: 0 | AI26: 0 | AJ26: 0 | AK26: 0 | AL26: 52 | AM26: 0 | AN26: 52 | AO26: 0 | AP26: 0 | AQ26: 0 | AR26: 0 | AS26: 0 | AT26: 0
A27: 38-C4 | B27: Family Justice Center Site - Bldg 2 | C27: 375 Woodside Avenue | D27: San Francisco | E27: 94127 | F27: San Francisco | G27: BANCRO | H27: Cost Plus List missing from list | J27: 1 | K27: 0 | L27: 0 | M27: 0 | N27: 0 | O27: 0 | P27: 0 | Q27: 0 | R27: 0 | S27: 0 | T27: 0 | U27: 0 | V27: 0 | W27: 0 | X27: 0 | Y27: 0 | Z27: 0 | AA27: 0 | AB27: 0 | AC27: 0 | AD27: 1 | AE27: 0 | AF27: 0 | AG27: 0 | AH27: 0 | AI27: 0 | AJ27: 0 | AK27: 0 | AL27: 52 | AM27: 0 | AN27: 52 | AO27: 0 | AP27: 0 | AQ27: 0 | AR27: 0 | AS27: 0 | AT27: 0
A28: 38-C5 | B28: Family Justice Center Site - Bldg 3 | C28: 375 Woodside Avenue | D28: San Francisco | E28: 94127 | F28: San Francisco | G28: BANCRO | H28: missing from list | J28: 1 | K28: 0 | L28: 0 | M28: 0 | N28: 0 | O28: 0 | P28: 0 | Q28: 0 | R28: 0 | S28: 0 | T28: 0 | U28: 0 | V28: 0 | W28: 0 | X28: 0 | Y28: 0 | Z28: 0 | AA28: 0 | AB28: 0 | AC28: 0 | AD28: 1 | AE28: 0 | AF28: 0 | AG28: 0 | AH28: 0 | AI28: 0 | AJ28: 0 | AK28: 0 | AL28: 52 | AM28: 0 | AN28: 52 | AO28: 0 | AP28: 0 | AQ28: 0 | AR28: 0 | AS28: 0 | AT28: 0
A29: 41-A2 | B29: Traffic/ Small Claims Annex | C29: 500 County Center | D29: Redwood City | E29: 94063 | F29: San Mateo | G29: BANCRO | J29: 1 | K29: 0 | L29: 4 | M29: 0 | N29: 0 | O29: 0 | P29: 0 | Q29: 0 | R29: 0 | S29: 0 | T29: 0 | U29: 0 | V29: 0 | W29: 0 | X29: 0 | Y29: 1 | Z29: 0 | AA29: 0 | AB29: 0 | AC29: 0 | AD29: 1 | AE29: 2 | AF29: 1 | AG29: 1 | AH29: 0 | AI29: 0 | AJ29: 0 | AK29: 1 | AL29: 52 | AM29: 0 | AN29: 52 | AO29: 0 | AP29: 0 | AQ29: 0 | AR29: 0 | AS29: 7 | AT29: 0
A30: 41-B1 | B30: Central Branch | C30: 800 North Humboldt St. | D30: San Mateo | E30: 94401 | F30: San Mateo | G30: BANCRO | J30: 1 | K30: 2 | L30: 3 | M30: 1 | N30: 0 | O30: 0 | P30: 0 | Q30: 0 | R30: 0 | S30: 0 | T30: 1 | U30: 0 | V30: 0 | W30: 0 | X30: 0 | Y30: 1 | Z30: 0 | AA30: 0 | AB30: 0 | AC30: 0 | AD30: 1 | AE30: 2 | AF30: 1 | AG30: 1 | AH30: 0 | AI30: 0 | AJ30: 0 | AK30: 0 | AL30: 52 | AM30: 0 | AN30: 52 | AO30: 0 | AP30: 0 | AQ30: 0 | AR30: 0 | AS30: 9 | AT30: 0
A31: 41-C1 | B31: Northern Branch Courthouse | C31: 1050 Mission Rd. | D31: South San Francisco | E31: 94080 | F31: San Mateo | G31: BANCRO | J31: 1 | K31: 9 | L31: 3 | M31: 0 | N31: 2 | O31: 1 | P31: 0 | Q31: 0 | R31: 0 | S31: 0 | T31: 0 | U31: 0 | V31: 0 | W31: 0 | X31: 0 | Y31: 1 | Z31: 0 | AA31: 0 | AB31: 0 | AC31: 0 | AD31: 1 | AE31: 4 | AF31: 1 | AG31: 3 | AH31: 0 | AI31: 0 | AJ31: 0 | AK31: 1 | AL31: 260 | AM31: 1 | AN31: 260 | AO31: 0 | AP31: 0 | AQ31: 0 | AR31: 0 | AS31: 20 | AT31: 0
A32: 43-A1 | B32: Hall of Justice (East) | C32: 190 W. Hedding | D32: San Jose | E32: 95110 | F32: Santa Clara | G32: BANCRO | J32: 1 | K32: 7 | L32: 2 | M32: 0 | N32: 2 | O32: 2 | P32: 0 | Q32: 0 | R32: 0 | S32: 0 | T32: 3 | U32: 0 | V32: 0 | W32: 0 | X32: 0 | Y32: 1 | Z32: 0 | AA32: 0 | AB32: 0 | AC32: 0 | AD32: 1 | AE32: 5 | AF32: 2 | AG32: 1 | AH32: 0 | AI32: 0 | AJ32: 0 | AK32: 2 | AL32: 260 | AM32: 25 | AN32: 260 | AO32: 0 | AP32: 0 | AQ32: 1 | AR32: 0 | AS32: 17 | AT32: 0
A33: 43-A2 | B33: Hall of Justice (West) | C33: 200 W. Hedding | D33: San Jose | E33: 95110 | F33: Santa Clara | G33: BANCRO | J33: 1 | K33: 2 | L33: 5 | M33: 0 | N33: 1 | O33: 1 | P33: 0 | Q33: 0 | R33: 0 | S33: 0 | T33: 9 | U33: 0 | V33: 0 | W33: 0 | X33: 0 | Y33: 1 | Z33: 0 | AA33: 4 | AB33: 0 | AC33: 0 | AD33: 1 | AE33: 3 | AF33: 1 | AG33: 0 | AH33: 2 | AI33: 0 | AJ33: 0 | AK33: 0 | AL33: 260 | AM33: 3 | AN33: 260 | AO33: 0 | AP33: 0 | AQ33: 0 | AR33: 0 | AS33: 17 | AT33: 0
A34: 43-B1 | B34: Downtown Superior Court | C34: 191 N. First St. | D34: San Jose | E34: 95113 | F34: Santa Clara | G34: BANCRO | J34: 1 | K34: 5 | L34: 35 | M34: 0 | N34: 1 | O34: 1 | P34: 0 | Q34: 0 | R34: 0 | S34: 0 | T34: 2 | U34: 0 | V34: 0 | W34: 0 | X34: 0 | Y34: 2 | Z34: 0 | AA34: 13 | AB34: 0 | AC34: 0 | AD34: 1 | AE34: 5 | AF34: 3 | AG34: 0 | AH34: 1 | AI34: 0 | AJ34: 0 | AK34: 1 | AL34: 260 | AM34: 5 | AN34: 260 | AO34: 0 | AP34: 0 | AQ34: 0 | AR34: 0 | AS34: 61 | AT34: 0
A35: 43-B2 | B35: Historic Courthouse | C35: 161 N. First St. | D35: San Jose | E35: 95113 | F35: Santa Clara | G35: BANCRO | J35: 1 | K35: 0 | L35: 3 | M35: 0 | N35: 1 | O35: 2 | P35: 0 | Q35: 0 | R35: 0 | S35: 0 | T35: 0 | U35: 0 | V35: 0 | W35: 0 | X35: 0 | Y35: 1 | Z35: 0 | AA35: 1 | AB35: 0 | AC35: 0 | AD35: 1 | AE35: 7 | AF35: 1 | AG35: 0 | AH35: 0 | AI35: 0 | AJ35: 0 | AK35: 0 | AL35: 260 | AM35: 1 | AN35: 260 | AO35: 0 | AP35: 0 | AQ35: 0 | AR35: 0 | AS35: 9 | AT35: 0
A36: 43-B5 | B36: New Santa Clara Family Justice Center | C36: 201 N. First Street | D36: San Jose | E36: 95113 | F36: Santa Clara | G36: BANCRO | J36: 1 | K36: 0 | L36: 8 | M36: 0 | N36: 3 | O36: 2 | P36: 0 | Q36: 0 | R36: 0 | S36: 0 | T36: 8 | U36: 0 | V36: 0 | W36: 0 | X36: 1 | Y36: 0 | Z36: 0 | AA36: 0 | AB36: 0 | AC36: 0 | AD36: 1 | AE36: 12 | AF36: 2 | AG36: 0 | AH36: 0 | AI36: 0 | AJ36: 0 | AK36: 0 | AL36: 260 | AM36: 8 | AN36: 260 | AO36: 0 | AP36: 0 | AQ36: 2 | AR36: 0 | AS36: 16 | AT36: 0
A37: 43-D1 | B37: Palo Alto Courthouse | C37: 270 Grant St. | D37: Palo Alto | E37: 94306 | F37: Santa Clara | G37: BANCRO | J37: 1 | K37: 1 | L37: 3 | M37: 0 | N37: 0 | O37: 3 | P37: 0 | Q37: 0 | R37: 0 | S37: 0 | T37: 5 | U37: 0 | V37: 0 | W37: 0 | X37: 3 | Y37: 1 | Z37: 0 | AA37: 0 | AB37: 0 | AC37: 0 | AD37: 1 | AE37: 4 | AF37: 2 | AG37: 1 | AH37: 0 | AI37: 0 | AJ37: 0 | AK37: 1 | AL37: 260 | AM37: 3 | AN37: 260 | AO37: 0 | AP37: 0 | AQ37: 0 | AR37: 0 | AS37: 14 | AT37: 0
A38: 43-G1 | B38: Santa Clara Courthouse | C38: 1095 Homestead Rd. | D38: Santa Clara | E38: 95050 | F38: Santa Clara | G38: BANCRO | J38: 1 | K38: 0 | L38: 3 | M38: 1 | N38: 1 | O38: 1 | P38: 0 | Q38: 0 | R38: 0 | S38: 4 | T38: 2 | U38: 0 | V38: 0 | W38: 0 | X38: 0 | Y38: 0 | Z38: 0 | AA38: 0 | AB38: 0 | AC38: 0 | AD38: 1 | AE38: 3 | AF38: 1 | AG38: 1 | AH38: 0 | AI38: 0 | AJ38: 0 | AK38: 0 | AL38: 260 | AM38: 1 | AN38: 260 | AO38: 0 | AP38: 0 | AQ38: 0 | AR38: 0 | AS38: 8 | AT38: 0
A39: 44-A3 | B39: Jury Assembly Room | C39: 701 Ocean Street | D39: Santa Cruz | E39: 95060 | F39: Santa Cruz | G39: BANCRO | J39: 1 | K39: 3 | L39: 0 | M39: 0 | N39: 0 | O39: 0 | P39: 0 | Q39: 0 | R39: 0 | S39: 0 | T39: 0 | U39: 0 | V39: 0 | W39: 0 | X39: 0 | Y39: 0 | Z39: 0 | AA39: 1 | AB39: 0 | AC39: 0 | AD39: 1 | AE39: 0 | AF39: 0 | AG39: 0 | AH39: 1 | AI39: 0 | AJ39: 0 | AK39: 0 | AL39: 52 | AM39: 0 | AN39: 52 | AO39: 0 | AP39: 0 | AQ39: 0 | AR39: 0 | AS39: 5 | AT39: 0
A40: 44-B2 | B40: Watsonville Courthouse | C40: 1 Second Street | D40: Watsonville | E40: 95076 | F40: Santa Cruz | G40: BANCRO | H40: County maintained mechanicals. Leased space. | J40: 1 | K40: 3 | L40: 0 | M40: 0 | N40: 0 | O40: 0 | P40: 0 | Q40: 0 | R40: 0 | S40: 0 | T40: 0 | U40: 0 | V40: 0 | W40: 0 | X40: 0 | Y40: 0 | Z40: 0 | AA40: 0 | AB40: 0 | AC40: 0 | AD40: 1 | AE40: 0 | AF40: 0 | AG40: 0 | AH40: 4 | AI40: 0 | AJ40: 0 | AK40: 0 | AL40: 52 | AM40: 5 | AN40: 52 | AO40: 0 | AP40: 0 | AQ40: 0 | AR40: 0 | AS40: 0 | AT40: 0
A41: 48-A1 | B41: Hall of Justice | C41: 600 Union Ave. | D41: Fairfield | E41: 94533 | F41: Solano | G41: BANCRO | J41: 1 | K41: 0 | L41: 0 | M41: 0 | N41: 0 | O41: 0 | P41: 0 | Q41: 0 | R41: 0 | S41: 0 | T41: 0 | U41: 0 | V41: 0 | W41: 0 | X41: 0 | Y41: 0 | Z41: 0 | AA41: 0 | AB41: 0 | AC41: 0 | AD41: 1 | AE41: 5 | AF41: 0 | AG41: 0 | AH41: 0 | AI41: 0 | AJ41: 0 | AK41: 1 | AL41: 52 | AM41: 7 | AN41: 52 | AO41: 0 | AP41: 0 | AQ41: 0 | AR41: 0 | AS41: 0 | AT41: 0
A42: 48-A3 | B42: Old Solano Courthouse | C42: 580 Texas Street | D42: Fairfield | E42: 94533 | F42: Solano | G42: BANCRO | J42: 1 | K42: 3 | L42: 0 | M42: 0 | N42: 0 | O42: 0 | P42: 0 | Q42: 0 | R42: 0 | S42: 6 | T42: 4 | U42: 0 | V42: 0 | W42: 0 | X42: 0 | Y42: 1 | Z42: 2 | AA42: 2 | AB42: 0 | AC42: 0 | AD42: 1 | AE42: 5 | AF42: 2 | AG42: 0 | AH42: 0 | AI42: 0 | AJ42: 0 | AK42: 0 | AL42: 52 | AM42: 4 | AN42: 52 | AO42: 0 | AP42: 0 | AQ42: 0 | AR42: 0 | AS42: 10 | AT42: 0

Sheet Master Template (hidden)
B1: JCC ID | C1: Facility Name | D1: Address | F1: City / Town | H1: Zip Code | J1: County | L1: Region | N1: RFP | P1: Proposer
C2: =IFERROR(VLOOKUP($B$2,'Equipment List Template'!$1:$1048576,2,FALSE),"") ->  | D2: =IFERROR(VLOOKUP($B$2,'Equipment List Template'!$1:$1048576,3,FALSE),"") ->  | F2: =IFERROR(VLOOKUP($B$2,'Equipment List Template'!$1:$1048576,4,FALSE),"") ->  | H2: =IFERROR(VLOOKUP($B$2,'Equipment List Template'!$1:$1048576,5,FALSE),"") ->  | J2: =IFERROR(VLOOKUP($B$2,'Equipment List Template'!$1:$1048576,6,FALSE),"") ->  | L2: =IFERROR(VLOOKUP($B$2,'Equipment List Template'!$1:$1048576,7,FALSE),"") ->  | N2: ='Summary Pricing Sheet'!B2 -> RFP-FS-SP-2019-03-JP | P2: ='Summary Pricing Sheet'!B3 -> Firm Name TBD
D3: Daily Activity | G3: Weekly Activity | J3: Monthly Activity | M3: Quarterly Activity | P3: Annual Activity | U3: Summary | AG3: System | AH3: HVAC | AS3: Electrical | BA3: Plumbing | BE3: Building Systems | BP3: Corporate | BT3: Fixed Price - Facility Total Annual Cost Year 1
B4: System ID | C4: Subsystem | D4: Quantity | E4: Cost | F4: Daily Total | G4: Quantity | H4: Cost | I4: Weekly Total | J4: Monthly Quantity | K4: Cost | L4: Monthly Total | M4: Quarterly Quantity | N4: Cost | O4: Quarterly Total | P4: Annual Quantity | Q4: Cost | R4: Annual PM Total | T4: Number of PM's | U4: Annual Cost | V4: Quantity | W4: Total Annual Cost | AG4: Subsystem | AH4: Air Cooled DX (Package / Split System) | AI4: Air Handling Unit (Air-cooled DX) | AJ4: Air-Cooled Chiller | AK4: Centrifugal Chiller | AL4: Cooling Tower (Induced Draft) | AM4: Ice Chiller | AN4: Multitask (Geothermal) | AO4: Water Source Heat Pump | AP4: Fan Coil System | AQ4: Exhaust Fan | AR4: HVAC Unique System | AS4: Electrical Panels | AT4: Emergency Generator | AU4: Motor Control Center | AV4: Primary Switch (High) | AW4: Primary Switch (Low) | AX4: Transformer (Dry-Type) | AY4: Uninterruptible Power Supply (UPS) | AZ4: Electrical Unique System | BA4: Hot Water Boiler | BB4: Condensing Water Heater | BC4: Electric Water Heater | BD4: Plumbing Unique System | BE4: Steam System | BF4: Pneumatic Compressor | BG4: Vertical Transportation | BH4: Life Safety | BI4: Backflow Preventor | BJ4: Rounds and Readings | BK4: Access Doors, Gates, Sally Port | BL4: Water Treatment | BM4: Building Exterior / Hardscape (Monthly) | BN4: Fountain Maintenance (Monthly) | BO4: Fuel Storage Tanks (Quarterly) If applicable | BP4: Landscape Maintenance * | BQ4: Account Management and Supervision (Monthly) | BR4: Fee (Monthly) | BV4: Snow Removal - (crew hourly rate) | BW4: Unclogging Blocked Toilet - In-custody holding cell (labor) | BX4: Unclogging Blocked Toilet - Public/Court Staff (labor) | BY4: Hourly Rate | BZ4: Markup on Materials | CA4: Markup on Subcontractors/Third-Parties
A5: =$B$2 -> 0 | B5: A1 | C5: Access Doors, Gates, Sally Port | J5: 11 | K5: 0 | L5: =+K5*J5 -> 0 | M5: 0 | N5: 0 | O5: =+N5*M5 -> 0 | P5: 1 | Q5: 0 | R5: =+Q5*P5 -> 0 | S5: 12 | T5: =IF($V5>0,$S5,0) -> 12 | U5: =+R5+O5+L5+I5+F5 -> 0 | V5: =IFERROR(VLOOKUP($A$5,'Equipment List Template'!$1:$1048576,10,FALSE),"0") -> 0 | W5: =+U5*V5 -> 0 | Z5: JCC ID | AA5: Facility Name | AB5: Address | AC5: City / Town | AD5: County | AE5: Region | AF5: Region | AG5: System ID | AH5: H1 | AI5: H2 | AJ5: H3 | AK5: H4 | AL5: H5 | AM5: H6 | AN5: H7 | AO5: H8 | AP5: H9 | AQ5: H10 | AR5: H11 | AS5: E1 | AT5: E2 | AU5: E3 | AV5: E4 | AW5: E5 | AX5: E6 | AY5: E7 | AZ5: E8 | BA5: P1 | BB5: P2 | BC5: P3 | BD5: P4 | BE5: P5 | BF5: P6 | BG5: V1 | BH5: L1 | BI5: L2 | BJ5: R1 | BK5: A1 | BL5: W1 | BM5: B1 | BN5: F1 | BO5: F2 | BP5: G1 | BQ5: C1 | BR5: C2 | BV5: S1 | BW5: I1 | BX5: I2 | BY5: Hr 1 | BZ5: M1 | CA5: Sub1
A6: =$B$2 -> 0 | B6: H1 | C6: Air Cooled DX (Package / Split System) | J6: 0 | K6: 0 | L6: =+K6*J6 -> 0 | M6: 3 | N6: 0 | O6: =+N6*M6 -> 0 | P6: 1 | Q6: 0 | R6: =+Q6*P6 -> 0 | S6: 4 | T6: =IF($V6>0,$S6,0) -> 4 | U6: =+R6+O6+L6+I6+F6 -> 0 | V6: =IFERROR(VLOOKUP($A$5,'Equipment List Template'!$1:$1048576,11,FALSE),"0") -> 0 | W6: =+U6*V6 -> 0 | Z6: =B2 -> 0 | AA6: =IFERROR(VLOOKUP($Z$6,'Equipment List Template'!$1:$1048576,2,FALSE),"") ->  | AB6: =IFERROR(VLOOKUP($Z$6,'Equipment List Template'!$1:$1048576,3,FALSE),"") ->  | AC6: =IFERROR(VLOOKUP($Z$6,'Equipment List Template'!$1:$1048576,4,FALSE),"") ->  | AD6: =IFERROR(VLOOKUP($Z$6,'Equipment List Template'!$1:$1048576,5,FALSE),"") ->  | AE6: =IFERROR(VLOOKUP($Z$6,'Equipment List Template'!$1:$1048576,6,FALSE),"") ->  | AF6: =IFERROR(VLOOKUP($Z$6,'Equipment List Template'!$1:$1048576,7,FALSE),"") ->  | AH6: =+$W5 -> 0 | AI6: =+$W6 -> 0 | AJ6: =+$W7 -> 0 | AK6: =+$W8 -> 0 | AL6: =+$W9 -> 0 | AM6: =+$W10 -> 0 | AN6: =+$W11 -> 0 | AO6: =+$W12 -> 0 | AP6: =+$W13 -> 0 | AQ6: =+$W14 -> 0 | AR6: =+$W15 -> 0 | AS6: =+$W16 -> 0 | AT6: =+$W17 -> 0 | AU6: =+$W18 -> 0 | AV6: =+$W19 -> 0 | AW6: =+$W20 -> 0 | AX6: =+$W21 -> 0 | AY6: =+$W22 -> 0 | AZ6: =+$W23 -> 0 | BA6: =+$W24 -> 0 | BB6: =+$W25 -> 0 | BC6: =+$W26 -> 0 | BD6: =+$W27 -> 0 | BE6: =+$W28 -> 0 | BF6: =+$W29 -> 0 | BG6: =+$W30 -> 0 | BH6: =+$W31 -> 0 | BI6: =+$W32 -> 0 | BJ6: =+$W33 -> 0 | BK6: =+$W34 -> 0 | BL6: =+$W35 -> 0 | BM6: =+$W36 -> 0 | BN6: =+$W37 -> 0 | BO6: =+$W38 -> 0 | BP6: =+$W39 -> 0 | BQ6: =+$W40 -> 0 | BR6: =+$W41 -> 0 | BT6: =+W42 -> 0 | BV6: =+D43 -> 0 | BW6: =+D44 -> 0 | BX6: =+D45 -> 0 | BY6: =+D46 -> 0 | BZ6: =+D47 -> 0 | CA6: =+D48 -> 0
A7: 0 | B7: H2 | C7: Air Handling Unit (Air-cooled DX) | J7: 0 | K7: 0 | L7: 0 | M7: 3 | N7: 0 | O7: 0 | P7: 1 | Q7: 0 | R7: 0 | S7: 4 | T7: 4 | U7: 0 | V7: =IFERROR(VLOOKUP($A$5,'Equipment List Template'!$1:$1048576,12,FALSE),"0") -> 0 | W7: =+U7*V7 -> 0
A8: 0 | B8: H3 | C8: Air-Cooled Chiller | G8: 40 | H8: 0 | I8: =+H8*G8 -> 0 | J8: 8 | K8: 0 | L8: 0 | M8: 3 | N8: 0 | O8: 0 | P8: 1 | Q8: 0 | R8: 0 | S8: 12 | T8: 12 | U8: 0 | V8: =IFERROR(VLOOKUP($A$5,'Equipment List Template'!$1:$1048576,13,FALSE),"0") -> 0 | W8: 0
A9: 0 | B9: H4 | C9: Centrifugal Chiller | J9: 11 | K9: 0 | L9: 0 | M9: 0 | N9: 0 | O9: 0 | P9: 1 | Q9: 0 | R9: 0 | S9: 12 | T9: 12 | U9: 0 | V9: =IFERROR(VLOOKUP($A$5,'Equipment List Template'!$1:$1048576,14,FALSE),"0") -> 0 | W9: 0
A10: 0 | B10: H5 | C10: Cooling Tower (Induced Draft) | J10: 8 | K10: 0 | L10: 0 | M10: 3 | N10: 0 | O10: 0 | P10: 1 | Q10: 0 | R10: 0 | S10: 12 | T10: 12 | U10: 0 | V10: =IFERROR(VLOOKUP($A$5,'Equipment List Template'!$1:$1048576,15,FALSE),"0") -> 0 | W10: 0
A11: 0 | B11: H6 | C11: Ice Chiller | J11: 8 | K11: 0 | L11: 0 | M11: 3 | N11: 0 | O11: 0 | P11: 1 | Q11: 0 | R11: 0 | S11: 12 | T11: 12 | U11: 0 | V11: =IFERROR(VLOOKUP($A$5,'Equipment List Template'!$1:$1048576,16,FALSE),"0") -> 0 | W11: 0
A12: 0 | B12: H7 | C12: MultiStack (Geothermal) | J12: 0 | K12: 0 | L12: 0 | M12: 0 | N12: 0 | O12: 0 | P12: 1 | Q12: 0 | R12: 0 | S12: 1 | T12: 1 | U12: 0 | V12: =IFERROR(VLOOKUP($A$5,'Equipment List Template'!$1:$1048576,17,FALSE),"0") -> 0 | W12: 0
A13: 0 | B13: H8 | C13: Water Source Heat Pump | J13: 8 | K13: 0 | L13: 0 | M13: 3 | N13: 0 | O13: 0 | P13: 1 | Q13: 0 | R13: 0 | S13: 12 | T13: 12 | U13: 0 | V13: =IFERROR(VLOOKUP($A$5,'Equipment List Template'!$1:$1048576,18,FALSE),"0") -> 0 | W13: 0
A14: 0 | B14: H9 | C14: Fan Coil System | J14: 0 | K14: 0 | L14: 0 | M14: 3 | N14: 0 | O14: 0 | P14: 1 | Q14: 0 | R14: 0 | S14: 4 | T14: 4 | U14: 0 | V14: =IFERROR(VLOOKUP($A$5,'Equipment List Template'!$1:$1048576,19,FALSE),"0") -> 0 | W14: 0
A15: 0 | B15: H10 | C15: Exhaust Fan | J15: 0 | K15: 0 | L15: 0 | M15: 3 | N15: 0 | O15: 0 | P15: 1 | Q15: 0 | R15: 0 | S15: 4 | T15: 4 | U15: 0 | V15: =IFERROR(VLOOKUP($A$5,'Equipment List Template'!$1:$1048576,20,FALSE),"0") -> 0 | W15: 0
A16: 0 | B16: H11 | C16: HVAC Unique System | J16: 8 | K16: 0 | L16: 0 | M16: 3 | N16: 0 | O16: 0 | P16: 1 | Q16: 0 | R16: 0 | S16: 12 | T16: 12 | U16: 0 | V16: =IFERROR(VLOOKUP($A$5,'Equipment List Template'!$1:$1048576,21,FALSE),"0") -> 0 | W16: 0
A17: 0 | B17: E1 | C17: Electrical Panels | J17: 0 | K17: 0 | L17: 0 | M17: 3 | N17: 0 | O17: 0 | P17: 1 | Q17: 0 | R17: 0 | S17: 4 | T17: 4 | U17: 0 | V17: =IFERROR(VLOOKUP($A$5,'Equipment List Template'!$1:$1048576,22,FALSE),"0") -> 0 | W17: 0
A18: 0 | B18: E2 | C18: Emergency Generator | J18: 0 | K18: 0 | L18: 0 | M18: 3 | N18: 0 | O18: 0 | P18: 1 | Q18: 0 | R18: 0 | S18: 4 | T18: 4 | U18: 0 | V18: =IFERROR(VLOOKUP($A$5,'Equipment List Template'!$1:$1048576,23,FALSE),"0") -> 0 | W18: 0
A19: 0 | B19: E3 | C19: Motor Control Center | J19: 0 | K19: 0 | L19: 0 | M19: 4 | N19: 0 | O19: 0 | P19: 0 | Q19: 0 | R19: 0 | S19: 4 | T19: 4 | U19: 0 | V19: =IFERROR(VLOOKUP($A$5,'Equipment List Template'!$1:$1048576,24,FALSE),"0") -> 0 | W19: 0
A20: 0 | B20: E4 | C20: Primary Switch (High) | J20: 8 | K20: 0 | L20: 0 | M20: 3 | N20: 0 | O20: 0 | P20: 1 | Q20: 0 | R20: 0 | S20: 12 | T20: 12 | U20: 0 | V20: =IFERROR(VLOOKUP($A$5,'Equipment List Template'!$1:$1048576,25,FALSE),"0") -> 0 | W20: 0
A21: 0 | B21: E5 | C21: Primary Switch (Low) | J21: 8 | K21: 0 | L21: 0 | M21: 3 | N21: 0 | O21: 0 | P21: 1 | Q21: 0 | R21: 0 | S21: 12 | T21: 12 | U21: 0 | V21: =IFERROR(VLOOKUP($A$5,'Equipment List Template'!$1:$1048576,26,FALSE),"0") -> 0 | W21: 0
A22: 0 | B22: E6 | C22: Transformer (Dry-Type) | J22: 0 | K22: 0 | L22: 0 | M22: 3 | N22: 0 | O22: 0 | P22: 1 | Q22: 0 | R22: 0 | S22: 4 | T22: 4 | U22: 0 | V22: =IFERROR(VLOOKUP($A$5,'Equipment List Template'!$1:$1048576,27,FALSE),"0") -> 0 | W22: 0
A23: 0 | B23: E7 | C23: Uninterruptible Power Supply (UPS) | J23: 0 | K23: 0 | L23: 0 | M23: 0 | N23: 0 | O23: 0 | P23: 1 | Q23: 0 | R23: 0 | S23: 1 | T23: 1 | U23: 0 | V23: =IFERROR(VLOOKUP($A$5,'Equipment List Template'!$1:$1048576,28,FALSE),"0") -> 0 | W23: 0
A24: 0 | B24: E8 | C24: Electrical Unique System | J24: 8 | K24: 0 | L24: 0 | M24: 3 | N24: 0 | O24: 0 | P24: 1 | Q24: 0 | R24: 0 | S24: 12 | T24: 12 | U24: 0 | V24: =IFERROR(VLOOKUP($A$5,'Equipment List Template'!$1:$1048576,29,FALSE),"0") -> 0 | W24: 0
A25: 0 | B25: L1 | C25: Life Safety | J25: 0 | K25: 0 | L25: 0 | M25: 3 | N25: 0 | O25: 0 | P25: 1 | Q25: 0 | R25: 0 | S25: 4 | T25: 4 | U25: 0 | V25: =IFERROR(VLOOKUP($A$5,'Equipment List Template'!$1:$1048576,30,FALSE),"0") -> 0 | W25: =+U25*V25 -> 0
A26: 0 | B26: L2 | C26: Backflow Preventor(s) | J26: 0 | K26: 0 | L26: 0 | M26: 0 | N26: 0 | O26: 0 | P26: 1 | Q26: 0 | R26: 0 | S26: 1 | T26: 1 | U26: 0 | V26: =IFERROR(VLOOKUP($A$5,'Equipment List Template'!$1:$1048576,31,FALSE),"0") -> 0 | W26: =+U26*V26 -> 0
A27: 0 | B27: P1 | C27: Hot Water Boiler | J27: 8 | K27: 0 | L27: 0 | M27: 3 | N27: 0 | O27: 0 | P27: 1 | Q27: 0 | R27: 0 | S27: 12 | T27: 12 | U27: 0 | V27: =IFERROR(VLOOKUP($A$5,'Equipment List Template'!$1:$1048576,32,FALSE),"0") -> 0 | W27: 0
A28: 0 | B28: P2 | C28: Condensing Water Heater | J28: 0 | K28: 0 | L28: 0 | M28: 0 | N28: 0 | O28: 0 | P28: 1 | Q28: 0 | R28: 0 | S28: 1 | T28: 1 | U28: 0 | V28: =IFERROR(VLOOKUP($A$5,'Equipment List Template'!$1:$1048576,33,FALSE),"0") -> 0 | W28: 0
A29: 0 | B29: P3 | C29: Electric Water Heater | J29: 0 | K29: 0 | L29: 0 | M29: 0 | N29: 0 | O29: 0 | P29: 1 | Q29: 0 | R29: 0 | S29: 1 | T29: 1 | U29: 0 | V29: =IFERROR(VLOOKUP($A$5,'Equipment List Template'!$1:$1048576,34,FALSE),"0") -> 0 | W29: 0
A30: 0 | B30: P4 | C30: Plumbing Unique System | J30: 0 | K30: 0 | L30: 0 | M30: 3 | N30: 0 | O30: 0 | P30: 1 | Q30: 0 | R30: 0 | S30: 4 | T30: 4 | U30: 0 | V30: =IFERROR(VLOOKUP($A$5,'Equipment List Template'!$1:$1048576,35,FALSE),"0") -> 0 | W30: 0
A31: 0 | B31: P5 | C31: Steam System | J31: 0 | K31: 0 | L31: 0 | M31: 3 | N31: 0 | O31: 0 | P31: 1 | Q31: 0 | R31: 0 | S31: 4 | T31: 4 | U31: 0 | V31: =IFERROR(VLOOKUP($A$5,'Equipment List Template'!$1:$1048576,36,FALSE),"0") -> 0 | W31: 0
A32: 0 | B32: P6 | C32: Pneumatic Compressor | J32: 11 | K32: 0 | L32: 0 | M32: 0 | N32: 0 | O32: 0 | P32: 1 | Q32: 0 | R32: 0 | S32: 12 | T32: 12 | U32: 0 | V32: =IFERROR(VLOOKUP($A$5,'Equipment List Template'!$1:$1048576,37,FALSE),"0") -> 0 | W32: 0
A33: 0 | B33: R1 | C33: Rounds and Readings | D33: =IFERROR(IF(VLOOKUP($A33,'Equipment List Template'!$1:$1048576,38,FALSE)=260,248,0),0) -> 0 | E33: 0 | F33: =+E33*D33 -> 0 | G33: =IFERROR(IF(VLOOKUP($A33,'Equipment List Template'!$1:$1048576,38,FALSE)=52,40,0),0) -> 0 | H33: 0 | I33: =+H33*G33 -> 0 | J33: 12 | K33: 0 | L33: 0 | S33: 12 | T33: 12 | U33: =+R33+O33+L33+I33+F33 -> 0 | V33: 1 | W33: =+U33*V33 -> 0
A34: 0 | B34: V1 | C34: Vertical Transportation | J34: 8 | K34: 0 | L34: =+K34*J34 -> 0 | M34: 3 | N34: 0 | O34: =+N34*M34 -> 0 | P34: 1 | Q34: 0 | R34: =+Q34*P34 -> 0 | S34: 12 | T34: 12 | U34: =+R34+O34+L34 -> 0 | V34: =IFERROR(VLOOKUP($A$5,'Equipment List Template'!$1:$1048576,39,FALSE),"0") -> 0 | W34: =+U34*V34 -> 0
A35: 0 | B35: W1 | C35: Water Treatment | D35: =IFERROR(IF(VLOOKUP($A35,'Equipment List Template'!$1:$1048576,40,FALSE)=260,260,0),0) -> 0 | E35: 0 | F35: =+E35*D35 -> 0 | S35: 0 | T35: 0 | U35: =+R35+O35+L35+I35+F35 -> 0 | V35: 1 | W35: 0
A36: 0 | B36: B1 | C36: Building Exterior / Hardscape (Monthly) | J36: 12 | K36: 0 | L36: =+K36*J36 -> 0 | S36: 12 | T36: 12 | U36: 0 | V36: 1 | W36: 0
A37: 0 | B37: F1 | C37: Fountain Maintenance (Monthly) | J37: 12 | K37: 0 | L37: 0 | S37: 12 | T37: 12 | U37: 0 | V37: 1 | W37: 0
A38: 0 | B38: F2 | C38: Fuel Storage Tanks (Quarterly) If applicable | M38: 4 | N38: 0 | O38: =+N38*M38 -> 0 | S38: 4 | T38: 4 | U38: 0 | V38: 1 | W38: 0
A39: 0 | B39: G1 | C39: Landscape Maintenance * | G39: 40 | H39: 0 | I39: =+H39*G39 -> 0 | S39: 0 | T39: 0 | U39: 0 | V39: 1 | W39: 0
A40: 0 | B40: C1 | C40: Account Management and Supervision (Monthly) | J40: 12 | K40: 0 | L40: =+K40*J40 -> 0 | S40: 12 | T40: 12 | U40: 0 | V40: 1 | W40: 0
A41: 0 | B41: C2 | C41: Fee (Monthly) | J41: 12 | K41: 0 | L41: 0 | S41: 12 | T41: 12 | U41: 0 | V41: 1 | W41: 0
Q42: JCC ID | R42: =B2 -> 0 | U42: Total | W42: =SUM(W6:W41) -> 0
B43: S1 | C43: Snow Removal - (crew hourly rate) | D43: 0 | U43: Total # of PM's | W43: =SUM(T5:T41) -> 269
B44: I1 | C44: Unclogging Blocked Toilet - In-custody cell (labor-only) | D44: 0
B45: I2 | C45: Unclogging Blocked Toilet - Public/Court Staff (labor-only) | D45: 0
B46: Hr 1 | C46: Hourly Rate (All Labor categories) | D46: 0
B47: M1 | C47: Markup on Materials (Percentage) | D47: 0
B48: Sub1 | C48: Markup on Subcontractors/Third-Parties (Percentage) | D48: 0
B50: * Landscape Maintenance varies by location on the number of weeks per year it can be preformed. For the purpose of the RFP, all facilities are pre-established at 40 weeks of service. The actual amount paid by facility will be based upon the actual weeks that service has been performed, validated and invoiced.

Sheet 01-B3
B1: JCC ID | C1: Facility Name | D1: Address | F1: City / Town | H1: Zip Code | J1: County | L1: Region | N1: RFP | P1: Proposer
B2: 01-B3 | C2: =IFERROR(VLOOKUP($B$2,'Equipment List Template'!$1:$1048576,2,FALSE),"") -> Wiley W. Manuel Courthouse | D2: =IFERROR(VLOOKUP($B$2,'Equipment List Template'!$1:$1048576,3,FALSE),"") -> 661 Washington St. | F2: =IFERROR(VLOOKUP($B$2,'Equipment List Template'!$1:$1048576,4,FALSE),"") -> Oakland | H2: =IFERROR(VLOOKUP($B$2,'Equipment List Template'!$1:$1048576,5,FALSE),"") -> 94607 | J2: =IFERROR(VLOOKUP($B$2,'Equipment List Template'!$1:$1048576,6,FALSE),"") -> Alameda | L2: =IFERROR(VLOOKUP($B$2,'Equipment List Template'!$1:$1048576,7,FALSE),"") -> BANCRO | N2: ='Summary Pricing Sheet'!B2 -> RFP-FS-SP-2019-03-JP | P2: ='Summary Pricing Sheet'!B3 -> Firm Name TBD
D3: Daily Activity | G3: Weekly Activity | J3: Monthly Activity | M3: Quarterly Activity | P3: Annual Activity | U3: Summary | AG3: System | AH3: HVAC | AS3: Electrical | BA3: Plumbing | BE3: Building Systems | BP3: Corporate | BT3: Fixed Price - Facility Total Annual Cost Year 1
B4: System ID | C4: Subsystem | D4: Quantity | E4: Cost | F4: Daily Total | G4: Quantity | H4: Cost | I4: Weekly Total | J4: Monthly Quantity | K4: Cost | L4: Monthly Total | M4: Quarterly Quantity | N4: Cost | O4: Quarterly Total | P4: Annual Quantity | Q4: Cost | R4: Annual PM Total | T4: Number of PM's | U4: Annual Cost | V4: Quantity | W4: Total Annual Cost | AG4: Subsystem | AH4: Air Cooled DX (Package / Split System) | AI4: Air Handling Unit (Air-cooled DX) | AJ4: Air-Cooled Chiller | AK4: Centrifugal Chiller | AL4: Cooling Tower (Induced Draft) | AM4: Ice Chiller | AN4: Multitask (Geothermal) | AO4: Water Source Heat Pump | AP4: Fan Coil System | AQ4: Exhaust Fan | AR4: HVAC Unique System | AS4: Electrical Panels | AT4: Emergency Generator | AU4: Motor Control Center | AV4: Primary Switch (High) | AW4: Primary Switch (Low) | AX4: Transformer (Dry-Type) | AY4: Uninterruptible Power Supply (UPS) | AZ4: Electrical Unique System | BA4: Hot Water Boiler | BB4: Condensing Water Heater | BC4: Electric Water Heater | BD4: Plumbing Unique System | BE4: Steam System | BF4: Pneumatic Compressor | BG4: Vertical Transportation | BH4: Life Safety | BI4: Backflow Preventor | BJ4: Rounds and Readings | BK4: Access Doors, Gates, Sally Port | BL4: Water Treatment | BM4: Building Exterior / Hardscape (Monthly) | BN4: Fountain Maintenance (Monthly) | BO4: Fuel Storage Tanks (Quarterly) If applicable | BP4: Landscape Maintenance * | BQ4: Account Management and Supervision (Monthly) | BR4: Fee (Monthly) | BV4: Snow Removal - (crew hourly rate) | BW4: Unclogging Blocked Toilet - In-custody holding cell (labor) | BX4: Unclogging Blocked Toilet - Public/Court Staff (labor) | BY4: Hourly Rate | BZ4: Markup on Materials | CA4: Markup on Subcontractors/Third-Parties
A5: =$B$2 -> 01-B3 | B5: A1 | C5: Access Doors, Gates, Sally Port | J5: 11 | K5: 0 | L5: =+K5*J5 -> 0 | M5: 0 | N5: 0 | O5: =+N5*M5 -> 0 | P5: 1 | Q5: 0 | R5: =+Q5*P5 -> 0 | S5: 12 | T5: =IF($V5>0,$S5,0) -> 12 | U5: =+R5+O5+L5+I5+F5 -> 0 | V5: =IFERROR(VLOOKUP($A$5,'Equipment List Template'!$1:$1048576,10,FALSE),"0") -> 1 | W5: =+U5*V5 -> 0 | Z5: JCC ID | AA5: Facility Name | AB5: Address | AC5: City / Town | AD5: County | AE5: Region | AF5: Region | AG5: System ID | AH5: H1 | AI5: H2 | AJ5: H3 | AK5: H4 | AL5: H5 | AM5: H6 | AN5: H7 | AO5: H8 | AP5: H9 | AQ5: H10 | AR5: H11 | AS5: E1 | AT5: E2 | AU5: E3 | AV5: E4 | AW5: E5 | AX5: E6 | AY5: E7 | AZ5: E8 | BA5: P1 | BB5: P2 | BC5: P3 | BD5: P4 | BE5: P5 | BF5: P6 | BG5: V1 | BH5: L1 | BI5: L2 | BJ5: R1 | BK5: A1 | BL5: W1 | BM5: B1 | BN5: F1 | BO5: F2 | BP5: G1 | BQ5: C1 | BR5: C2 | BV5: S1 | BW5: I1 | BX5: I2 | BY5: Hr 1 | BZ5: M1 | CA5: Sub1
A6: =$B$2 -> 01-B3 | B6: H1 | C6: Air Cooled DX (Package / Split System) | J6: 0 | K6: 0 | L6: =+K6*J6 -> 0 | M6: 3 | N6: 0 | O6: =+N6*M6 -> 0 | P6: 1 | Q6: 0 | R6: =+Q6*P6 -> 0 | S6: 4 | T6: =IF($V6>0,$S6,0) -> 4 | U6: =+R6+O6+L6+I6+F6 -> 0 | V6: =IFERROR(VLOOKUP($A$5,'Equipment List Template'!$1:$1048576,11,FALSE),"0") -> 5 | W6: =+U6*V6 -> 0 | Z6: =B2 -> 01-B3 | AA6: =IFERROR(VLOOKUP($Z$6,'Equipment List Template'!$1:$1048576,2,FALSE),"") -> Wiley W. Manuel Courthouse | AB6: =IFERROR(VLOOKUP($Z$6,'Equipment List Template'!$1:$1048576,3,FALSE),"") -> 661 Washington St. | AC6: =IFERROR(VLOOKUP($Z$6,'Equipment List Template'!$1:$1048576,4,FALSE),"") -> Oakland | AD6: =IFERROR(VLOOKUP($Z$6,'Equipment List Template'!$1:$1048576,5,FALSE),"") -> 94607 | AE6: =IFERROR(VLOOKUP($Z$6,'Equipment List Template'!$1:$1048576,6,FALSE),"") -> Alameda | AF6: =IFERROR(VLOOKUP($Z$6,'Equipment List Template'!$1:$1048576,7,FALSE),"") -> BANCRO | AH6: =+$W5 -> 0 | AI6: =+$W6 -> 0 | AJ6: =+$W7 -> 0 | AK6: =+$W8 -> 0 | AL6: =+$W9 -> 0 | AM6: =+$W10 -> 0 | AN6: =+$W11 -> 0 | AO6: =+$W12 -> 0 | AP6: =+$W13 -> 0 | AQ6: =+$W14 -> 0 | AR6: =+$W15 -> 0 | AS6: =+$W16 -> 0 | AT6: =+$W17 -> 0 | AU6: =+$W18 -> 0 | AV6: =+$W19 -> 0 | AW6: =+$W20 -> 0 | AX6: =+$W21 -> 0 | AY6: =+$W22 -> 0 | AZ6: =+$W23 -> 0 | BA6: =+$W24 -> 0 | BB6: =+$W25 -> 0 | BC6: =+$W26 -> 0 | BD6: =+$W27 -> 0 | BE6: =+$W28 -> 0 | BF6: =+$W29 -> 0 | BG6: =+$W30 -> 0 | BH6: =+$W31 -> 0 | BI6: =+$W32 -> 0 | BJ6: =+$W33 -> 0 | BK6: =+$W34 -> 0 | BL6: =+$W35 -> 0 | BM6: =+$W36 -> 0 | BN6: =+$W37 -> 0 | BO6: =+$W38 -> 0 | BP6: =+$W39 -> 0 | BQ6: =+$W40 -> 0 | BR6: =+$W41 -> 0 | BT6: =+W42 -> 0 | BV6: =+D43 -> 0 | BW6: =+D44 -> 0 | BX6: =+D45 -> 0 | BY6: =+D46 -> 0 | BZ6: =+D47 -> 0 | CA6: =+D48 -> 0
A7: 01-B3 | B7: H2 | C7: Air Handling Unit (Air-cooled DX) | J7: 0 | K7: 0 | L7: 0 | M7: 3 | N7: 0 | O7: 0 | P7: 1 | Q7: 0 | R7: 0 | S7: 4 | T7: 4 | U7: 0 | V7: =IFERROR(VLOOKUP($A$5,'Equipment List Template'!$1:$1048576,12,FALSE),"0") -> 3 | W7: =+U7*V7 -> 0
A8: 01-B3 | B8: H3 | C8: Air-Cooled Chiller | G8: 40 | H8: 0 | I8: =+H8*G8 -> 0 | J8: 8 | K8: 0 | L8: 0 | M8: 3 | N8: 0 | O8: 0 | P8: 1 | Q8: 0 | R8: 0 | S8: 12 | T8: 0 | U8: 0 | V8: =IFERROR(VLOOKUP($A$5,'Equipment List Template'!$1:$1048576,13,FALSE),"0") -> 0 | W8: 0
A9: 01-B3 | B9: H4 | C9: Centrifugal Chiller | J9: 11 | K9: 0 | L9: 0 | M9: 0 | N9: 0 | O9: 0 | P9: 1 | Q9: 0 | R9: 0 | S9: 12 | T9: 0 | U9: 0 | V9: =IFERROR(VLOOKUP($A$5,'Equipment List Template'!$1:$1048576,14,FALSE),"0") -> 0 | W9: 0
A10: 01-B3 | B10: H5 | C10: Cooling Tower (Induced Draft) | J10: 8 | K10: 0 | L10: 0 | M10: 3 | N10: 0 | O10: 0 | P10: 1 | Q10: 0 | R10: 0 | S10: 12 | T10: 0 | U10: 0 | V10: =IFERROR(VLOOKUP($A$5,'Equipment List Template'!$1:$1048576,15,FALSE),"0") -> 0 | W10: 0
A11: 01-B3 | B11: H6 | C11: Ice Chiller | J11: 8 | K11: 0 | L11: 0 | M11: 3 | N11: 0 | O11: 0 | P11: 1 | Q11: 0 | R11: 0 | S11: 12 | T11: 0 | U11: 0 | V11: =IFERROR(VLOOKUP($A$5,'Equipment List Template'!$1:$1048576,16,FALSE),"0") -> 0 | W11: 0
A12: 01-B3 | B12: H7 | C12: MultiStack (Geothermal) | J12: 0 | K12: 0 | L12: 0 | M12: 0 | N12: 0 | O12: 0 | P12: 1 | Q12: 0 | R12: 0 | S12: 1 | T12: 0 | U12: 0 | V12: =IFERROR(VLOOKUP($A$5,'Equipment List Template'!$1:$1048576,17,FALSE),"0") -> 0 | W12: 0
A13: 01-B3 | B13: H8 | C13: Water Source Heat Pump | J13: 8 | K13: 0 | L13: 0 | M13: 3 | N13: 0 | O13: 0 | P13: 1 | Q13: 0 | R13: 0 | S13: 12 | T13: 0 | U13: 0 | V13: =IFERROR(VLOOKUP($A$5,'Equipment List Template'!$1:$1048576,18,FALSE),"0") -> 0 | W13: 0
A14: 01-B3 | B14: H9 | C14: Fan Coil System | J14: 0 | K14: 0 | L14: 0 | M14: 3 | N14: 0 | O14: 0 | P14: 1 | Q14: 0 | R14: 0 | S14: 4 | T14: 4 | U14: 0 | V14: =IFERROR(VLOOKUP($A$5,'Equipment List Template'!$1:$1048576,19,FALSE),"0") -> 4 | W14: 0
A15: 01-B3 | B15: H10 | C15: Exhaust Fan | J15: 0 | K15: 0 | L15: 0 | M15: 3 | N15: 0 | O15: 0 | P15: 1 | Q15: 0 | R15: 0 | S15: 4 | T15: 4 | U15: 0 | V15: =IFERROR(VLOOKUP($A$5,'Equipment List Template'!$1:$1048576,20,FALSE),"0") -> 2 | W15: 0
A16: 01-B3 | B16: H11 | C16: HVAC Unique System | J16: 8 | K16: 0 | L16: 0 | M16: 3 | N16: 0 | O16: 0 | P16: 1 | Q16: 0 | R16: 0 | S16: 12 | T16: 0 | U16: 0 | V16: =IFERROR(VLOOKUP($A$5,'Equipment List Template'!$1:$1048576,21,FALSE),"0") -> 0 | W16: 0
A17: 01-B3 | B17: E1 | C17: Electrical Panels | J17: 0 | K17: 0 | L17: 0 | M17: 3 | N17: 0 | O17: 0 | P17: 1 | Q17: 0 | R17: 0 | S17: 4 | T17: 0 | U17: 0 | V17: =IFERROR(VLOOKUP($A$5,'Equipment List Template'!$1:$1048576,22,FALSE),"0") -> 0 | W17: 0
A18: 01-B3 | B18: E2 | C18: Emergency Generator | J18: 0 | K18: 0 | L18: 0 | M18: 3 | N18: 0 | O18: 0 | P18: 1 | Q18: 0 | R18: 0 | S18: 4 | T18: 0 | U18: 0 | V18: =IFERROR(VLOOKUP($A$5,'Equipment List Template'!$1:$1048576,23,FALSE),"0") -> 0 | W18: 0
A19: 01-B3 | B19: E3 | C19: Motor Control Center | J19: 0 | K19: 0 | L19: 0 | M19: 4 | N19: 0 | O19: 0 | P19: 0 | Q19: 0 | R19: 0 | S19: 4 | T19: 0 | U19: 0 | V19: =IFERROR(VLOOKUP($A$5,'Equipment List Template'!$1:$1048576,24,FALSE),"0") -> 0 | W19: 0
A20: 01-B3 | B20: E4 | C20: Primary Switch (High) | J20: 8 | K20: 0 | L20: 0 | M20: 3 | N20: 0 | O20: 0 | P20: 1 | Q20: 0 | R20: 0 | S20: 12 | T20: 0 | U20: 0 | V20: =IFERROR(VLOOKUP($A$5,'Equipment List Template'!$1:$1048576,25,FALSE),"0") -> 0 | W20: 0
A21: 01-B3 | B21: E5 | C21: Primary Switch (Low) | J21: 8 | K21: 0 | L21: 0 | M21: 3 | N21: 0 | O21: 0 | P21: 1 | Q21: 0 | R21: 0 | S21: 12 | T21: 0 | U21: 0 | V21: =IFERROR(VLOOKUP($A$5,'Equipment List Template'!$1:$1048576,26,FALSE),"0") -> 0 | W21: 0
A22: 01-B3 | B22: E6 | C22: Transformer (Dry-Type) | J22: 0 | K22: 0 | L22: 0 | M22: 3 | N22: 0 | O22: 0 | P22: 1 | Q22: 0 | R22: 0 | S22: 4 | T22: 4 | U22: 0 | V22: =IFERROR(VLOOKUP($A$5,'Equipment List Template'!$1:$1048576,27,FALSE),"0") -> 8 | W22: 0
A23: 01-B3 | B23: E7 | C23: Uninterruptible Power Supply (UPS) | J23: 0 | K23: 0 | L23: 0 | M23: 0 | N23: 0 | O23: 0 | P23: 1 | Q23: 0 | R23: 0 | S23: 1 | T23: 0 | U23: 0 | V23: =IFERROR(VLOOKUP($A$5,'Equipment List Template'!$1:$1048576,28,FALSE),"0") -> 0 | W23: 0
A24: 01-B3 | B24: E8 | C24: Electrical Unique System | J24: 8 | K24: 0 | L24: 0 | M24: 3 | N24: 0 | O24: 0 | P24: 1 | Q24: 0 | R24: 0 | S24: 12 | T24: 0 | U24: 0 | V24: =IFERROR(VLOOKUP($A$5,'Equipment List Template'!$1:$1048576,29,FALSE),"0") -> 0 | W24: 0
A25: 01-B3 | B25: L1 | C25: Life Safety | J25: 0 | K25: 0 | L25: 0 | M25: 3 | N25: 0 | O25: 0 | P25: 1 | Q25: 0 | R25: 0 | S25: 4 | T25: 4 | U25: 0 | V25: =IFERROR(VLOOKUP($A$5,'Equipment List Template'!$1:$1048576,30,FALSE),"0") -> 1 | W25: =+U25*V25 -> 0
A26: 01-B3 | B26: L2 | C26: Backflow Preventor(s) | J26: 0 | K26: 0 | L26: 0 | M26: 0 | N26: 0 | O26: 0 | P26: 1 | Q26: 0 | R26: 0 | S26: 1 | T26: 1 | U26: 0 | V26: =IFERROR(VLOOKUP($A$5,'Equipment List Template'!$1:$1048576,31,FALSE),"0") -> 6 | W26: =+U26*V26 -> 0
A27: 01-B3 | B27: P1 | C27: Hot Water Boiler | J27: 8 | K27: 0 | L27: 0 | M27: 3 | N27: 0 | O27: 0 | P27: 1 | Q27: 0 | R27: 0 | S27: 12 | T27: 0 | U27: 0 | V27: =IFERROR(VLOOKUP($A$5,'Equipment List Template'!$1:$1048576,32,FALSE),"0") -> 0 | W27: 0
A28: 01-B3 | B28: P2 | C28: Condensing Water Heater | J28: 0 | K28: 0 | L28: 0 | M28: 0 | N28: 0 | O28: 0 | P28: 1 | Q28: 0 | R28: 0 | S28: 1 | T28: 0 | U28: 0 | V28: =IFERROR(VLOOKUP($A$5,'Equipment List Template'!$1:$1048576,33,FALSE),"0") -> 0 | W28: 0
A29: 01-B3 | B29: P3 | C29: Electric Water Heater | J29: 0 | K29: 0 | L29: 0 | M29: 0 | N29: 0 | O29: 0 | P29: 1 | Q29: 0 | R29: 0 | S29: 1 | T29: 0 | U29: 0 | V29: =IFERROR(VLOOKUP($A$5,'Equipment List Template'!$1:$1048576,34,FALSE),"0") -> 0 | W29: 0
A30: 01-B3 | B30: P4 | C30: Plumbing Unique System | J30: 0 | K30: 0 | L30: 0 | M30: 3 | N30: 0 | O30: 0 | P30: 1 | Q30: 0 | R30: 0 | S30: 4 | T30: 0 | U30: 0 | V30: =IFERROR(VLOOKUP($A$5,'Equipment List Template'!$1:$1048576,35,FALSE),"0") -> 0 | W30: 0
A31: 01-B3 | B31: P5 | C31: Steam System | J31: 0 | K31: 0 | L31: 0 | M31: 3 | N31: 0 | O31: 0 | P31: 1 | Q31: 0 | R31: 0 | S31: 4 | T31: 0 | U31: 0 | V31: =IFERROR(VLOOKUP($A$5,'Equipment List Template'!$1:$1048576,36,FALSE),"0") -> 0 | W31: 0
A32: 01-B3 | B32: P6 | C32: Pneumatic Compressor | J32: 11 | K32: 0 | L32: 0 | M32: 0 | N32: 0 | O32: 0 | P32: 1 | Q32: 0 | R32: 0 | S32: 12 | T32: 12 | U32: 0 | V32: =IFERROR(VLOOKUP($A$5,'Equipment List Template'!$1:$1048576,37,FALSE),"0") -> 1 | W32: 0
A33: 01-B3 | B33: R1 | C33: Rounds and Readings | D33: =IFERROR(IF(VLOOKUP($A33,'Equipment List Template'!$1:$1048576,38,FALSE)=260,248,0),0) -> 0 | E33: 0 | F33: =+E33*D33 -> 0 | G33: =IFERROR(IF(VLOOKUP($A33,'Equipment List Template'!$1:$1048576,38,FALSE)=52,40,0),0) -> 40 | H33: 0 | I33: =+H33*G33 -> 0 | J33: 12 | K33: 0 | L33: 0 | S33: 12 | T33: 12 | U33: =+R33+O33+L33+I33+F33 -> 0 | V33: 1 | W33: =+U33*V33 -> 0
A34: 01-B3 | B34: V1 | C34: Vertical Transportation | J34: 8 | K34: 0 | L34: =+K34*J34 -> 0 | M34: 3 | N34: 0 | O34: =+N34*M34 -> 0 | P34: 1 | Q34: 0 | R34: =+Q34*P34 -> 0 | S34: 12 | T34: 12 | U34: =+R34+O34+L34 -> 0 | V34: =IFERROR(VLOOKUP($A$5,'Equipment List Template'!$1:$1048576,39,FALSE),"0") -> 6 | W34: =+U34*V34 -> 0
A35: 01-B3 | B35: W1 | C35: Water Treatment | D35: =IFERROR(IF(VLOOKUP($A35,'Equipment List Template'!$1:$1048576,40,FALSE)=260,260,0),0) -> 0 | E35: 0 | F35: =+E35*D35 -> 0 | S35: 0 | T35: 0 | U35: =+R35+O35+L35+I35+F35 -> 0 | V35: 1 | W35: 0
A36: 01-B3 | B36: B1 | C36: Building Exterior / Hardscape (Monthly) | J36: 12 | K36: 0 | L36: =+K36*J36 -> 0 | S36: 12 | T36: 12 | U36: 0 | V36: 1 | W36: 0
A37: 01-B3 | B37: F1 | C37: Fountain Maintenance (Monthly) | J37: 12 | K37: 0 | L37: 0 | S37: 12 | T37: 12 | U37: 0 | V37: 1 | W37: 0
A38: 01-B3 | B38: F2 | C38: Fuel Storage Tanks (Quarterly) If applicable | M38: 4 | N38: 0 | O38: =+N38*M38 -> 0 | S38: 4 | T38: 4 | U38: 0 | V38: 1 | W38: 0
A39: 01-B3 | B39: G1 | C39: Landscape Maintenance * | G39: 40 | H39: 0 | I39: =+H39*G39 -> 0 | S39: 0 | T39: 0 | U39: 0 | V39: 1 | W39: 0
A40: 01-B3 | B40: C1 | C40: Account Management and Supervision (Monthly) | J40: 12 | K40: 0 | L40: =+K40*J40 -> 0 | S40: 12 | T40: 12 | U40: 0 | V40: 1 | W40: 0
A41: 01-B3 | B41: C2 | C41: Fee (Monthly) | J41: 12 | K41: 0 | L41: 0 | S41: 12 | T41: 12 | U41: 0 | V41: 1 | W41: 0
Q42: JCC ID | R42: =B2 -> 01-B3 | U42: Total | W42: =SUM(W6:W41) -> 0
B43: S1 | C43: Snow Removal - (crew hourly rate) | D43: 0 | U43: Total # of PM's | W43: =SUM(T5:T41) -> 125
B44: I1 | C44: Unclogging Blocked Toilet - In-custody cell (labor-only) | D44: 0
B45: I2 | C45: Unclogging Blocked Toilet - Public/Court Staff (labor-only) | D45: 0
B46: Hr 1 | C46: Hourly Rate (All Labor categories) | D46: 0
B47: M1 | C47: Markup on Materials (Percentage) | D47: 0
B48: Sub1 | C48: Markup on Subcontractors/Third-Parties (Percentage) | D48: 0
B50: * Landscape Maintenance varies by location on the number of weeks per year it can be preformed. For the purpose of the RFP, all facilities are pre-established at 40 weeks of service. The actual amount paid by facility will be based upon the actual weeks that service has been performed, validated and invoiced.

Sheet 01-D1
B1: JCC ID | C1: Facility Name | D1: Address | F1: City / Town | H1: Zip Code | J1: County | L1: Region | N1: RFP | P1: Proposer
B2: 01-D1 | C2: =IFERROR(VLOOKUP($B$2,'Equipment List Template'!$1:$1048576,2,FALSE),"") -> Hayward Hall of Justice | D2: =IFERROR(VLOOKUP($B$2,'Equipment List Template'!$1:$1048576,3,FALSE),"") -> 24405 Amador St. | F2: =IFERROR(VLOOKUP($B$2,'Equipment List Template'!$1:$1048576,4,FALSE),"") -> Hayward | H2: =IFERROR(VLOOKUP($B$2,'Equipment List Template'!$1:$1048576,5,FALSE),"") -> 94544 | J2: =IFERROR(VLOOKUP($B$2,'Equipment List Template'!$1:$1048576,6,FALSE),"") -> Alameda | L2: =IFERROR(VLOOKUP($B$2,'Equipment List Template'!$1:$1048576,7,FALSE),"") -> BANCRO | N2: ='Summary Pricing Sheet'!B2 -> RFP-FS-SP-2019-03-JP | P2: ='Summary Pricing Sheet'!B3 -> Firm Name TBD
D3: Daily Activity | G3: Weekly Activity | J3: Monthly Activity | M3: Quarterly Activity | P3: Annual Activity | U3: Summary | AG3: System | AH3: HVAC | AS3: Electrical | BA3: Plumbing | BE3: Building Systems | BP3: Corporate | BT3: Fixed Price - Facility Total Annual Cost Year 1
B4: System ID | C4: Subsystem | D4: Quantity | E4: Cost | F4: Daily Total | G4: Quantity | H4: Cost | I4: Weekly Total | J4: Monthly Quantity | K4: Cost | L4: Monthly Total | M4: Quarterly Quantity | N4: Cost | O4: Quarterly Total | P4: Annual Quantity | Q4: Cost | R4: Annual PM Total | T4: Number of PM's | U4: Annual Cost | V4: Quantity | W4: Total Annual Cost | AG4: Subsystem | AH4: Air Cooled DX (Package / Split System) | AI4: Air Handling Unit (Air-cooled DX) | AJ4: Air-Cooled Chiller | AK4: Centrifugal Chiller | AL4: Cooling Tower (Induced Draft) | AM4: Ice Chiller | AN4: Multitask (Geothermal) | AO4: Water Source Heat Pump | AP4: Fan Coil System | AQ4: Exhaust Fan | AR4: HVAC Unique System | AS4: Electrical Panels | AT4: Emergency Generator | AU4: Motor Control Center | AV4: Primary Switch (High) | AW4: Primary Switch (Low) | AX4: Transformer (Dry-Type) | AY4: Uninterruptible Power Supply (UPS) | AZ4: Electrical Unique System | BA4: Hot Water Boiler | BB4: Condensing Water Heater | BC4: Electric Water Heater | BD4: Plumbing Unique System | BE4: Steam System | BF4: Pneumatic Compressor | BG4: Vertical Transportation | BH4: Life Safety | BI4: Backflow Preventor | BJ4: Rounds and Readings | BK4: Access Doors, Gates, Sally Port | BL4: Water Treatment | BM4: Building Exterior / Hardscape (Monthly) | BN4: Fountain Maintenance (Monthly) | BO4: Fuel Storage Tanks (Quarterly) If applicable | BP4: Landscape Maintenance * | BQ4: Account Management and Supervision (Monthly) | BR4: Fee (Monthly) | BV4: Snow Removal - (crew hourly rate) | BW4: Unclogging Blocked Toilet - In-custody holding cell (labor) | BX4: Unclogging Blocked Toilet - Public/Court Staff (labor) | BY4: Hourly Rate | BZ4: Markup on Materials | CA4: Markup on Subcontractors/Third-Parties
A5: =$B$2 -> 01-D1 | B5: A1 | C5: Access Doors, Gates, Sally Port | J5: 11 | K5: 0 | L5: =+K5*J5 -> 0 | M5: 0 | N5: 0 | O5: =+N5*M5 -> 0 | P5: 1 | Q5: 0 | R5: =+Q5*P5 -> 0 | S5: 12 | T5: =IF($V5>0,$S5,0) -> 12 | U5: =+R5+O5+L5+I5+F5 -> 0 | V5: =IFERROR(VLOOKUP($A$5,'Equipment List Template'!$1:$1048576,10,FALSE),"0") -> 1 | W5: =+U5*V5 -> 0 | Z5: JCC ID | AA5: Facility Name | AB5: Address | AC5: City / Town | AD5: County | AE5: Region | AF5: Region | AG5: System ID | AH5: H1 | AI5: H2 | AJ5: H3 | AK5: H4 | AL5: H5 | AM5: H6 | AN5: H7 | AO5: H8 | AP5: H9 | AQ5: H10 | AR5: H11 | AS5: E1 | AT5: E2 | AU5: E3 | AV5: E4 | AW5: E5 | AX5: E6 | AY5: E7 | AZ5: E8 | BA5: P1 | BB5: P2 | BC5: P3 | BD5: P4 | BE5: P5 | BF5: P6 | BG5: V1 | BH5: L1 | BI5: L2 | BJ5: R1 | BK5: A1 | BL5: W1 | BM5: B1 | BN5: F1 | BO5: F2 | BP5: G1 | BQ5: C1 | BR5: C2 | BV5: S1 | BW5: I1 | BX5: I2 | BY5: Hr 1 | BZ5: M1 | CA5: Sub1
A6: =$B$2 -> 01-D1 | B6: H1 | C6: Air Cooled DX (Package / Split System) | J6: 0 | K6: 0 | L6: =+K6*J6 -> 0 | M6: 3 | N6: 0 | O6: =+N6*M6 -> 0 | P6: 1 | Q6: 0 | R6: =+Q6*P6 -> 0 | S6: 4 | T6: =IF($V6>0,$S6,0) -> 4 | U6: =+R6+O6+L6+I6+F6 -> 0 | V6: =IFERROR(VLOOKUP($A$5,'Equipment List Template'!$1:$1048576,11,FALSE),"0") -> 3 | W6: =+U6*V6 -> 0 | Z6: =B2 -> 01-D1 | AA6: =IFERROR(VLOOKUP($Z$6,'Equipment List Template'!$1:$1048576,2,FALSE),"") -> Hayward Hall of Justice | AB6: =IFERROR(VLOOKUP($Z$6,'Equipment List Template'!$1:$1048576,3,FALSE),"") -> 24405 Amador St. | AC6: =IFERROR(VLOOKUP($Z$6,'Equipment List Template'!$1:$1048576,4,FALSE),"") -> Hayward | AD6: =IFERROR(VLOOKUP($Z$6,'Equipment List Template'!$1:$1048576,5,FALSE),"") -> 94544 | AE6: =IFERROR(VLOOKUP($Z$6,'Equipment List Template'!$1:$1048576,6,FALSE),"") -> Alameda | AF6: =IFERROR(VLOOKUP($Z$6,'Equipment List Template'!$1:$1048576,7,FALSE),"") -> BANCRO | AH6: =+$W5 -> 0 | AI6: =+$W6 -> 0 | AJ6: =+$W7 -> 0 | AK6: =+$W8 -> 0 | AL6: =+$W9 -> 0 | AM6: =+$W10 -> 0 | AN6: =+$W11 -> 0 | AO6: =+$W12 -> 0 | AP6: =+$W13 -> 0 | AQ6: =+$W14 -> 0 | AR6: =+$W15 -> 0 | AS6: =+$W16 -> 0 | AT6: =+$W17 -> 0 | AU6: =+$W18 -> 0 | AV6: =+$W19 -> 0 | AW6: =+$W20 -> 0 | AX6: =+$W21 -> 0 | AY6: =+$W22 -> 0 | AZ6: =+$W23 -> 0 | BA6: =+$W24 -> 0 | BB6: =+$W25 -> 0 | BC6: =+$W26 -> 0 | BD6: =+$W27 -> 0 | BE6: =+$W28 -> 0 | BF6: =+$W29 -> 0 | BG6: =+$W30 -> 0 | BH6: =+$W31 -> 0 | BI6: =+$W32 -> 0 | BJ6: =+$W33 -> 0 | BK6: =+$W34 -> 0 | BL6: =+$W35 -> 0 | BM6: =+$W36 -> 0 | BN6: =+$W37 -> 0 | BO6: =+$W38 -> 0 | BP6: =+$W39 -> 0 | BQ6: =+$W40 -> 0 | BR6: =+$W41 -> 0 | BT6: =+W42 -> 0 | BV6: =+D43 -> 0 | BW6: =+D44 -> 0 | BX6: =+D45 -> 0 | BY6: =+D46 -> 0 | BZ6: =+D47 -> 0 | CA6: =+D48 -> 0
A7: 01-D1 | B7: H2 | C7: Air Handling Unit (Air-cooled DX) | J7: 0 | K7: 0 | L7: 0 | M7: 3 | N7: 0 | O7: 0 | P7: 1 | Q7: 0 | R7: 0 | S7: 4 | T7: 0 | U7: 0 | V7: =IFERROR(VLOOKUP($A$5,'Equipment List Template'!$1:$1048576,12,FALSE),"0") -> 0 | W7: =+U7*V7 -> 0
A8: 01-D1 | B8: H3 | C8: Air-Cooled Chiller | G8: 40 | H8: 0 | I8: =+H8*G8 -> 0 | J8: 8 | K8: 0 | L8: 0 | M8: 3 | N8: 0 | O8: 0 | P8: 1 | Q8: 0 | R8: 0 | S8: 12 | T8: 0 | U8: 0 | V8: =IFERROR(VLOOKUP($A$5,'Equipment List Template'!$1:$1048576,13,FALSE),"0") -> 0 | W8: 0
A9: 01-D1 | B9: H4 | C9: Centrifugal Chiller | J9: 11 | K9: 0 | L9: 0 | M9: 0 | N9: 0 | O9: 0 | P9: 1 | Q9: 0 | R9: 0 | S9: 12 | T9: 0 | U9: 0 | V9: =IFERROR(VLOOKUP($A$5,'Equipment List Template'!$1:$1048576,14,FALSE),"0") -> 0 | W9: 0
A10: 01-D1 | B10: H5 | C10: Cooling Tower (Induced Draft) | J10: 8 | K10: 0 | L10: 0 | M10: 3 | N10: 0 | O10: 0 | P10: 1 | Q10: 0 | R10: 0 | S10: 12 | T10: 12 | U10: 0 | V10: =IFERROR(VLOOKUP($A$5,'Equipment List Template'!$1:$1048576,15,FALSE),"0") -> 1 | W10: 0
A11: 01-D1 | B11: H6 | C11: Ice Chiller | J11: 8 | K11: 0 | L11: 0 | M11: 3 | N11: 0 | O11: 0 | P11: 1 | Q11: 0 | R11: 0 | S11: 12 | T11: 0 | U11: 0 | V11: =IFERROR(VLOOKUP($A$5,'Equipment List Template'!$1:$1048576,16,FALSE),"0") -> 0 | W11: 0
A12: 01-D1 | B12: H7 | C12: MultiStack (Geothermal) | J12: 0 | K12: 0 | L12: 0 | M12: 0 | N12: 0 | O12: 0 | P12: 1 | Q12: 0 | R12: 0 | S12: 1 | T12: 0 | U12: 0 | V12: =IFERROR(VLOOKUP($A$5,'Equipment List Template'!$1:$1048576,17,FALSE),"0") -> 0 | W12: 0
A13: 01-D1 | B13: H8 | C13: Water Source Heat Pump | J13: 8 | K13: 0 | L13: 0 | M13: 3 | N13: 0 | O13: 0 | P13: 1 | Q13: 0 | R13: 0 | S13: 12 | T13: 12 | U13: 0 | V13: =IFERROR(VLOOKUP($A$5,'Equipment List Template'!$1:$1048576,18,FALSE),"0") -> 2 | W13: 0
A14: 01-D1 | B14: H9 | C14: Fan Coil System | J14: 0 | K14: 0 | L14: 0 | M14: 3 | N14: 0 | O14: 0 | P14: 1 | Q14: 0 | R14: 0 | S14: 4 | T14: 0 | U14: 0 | V14: =IFERROR(VLOOKUP($A$5,'Equipment List Template'!$1:$1048576,19,FALSE),"0") -> 0 | W14: 0
A15: 01-D1 | B15: H10 | C15: Exhaust Fan | J15: 0 | K15: 0 | L15: 0 | M15: 3 | N15: 0 | O15: 0 | P15: 1 | Q15: 0 | R15: 0 | S15: 4 | T15: 4 | U15: 0 | V15: =IFERROR(VLOOKUP($A$5,'Equipment List Template'!$1:$1048576,20,FALSE),"0") -> 4 | W15: 0
A16: 01-D1 | B16: H11 | C16: HVAC Unique System | J16: 8 | K16: 0 | L16: 0 | M16: 3 | N16: 0 | O16: 0 | P16: 1 | Q16: 0 | R16: 0 | S16: 12 | T16: 0 | U16: 0 | V16: =IFERROR(VLOOKUP($A$5,'Equipment List Template'!$1:$1048576,21,FALSE),"0") -> 0 | W16: 0
A17: 01-D1 | B17: E1 | C17: Electrical Panels | J17: 0 | K17: 0 | L17: 0 | M17: 3 | N17: 0 | O17: 0 | P17: 1 | Q17: 0 | R17: 0 | S17: 4 | T17: 4 | U17: 0 | V17: =IFERROR(VLOOKUP($A$5,'Equipment List Template'!$1:$1048576,22,FALSE),"0") -> 1 | W17: 0
A18: 01-D1 | B18: E2 | C18: Emergency Generator | J18: 0 | K18: 0 | L18: 0 | M18: 3 | N18: 0 | O18: 0 | P18: 1 | Q18: 0 | R18: 0 | S18: 4 | T18: 0 | U18: 0 | V18: =IFERROR(VLOOKUP($A$5,'Equipment List Template'!$1:$1048576,23,FALSE),"0") -> 0 | W18: 0
A19: 01-D1 | B19: E3 | C19: Motor Control Center | J19: 0 | K19: 0 | L19: 0 | M19: 4 | N19: 0 | O19: 0 | P19: 0 | Q19: 0 | R19: 0 | S19: 4 | T19: 0 | U19: 0 | V19: =IFERROR(VLOOKUP($A$5,'Equipment List Template'!$1:$1048576,24,FALSE),"0") -> 0 | W19: 0
A20: 01-D1 | B20: E4 | C20: Primary Switch (High) | J20: 8 | K20: 0 | L20: 0 | M20: 3 | N20: 0 | O20: 0 | P20: 1 | Q20: 0 | R20: 0 | S20: 12 | T20: 12 | U20: 0 | V20: =IFERROR(VLOOKUP($A$5,'Equipment List Template'!$1:$1048576,25,FALSE),"0") -> 1 | W20: 0
A21: 01-D1 | B21: E5 | C21: Primary Switch (Low) | J21: 8 | K21: 0 | L21: 0 | M21: 3 | N21: 0 | O21: 0 | P21: 1 | Q21: 0 | R21: 0 | S21: 12 | T21: 0 | U21: 0 | V21: =IFERROR(VLOOKUP($A$5,'Equipment List Template'!$1:$1048576,26,FALSE),"0") -> 0 | W21: 0
A22: 01-D1 | B22: E6 | C22: Transformer (Dry-Type) | J22: 0 | K22: 0 | L22: 0 | M22: 3 | N22: 0 | O22: 0 | P22: 1 | Q22: 0 | R22: 0 | S22: 4 | T22: 0 | U22: 0 | V22: =IFERROR(VLOOKUP($A$5,'Equipment List Template'!$1:$1048576,27,FALSE),"0") -> 0 | W22: 0
A23: 01-D1 | B23: E7 | C23: Uninterruptible Power Supply (UPS) | J23: 0 | K23: 0 | L23: 0 | M23: 0 | N23: 0 | O23: 0 | P23: 1 | Q23: 0 | R23: 0 | S23: 1 | T23: 0 | U23: 0 | V23: =IFERROR(VLOOKUP($A$5,'Equipment List Template'!$1:$1048576,28,FALSE),"0") -> 0 | W23: 0
A24: 01-D1 | B24: E8 | C24: Electrical Unique System | J24: 8 | K24: 0 | L24: 0 | M24: 3 | N24: 0 | O24: 0 | P24: 1 | Q24: 0 | R24: 0 | S24: 12 | T24: 0 | U24: 0 | V24: =IFERROR(VLOOKUP($A$5,'Equipment List Template'!$1:$1048576,29,FALSE),"0") -> 0 | W24: 0
A25: 01-D1 | B25: L1 | C25: Life Safety | J25: 0 | K25: 0 | L25: 0 | M25: 3 | N25: 0 | O25: 0 | P25: 1 | Q25: 0 | R25: 0 | S25: 4 | T25: 4 | U25: 0 | V25: =IFERROR(VLOOKUP($A$5,'Equipment List Template'!$1:$1048576,30,FALSE),"0") -> 1 | W25: =+U25*V25 -> 0
A26: 01-D1 | B26: L2 | C26: Backflow Preventor(s) | J26: 0 | K26: 0 | L26: 0 | M26: 0 | N26: 0 | O26: 0 | P26: 1 | Q26: 0 | R26: 0 | S26: 1 | T26: 1 | U26: 0 | V26: =IFERROR(VLOOKUP($A$5,'Equipment List Template'!$1:$1048576,31,FALSE),"0") -> 4 | W26: =+U26*V26 -> 0
A27: 01-D1 | B27: P1 | C27: Hot Water Boiler | J27: 8 | K27: 0 | L27: 0 | M27: 3 | N27: 0 | O27: 0 | P27: 1 | Q27: 0 | R27: 0 | S27: 12 | T27: 12 | U27: 0 | V27: =IFERROR(VLOOKUP($A$5,'Equipment List Template'!$1:$1048576,32,FALSE),"0") -> 2 | W27: 0
A28: 01-D1 | B28: P2 | C28: Condensing Water Heater | J28: 0 | K28: 0 | L28: 0 | M28: 0 | N28: 0 | O28: 0 | P28: 1 | Q28: 0 | R28: 0 | S28: 1 | T28: 0 | U28: 0 | V28: =IFERROR(VLOOKUP($A$5,'Equipment List Template'!$1:$1048576,33,FALSE),"0") -> 0 | W28: 0
A29: 01-D1 | B29: P3 | C29: Electric Water Heater | J29: 0 | K29: 0 | L29: 0 | M29: 0 | N29: 0 | O29: 0 | P29: 1 | Q29: 0 | R29: 0 | S29: 1 | T29: 0 | U29: 0 | V29: =IFERROR(VLOOKUP($A$5,'Equipment List Template'!$1:$1048576,34,FALSE),"0") -> 0 | W29: 0
A30: 01-D1 | B30: P4 | C30: Plumbing Unique System | J30: 0 | K30: 0 | L30: 0 | M30: 3 | N30: 0 | O30: 0 | P30: 1 | Q30: 0 | R30: 0 | S30: 4 | T30: 0 | U30: 0 | V30: =IFERROR(VLOOKUP($A$5,'Equipment List Template'!$1:$1048576,35,FALSE),"0") -> 0 | W30: 0
A31: 01-D1 | B31: P5 | C31: Steam System | J31: 0 | K31: 0 | L31: 0 | M31: 3 | N31: 0 | O31: 0 | P31: 1 | Q31: 0 | R31: 0 | S31: 4 | T31: 0 | U31: 0 | V31: =IFERROR(VLOOKUP($A$5,'Equipment List Template'!$1:$1048576,36,FALSE),"0") -> 0 | W31: 0
A32: 01-D1 | B32: P6 | C32: Pneumatic Compressor | J32: 11 | K32: 0 | L32: 0 | M32: 0 | N32: 0 | O32: 0 | P32: 1 | Q32: 0 | R32: 0 | S32: 12 | T32: 12 | U32: 0 | V32: =IFERROR(VLOOKUP($A$5,'Equipment List Template'!$1:$1048576,37,FALSE),"0") -> 3 | W32: 0
A33: 01-D1 | B33: R1 | C33: Rounds and Readings | D33: =IFERROR(IF(VLOOKUP($A33,'Equipment List Template'!$1:$1048576,38,FALSE)=260,248,0),0) -> 248 | E33: 0 | F33: =+E33*D33 -> 0 | G33: =IFERROR(IF(VLOOKUP($A33,'Equipment List Template'!$1:$1048576,38,FALSE)=52,40,0),0) -> 0 | H33: 0 | I33: =+H33*G33 -> 0 | J33: 12 | K33: 0 | L33: 0 | S33: 12 | T33: 12 | U33: =+R33+O33+L33+I33+F33 -> 0 | V33: 1 | W33: =+U33*V33 -> 0
A34: 01-D1 | B34: V1 | C34: Vertical Transportation | J34: 8 | K34: 0 | L34: =+K34*J34 -> 0 | M34: 3 | N34: 0 | O34: =+N34*M34 -> 0 | P34: 1 | Q34: 0 | R34: =+Q34*P34 -> 0 | S34: 12 | T34: 12 | U34: =+R34+O34+L34 -> 0 | V34: =IFERROR(VLOOKUP($A$5,'Equipment List Template'!$1:$1048576,39,FALSE),"0") -> 7 | W34: =+U34*V34 -> 0
A35: 01-D1 | B35: W1 | C35: Water Treatment | D35: =IFERROR(IF(VLOOKUP($A35,'Equipment List Template'!$1:$1048576,40,FALSE)=260,260,0),0) -> 260 | E35: 0 | F35: =+E35*D35 -> 0 | S35: 0 | T35: 0 | U35: =+R35+O35+L35+I35+F35 -> 0 | V35: 1 | W35: 0
A36: 01-D1 | B36: B1 | C36: Building Exterior / Hardscape (Monthly) | J36: 12 | K36: 0 | L36: =+K36*J36 -> 0 | S36: 12 | T36: 12 | U36: 0 | V36: 1 | W36: 0
A37: 01-D1 | B37: F1 | C37: Fountain Maintenance (Monthly) | J37: 12 | K37: 0 | L37: 0 | S37: 12 | T37: 12 | U37: 0 | V37: 1 | W37: 0
A38: 01-D1 | B38: F2 | C38: Fuel Storage Tanks (Quarterly) If applicable | M38: 4 | N38: 0 | O38: =+N38*M38 -> 0 | S38: 4 | T38: 4 | U38: 0 | V38: 1 | W38: 0
A39: 01-D1 | B39: G1 | C39: Landscape Maintenance * | G39: 40 | H39: 0 | I39: =+H39*G39 -> 0 | S39: 0 | T39: 0 | U39: 0 | V39: 1 | W39: 0
A40: 01-D1 | B40: C1 | C40: Account Management and Supervision (Monthly) | J40: 12 | K40: 0 | L40: =+K40*J40 -> 0 | S40: 12 | T40: 12 | U40: 0 | V40: 1 | W40: 0
A41: 01-D1 | B41: C2 | C41: Fee (Monthly) | J41: 12 | K41: 0 | L41: 0 | S41: 12 | T41: 12 | U41: 0 | V41: 1 | W41: 0
Q42: JCC ID | R42: =B2 -> 01-D1 | U42: Total | W42: =SUM(W6:W41) -> 0
B43: S1 | C43: Snow Removal - (crew hourly rate) | D43: 0 | U43: Total # of PM's | W43: =SUM(T5:T41) -> 165
B44: I1 | C44: Unclogging Blocked Toilet - In-custody cell (labor-only) | D44: 0
B45: I2 | C45: Unclogging Blocked Toilet - Public/Court Staff (labor-only) | D45: 0
B46: Hr 1 | C46: Hourly Rate (All Labor categories) | D46: 0
B47: M1 | C47: Markup on Materials (Percentage) | D47: 0
B48: Sub1 | C48: Markup on Subcontractors/Third-Parties (Percentage) | D48: 0
B50: * Landscape Maintenance varies by location on the number of weeks per year it can be preformed. For the purpose of the RFP, all facilities are pre-established at 40 weeks of service. The actual amount paid by facility will be based upon the actual weeks that service has been performed, validated and invoiced.

Sheet 01-F1
B1: JCC ID | C1: Facility Name | D1: Address | F1: City / Town | H1: Zip Code | J1: County | L1: Region | N1: RFP | P1: Proposer
B2: 01-F1 | C2: =IFERROR(VLOOKUP($B$2,'Equipment List Template'!$1:$1048576,2,FALSE),"") -> George E. McDonald Hall of Justice | D2: =IFERROR(VLOOKUP($B$2,'Equipment List Template'!$1:$1048576,3,FALSE),"") -> 2233 Shoreline Drive | F2: =IFERROR(VLOOKUP($B$2,'Equipment List Template'!$1:$1048576,4,FALSE),"") -> Alameda | H2: =IFERROR(VLOOKUP($B$2,'Equipment List Template'!$1:$1048576,5,FALSE),"") -> 94501 | J2: =IFERROR(VLOOKUP($B$2,'Equipment List Template'!$1:$1048576,6,FALSE),"") -> Alameda | L2: =IFERROR(VLOOKUP($B$2,'Equipment List Template'!$1:$1048576,7,FALSE),"") -> BANCRO | N2: ='Summary Pricing Sheet'!B2 -> RFP-FS-SP-2019-03-JP | P2: ='Summary Pricing Sheet'!B3 -> Firm Name TBD
D3: Daily Activity | G3: Weekly Activity | J3: Monthly Activity | M3: Quarterly Activity | P3: Annual Activity | U3: Summary | AG3: System | AH3: HVAC | AS3: Electrical | BA3: Plumbing | BE3: Building Systems | BP3: Corporate | BT3: Fixed Price - Facility Total Annual Cost Year 1
B4: System ID | C4: Subsystem | D4: Quantity | E4: Cost | F4: Daily Total | G4: Quantity | H4: Cost | I4: Weekly Total | J4: Monthly Quantity | K4: Cost | L4: Monthly Total | M4: Quarterly Quantity | N4: Cost | O4: Quarterly Total | P4: Annual Quantity | Q4: Cost | R4: Annual PM Total | T4: Number of PM's | U4: Annual Cost | V4: Quantity | W4: Total Annual Cost | AG4: Subsystem | AH4: Air Cooled DX (Package / Split System) | AI4: Air Handling Unit (Air-cooled DX) | AJ4: Air-Cooled Chiller | AK4: Centrifugal Chiller | AL4: Cooling Tower (Induced Draft) | AM4: Ice Chiller | AN4: Multitask (Geothermal) | AO4: Water Source Heat Pump | AP4: Fan Coil System | AQ4: Exhaust Fan | AR4: HVAC Unique System | AS4: Electrical Panels | AT4: Emergency Generator | AU4: Motor Control Center | AV4: Primary Switch (High) | AW4: Primary Switch (Low) | AX4: Transformer (Dry-Type) | AY4: Uninterruptible Power Supply (UPS) | AZ4: Electrical Unique System | BA4: Hot Water Boiler | BB4: Condensing Water Heater | BC4: Electric Water Heater | BD4: Plumbing Unique System | BE4: Steam System | BF4: Pneumatic Compressor | BG4: Vertical Transportation | BH4: Life Safety | BI4: Backflow Preventor | BJ4: Rounds and Readings | BK4: Access Doors, Gates, Sally Port | BL4: Water Treatment | BM4: Building Exterior / Hardscape (Monthly) | BN4: Fountain Maintenance (Monthly) | BO4: Fuel Storage Tanks (Quarterly) If applicable | BP4: Landscape Maintenance * | BQ4: Account Management and Supervision (Monthly) | BR4: Fee (Monthly) | BV4: Snow Removal - (crew hourly rate) | BW4: Unclogging Blocked Toilet - In-custody holding cell (labor) | BX4: Unclogging Blocked Toilet - Public/Court Staff (labor) | BY4: Hourly Rate | BZ4: Markup on Materials | CA4: Markup on Subcontractors/Third-Parties
A5: =$B$2 -> 01-F1 | B5: A1 | C5: Access Doors, Gates, Sally Port | J5: 11 | K5: 0 | L5: =+K5*J5 -> 0 | M5: 0 | N5: 0 | O5: =+N5*M5 -> 0 | P5: 1 | Q5: 0 | R5: =+Q5*P5 -> 0 | S5: 12 | T5: =IF($V5>0,$S5,0) -> 12 | U5: =+R5+O5+L5+I5+F5 -> 0 | V5: =IFERROR(VLOOKUP($A$5,'Equipment List Template'!$1:$1048576,10,FALSE),"0") -> 1 | W5: =+U5*V5 -> 0 | Z5: JCC ID | AA5: Facility Name | AB5: Address | AC5: City / Town | AD5: County | AE5: Region | AF5: Region | AG5: System ID | AH5: H1 | AI5: H2 | AJ5: H3 | AK5: H4 | AL5: H5 | AM5: H6 | AN5: H7 | AO5: H8 | AP5: H9 | AQ5: H10 | AR5: H11 | AS5: E1 | AT5: E2 | AU5: E3 | AV5: E4 | AW5: E5 | AX5: E6 | AY5: E7 | AZ5: E8 | BA5: P1 | BB5: P2 | BC5: P3 | BD5: P4 | BE5: P5 | BF5: P6 | BG5: V1 | BH5: L1 | BI5: L2 | BJ5: R1 | BK5: A1 | BL5: W1 | BM5: B1 | BN5: F1 | BO5: F2 | BP5: G1 | BQ5: C1 | BR5: C2 | BV5: S1 | BW5: I1 | BX5: I2 | BY5: Hr 1 | BZ5: M1 | CA5: Sub1
A6: =$B$2 -> 01-F1 | B6: H1 | C6: Air Cooled DX (Package / Split System) | J6: 0 | K6: 0 | L6: =+K6*J6 -> 0 | M6: 3 | N6: 0 | O6: =+N6*M6 -> 0 | P6: 1 | Q6: 0 | R6: =+Q6*P6 -> 0 | S6: 4 | T6: =IF($V6>0,$S6,0) -> 0 | U6: =+R6+O6+L6+I6+F6 -> 0 | V6: =IFERROR(VLOOKUP($A$5,'Equipment List Template'!$1:$1048576,11,FALSE),"0") -> 0 | W6: =+U6*V6 -> 0 | Z6: =B2 -> 01-F1 | AA6: =IFERROR(VLOOKUP($Z$6,'Equipment List Template'!$1:$1048576,2,FALSE),"") -> George E. McDonald Hall of Justice | AB6: =IFERROR(VLOOKUP($Z$6,'Equipment List Template'!$1:$1048576,3,FALSE),"") -> 2233 Shoreline Drive | AC6: =IFERROR(VLOOKUP($Z$6,'Equipment List Template'!$1:$1048576,4,FALSE),"") -> Alameda | AD6: =IFERROR(VLOOKUP($Z$6,'Equipment List Template'!$1:$1048576,5,FALSE),"") -> 94501 | AE6: =IFERROR(VLOOKUP($Z$6,'Equipment List Template'!$1:$1048576,6,FALSE),"") -> Alameda | AF6: =IFERROR(VLOOKUP($Z$6,'Equipment List Template'!$1:$1048576,7,FALSE),"") -> BANCRO | AH6: =+$W5 -> 0 | AI6: =+$W6 -> 0 | AJ6: =+$W7 -> 0 | AK6: =+$W8 -> 0 | AL6: =+$W9 -> 0 | AM6: =+$W10 -> 0 | AN6: =+$W11 -> 0 | AO6: =+$W12 -> 0 | AP6: =+$W13 -> 0 | AQ6: =+$W14 -> 0 | AR6: =+$W15 -> 0 | AS6: =+$W16 -> 0 | AT6: =+$W17 -> 0 | AU6: =+$W18 -> 0 | AV6: =+$W19 -> 0 | AW6: =+$W20 -> 0 | AX6: =+$W21 -> 0 | AY6: =+$W22 -> 0 | AZ6: =+$W23 -> 0 | BA6: =+$W24 -> 0 | BB6: =+$W25 -> 0 | BC6: =+$W26 -> 0 | BD6: =+$W27 -> 0 | BE6: =+$W28 -> 0 | BF6: =+$W29 -> 0 | BG6: =+$W30 -> 0 | BH6: =+$W31 -> 0 | BI6: =+$W32 -> 0 | BJ6: =+$W33 -> 0 | BK6: =+$W34 -> 0 | BL6: =+$W35 -> 0 | BM6: =+$W36 -> 0 | BN6: =+$W37 -> 0 | BO6: =+$W38 -> 0 | BP6: =+$W39 -> 0 | BQ6: =+$W40 -> 0 | BR6: =+$W41 -> 0 | BT6: =+W42 -> 0 | BV6: =+D43 -> 0 | BW6: =+D44 -> 0 | BX6: =+D45 -> 0 | BY6: =+D46 -> 0 | BZ6: =+D47 -> 0 | CA6: =+D48 -> 0
A7: 01-F1 | B7: H2 | C7: Air Handling Unit (Air-cooled DX) | J7: 0 | K7: 0 | L7: 0 | M7: 3 | N7: 0 | O7: 0 | P7: 1 | Q7: 0 | R7: 0 | S7: 4 | T7: 4 | U7: 0 | V7: =IFERROR(VLOOKUP($A$5,'Equipment List Template'!$1:$1048576,12,FALSE),"0") -> 1 | W7: =+U7*V7 -> 0
A8: 01-F1 | B8: H3 | C8: Air-Cooled Chiller | G8: 40 | H8: 0 | I8: =+H8*G8 -> 0 | J8: 8 | K8: 0 | L8: 0 | M8: 3 | N8: 0 | O8: 0 | P8: 1 | Q8: 0 | R8: 0 | S8: 12 | T8: 12 | U8: 0 | V8: =IFERROR(VLOOKUP($A$5,'Equipment List Template'!$1:$1048576,13,FALSE),"0") -> 1 | W8: 0
A9: 01-F1 | B9: H4 | C9: Centrifugal Chiller | J9: 11 | K9: 0 | L9: 0 | M9: 0 | N9: 0 | O9: 0 | P9: 1 | Q9: 0 | R9: 0 | S9: 12 | T9: 0 | U9: 0 | V9: =IFERROR(VLOOKUP($A$5,'Equipment List Template'!$1:$1048576,14,FALSE),"0") -> 0 | W9: 0
A10: 01-F1 | B10: H5 | C10: Cooling Tower (Induced Draft) | J10: 8 | K10: 0 | L10: 0 | M10: 3 | N10: 0 | O10: 0 | P10: 1 | Q10: 0 | R10: 0 | S10: 12 | T10: 0 | U10: 0 | V10: =IFERROR(VLOOKUP($A$5,'Equipment List Template'!$1:$1048576,15,FALSE),"0") -> 0 | W10: 0
A11: 01-F1 | B11: H6 | C11: Ice Chiller | J11: 8 | K11: 0 | L11: 0 | M11: 3 | N11: 0 | O11: 0 | P11: 1 | Q11: 0 | R11: 0 | S11: 12 | T11: 0 | U11: 0 | V11: =IFERROR(VLOOKUP($A$5,'Equipment List Template'!$1:$1048576,16,FALSE),"0") -> 0 | W11: 0
A12: 01-F1 | B12: H7 | C12: MultiStack (Geothermal) | J12: 0 | K12: 0 | L12: 0 | M12: 0 | N12: 0 | O12: 0 | P12: 1 | Q12: 0 | R12: 0 | S12: 1 | T12: 0 | U12: 0 | V12: =IFERROR(VLOOKUP($A$5,'Equipment List Template'!$1:$1048576,17,FALSE),"0") -> 0 | W12: 0
A13: 01-F1 | B13: H8 | C13: Water Source Heat Pump | J13: 8 | K13: 0 | L13: 0 | M13: 3 | N13: 0 | O13: 0 | P13: 1 | Q13: 0 | R13: 0 | S13: 12 | T13: 0 | U13: 0 | V13: =IFERROR(VLOOKUP($A$5,'Equipment List Template'!$1:$1048576,18,FALSE),"0") -> 0 | W13: 0
A14: 01-F1 | B14: H9 | C14: Fan Coil System | J14: 0 | K14: 0 | L14: 0 | M14: 3 | N14: 0 | O14: 0 | P14: 1 | Q14: 0 | R14: 0 | S14: 4 | T14: 0 | U14: 0 | V14: =IFERROR(VLOOKUP($A$5,'Equipment List Template'!$1:$1048576,19,FALSE),"0") -> 0 | W14: 0
A15: 01-F1 | B15: H10 | C15: Exhaust Fan | J15: 0 | K15: 0 | L15: 0 | M15: 3 | N15: 0 | O15: 0 | P15: 1 | Q15: 0 | R15: 0 | S15: 4 | T15: 4 | U15: 0 | V15: =IFERROR(VLOOKUP($A$5,'Equipment List Template'!$1:$1048576,20,FALSE),"0") -> 1 | W15: 0
A16: 01-F1 | B16: H11 | C16: HVAC Unique System | J16: 8 | K16: 0 | L16: 0 | M16: 3 | N16: 0 | O16: 0 | P16: 1 | Q16: 0 | R16: 0 | S16: 12 | T16: 0 | U16: 0 | V16: =IFERROR(VLOOKUP($A$5,'Equipment List Template'!$1:$1048576,21,FALSE),"0") -> 0 | W16: 0
A17: 01-F1 | B17: E1 | C17: Electrical Panels | J17: 0 | K17: 0 | L17: 0 | M17: 3 | N17: 0 | O17: 0 | P17: 1 | Q17: 0 | R17: 0 | S17: 4 | T17: 4 | U17: 0 | V17: =IFERROR(VLOOKUP($A$5,'Equipment List Template'!$1:$1048576,22,FALSE),"0") -> 1 | W17: 0
A18: 01-F1 | B18: E2 | C18: Emergency Generator | J18: 0 | K18: 0 | L18: 0 | M18: 3 | N18: 0 | O18: 0 | P18: 1 | Q18: 0 | R18: 0 | S18: 4 | T18: 4 | U18: 0 | V18: =IFERROR(VLOOKUP($A$5,'Equipment List Template'!$1:$1048576,23,FALSE),"0") -> 1 | W18: 0
A19: 01-F1 | B19: E3 | C19: Motor Control Center | J19: 0 | K19: 0 | L19: 0 | M19: 4 | N19: 0 | O19: 0 | P19: 0 | Q19: 0 | R19: 0 | S19: 4 | T19: 0 | U19: 0 | V19: =IFERROR(VLOOKUP($A$5,'Equipment List Template'!$1:$1048576,24,FALSE),"0") -> 0 | W19: 0
A20: 01-F1 | B20: E4 | C20: Primary Switch (High) | J20: 8 | K20: 0 | L20: 0 | M20: 3 | N20: 0 | O20: 0 | P20: 1 | Q20: 0 | R20: 0 | S20: 12 | T20: 12 | U20: 0 | V20: =IFERROR(VLOOKUP($A$5,'Equipment List Template'!$1:$1048576,25,FALSE),"0") -> 1 | W20: 0
A21: 01-F1 | B21: E5 | C21: Primary Switch (Low) | J21: 8 | K21: 0 | L21: 0 | M21: 3 | N21: 0 | O21: 0 | P21: 1 | Q21: 0 | R21: 0 | S21: 12 | T21: 0 | U21: 0 | V21: =IFERROR(VLOOKUP($A$5,'Equipment List Template'!$1:$1048576,26,FALSE),"0") -> 0 | W21: 0
A22: 01-F1 | B22: E6 | C22: Transformer (Dry-Type) | J22: 0 | K22: 0 | L22: 0 | M22: 3 | N22: 0 | O22: 0 | P22: 1 | Q22: 0 | R22: 0 | S22: 4 | T22: 0 | U22: 0 | V22: =IFERROR(VLOOKUP($A$5,'Equipment List Template'!$1:$1048576,27,FALSE),"0") -> 0 | W22: 0
A23: 01-F1 | B23: E7 | C23: Uninterruptible Power Supply (UPS) | J23: 0 | K23: 0 | L23: 0 | M23: 0 | N23: 0 | O23: 0 | P23: 1 | Q23: 0 | R23: 0 | S23: 1 | T23: 0 | U23: 0 | V23: =IFERROR(VLOOKUP($A$5,'Equipment List Template'!$1:$1048576,28,FALSE),"0") -> 0 | W23: 0
A24: 01-F1 | B24: E8 | C24: Electrical Unique System | J24: 8 | K24: 0 | L24: 0 | M24: 3 | N24: 0 | O24: 0 | P24: 1 | Q24: 0 | R24: 0 | S24: 12 | T24: 0 | U24: 0 | V24: =IFERROR(VLOOKUP($A$5,'Equipment List Template'!$1:$1048576,29,FALSE),"0") -> 0 | W24: 0
A25: 01-F1 | B25: L1 | C25: Life Safety | J25: 0 | K25: 0 | L25: 0 | M25: 3 | N25: 0 | O25: 0 | P25: 1 | Q25: 0 | R25: 0 | S25: 4 | T25: 4 | U25: 0 | V25: =IFERROR(VLOOKUP($A$5,'Equipment List Template'!$1:$1048576,30,FALSE),"0") -> 1 | W25: =+U25*V25 -> 0
A26: 01-F1 | B26: L2 | C26: Backflow Preventor(s) | J26: 0 | K26: 0 | L26: 0 | M26: 0 | N26: 0 | O26: 0 | P26: 1 | Q26: 0 | R26: 0 | S26: 1 | T26: 1 | U26: 0 | V26: =IFERROR(VLOOKUP($A$5,'Equipment List Template'!$1:$1048576,31,FALSE),"0") -> 4 | W26: =+U26*V26 -> 0
A27: 01-F1 | B27: P1 | C27: Hot Water Boiler | J27: 8 | K27: 0 | L27: 0 | M27: 3 | N27: 0 | O27: 0 | P27: 1 | Q27: 0 | R27: 0 | S27: 12 | T27: 12 | U27: 0 | V27: =IFERROR(VLOOKUP($A$5,'Equipment List Template'!$1:$1048576,32,FALSE),"0") -> 1 | W27: 0
A28: 01-F1 | B28: P2 | C28: Condensing Water Heater | J28: 0 | K28: 0 | L28: 0 | M28: 0 | N28: 0 | O28: 0 | P28: 1 | Q28: 0 | R28: 0 | S28: 1 | T28: 1 | U28: 0 | V28: =IFERROR(VLOOKUP($A$5,'Equipment List Template'!$1:$1048576,33,FALSE),"0") -> 1 | W28: 0
A29: 01-F1 | B29: P3 | C29: Electric Water Heater | J29: 0 | K29: 0 | L29: 0 | M29: 0 | N29: 0 | O29: 0 | P29: 1 | Q29: 0 | R29: 0 | S29: 1 | T29: 0 | U29: 0 | V29: =IFERROR(VLOOKUP($A$5,'Equipment List Template'!$1:$1048576,34,FALSE),"0") -> 0 | W29: 0
A30: 01-F1 | B30: P4 | C30: Plumbing Unique System | J30: 0 | K30: 0 | L30: 0 | M30: 3 | N30: 0 | O30: 0 | P30: 1 | Q30: 0 | R30: 0 | S30: 4 | T30: 0 | U30: 0 | V30: =IFERROR(VLOOKUP($A$5,'Equipment List Template'!$1:$1048576,35,FALSE),"0") -> 0 | W30: 0
A31: 01-F1 | B31: P5 | C31: Steam System | J31: 0 | K31: 0 | L31: 0 | M31: 3 | N31: 0 | O31: 0 | P31: 1 | Q31: 0 | R31: 0 | S31: 4 | T31: 0 | U31: 0 | V31: =IFERROR(VLOOKUP($A$5,'Equipment List Template'!$1:$1048576,36,FALSE),"0") -> 0 | W31: 0
A32: 01-F1 | B32: P6 | C32: Pneumatic Compressor | J32: 11 | K32: 0 | L32: 0 | M32: 0 | N32: 0 | O32: 0 | P32: 1 | Q32: 0 | R32: 0 | S32: 12 | T32: 0 | U32: 0 | V32: =IFERROR(VLOOKUP($A$5,'Equipment List Template'!$1:$1048576,37,FALSE),"0") -> 0 | W32: 0
A33: 01-F1 | B33: R1 | C33: Rounds and Readings | D33: =IFERROR(IF(VLOOKUP($A33,'Equipment List Template'!$1:$1048576,38,FALSE)=260,248,0),0) -> 0 | E33: 0 | F33: =+E33*D33 -> 0 | G33: =IFERROR(IF(VLOOKUP($A33,'Equipment List Template'!$1:$1048576,38,FALSE)=52,40,0),0) -> 40 | H33: 0 | I33: =+H33*G33 -> 0 | J33: 12 | K33: 0 | L33: 0 | S33: 12 | T33: 12 | U33: =+R33+O33+L33+I33+F33 -> 0 | V33: 1 | W33: =+U33*V33 -> 0
A34: 01-F1 | B34: V1 | C34: Vertical Transportation | J34: 8 | K34: 0 | L34: =+K34*J34 -> 0 | M34: 3 | N34: 0 | O34: =+N34*M34 -> 0 | P34: 1 | Q34: 0 | R34: =+Q34*P34 -> 0 | S34: 12 | T34: 12 | U34: =+R34+O34+L34 -> 0 | V34: =IFERROR(VLOOKUP($A$5,'Equipment List Template'!$1:$1048576,39,FALSE),"0") -> 4 | W34: =+U34*V34 -> 0
A35: 01-F1 | B35: W1 | C35: Water Treatment | D35: =IFERROR(IF(VLOOKUP($A35,'Equipment List Template'!$1:$1048576,40,FALSE)=260,260,0),0) -> 0 | E35: 0 | F35: =+E35*D35 -> 0 | S35: 0 | T35: 0 | U35: =+R35+O35+L35+I35+F35 -> 0 | V35: 1 | W35: 0
A36: 01-F1 | B36: B1 | C36: Building Exterior / Hardscape (Monthly) | J36: 12 | K36: 0 | L36: =+K36*J36 -> 0 | S36: 12 | T36: 12 | U36: 0 | V36: 1 | W36: 0
A37: 01-F1 | B37: F1 | C37: Fountain Maintenance (Monthly) | J37: 12 | K37: 0 | L37: 0 | S37: 12 | T37: 12 | U37: 0 | V37: 1 | W37: 0
A38: 01-F1 | B38: F2 | C38: Fuel Storage Tanks (Quarterly) If applicable | M38: 4 | N38: 0 | O38: =+N38*M38 -> 0 | S38: 4 | T38: 4 | U38: 0 | V38: 1 | W38: 0
A39: 01-F1 | B39: G1 | C39: Landscape Maintenance * | G39: 40 | H39: 0 | I39: =+H39*G39 -> 0 | S39: 0 | T39: 0 | U39: 0 | V39: 1 | W39: 0
A40: 01-F1 | B40: C1 | C40: Account Management and Supervision (Monthly) | J40: 12 | K40: 0 | L40: =+K40*J40 -> 0 | S40: 12 | T40: 12 | U40: 0 | V40: 1 | W40: 0
A41: 01-F1 | B41: C2 | C41: Fee (Monthly) | J41: 12 | K41: 0 | L41: 0 | S41: 12 | T41: 12 | U41: 0 | V41: 1 | W41: 0
Q42: JCC ID | R42: =B2 -> 01-F1 | U42: Total | W42: =SUM(W6:W41) -> 0
B43: S1 | C43: Snow Removal - (crew hourly rate) | D43: 0 | U43: Total # of PM's | W43: =SUM(T5:T41) -> 146
B44: I1 | C44: Unclogging Blocked Toilet - In-custody cell (labor-only) | D44: 0
B45: I2 | C45: Unclogging Blocked Toilet - Public/Court Staff (labor-only) | D45: 0
B46: Hr 1 | C46: Hourly Rate (All Labor categories) | D46: 0
B47: M1 | C47: Markup on Materials (Percentage) | D47: 0
B48: Sub1 | C48: Markup on Subcontractors/Third-Parties (Percentage) | D48: 0
B50: * Landscape Maintenance varies by location on the number of weeks per year it can be preformed. For the purpose of the RFP, all facilities are pre-established at 40 weeks of service. The actual amount paid by facility will be based upon the actual weeks that service has been performed, validated and invoiced.

Sheet 01-G1
B1: JCC ID | C1: Facility Name | D1: Address | F1: City / Town | H1: Zip Code | J1: County | L1: Region | N1: RFP | P1: Proposer
B2: 01-G1 | C2: =IFERROR(VLOOKUP($B$2,'Equipment List Template'!$1:$1048576,2,FALSE),"") -> Berkeley Courthouse | D2: =IFERROR(VLOOKUP($B$2,'Equipment List Template'!$1:$1048576,3,FALSE),"") -> 2120 Martin Luther King, Jr. Way | F2: =IFERROR(VLOOKUP($B$2,'Equipment List Template'!$1:$1048576,4,FALSE),"") -> Berkeley | H2: =IFERROR(VLOOKUP($B$2,'Equipment List Template'!$1:$1048576,5,FALSE),"") -> 94704 | J2: =IFERROR(VLOOKUP($B$2,'Equipment List Template'!$1:$1048576,6,FALSE),"") -> Alameda | L2: =IFERROR(VLOOKUP($B$2,'Equipment List Template'!$1:$1048576,7,FALSE),"") -> BANCRO | N2: ='Summary Pricing Sheet'!B2 -> RFP-FS-SP-2019-03-JP | P2: ='Summary Pricing Sheet'!B3 -> Firm Name TBD
D3: Daily Activity | G3: Weekly Activity | J3: Monthly Activity | M3: Quarterly Activity | P3: Annual Activity | U3: Summary | AG3: System | AH3: HVAC | AS3: Electrical | BA3: Plumbing | BE3: Building Systems | BP3: Corporate | BT3: Fixed Price - Facility Total Annual Cost Year 1
B4: System ID | C4: Subsystem | D4: Quantity | E4: Cost | F4: Daily Total | G4: Quantity | H4: Cost | I4: Weekly Total | J4: Monthly Quantity | K4: Cost | L4: Monthly Total | M4: Quarterly Quantity | N4: Cost | O4: Quarterly Total | P4: Annual Quantity | Q4: Cost | R4: Annual PM Total | T4: Number of PM's | U4: Annual Cost | V4: Quantity | W4: Total Annual Cost | AG4: Subsystem | AH4: Air Cooled DX (Package / Split System) | AI4: Air Handling Unit (Air-cooled DX) | AJ4: Air-Cooled Chiller | AK4: Centrifugal Chiller | AL4: Cooling Tower (Induced Draft) | AM4: Ice Chiller | AN4: Multitask (Geothermal) | AO4: Water Source Heat Pump | AP4: Fan Coil System | AQ4: Exhaust Fan | AR4: HVAC Unique System | AS4: Electrical Panels | AT4: Emergency Generator | AU4: Motor Control Center | AV4: Primary Switch (High) | AW4: Primary Switch (Low) | AX4: Transformer (Dry-Type) | AY4: Uninterruptible Power Supply (UPS) | AZ4: Electrical Unique System | BA4: Hot Water Boiler | BB4: Condensing Water Heater | BC4: Electric Water Heater | BD4: Plumbing Unique System | BE4: Steam System | BF4: Pneumatic Compressor | BG4: Vertical Transportation | BH4: Life Safety | BI4: Backflow Preventor | BJ4: Rounds and Readings | BK4: Access Doors, Gates, Sally Port | BL4: Water Treatment | BM4: Building Exterior / Hardscape (Monthly) | BN4: Fountain Maintenance (Monthly) | BO4: Fuel Storage Tanks (Quarterly) If applicable | BP4: Landscape Maintenance * | BQ4: Account Management and Supervision (Monthly) | BR4: Fee (Monthly) | BV4: Snow Removal - (crew hourly rate) | BW4: Unclogging Blocked Toilet - In-custody holding cell (labor) | BX4: Unclogging Blocked Toilet - Public/Court Staff (labor) | BY4: Hourly Rate | BZ4: Markup on Materials | CA4: Markup on Subcontractors/Third-Parties
A5: =$B$2 -> 01-G1 | B5: A1 | C5: Access Doors, Gates, Sally Port | J5: 11 | K5: 0 | L5: =+K5*J5 -> 0 | M5: 0 | N5: 0 | O5: =+N5*M5 -> 0 | P5: 1 | Q5: 0 | R5: =+Q5*P5 -> 0 | S5: 12 | T5: =IF($V5>0,$S5,0) -> 12 | U5: =+R5+O5+L5+I5+F5 -> 0 | V5: =IFERROR(VLOOKUP($A$5,'Equipment List Template'!$1:$1048576,10,FALSE),"0") -> 1 | W5: =+U5*V5 -> 0 | Z5: JCC ID | AA5: Facility Name | AB5: Address | AC5: City / Town | AD5: County | AE5: Region | AF5: Region | AG5: System ID | AH5: H1 | AI5: H2 | AJ5: H3 | AK5: H4 | AL5: H5 | AM5: H6 | AN5: H7 | AO5: H8 | AP5: H9 | AQ5: H10 | AR5: H11 | AS5: E1 | AT5: E2 | AU5: E3 | AV5: E4 | AW5: E5 | AX5: E6 | AY5: E7 | AZ5: E8 | BA5: P1 | BB5: P2 | BC5: P3 | BD5: P4 | BE5: P5 | BF5: P6 | BG5: V1 | BH5: L1 | BI5: L2 | BJ5: R1 | BK5: A1 | BL5: W1 | BM5: B1 | BN5: F1 | BO5: F2 | BP5: G1 | BQ5: C1 | BR5: C2 | BV5: S1 | BW5: I1 | BX5: I2 | BY5: Hr 1 | BZ5: M1 | CA5: Sub1
A6: =$B$2 -> 01-G1 | B6: H1 | C6: Air Cooled DX (Package / Split System) | J6: 0 | K6: 0 | L6: =+K6*J6 -> 0 | M6: 3 | N6: 0 | O6: =+N6*M6 -> 0 | P6: 1 | Q6: 0 | R6: =+Q6*P6 -> 0 | S6: 4 | T6: =IF($V6>0,$S6,0) -> 4 | U6: =+R6+O6+L6+I6+F6 -> 0 | V6: =IFERROR(VLOOKUP($A$5,'Equipment List Template'!$1:$1048576,11,FALSE),"0") -> 1 | W6: =+U6*V6 -> 0 | Z6: =B2 -> 01-G1 | AA6: =IFERROR(VLOOKUP($Z$6,'Equipment List Template'!$1:$1048576,2,FALSE),"") -> Berkeley Courthouse | AB6: =IFERROR(VLOOKUP($Z$6,'Equipment List Template'!$1:$1048576,3,FALSE),"") -> 2120 Martin Luther King, Jr. Way | AC6: =IFERROR(VLOOKUP($Z$6,'Equipment List Template'!$1:$1048576,4,FALSE),"") -> Berkeley | AD6: =IFERROR(VLOOKUP($Z$6,'Equipment List Template'!$1:$1048576,5,FALSE),"") -> 94704 | AE6: =IFERROR(VLOOKUP($Z$6,'Equipment List Template'!$1:$1048576,6,FALSE),"") -> Alameda | AF6: =IFERROR(VLOOKUP($Z$6,'Equipment List Template'!$1:$1048576,7,FALSE),"") -> BANCRO | AH6: =+$W5 -> 0 | AI6: =+$W6 -> 0 | AJ6: =+$W7 -> 0 | AK6: =+$W8 -> 0 | AL6: =+$W9 -> 0 | AM6: =+$W10 -> 0 | AN6: =+$W11 -> 0 | AO6: =+$W12 -> 0 | AP6: =+$W13 -> 0 | AQ6: =+$W14 -> 0 | AR6: =+$W15 -> 0 | AS6: =+$W16 -> 0 | AT6: =+$W17 -> 0 | AU6: =+$W18 -> 0 | AV6: =+$W19 -> 0 | AW6: =+$W20 -> 0 | AX6: =+$W21 -> 0 | AY6: =+$W22 -> 0 | AZ6: =+$W23 -> 0 | BA6: =+$W24 -> 0 | BB6: =+$W25 -> 0 | BC6: =+$W26 -> 0 | BD6: =+$W27 -> 0 | BE6: =+$W28 -> 0 | BF6: =+$W29 -> 0 | BG6: =+$W30 -> 0 | BH6: =+$W31 -> 0 | BI6: =+$W32 -> 0 | BJ6: =+$W33 -> 0 | BK6: =+$W34 -> 0 | BL6: =+$W35 -> 0 | BM6: =+$W36 -> 0 | BN6: =+$W37 -> 0 | BO6: =+$W38 -> 0 | BP6: =+$W39 -> 0 | BQ6: =+$W40 -> 0 | BR6: =+$W41 -> 0 | BT6: =+W42 -> 0 | BV6: =+D43 -> 0 | BW6: =+D44 -> 0 | BX6: =+D45 -> 0 | BY6: =+D46 -> 0 | BZ6: =+D47 -> 0 | CA6: =+D48 -> 0
A7: 01-G1 | B7: H2 | C7: Air Handling Unit (Air-cooled DX) | J7: 0 | K7: 0 | L7: 0 | M7: 3 | N7: 0 | O7: 0 | P7: 1 | Q7: 0 | R7: 0 | S7: 4 | T7: 4 | U7: 0 | V7: =IFERROR(VLOOKUP($A$5,'Equipment List Template'!$1:$1048576,12,FALSE),"0") -> 2 | W7: =+U7*V7 -> 0
A8: 01-G1 | B8: H3 | C8: Air-Cooled Chiller | G8: 40 | H8: 0 | I8: =+H8*G8 -> 0 | J8: 8 | K8: 0 | L8: 0 | M8: 3 | N8: 0 | O8: 0 | P8: 1 | Q8: 0 | R8: 0 | S8: 12 | T8: 0 | U8: 0 | V8: =IFERROR(VLOOKUP($A$5,'Equipment List Template'!$1:$1048576,13,FALSE),"0") -> 0 | W8: 0
A9: 01-G1 | B9: H4 | C9: Centrifugal Chiller | J9: 11 | K9: 0 | L9: 0 | M9: 0 | N9: 0 | O9: 0 | P9: 1 | Q9: 0 | R9: 0 | S9: 12 | T9: 0 | U9: 0 | V9: =IFERROR(VLOOKUP($A$5,'Equipment List Template'!$1:$1048576,14,FALSE),"0") -> 0 | W9: 0
A10: 01-G1 | B10: H5 | C10: Cooling Tower (Induced Draft) | J10: 8 | K10: 0 | L10: 0 | M10: 3 | N10: 0 | O10: 0 | P10: 1 | Q10: 0 | R10: 0 | S10: 12 | T10: 0 | U10: 0 | V10: =IFERROR(VLOOKUP($A$5,'Equipment List Template'!$1:$1048576,15,FALSE),"0") -> 0 | W10: 0
A11: 01-G1 | B11: H6 | C11: Ice Chiller | J11: 8 | K11: 0 | L11: 0 | M11: 3 | N11: 0 | O11: 0 | P11: 1 | Q11: 0 | R11: 0 | S11: 12 | T11: 0 | U11: 0 | V11: =IFERROR(VLOOKUP($A$5,'Equipment List Template'!$1:$1048576,16,FALSE),"0") -> 0 | W11: 0
A12: 01-G1 | B12: H7 | C12: MultiStack (Geothermal) | J12: 0 | K12: 0 | L12: 0 | M12: 0 | N12: 0 | O12: 0 | P12: 1 | Q12: 0 | R12: 0 | S12: 1 | T12: 0 | U12: 0 | V12: =IFERROR(VLOOKUP($A$5,'Equipment List Template'!$1:$1048576,17,FALSE),"0") -> 0 | W12: 0
A13: 01-G1 | B13: H8 | C13: Water Source Heat Pump | J13: 8 | K13: 0 | L13: 0 | M13: 3 | N13: 0 | O13: 0 | P13: 1 | Q13: 0 | R13: 0 | S13: 12 | T13: 0 | U13: 0 | V13: =IFERROR(VLOOKUP($A$5,'Equipment List Template'!$1:$1048576,18,FALSE),"0") -> 0 | W13: 0
A14: 01-G1 | B14: H9 | C14: Fan Coil System | J14: 0 | K14: 0 | L14: 0 | M14: 3 | N14: 0 | O14: 0 | P14: 1 | Q14: 0 | R14: 0 | S14: 4 | T14: 0 | U14: 0 | V14: =IFERROR(VLOOKUP($A$5,'Equipment List Template'!$1:$1048576,19,FALSE),"0") -> 0 | W14: 0
A15: 01-G1 | B15: H10 | C15: Exhaust Fan | J15: 0 | K15: 0 | L15: 0 | M15: 3 | N15: 0 | O15: 0 | P15: 1 | Q15: 0 | R15: 0 | S15: 4 | T15: 4 | U15: 0 | V15: =IFERROR(VLOOKUP($A$5,'Equipment List Template'!$1:$1048576,20,FALSE),"0") -> 9 | W15: 0
A16: 01-G1 | B16: H11 | C16: HVAC Unique System | J16: 8 | K16: 0 | L16: 0 | M16: 3 | N16: 0 | O16: 0 | P16: 1 | Q16: 0 | R16: 0 | S16: 12 | T16: 0 | U16: 0 | V16: =IFERROR(VLOOKUP($A$5,'Equipment List Template'!$1:$1048576,21,FALSE),"0") -> 0 | W16: 0
A17: 01-G1 | B17: E1 | C17: Electrical Panels | J17: 0 | K17: 0 | L17: 0 | M17: 3 | N17: 0 | O17: 0 | P17: 1 | Q17: 0 | R17: 0 | S17: 4 | T17: 0 | U17: 0 | V17: =IFERROR(VLOOKUP($A$5,'Equipment List Template'!$1:$1048576,22,FALSE),"0") -> 0 | W17: 0
A18: 01-G1 | B18: E2 | C18: Emergency Generator | J18: 0 | K18: 0 | L18: 0 | M18: 3 | N18: 0 | O18: 0 | P18: 1 | Q18: 0 | R18: 0 | S18: 4 | T18: 0 | U18: 0 | V18: =IFERROR(VLOOKUP($A$5,'Equipment List Template'!$1:$1048576,23,FALSE),"0") -> 0 | W18: 0
A19: 01-G1 | B19: E3 | C19: Motor Control Center | J19: 0 | K19: 0 | L19: 0 | M19: 4 | N19: 0 | O19: 0 | P19: 0 | Q19: 0 | R19: 0 | S19: 4 | T19: 0 | U19: 0 | V19: =IFERROR(VLOOKUP($A$5,'Equipment List Template'!$1:$1048576,24,FALSE),"0") -> 0 | W19: 0
A20: 01-G1 | B20: E4 | C20: Primary Switch (High) | J20: 8 | K20: 0 | L20: 0 | M20: 3 | N20: 0 | O20: 0 | P20: 1 | Q20: 0 | R20: 0 | S20: 12 | T20: 12 | U20: 0 | V20: =IFERROR(VLOOKUP($A$5,'Equipment List Template'!$1:$1048576,25,FALSE),"0") -> 1 | W20: 0
A21: 01-G1 | B21: E5 | C21: Primary Switch (Low) | J21: 8 | K21: 0 | L21: 0 | M21: 3 | N21: 0 | O21: 0 | P21: 1 | Q21: 0 | R21: 0 | S21: 12 | T21: 0 | U21: 0 | V21: =IFERROR(VLOOKUP($A$5,'Equipment List Template'!$1:$1048576,26,FALSE),"0") -> 0 | W21: 0
A22: 01-G1 | B22: E6 | C22: Transformer (Dry-Type) | J22: 0 | K22: 0 | L22: 0 | M22: 3 | N22: 0 | O22: 0 | P22: 1 | Q22: 0 | R22: 0 | S22: 4 | T22: 0 | U22: 0 | V22: =IFERROR(VLOOKUP($A$5,'Equipment List Template'!$1:$1048576,27,FALSE),"0") -> 0 | W22: 0
A23: 01-G1 | B23: E7 | C23: Uninterruptible Power Supply (UPS) | J23: 0 | K23: 0 | L23: 0 | M23: 0 | N23: 0 | O23: 0 | P23: 1 | Q23: 0 | R23: 0 | S23: 1 | T23: 0 | U23: 0 | V23: =IFERROR(VLOOKUP($A$5,'Equipment List Template'!$1:$1048576,28,FALSE),"0") -> 0 | W23: 0
A24: 01-G1 | B24: E8 | C24: Electrical Unique System | J24: 8 | K24: 0 | L24: 0 | M24: 3 | N24: 0 | O24: 0 | P24: 1 | Q24: 0 | R24: 0 | S24: 12 | T24: 0 | U24: 0 | V24: =IFERROR(VLOOKUP($A$5,'Equipment List Template'!$1:$1048576,29,FALSE),"0") -> 0 | W24: 0
A25: 01-G1 | B25: L1 | C25: Life Safety | J25: 0 | K25: 0 | L25: 0 | M25: 3 | N25: 0 | O25: 0 | P25: 1 | Q25: 0 | R25: 0 | S25: 4 | T25: 4 | U25: 0 | V25: =IFERROR(VLOOKUP($A$5,'Equipment List Template'!$1:$1048576,30,FALSE),"0") -> 1 | W25: =+U25*V25 -> 0
A26: 01-G1 | B26: L2 | C26: Backflow Preventor(s) | J26: 0 | K26: 0 | L26: 0 | M26: 0 | N26: 0 | O26: 0 | P26: 1 | Q26: 0 | R26: 0 | S26: 1 | T26: 1 | U26: 0 | V26: =IFERROR(VLOOKUP($A$5,'Equipment List Template'!$1:$1048576,31,FALSE),"0") -> 4 | W26: =+U26*V26 -> 0
A27: 01-G1 | B27: P1 | C27: Hot Water Boiler | J27: 8 | K27: 0 | L27: 0 | M27: 3 | N27: 0 | O27: 0 | P27: 1 | Q27: 0 | R27: 0 | S27: 12 | T27: 12 | U27: 0 | V27: =IFERROR(VLOOKUP($A$5,'Equipment List Template'!$1:$1048576,32,FALSE),"0") -> 1 | W27: 0
A28: 01-G1 | B28: P2 | C28: Condensing Water Heater | J28: 0 | K28: 0 | L28: 0 | M28: 0 | N28: 0 | O28: 0 | P28: 1 | Q28: 0 | R28: 0 | S28: 1 | T28: 1 | U28: 0 | V28: =IFERROR(VLOOKUP($A$5,'Equipment List Template'!$1:$1048576,33,FALSE),"0") -> 1 | W28: 0
A29: 01-G1 | B29: P3 | C29: Electric Water Heater | J29: 0 | K29: 0 | L29: 0 | M29: 0 | N29: 0 | O29: 0 | P29: 1 | Q29: 0 | R29: 0 | S29: 1 | T29: 0 | U29: 0 | V29: =IFERROR(VLOOKUP($A$5,'Equipment List Template'!$1:$1048576,34,FALSE),"0") -> 0 | W29: 0
A30: 01-G1 | B30: P4 | C30: Plumbing Unique System | J30: 0 | K30: 0 | L30: 0 | M30: 3 | N30: 0 | O30: 0 | P30: 1 | Q30: 0 | R30: 0 | S30: 4 | T30: 0 | U30: 0 | V30: =IFERROR(VLOOKUP($A$5,'Equipment List Template'!$1:$1048576,35,FALSE),"0") -> 0 | W30: 0
A31: 01-G1 | B31: P5 | C31: Steam System | J31: 0 | K31: 0 | L31: 0 | M31: 3 | N31: 0 | O31: 0 | P31: 1 | Q31: 0 | R31: 0 | S31: 4 | T31: 0 | U31: 0 | V31: =IFERROR(VLOOKUP($A$5,'Equipment List Template'!$1:$1048576,36,FALSE),"0") -> 0 | W31: 0
A32: 01-G1 | B32: P6 | C32: Pneumatic Compressor | J32: 11 | K32: 0 | L32: 0 | M32: 0 | N32: 0 | O32: 0 | P32: 1 | Q32: 0 | R32: 0 | S32: 12 | T32: 0 | U32: 0 | V32: =IFERROR(VLOOKUP($A$5,'Equipment List Template'!$1:$1048576,37,FALSE),"0") -> 0 | W32: 0
A33: 01-G1 | B33: R1 | C33: Rounds and Readings | D33: =IFERROR(IF(VLOOKUP($A33,'Equipment List Template'!$1:$1048576,38,FALSE)=260,248,0),0) -> 0 | E33: 0 | F33: =+E33*D33 -> 0 | G33: =IFERROR(IF(VLOOKUP($A33,'Equipment List Template'!$1:$1048576,38,FALSE)=52,40,0),0) -> 40 | H33: 0 | I33: =+H33*G33 -> 0 | J33: 12 | K33: 0 | L33: 0 | S33: 12 | T33: 12 | U33: =+R33+O33+L33+I33+F33 -> 0 | V33: 1 | W33: =+U33*V33 -> 0
A34: 01-G1 | B34: V1 | C34: Vertical Transportation | J34: 8 | K34: 0 | L34: =+K34*J34 -> 0 | M34: 3 | N34: 0 | O34: =+N34*M34 -> 0 | P34: 1 | Q34: 0 | R34: =+Q34*P34 -> 0 | S34: 12 | T34: 12 | U34: =+R34+O34+L34 -> 0 | V34: =IFERROR(VLOOKUP($A$5,'Equipment List Template'!$1:$1048576,39,FALSE),"0") -> 3 | W34: =+U34*V34 -> 0
A35: 01-G1 | B35: W1 | C35: Water Treatment | D35: =IFERROR(IF(VLOOKUP($A35,'Equipment List Template'!$1:$1048576,40,FALSE)=260,260,0),0) -> 0 | E35: 0 | F35: =+E35*D35 -> 0 | S35: 0 | T35: 0 | U35: =+R35+O35+L35+I35+F35 -> 0 | V35: 1 | W35: 0
A36: 01-G1 | B36: B1 | C36: Building Exterior / Hardscape (Monthly) | J36: 12 | K36: 0 | L36: =+K36*J36 -> 0 | S36: 12 | T36: 12 | U36: 0 | V36: 1 | W36: 0
A37: 01-G1 | B37: F1 | C37: Fountain Maintenance (Monthly) | J37: 12 | K37: 0 | L37: 0 | S37: 12 | T37: 12 | U37: 0 | V37: 1 | W37: 0
A38: 01-G1 | B38: F2 | C38: Fuel Storage Tanks (Quarterly) If applicable | M38: 4 | N38: 0 | O38: =+N38*M38 -> 0 | S38: 4 | T38: 4 | U38: 0 | V38: 1 | W38: 0
A39: 01-G1 | B39: G1 | C39: Landscape Maintenance * | G39: 40 | H39: 0 | I39: =+H39*G39 -> 0 | S39: 0 | T39: 0 | U39: 0 | V39: 1 | W39: 0
A40: 01-G1 | B40: C1 | C40: Account Management and Supervision (Monthly) | J40: 12 | K40: 0 | L40: =+K40*J40 -> 0 | S40: 12 | T40: 12 | U40: 0 | V40: 1 | W40: 0
A41: 01-G1 | B41: C2 | C41: Fee (Monthly) | J41: 12 | K41: 0 | L41: 0 | S41: 12 | T41: 12 | U41: 0 | V41: 1 | W41: 0
Q42: JCC ID | R42: =B2 -> 01-G1 | U42: Total | W42: =SUM(W6:W41) -> 0
B43: S1 | C43: Snow Removal - (crew hourly rate) | D43: 0 | U43: Total # of PM's | W43: =SUM(T5:T41) -> 130
B44: I1 | C44: Unclogging Blocked Toilet - In-custody cell (labor-only) | D44: 0
B45: I2 | C45: Unclogging Blocked Toilet - Public/Court Staff (labor-only) | D45: 0
B46: Hr 1 | C46: Hourly Rate (All Labor categories) | D46: 0
B47: M1 | C47: Markup on Materials (Percentage) | D47: 0
B48: Sub1 | C48: Markup on Subcontractors/Third-Parties (Percentage) | D48: 0
B50: * Landscape Maintenance varies by location on the number of weeks per year it can be preformed. For the purpose of the RFP, all facilities are pre-established at 40 weeks of service. The actual amount paid by facility will be based upon the actual weeks that service has been performed, validated and invoiced.

Sheet 01-H1
B1: JCC ID | C1: Facility Name | D1: Address | F1: City / Town | H1: Zip Code | J1: County | L1: Region | N1: RFP | P1: Proposer
B2: 01-H1 | C2: =IFERROR(VLOOKUP($B$2,'Equipment List Template'!$1:$1048576,2,FALSE),"") -> Fremont Hall of Justice | D2: =IFERROR(VLOOKUP($B$2,'Equipment List Template'!$1:$1048576,3,FALSE),"") -> 39439 Paseo Padre Pkwy. | F2: =IFERROR(VLOOKUP($B$2,'Equipment List Template'!$1:$1048576,4,FALSE),"") -> Fremont | H2: =IFERROR(VLOOKUP($B$2,'Equipment List Template'!$1:$1048576,5,FALSE),"") -> 94538 | J2: =IFERROR(VLOOKUP($B$2,'Equipment List Template'!$1:$1048576,6,FALSE),"") -> Alameda | L2: =IFERROR(VLOOKUP($B$2,'Equipment List Template'!$1:$1048576,7,FALSE),"") -> BANCRO | N2: ='Summary Pricing Sheet'!B2 -> RFP-FS-SP-2019-03-JP | P2: ='Summary Pricing Sheet'!B3 -> Firm Name TBD
D3: Daily Activity | G3: Weekly Activity | J3: Monthly Activity | M3: Quarterly Activity | P3: Annual Activity | U3: Summary | AG3: System | AH3: HVAC | AS3: Electrical | BA3: Plumbing | BE3: Building Systems | BP3: Corporate | BT3: Fixed Price - Facility Total Annual Cost Year 1
B4: System ID | C4: Subsystem | D4: Quantity | E4: Cost | F4: Daily Total | G4: Quantity | H4: Cost | I4: Weekly Total | J4: Monthly Quantity | K4: Cost | L4: Monthly Total | M4: Quarterly Quantity | N4: Cost | O4: Quarterly Total | P4: Annual Quantity | Q4: Cost | R4: Annual PM Total | T4: Number of PM's | U4: Annual Cost | V4: Quantity | W4: Total Annual Cost | AG4: Subsystem | AH4: Air Cooled DX (Package / Split System) | AI4: Air Handling Unit (Air-cooled DX) | AJ4: Air-Cooled Chiller | AK4: Centrifugal Chiller | AL4: Cooling Tower (Induced Draft) | AM4: Ice Chiller | AN4: Multitask (Geothermal) | AO4: Water Source Heat Pump | AP4: Fan Coil System | AQ4: Exhaust Fan | AR4: HVAC Unique System | AS4: Electrical Panels | AT4: Emergency Generator | AU4: Motor Control Center | AV4: Primary Switch (High) | AW4: Primary Switch (Low) | AX4: Transformer (Dry-Type) | AY4: Uninterruptible Power Supply (UPS) | AZ4: Electrical Unique System | BA4: Hot Water Boiler | BB4: Condensing Water Heater | BC4: Electric Water Heater | BD4: Plumbing Unique System | BE4: Steam System | BF4: Pneumatic Compressor | BG4: Vertical Transportation | BH4: Life Safety | BI4: Backflow Preventor | BJ4: Rounds and Readings | BK4: Access Doors, Gates, Sally Port | BL4: Water Treatment | BM4: Building Exterior / Hardscape (Monthly) | BN4: Fountain Maintenance (Monthly) | BO4: Fuel Storage Tanks (Quarterly) If applicable | BP4: Landscape Maintenance * | BQ4: Account Management and Supervision (Monthly) | BR4: Fee (Monthly) | BV4: Snow Removal - (crew hourly rate) | BW4: Unclogging Blocked Toilet - In-custody holding cell (labor) | BX4: Unclogging Blocked Toilet - Public/Court Staff (labor) | BY4: Hourly Rate | BZ4: Markup on Materials | CA4: Markup on Subcontractors/Third-Parties
A5: =$B$2 -> 01-H1 | B5: A1 | C5: Access Doors, Gates, Sally Port | J5: 11 | K5: 0 | L5: =+K5*J5 -> 0 | M5: 0 | N5: 0 | O5: =+N5*M5 -> 0 | P5: 1 | Q5: 0 | R5: =+Q5*P5 -> 0 | S5: 12 | T5: =IF($V5>0,$S5,0) -> 12 | U5: =+R5+O5+L5+I5+F5 -> 0 | V5: =IFERROR(VLOOKUP($A$5,'Equipment List Template'!$1:$1048576,10,FALSE),"0") -> 1 | W5: =+U5*V5 -> 0 | Z5: JCC ID | AA5: Facility Name | AB5: Address | AC5: City / Town | AD5: County | AE5: Region | AF5: Region | AG5: System ID | AH5: H1 | AI5: H2 | AJ5: H3 | AK5: H4 | AL5: H5 | AM5: H6 | AN5: H7 | AO5: H8 | AP5: H9 | AQ5: H10 | AR5: H11 | AS5: E1 | AT5: E2 | AU5: E3 | AV5: E4 | AW5: E5 | AX5: E6 | AY5: E7 | AZ5: E8 | BA5: P1 | BB5: P2 | BC5: P3 | BD5: P4 | BE5: P5 | BF5: P6 | BG5: V1 | BH5: L1 | BI5: L2 | BJ5: R1 | BK5: A1 | BL5: W1 | BM5: B1 | BN5: F1 | BO5: F2 | BP5: G1 | BQ5: C1 | BR5: C2 | BV5: S1 | BW5: I1 | BX5: I2 | BY5: Hr 1 | BZ5: M1 | CA5: Sub1
A6: =$B$2 -> 01-H1 | B6: H1 | C6: Air Cooled DX (Package / Split System) | J6: 0 | K6: 0 | L6: =+K6*J6 -> 0 | M6: 3 | N6: 0 | O6: =+N6*M6 -> 0 | P6: 1 | Q6: 0 | R6: =+Q6*P6 -> 0 | S6: 4 | T6: =IF($V6>0,$S6,0) -> 4 | U6: =+R6+O6+L6+I6+F6 -> 0 | V6: =IFERROR(VLOOKUP($A$5,'Equipment List Template'!$1:$1048576,11,FALSE),"0") -> 2 | W6: =+U6*V6 -> 0 | Z6: =B2 -> 01-H1 | AA6: =IFERROR(VLOOKUP($Z$6,'Equipment List Template'!$1:$1048576,2,FALSE),"") -> Fremont Hall of Justice | AB6: =IFERROR(VLOOKUP($Z$6,'Equipment List Template'!$1:$1048576,3,FALSE),"") -> 39439 Paseo Padre Pkwy. | AC6: =IFERROR(VLOOKUP($Z$6,'Equipment List Template'!$1:$1048576,4,FALSE),"") -> Fremont | AD6: =IFERROR(VLOOKUP($Z$6,'Equipment List Template'!$1:$1048576,5,FALSE),"") -> 94538 | AE6: =IFERROR(VLOOKUP($Z$6,'Equipment List Template'!$1:$1048576,6,FALSE),"") -> Alameda | AF6: =IFERROR(VLOOKUP($Z$6,'Equipment List Template'!$1:$1048576,7,FALSE),"") -> BANCRO | AH6: =+$W5 -> 0 | AI6: =+$W6 -> 0 | AJ6: =+$W7 -> 0 | AK6: =+$W8 -> 0 | AL6: =+$W9 -> 0 | AM6: =+$W10 -> 0 | AN6: =+$W11 -> 0 | AO6: =+$W12 -> 0 | AP6: =+$W13 -> 0 | AQ6: =+$W14 -> 0 | AR6: =+$W15 -> 0 | AS6: =+$W16 -> 0 | AT6: =+$W17 -> 0 | AU6: =+$W18 -> 0 | AV6: =+$W19 -> 0 | AW6: =+$W20 -> 0 | AX6: =+$W21 -> 0 | AY6: =+$W22 -> 0 | AZ6: =+$W23 -> 0 | BA6: =+$W24 -> 0 | BB6: =+$W25 -> 0 | BC6: =+$W26 -> 0 | BD6: =+$W27 -> 0 | BE6: =+$W28 -> 0 | BF6: =+$W29 -> 0 | BG6: =+$W30 -> 0 | BH6: =+$W31 -> 0 | BI6: =+$W32 -> 0 | BJ6: =+$W33 -> 0 | BK6: =+$W34 -> 0 | BL6: =+$W35 -> 0 | BM6: =+$W36 -> 0 | BN6: =+$W37 -> 0 | BO6: =+$W38 -> 0 | BP6: =+$W39 -> 0 | BQ6: =+$W40 -> 0 | BR6: =+$W41 -> 0 | BT6: =+W42 -> 0 | BV6: =+D43 -> 0 | BW6: =+D44 -> 0 | BX6: =+D45 -> 0 | BY6: =+D46 -> 0 | BZ6: =+D47 -> 0 | CA6: =+D48 -> 0
A7: 01-H1 | B7: H2 | C7: Air Handling Unit (Air-cooled DX) | J7: 0 | K7: 0 | L7: 0 | M7: 3 | N7: 0 | O7: 0 | P7: 1 | Q7: 0 | R7: 0 | S7: 4 | T7: 4 | U7: 0 | V7: =IFERROR(VLOOKUP($A$5,'Equipment List Template'!$1:$1048576,12,FALSE),"0") -> 13 | W7: =+U7*V7 -> 0
A8: 01-H1 | B8: H3 | C8: Air-Cooled Chiller | G8: 40 | H8: 0 | I8: =+H8*G8 -> 0 | J8: 8 | K8: 0 | L8: 0 | M8: 3 | N8: 0 | O8: 0 | P8: 1 | Q8: 0 | R8: 0 | S8: 12 | T8: 12 | U8: 0 | V8: =IFERROR(VLOOKUP($A$5,'Equipment List Template'!$1:$1048576,13,FALSE),"0") -> 1 | W8: 0
A9: 01-H1 | B9: H4 | C9: Centrifugal Chiller | J9: 11 | K9: 0 | L9: 0 | M9: 0 | N9: 0 | O9: 0 | P9: 1 | Q9: 0 | R9: 0 | S9: 12 | T9: 0 | U9: 0 | V9: =IFERROR(VLOOKUP($A$5,'Equipment List Template'!$1:$1048576,14,FALSE),"0") -> 0 | W9: 0
A10: 01-H1 | B10: H5 | C10: Cooling Tower (Induced Draft) | J10: 8 | K10: 0 | L10: 0 | M10: 3 | N10: 0 | O10: 0 | P10: 1 | Q10: 0 | R10: 0 | S10: 12 | T10: 0 | U10: 0 | V10: =IFERROR(VLOOKUP($A$5,'Equipment List Template'!$1:$1048576,15,FALSE),"0") -> 0 | W10: 0
A11: 01-H1 | B11: H6 | C11: Ice Chiller | J11: 8 | K11: 0 | L11: 0 | M11: 3 | N11: 0 | O11: 0 | P11: 1 | Q11: 0 | R11: 0 | S11: 12 | T11: 0 | U11: 0 | V11: =IFERROR(VLOOKUP($A$5,'Equipment List Template'!$1:$1048576,16,FALSE),"0") -> 0 | W11: 0
A12: 01-H1 | B12: H7 | C12: MultiStack (Geothermal) | J12: 0 | K12: 0 | L12: 0 | M12: 0 | N12: 0 | O12: 0 | P12: 1 | Q12: 0 | R12: 0 | S12: 1 | T12: 0 | U12: 0 | V12: =IFERROR(VLOOKUP($A$5,'Equipment List Template'!$1:$1048576,17,FALSE),"0") -> 0 | W12: 0
A13: 01-H1 | B13: H8 | C13: Water Source Heat Pump | J13: 8 | K13: 0 | L13: 0 | M13: 3 | N13: 0 | O13: 0 | P13: 1 | Q13: 0 | R13: 0 | S13: 12 | T13: 0 | U13: 0 | V13: =IFERROR(VLOOKUP($A$5,'Equipment List Template'!$1:$1048576,18,FALSE),"0") -> 0 | W13: 0
A14: 01-H1 | B14: H9 | C14: Fan Coil System | J14: 0 | K14: 0 | L14: 0 | M14: 3 | N14: 0 | O14: 0 | P14: 1 | Q14: 0 | R14: 0 | S14: 4 | T14: 0 | U14: 0 | V14: =IFERROR(VLOOKUP($A$5,'Equipment List Template'!$1:$1048576,19,FALSE),"0") -> 0 | W14: 0
A15: 01-H1 | B15: H10 | C15: Exhaust Fan | J15: 0 | K15: 0 | L15: 0 | M15: 3 | N15: 0 | O15: 0 | P15: 1 | Q15: 0 | R15: 0 | S15: 4 | T15: 0 | U15: 0 | V15: =IFERROR(VLOOKUP($A$5,'Equipment List Template'!$1:$1048576,20,FALSE),"0") -> 0 | W15: 0
A16: 01-H1 | B16: H11 | C16: HVAC Unique System | J16: 8 | K16: 0 | L16: 0 | M16: 3 | N16: 0 | O16: 0 | P16: 1 | Q16: 0 | R16: 0 | S16: 12 | T16: 0 | U16: 0 | V16: =IFERROR(VLOOKUP($A$5,'Equipment List Template'!$1:$1048576,21,FALSE),"0") -> 0 | W16: 0
A17: 01-H1 | B17: E1 | C17: Electrical Panels | J17: 0 | K17: 0 | L17: 0 | M17: 3 | N17: 0 | O17: 0 | P17: 1 | Q17: 0 | R17: 0 | S17: 4 | T17: 0 | U17: 0 | V17: =IFERROR(VLOOKUP($A$5,'Equipment List Template'!$1:$1048576,22,FALSE),"0") -> 0 | W17: 0
A18: 01-H1 | B18: E2 | C18: Emergency Generator | J18: 0 | K18: 0 | L18: 0 | M18: 3 | N18: 0 | O18: 0 | P18: 1 | Q18: 0 | R18: 0 | S18: 4 | T18: 4 | U18: 0 | V18: =IFERROR(VLOOKUP($A$5,'Equipment List Template'!$1:$1048576,23,FALSE),"0") -> 1 | W18: 0
A19: 01-H1 | B19: E3 | C19: Motor Control Center | J19: 0 | K19: 0 | L19: 0 | M19: 4 | N19: 0 | O19: 0 | P19: 0 | Q19: 0 | R19: 0 | S19: 4 | T19: 0 | U19: 0 | V19: =IFERROR(VLOOKUP($A$5,'Equipment List Template'!$1:$1048576,24,FALSE),"0") -> 0 | W19: 0
A20: 01-H1 | B20: E4 | C20: Primary Switch (High) | J20: 8 | K20: 0 | L20: 0 | M20: 3 | N20: 0 | O20: 0 | P20: 1 | Q20: 0 | R20: 0 | S20: 12 | T20: 12 | U20: 0 | V20: =IFERROR(VLOOKUP($A$5,'Equipment List Template'!$1:$1048576,25,FALSE),"0") -> 1 | W20: 0
A21: 01-H1 | B21: E5 | C21: Primary Switch (Low) | J21: 8 | K21: 0 | L21: 0 | M21: 3 | N21: 0 | O21: 0 | P21: 1 | Q21: 0 | R21: 0 | S21: 12 | T21: 0 | U21: 0 | V21: =IFERROR(VLOOKUP($A$5,'Equipment List Template'!$1:$1048576,26,FALSE),"0") -> 0 | W21: 0
A22: 01-H1 | B22: E6 | C22: Transformer (Dry-Type) | J22: 0 | K22: 0 | L22: 0 | M22: 3 | N22: 0 | O22: 0 | P22: 1 | Q22: 0 | R22: 0 | S22: 4 | T22: 0 | U22: 0 | V22: =IFERROR(VLOOKUP($A$5,'Equipment List Template'!$1:$1048576,27,FALSE),"0") -> 0 | W22: 0
A23: 01-H1 | B23: E7 | C23: Uninterruptible Power Supply (UPS) | J23: 0 | K23: 0 | L23: 0 | M23: 0 | N23: 0 | O23: 0 | P23: 1 | Q23: 0 | R23: 0 | S23: 1 | T23: 0 | U23: 0 | V23: =IFERROR(VLOOKUP($A$5,'Equipment List Template'!$1:$1048576,28,FALSE),"0") -> 0 | W23: 0
A24: 01-H1 | B24: E8 | C24: Electrical Unique System | J24: 8 | K24: 0 | L24: 0 | M24: 3 | N24: 0 | O24: 0 | P24: 1 | Q24: 0 | R24: 0 | S24: 12 | T24: 0 | U24: 0 | V24: =IFERROR(VLOOKUP($A$5,'Equipment List Template'!$1:$1048576,29,FALSE),"0") -> 0 | W24: 0
A25: 01-H1 | B25: L1 | C25: Life Safety | J25: 0 | K25: 0 | L25: 0 | M25: 3 | N25: 0 | O25: 0 | P25: 1 | Q25: 0 | R25: 0 | S25: 4 | T25: 4 | U25: 0 | V25: =IFERROR(VLOOKUP($A$5,'Equipment List Template'!$1:$1048576,30,FALSE),"0") -> 1 | W25: =+U25*V25 -> 0
A26: 01-H1 | B26: L2 | C26: Backflow Preventor(s) | J26: 0 | K26: 0 | L26: 0 | M26: 0 | N26: 0 | O26: 0 | P26: 1 | Q26: 0 | R26: 0 | S26: 1 | T26: 1 | U26: 0 | V26: =IFERROR(VLOOKUP($A$5,'Equipment List Template'!$1:$1048576,31,FALSE),"0") -> 1 | W26: =+U26*V26 -> 0
A27: 01-H1 | B27: P1 | C27: Hot Water Boiler | J27: 8 | K27: 0 | L27: 0 | M27: 3 | N27: 0 | O27: 0 | P27: 1 | Q27: 0 | R27: 0 | S27: 12 | T27: 12 | U27: 0 | V27: =IFERROR(VLOOKUP($A$5,'Equipment List Template'!$1:$1048576,32,FALSE),"0") -> 2 | W27: 0
A28: 01-H1 | B28: P2 | C28: Condensing Water Heater | J28: 0 | K28: 0 | L28: 0 | M28: 0 | N28: 0 | O28: 0 | P28: 1 | Q28: 0 | R28: 0 | S28: 1 | T28: 0 | U28: 0 | V28: =IFERROR(VLOOKUP($A$5,'Equipment List Template'!$1:$1048576,33,FALSE),"0") -> 0 | W28: 0
A29: 01-H1 | B29: P3 | C29: Electric Water Heater | J29: 0 | K29: 0 | L29: 0 | M29: 0 | N29: 0 | O29: 0 | P29: 1 | Q29: 0 | R29: 0 | S29: 1 | T29: 0 | U29: 0 | V29: =IFERROR(VLOOKUP($A$5,'Equipment List Template'!$1:$1048576,34,FALSE),"0") -> 0 | W29: 0
A30: 01-H1 | B30: P4 | C30: Plumbing Unique System | J30: 0 | K30: 0 | L30: 0 | M30: 3 | N30: 0 | O30: 0 | P30: 1 | Q30: 0 | R30: 0 | S30: 4 | T30: 0 | U30: 0 | V30: =IFERROR(VLOOKUP($A$5,'Equipment List Template'!$1:$1048576,35,FALSE),"0") -> 0 | W30: 0
A31: 01-H1 | B31: P5 | C31: Steam System | J31: 0 | K31: 0 | L31: 0 | M31: 3 | N31: 0 | O31: 0 | P31: 1 | Q31: 0 | R31: 0 | S31: 4 | T31: 0 | U31: 0 | V31: =IFERROR(VLOOKUP($A$5,'Equipment List Template'!$1:$1048576,36,FALSE),"0") -> 0 | W31: 0
A32: 01-H1 | B32: P6 | C32: Pneumatic Compressor | J32: 11 | K32: 0 | L32: 0 | M32: 0 | N32: 0 | O32: 0 | P32: 1 | Q32: 0 | R32: 0 | S32: 12 | T32: 12 | U32: 0 | V32: =IFERROR(VLOOKUP($A$5,'Equipment List Template'!$1:$1048576,37,FALSE),"0") -> 2 | W32: 0
A33: 01-H1 | B33: R1 | C33: Rounds and Readings | D33: =IFERROR(IF(VLOOKUP($A33,'Equipment List Template'!$1:$1048576,38,FALSE)=260,248,0),0) -> 0 | E33: 0 | F33: =+E33*D33 -> 0 | G33: =IFERROR(IF(VLOOKUP($A33,'Equipment List Template'!$1:$1048576,38,FALSE)=52,40,0),0) -> 40 | H33: 0 | I33: =+H33*G33 -> 0 | J33: 12 | K33: 0 | L33: 0 | S33: 12 | T33: 12 | U33: =+R33+O33+L33+I33+F33 -> 0 | V33: 1 | W33: =+U33*V33 -> 0
A34: 01-H1 | B34: V1 | C34: Vertical Transportation | J34: 8 | K34: 0 | L34: =+K34*J34 -> 0 | M34: 3 | N34: 0 | O34: =+N34*M34 -> 0 | P34: 1 | Q34: 0 | R34: =+Q34*P34 -> 0 | S34: 12 | T34: 12 | U34: =+R34+O34+L34 -> 0 | V34: =IFERROR(VLOOKUP($A$5,'Equipment List Template'!$1:$1048576,39,FALSE),"0") -> 4 | W34: =+U34*V34 -> 0
A35: 01-H1 | B35: W1 | C35: Water Treatment | D35: =IFERROR(IF(VLOOKUP($A35,'Equipment List Template'!$1:$1048576,40,FALSE)=260,260,0),0) -> 0 | E35: 0 | F35: =+E35*D35 -> 0 | S35: 0 | T35: 0 | U35: =+R35+O35+L35+I35+F35 -> 0 | V35: 1 | W35: 0
A36: 01-H1 | B36: B1 | C36: Building Exterior / Hardscape (Monthly) | J36: 12 | K36: 0 | L36: =+K36*J36 -> 0 | S36: 12 | T36: 12 | U36: 0 | V36: 1 | W36: 0
A37: 01-H1 | B37: F1 | C37: Fountain Maintenance (Monthly) | J37: 12 | K37: 0 | L37: 0 | S37: 12 | T37: 12 | U37: 0 | V37: 1 | W37: 0
A38: 01-H1 | B38: F2 | C38: Fuel Storage Tanks (Quarterly) If applicable | M38: 4 | N38: 0 | O38: =+N38*M38 -> 0 | S38: 4 | T38: 4 | U38: 0 | V38: 1 | W38: 0
A39: 01-H1 | B39: G1 | C39: Landscape Maintenance * | G39: 40 | H39: 0 | I39: =+H39*G39 -> 0 | S39: 0 | T39: 0 | U39: 0 | V39: 1 | W39: 0
A40: 01-H1 | B40: C1 | C40: Account Management and Supervision (Monthly) | J40: 12 | K40: 0 | L40: =+K40*J40 -> 0 | S40: 12 | T40: 12 | U40: 0 | V40: 1 | W40: 0
A41: 01-H1 | B41: C2 | C41: Fee (Monthly) | J41: 12 | K41: 0 | L41: 0 | S41: 12 | T41: 12 | U41: 0 | V41: 1 | W41: 0
Q42: JCC ID | R42: =B2 -> 01-H1 | U42: Total | W42: =SUM(W6:W41) -> 0
B43: S1 | C43: Snow Removal - (crew hourly rate) | D43: 0 | U43: Total # of PM's | W43: =SUM(T5:T41) -> 153
B44: I1 | C44: Unclogging Blocked Toilet - In-custody cell (labor-only) | D44: 0
B45: I2 | C45: Unclogging Blocked Toilet - Public/Court Staff (labor-only) | D45: 0
B46: Hr 1 | C46: Hourly Rate (All Labor categories) | D46: 0
B47: M1 | C47: Markup on Materials (Percentage) | D47: 0
B48: Sub1 | C48: Markup on Subcontractors/Third-Parties (Percentage) | D48: 0
B50: * Landscape Maintenance varies by location on the number of weeks per year it can be preformed. For the purpose of the RFP, all facilities are pre-established at 40 weeks of service. The actual amount paid by facility will be based upon the actual weeks that service has been performed, validated and invoiced.

Sheet 01-J1
B1: JCC ID | C1: Facility Name | D1: Address | F1: City / Town | H1: Zip Code | J1: County | L1: Region | N1: RFP | P1: Proposer
B2: 01-J1 | C2: =IFERROR(VLOOKUP($B$2,'Equipment List Template'!$1:$1048576,2,FALSE),"") -> New East County Hall of Justice | D2: =IFERROR(VLOOKUP($B$2,'Equipment List Template'!$1:$1048576,3,FALSE),"") -> 5151 Gleason Drive | F2: =IFERROR(VLOOKUP($B$2,'Equipment List Template'!$1:$1048576,4,FALSE),"") -> Dublin | H2: =IFERROR(VLOOKUP($B$2,'Equipment List Template'!$1:$1048576,5,FALSE),"") -> 94568 | J2: =IFERROR(VLOOKUP($B$2,'Equipment List Template'!$1:$1048576,6,FALSE),"") -> Alameda | L2: =IFERROR(VLOOKUP($B$2,'Equipment List Template'!$1:$1048576,7,FALSE),"") -> BANCRO | N2: ='Summary Pricing Sheet'!B2 -> RFP-FS-SP-2019-03-JP | P2: ='Summary Pricing Sheet'!B3 -> Firm Name TBD
D3: Daily Activity | G3: Weekly Activity | J3: Monthly Activity | M3: Quarterly Activity | P3: Annual Activity | U3: Summary | AG3: System | AH3: HVAC | AS3: Electrical | BA3: Plumbing | BE3: Building Systems | BP3: Corporate | BT3: Fixed Price - Facility Total Annual Cost Year 1
B4: System ID | C4: Subsystem | D4: Quantity | E4: Cost | F4: Daily Total | G4: Quantity | H4: Cost | I4: Weekly Total | J4: Monthly Quantity | K4: Cost | L4: Monthly Total | M4: Quarterly Quantity | N4: Cost | O4: Quarterly Total | P4: Annual Quantity | Q4: Cost | R4: Annual PM Total | T4: Number of PM's | U4: Annual Cost | V4: Quantity | W4: Total Annual Cost | AG4: Subsystem | AH4: Air Cooled DX (Package / Split System) | AI4: Air Handling Unit (Air-cooled DX) | AJ4: Air-Cooled Chiller | AK4: Centrifugal Chiller | AL4: Cooling Tower (Induced Draft) | AM4: Ice Chiller | AN4: Multitask (Geothermal) | AO4: Water Source Heat Pump | AP4: Fan Coil System | AQ4: Exhaust Fan | AR4: HVAC Unique System | AS4: Electrical Panels | AT4: Emergency Generator | AU4: Motor Control Center | AV4: Primary Switch (High) | AW4: Primary Switch (Low) | AX4: Transformer (Dry-Type) | AY4: Uninterruptible Power Supply (UPS) | AZ4: Electrical Unique System | BA4: Hot Water Boiler | BB4: Condensing Water Heater | BC4: Electric Water Heater | BD4: Plumbing Unique System | BE4: Steam System | BF4: Pneumatic Compressor | BG4: Vertical Transportation | BH4: Life Safety | BI4: Backflow Preventor | BJ4: Rounds and Readings | BK4: Access Doors, Gates, Sally Port | BL4: Water Treatment | BM4: Building Exterior / Hardscape (Monthly) | BN4: Fountain Maintenance (Monthly) | BO4: Fuel Storage Tanks (Quarterly) If applicable | BP4: Landscape Maintenance * | BQ4: Account Management and Supervision (Monthly) | BR4: Fee (Monthly) | BV4: Snow Removal - (crew hourly rate) | BW4: Unclogging Blocked Toilet - In-custody holding cell (labor) | BX4: Unclogging Blocked Toilet - Public/Court Staff (labor) | BY4: Hourly Rate | BZ4: Markup on Materials | CA4: Markup on Subcontractors/Third-Parties
A5: =$B$2 -> 01-J1 | B5: A1 | C5: Access Doors, Gates, Sally Port | J5: 11 | K5: 0 | L5: =+K5*J5 -> 0 | M5: 0 | N5: 0 | O5: =+N5*M5 -> 0 | P5: 1 | Q5: 0 | R5: =+Q5*P5 -> 0 | S5: 12 | T5: =IF($V5>0,$S5,0) -> 12 | U5: =+R5+O5+L5+I5+F5 -> 0 | V5: =IFERROR(VLOOKUP($A$5,'Equipment List Template'!$1:$1048576,10,FALSE),"0") -> 1 | W5: =+U5*V5 -> 0 | Z5: JCC ID | AA5: Facility Name | AB5: Address | AC5: City / Town | AD5: County | AE5: Region | AF5: Region | AG5: System ID | AH5: H1 | AI5: H2 | AJ5: H3 | AK5: H4 | AL5: H5 | AM5: H6 | AN5: H7 | AO5: H8 | AP5: H9 | AQ5: H10 | AR5: H11 | AS5: E1 | AT5: E2 | AU5: E3 | AV5: E4 | AW5: E5 | AX5: E6 | AY5: E7 | AZ5: E8 | BA5: P1 | BB5: P2 | BC5: P3 | BD5: P4 | BE5: P5 | BF5: P6 | BG5: V1 | BH5: L1 | BI5: L2 | BJ5: R1 | BK5: A1 | BL5: W1 | BM5: B1 | BN5: F1 | BO5: F2 | BP5: G1 | BQ5: C1 | BR5: C2 | BV5: S1 | BW5: I1 | BX5: I2 | BY5: Hr 1 | BZ5: M1 | CA5: Sub1
A6: =$B$2 -> 01-J1 | B6: H1 | C6: Air Cooled DX (Package / Split System) | J6: 0 | K6: 0 | L6: =+K6*J6 -> 0 | M6: 3 | N6: 0 | O6: =+N6*M6 -> 0 | P6: 1 | Q6: 0 | R6: =+Q6*P6 -> 0 | S6: 4 | T6: =IF($V6>0,$S6,0) -> 0 | U6: =+R6+O6+L6+I6+F6 -> 0 | V6: =IFERROR(VLOOKUP($A$5,'Equipment List Template'!$1:$1048576,11,FALSE),"0") -> 0 | W6: =+U6*V6 -> 0 | Z6: =B2 -> 01-J1 | AA6: =IFERROR(VLOOKUP($Z$6,'Equipment List Template'!$1:$1048576,2,FALSE),"") -> New East County Hall of Justice | AB6: =IFERROR(VLOOKUP($Z$6,'Equipment List Template'!$1:$1048576,3,FALSE),"") -> 5151 Gleason Drive | AC6: =IFERROR(VLOOKUP($Z$6,'Equipment List Template'!$1:$1048576,4,FALSE),"") -> Dublin | AD6: =IFERROR(VLOOKUP($Z$6,'Equipment List Template'!$1:$1048576,5,FALSE),"") -> 94568 | AE6: =IFERROR(VLOOKUP($Z$6,'Equipment List Template'!$1:$1048576,6,FALSE),"") -> Alameda | AF6: =IFERROR(VLOOKUP($Z$6,'Equipment List Template'!$1:$1048576,7,FALSE),"") -> BANCRO | AH6: =+$W5 -> 0 | AI6: =+$W6 -> 0 | AJ6: =+$W7 -> 0 | AK6: =+$W8 -> 0 | AL6: =+$W9 -> 0 | AM6: =+$W10 -> 0 | AN6: =+$W11 -> 0 | AO6: =+$W12 -> 0 | AP6: =+$W13 -> 0 | AQ6: =+$W14 -> 0 | AR6: =+$W15 -> 0 | AS6: =+$W16 -> 0 | AT6: =+$W17 -> 0 | AU6: =+$W18 -> 0 | AV6: =+$W19 -> 0 | AW6: =+$W20 -> 0 | AX6: =+$W21 -> 0 | AY6: =+$W22 -> 0 | AZ6: =+$W23 -> 0 | BA6: =+$W24 -> 0 | BB6: =+$W25 -> 0 | BC6: =+$W26 -> 0 | BD6: =+$W27 -> 0 | BE6: =+$W28 -> 0 | BF6: =+$W29 -> 0 | BG6: =+$W30 -> 0 | BH6: =+$W31 -> 0 | BI6: =+$W32 -> 0 | BJ6: =+$W33 -> 0 | BK6: =+$W34 -> 0 | BL6: =+$W35 -> 0 | BM6: =+$W36 -> 0 | BN6: =+$W37 -> 0 | BO6: =+$W38 -> 0 | BP6: =+$W39 -> 0 | BQ6: =+$W40 -> 0 | BR6: =+$W41 -> 0 | BT6: =+W42 -> 0 | BV6: =+D43 -> 0 | BW6: =+D44 -> 0 | BX6: =+D45 -> 0 | BY6: =+D46 -> 0 | BZ6: =+D47 -> 0 | CA6: =+D48 -> 0
A7: 01-J1 | B7: H2 | C7: Air Handling Unit (Air-cooled DX) | J7: 0 | K7: 0 | L7: 0 | M7: 3 | N7: 0 | O7: 0 | P7: 1 | Q7: 0 | R7: 0 | S7: 4 | T7: 4 | U7: 0 | V7: =IFERROR(VLOOKUP($A$5,'Equipment List Template'!$1:$1048576,12,FALSE),"0") -> 2 | W7: =+U7*V7 -> 0
A8: 01-J1 | B8: H3 | C8: Air-Cooled Chiller | G8: 40 | H8: 0 | I8: =+H8*G8 -> 0 | J8: 8 | K8: 0 | L8: 0 | M8: 3 | N8: 0 | O8: 0 | P8: 1 | Q8: 0 | R8: 0 | S8: 12 | T8: 0 | U8: 0 | V8: =IFERROR(VLOOKUP($A$5,'Equipment List Template'!$1:$1048576,13,FALSE),"0") -> 0 | W8: 0
A9: 01-J1 | B9: H4 | C9: Centrifugal Chiller | J9: 11 | K9: 0 | L9: 0 | M9: 0 | N9: 0 | O9: 0 | P9: 1 | Q9: 0 | R9: 0 | S9: 12 | T9: 12 | U9: 0 | V9: =IFERROR(VLOOKUP($A$5,'Equipment List Template'!$1:$1048576,14,FALSE),"0") -> 2 | W9: 0
A10: 01-J1 | B10: H5 | C10: Cooling Tower (Induced Draft) | J10: 8 | K10: 0 | L10: 0 | M10: 3 | N10: 0 | O10: 0 | P10: 1 | Q10: 0 | R10: 0 | S10: 12 | T10: 12 | U10: 0 | V10: =IFERROR(VLOOKUP($A$5,'Equipment List Template'!$1:$1048576,15,FALSE),"0") -> 1 | W10: 0
A11: 01-J1 | B11: H6 | C11: Ice Chiller | J11: 8 | K11: 0 | L11: 0 | M11: 3 | N11: 0 | O11: 0 | P11: 1 | Q11: 0 | R11: 0 | S11: 12 | T11: 0 | U11: 0 | V11: =IFERROR(VLOOKUP($A$5,'Equipment List Template'!$1:$1048576,16,FALSE),"0") -> 0 | W11: 0
A12: 01-J1 | B12: H7 | C12: MultiStack (Geothermal) | J12: 0 | K12: 0 | L12: 0 | M12: 0 | N12: 0 | O12: 0 | P12: 1 | Q12: 0 | R12: 0 | S12: 1 | T12: 0 | U12: 0 | V12: =IFERROR(VLOOKUP($A$5,'Equipment List Template'!$1:$1048576,17,FALSE),"0") -> 0 | W12: 0
A13: 01-J1 | B13: H8 | C13: Water Source Heat Pump | J13: 8 | K13: 0 | L13: 0 | M13: 3 | N13: 0 | O13: 0 | P13: 1 | Q13: 0 | R13: 0 | S13: 12 | T13: 12 | U13: 0 | V13: =IFERROR(VLOOKUP($A$5,'Equipment List Template'!$1:$1048576,18,FALSE),"0") -> 20 | W13: 0
A14: 01-J1 | B14: H9 | C14: Fan Coil System | J14: 0 | K14: 0 | L14: 0 | M14: 3 | N14: 0 | O14: 0 | P14: 1 | Q14: 0 | R14: 0 | S14: 4 | T14: 4 | U14: 0 | V14: =IFERROR(VLOOKUP($A$5,'Equipment List Template'!$1:$1048576,19,FALSE),"0") -> 20 | W14: 0
A15: 01-J1 | B15: H10 | C15: Exhaust Fan | J15: 0 | K15: 0 | L15: 0 | M15: 3 | N15: 0 | O15: 0 | P15: 1 | Q15: 0 | R15: 0 | S15: 4 | T15: 0 | U15: 0 | V15: =IFERROR(VLOOKUP($A$5,'Equipment List Template'!$1:$1048576,20,FALSE),"0") -> 0 | W15: 0
A16: 01-J1 | B16: H11 | C16: HVAC Unique System | J16: 8 | K16: 0 | L16: 0 | M16: 3 | N16: 0 | O16: 0 | P16: 1 | Q16: 0 | R16: 0 | S16: 12 | T16: 0 | U16: 0 | V16: =IFERROR(VLOOKUP($A$5,'Equipment List Template'!$1:$1048576,21,FALSE),"0") -> 0 | W16: 0
A17: 01-J1 | B17: E1 | C17: Electrical Panels | J17: 0 | K17: 0 | L17: 0 | M17: 3 | N17: 0 | O17: 0 | P17: 1 | Q17: 0 | R17: 0 | S17: 4 | T17: 0 | U17: 0 | V17: =IFERROR(VLOOKUP($A$5,'Equipment List Template'!$1:$1048576,22,FALSE),"0") -> 0 | W17: 0
A18: 01-J1 | B18: E2 | C18: Emergency Generator | J18: 0 | K18: 0 | L18: 0 | M18: 3 | N18: 0 | O18: 0 | P18: 1 | Q18: 0 | R18: 0 | S18: 4 | T18: 4 | U18: 0 | V18: =IFERROR(VLOOKUP($A$5,'Equipment List Template'!$1:$1048576,23,FALSE),"0") -> 1 | W18: 0
A19: 01-J1 | B19: E3 | C19: Motor Control Center | J19: 0 | K19: 0 | L19: 0 | M19: 4 | N19: 0 | O19: 0 | P19: 0 | Q19: 0 | R19: 0 | S19: 4 | T19: 0 | U19: 0 | V19: =IFERROR(VLOOKUP($A$5,'Equipment List Template'!$1:$1048576,24,FALSE),"0") -> 0 | W19: 0
A20: 01-J1 | B20: E4 | C20: Primary Switch (High) | J20: 8 | K20: 0 | L20: 0 | M20: 3 | N20: 0 | O20: 0 | P20: 1 | Q20: 0 | R20: 0 | S20: 12 | T20: 0 | U20: 0 | V20: =IFERROR(VLOOKUP($A$5,'Equipment List Template'!$1:$1048576,25,FALSE),"0") -> 0 | W20: 0
A21: 01-J1 | B21: E5 | C21: Primary Switch (Low) | J21: 8 | K21: 0 | L21: 0 | M21: 3 | N21: 0 | O21: 0 | P21: 1 | Q21: 0 | R21: 0 | S21: 12 | T21: 0 | U21: 0 | V21: =IFERROR(VLOOKUP($A$5,'Equipment List Template'!$1:$1048576,26,FALSE),"0") -> 0 | W21: 0
A22: 01-J1 | B22: E6 | C22: Transformer (Dry-Type) | J22: 0 | K22: 0 | L22: 0 | M22: 3 | N22: 0 | O22: 0 | P22: 1 | Q22: 0 | R22: 0 | S22: 4 | T22: 0 | U22: 0 | V22: =IFERROR(VLOOKUP($A$5,'Equipment List Template'!$1:$1048576,27,FALSE),"0") -> 0 | W22: 0
A23: 01-J1 | B23: E7 | C23: Uninterruptible Power Supply (UPS) | J23: 0 | K23: 0 | L23: 0 | M23: 0 | N23: 0 | O23: 0 | P23: 1 | Q23: 0 | R23: 0 | S23: 1 | T23: 0 | U23: 0 | V23: =IFERROR(VLOOKUP($A$5,'Equipment List Template'!$1:$1048576,28,FALSE),"0") -> 0 | W23: 0
A24: 01-J1 | B24: E8 | C24: Electrical Unique System | J24: 8 | K24: 0 | L24: 0 | M24: 3 | N24: 0 | O24: 0 | P24: 1 | Q24: 0 | R24: 0 | S24: 12 | T24: 0 | U24: 0 | V24: =IFERROR(VLOOKUP($A$5,'Equipment List Template'!$1:$1048576,29,FALSE),"0") -> 0 | W24: 0
A25: 01-J1 | B25: L1 | C25: Life Safety | J25: 0 | K25: 0 | L25: 0 | M25: 3 | N25: 0 | O25: 0 | P25: 1 | Q25: 0 | R25: 0 | S25: 4 | T25: 4 | U25: 0 | V25: =IFERROR(VLOOKUP($A$5,'Equipment List Template'!$1:$1048576,30,FALSE),"0") -> 1 | W25: =+U25*V25 -> 0
A26: 01-J1 | B26: L2 | C26: Backflow Preventor(s) | J26: 0 | K26: 0 | L26: 0 | M26: 0 | N26: 0 | O26: 0 | P26: 1 | Q26: 0 | R26: 0 | S26: 1 | T26: 1 | U26: 0 | V26: =IFERROR(VLOOKUP($A$5,'Equipment List Template'!$1:$1048576,31,FALSE),"0") -> 3 | W26: =+U26*V26 -> 0
A27: 01-J1 | B27: P1 | C27: Hot Water Boiler | J27: 8 | K27: 0 | L27: 0 | M27: 3 | N27: 0 | O27: 0 | P27: 1 | Q27: 0 | R27: 0 | S27: 12 | T27: 12 | U27: 0 | V27: =IFERROR(VLOOKUP($A$5,'Equipment List Template'!$1:$1048576,32,FALSE),"0") -> 3 | W27: 0
A28: 01-J1 | B28: P2 | C28: Condensing Water Heater | J28: 0 | K28: 0 | L28: 0 | M28: 0 | N28: 0 | O28: 0 | P28: 1 | Q28: 0 | R28: 0 | S28: 1 | T28: 0 | U28: 0 | V28: =IFERROR(VLOOKUP($A$5,'Equipment List Template'!$1:$1048576,33,FALSE),"0") -> 0 | W28: 0
A29: 01-J1 | B29: P3 | C29: Electric Water Heater | J29: 0 | K29: 0 | L29: 0 | M29: 0 | N29: 0 | O29: 0 | P29: 1 | Q29: 0 | R29: 0 | S29: 1 | T29: 0 | U29: 0 | V29: =IFERROR(VLOOKUP($A$5,'Equipment List Template'!$1:$1048576,34,FALSE),"0") -> 0 | W29: 0
A30: 01-J1 | B30: P4 | C30: Plumbing Unique System | J30: 0 | K30: 0 | L30: 0 | M30: 3 | N30: 0 | O30: 0 | P30: 1 | Q30: 0 | R30: 0 | S30: 4 | T30: 0 | U30: 0 | V30: =IFERROR(VLOOKUP($A$5,'Equipment List Template'!$1:$1048576,35,FALSE),"0") -> 0 | W30: 0
A31: 01-J1 | B31: P5 | C31: Steam System | J31: 0 | K31: 0 | L31: 0 | M31: 3 | N31: 0 | O31: 0 | P31: 1 | Q31: 0 | R31: 0 | S31: 4 | T31: 0 | U31: 0 | V31: =IFERROR(VLOOKUP($A$5,'Equipment List Template'!$1:$1048576,36,FALSE),"0") -> 0 | W31: 0
A32: 01-J1 | B32: P6 | C32: Pneumatic Compressor | J32: 11 | K32: 0 | L32: 0 | M32: 0 | N32: 0 | O32: 0 | P32: 1 | Q32: 0 | R32: 0 | S32: 12 | T32: 0 | U32: 0 | V32: =IFERROR(VLOOKUP($A$5,'Equipment List Template'!$1:$1048576,37,FALSE),"0") -> 0 | W32: 0
A33: 01-J1 | B33: R1 | C33: Rounds and Readings | D33: =IFERROR(IF(VLOOKUP($A33,'Equipment List Template'!$1:$1048576,38,FALSE)=260,248,0),0) -> 248 | E33: 0 | F33: =+E33*D33 -> 0 | G33: =IFERROR(IF(VLOOKUP($A33,'Equipment List Template'!$1:$1048576,38,FALSE)=52,40,0),0) -> 0 | H33: 0 | I33: =+H33*G33 -> 0 | J33: 12 | K33: 0 | L33: 0 | S33: 12 | T33: 12 | U33: =+R33+O33+L33+I33+F33 -> 0 | V33: 1 | W33: =+U33*V33 -> 0
A34: 01-J1 | B34: V1 | C34: Vertical Transportation | J34: 8 | K34: 0 | L34: =+K34*J34 -> 0 | M34: 3 | N34: 0 | O34: =+N34*M34 -> 0 | P34: 1 | Q34: 0 | R34: =+Q34*P34 -> 0 | S34: 12 | T34: 12 | U34: =+R34+O34+L34 -> 0 | V34: =IFERROR(VLOOKUP($A$5,'Equipment List Template'!$1:$1048576,39,FALSE),"0") -> 9 | W34: =+U34*V34 -> 0
A35: 01-J1 | B35: W1 | C35: Water Treatment | D35: =IFERROR(IF(VLOOKUP($A35,'Equipment List Template'!$1:$1048576,40,FALSE)=260,260,0),0) -> 260 | E35: 0 | F35: =+E35*D35 -> 0 | S35: 0 | T35: 0 | U35: =+R35+O35+L35+I35+F35 -> 0 | V35: 1 | W35: 0
A36: 01-J1 | B36: B1 | C36: Building Exterior / Hardscape (Monthly) | J36: 12 | K36: 0 | L36: =+K36*J36 -> 0 | S36: 12 | T36: 12 | U36: 0 | V36: 1 | W36: 0
A37: 01-J1 | B37: F1 | C37: Fountain Maintenance (Monthly) | J37: 12 | K37: 0 | L37: 0 | S37: 12 | T37: 12 | U37: 0 | V37: 1 | W37: 0
A38: 01-J1 | B38: F2 | C38: Fuel Storage Tanks (Quarterly) If applicable | M38: 4 | N38: 0 | O38: =+N38*M38 -> 0 | S38: 4 | T38: 4 | U38: 0 | V38: 1 | W38: 0
A39: 01-J1 | B39: G1 | C39: Landscape Maintenance * | G39: 40 | H39: 0 | I39: =+H39*G39 -> 0 | S39: 0 | T39: 0 | U39: 0 | V39: 1 | W39: 0
A40: 01-J1 | B40: C1 | C40: Account Management and Supervision (Monthly) | J40: 12 | K40: 0 | L40: =+K40*J40 -> 0 | S40: 12 | T40: 12 | U40: 0 | V40: 1 | W40: 0
A41: 01-J1 | B41: C2 | C41: Fee (Monthly) | J41: 12 | K41: 0 | L41: 0 | S41: 12 | T41: 12 | U41: 0 | V41: 1 | W41: 0
Q42: JCC ID | R42: =B2 -> 01-J1 | U42: Total | W42: =SUM(W6:W41) -> 0
B43: S1 | C43: Snow Removal - (crew hourly rate) | D43: 0 | U43: Total # of PM's | W43: =SUM(T5:T41) -> 153
B44: I1 | C44: Unclogging Blocked Toilet - In-custody cell (labor-only) | D44: 0
B45: I2 | C45: Unclogging Blocked Toilet - Public/Court Staff (labor-only) | D45: 0
B46: Hr 1 | C46: Hourly Rate (All Labor categories) | D46: 0
B47: M1 | C47: Markup on Materials (Percentage) | D47: 0
B48: Sub1 | C48: Markup on Subcontractors/Third-Parties (Percentage) | D48: 0
B50: * Landscape Maintenance varies by location on the number of weeks per year it can be preformed. For the purpose of the RFP, all facilities are pre-established at 40 weeks of service. The actual amount paid by facility will be based upon the actual weeks that service has been performed, validated and invoiced.

Sheet 07-A14
B1: JCC ID | C1: Facility Name | D1: Address | F1: City / Town | H1: Zip Code | J1: County | L1: Region | N1: RFP | P1: Proposer
B2: 07-A14 | C2: =IFERROR(VLOOKUP($B$2,'Equipment List Template'!$1:$1048576,2,FALSE),"") -> Family Law Center | D2: =IFERROR(VLOOKUP($B$2,'Equipment List Template'!$1:$1048576,3,FALSE),"") -> 751 Pine Street | F2: =IFERROR(VLOOKUP($B$2,'Equipment List Template'!$1:$1048576,4,FALSE),"") -> Martinez | H2: =IFERROR(VLOOKUP($B$2,'Equipment List Template'!$1:$1048576,5,FALSE),"") -> 94553 | J2: =IFERROR(VLOOKUP($B$2,'Equipment List Template'!$1:$1048576,6,FALSE),"") -> Contra Costa | L2: =IFERROR(VLOOKUP($B$2,'Equipment List Template'!$1:$1048576,7,FALSE),"") -> BANCRO | N2: ='Summary Pricing Sheet'!B2 -> RFP-FS-SP-2019-03-JP | P2: ='Summary Pricing Sheet'!B3 -> Firm Name TBD
D3: Daily Activity | G3: Weekly Activity | J3: Monthly Activity | M3: Quarterly Activity | P3: Annual Activity | U3: Summary | AG3: System | AH3: HVAC | AS3: Electrical | BA3: Plumbing | BE3: Building Systems | BP3: Corporate | BT3: Fixed Price - Facility Total Annual Cost Year 1
B4: System ID | C4: Subsystem | D4: Quantity | E4: Cost | F4: Daily Total | G4: Quantity | H4: Cost | I4: Weekly Total | J4: Monthly Quantity | K4: Cost | L4: Monthly Total | M4: Quarterly Quantity | N4: Cost | O4: Quarterly Total | P4: Annual Quantity | Q4: Cost | R4: Annual PM Total | T4: Number of PM's | U4: Annual Cost | V4: Quantity | W4: Total Annual Cost | AG4: Subsystem | AH4: Air Cooled DX (Package / Split System) | AI4: Air Handling Unit (Air-cooled DX) | AJ4: Air-Cooled Chiller | AK4: Centrifugal Chiller | AL4: Cooling Tower (Induced Draft) | AM4: Ice Chiller | AN4: Multitask (Geothermal) | AO4: Water Source Heat Pump | AP4: Fan Coil System | AQ4: Exhaust Fan | AR4: HVAC Unique System | AS4: Electrical Panels | AT4: Emergency Generator | AU4: Motor Control Center | AV4: Primary Switch (High) | AW4: Primary Switch (Low) | AX4: Transformer (Dry-Type) | AY4: Uninterruptible Power Supply (UPS) | AZ4: Electrical Unique System | BA4: Hot Water Boiler | BB4: Condensing Water Heater | BC4: Electric Water Heater | BD4: Plumbing Unique System | BE4: Steam System | BF4: Pneumatic Compressor | BG4: Vertical Transportation | BH4: Life Safety | BI4: Backflow Preventor | BJ4: Rounds and Readings | BK4: Access Doors, Gates, Sally Port | BL4: Water Treatment | BM4: Building Exterior / Hardscape (Monthly) | BN4: Fountain Maintenance (Monthly) | BO4: Fuel Storage Tanks (Quarterly) If applicable | BP4: Landscape Maintenance * | BQ4: Account Management and Supervision (Monthly) | BR4: Fee (Monthly) | BV4: Snow Removal - (crew hourly rate) | BW4: Unclogging Blocked Toilet - In-custody holding cell (labor) | BX4: Unclogging Blocked Toilet - Public/Court Staff (labor) | BY4: Hourly Rate | BZ4: Markup on Materials | CA4: Markup on Subcontractors/Third-Parties
A5: =$B$2 -> 07-A14 | B5: A1 | C5: Access Doors, Gates, Sally Port | J5: 11 | K5: 0 | L5: =+K5*J5 -> 0 | M5: 0 | N5: 0 | O5: =+N5*M5 -> 0 | P5: 1 | Q5: 0 | R5: =+Q5*P5 -> 0 | S5: 12 | T5: =IF($V5>0,$S5,0) -> 12 | U5: =+R5+O5+L5+I5+F5 -> 0 | V5: =IFERROR(VLOOKUP($A$5,'Equipment List Template'!$1:$1048576,10,FALSE),"0") -> 1 | W5: =+U5*V5 -> 0 | Z5: JCC ID | AA5: Facility Name | AB5: Address | AC5: City / Town | AD5: County | AE5: Region | AF5: Region | AG5: System ID | AH5: H1 | AI5: H2 | AJ5: H3 | AK5: H4 | AL5: H5 | AM5: H6 | AN5: H7 | AO5: H8 | AP5: H9 | AQ5: H10 | AR5: H11 | AS5: E1 | AT5: E2 | AU5: E3 | AV5: E4 | AW5: E5 | AX5: E6 | AY5: E7 | AZ5: E8 | BA5: P1 | BB5: P2 | BC5: P3 | BD5: P4 | BE5: P5 | BF5: P6 | BG5: V1 | BH5: L1 | BI5: L2 | BJ5: R1 | BK5: A1 | BL5: W1 | BM5: B1 | BN5: F1 | BO5: F2 | BP5: G1 | BQ5: C1 | BR5: C2 | BV5: S1 | BW5: I1 | BX5: I2 | BY5: Hr 1 | BZ5: M1 | CA5: Sub1
A6: =$B$2 -> 07-A14 | B6: H1 | C6: Air Cooled DX (Package / Split System) | J6: 0 | K6: 0 | L6: =+K6*J6 -> 0 | M6: 3 | N6: 0 | O6: =+N6*M6 -> 0 | P6: 1 | Q6: 0 | R6: =+Q6*P6 -> 0 | S6: 4 | T6: =IF($V6>0,$S6,0) -> 4 | U6: =+R6+O6+L6+I6+F6 -> 0 | V6: =IFERROR(VLOOKUP($A$5,'Equipment List Template'!$1:$1048576,11,FALSE),"0") -> 4 | W6: =+U6*V6 -> 0 | Z6: =B2 -> 07-A14 | AA6: =IFERROR(VLOOKUP($Z$6,'Equipment List Template'!$1:$1048576,2,FALSE),"") -> Family Law Center | AB6: =IFERROR(VLOOKUP($Z$6,'Equipment List Template'!$1:$1048576,3,FALSE),"") -> 751 Pine Street | AC6: =IFERROR(VLOOKUP($Z$6,'Equipment List Template'!$1:$1048576,4,FALSE),"") -> Martinez | AD6: =IFERROR(VLOOKUP($Z$6,'Equipment List Template'!$1:$1048576,5,FALSE),"") -> 94553 | AE6: =IFERROR(VLOOKUP($Z$6,'Equipment List Template'!$1:$1048576,6,FALSE),"") -> Contra Costa | AF6: =IFERROR(VLOOKUP($Z$6,'Equipment List Template'!$1:$1048576,7,FALSE),"") -> BANCRO | AH6: =+$W5 -> 0 | AI6: =+$W6 -> 0 | AJ6: =+$W7 -> 0 | AK6: =+$W8 -> 0 | AL6: =+$W9 -> 0 | AM6: =+$W10 -> 0 | AN6: =+$W11 -> 0 | AO6: =+$W12 -> 0 | AP6: =+$W13 -> 0 | AQ6: =+$W14 -> 0 | AR6: =+$W15 -> 0 | AS6: =+$W16 -> 0 | AT6: =+$W17 -> 0 | AU6: =+$W18 -> 0 | AV6: =+$W19 -> 0 | AW6: =+$W20 -> 0 | AX6: =+$W21 -> 0 | AY6: =+$W22 -> 0 | AZ6: =+$W23 -> 0 | BA6: =+$W24 -> 0 | BB6: =+$W25 -> 0 | BC6: =+$W26 -> 0 | BD6: =+$W27 -> 0 | BE6: =+$W28 -> 0 | BF6: =+$W29 -> 0 | BG6: =+$W30 -> 0 | BH6: =+$W31 -> 0 | BI6: =+$W32 -> 0 | BJ6: =+$W33 -> 0 | BK6: =+$W34 -> 0 | BL6: =+$W35 -> 0 | BM6: =+$W36 -> 0 | BN6: =+$W37 -> 0 | BO6: =+$W38 -> 0 | BP6: =+$W39 -> 0 | BQ6: =+$W40 -> 0 | BR6: =+$W41 -> 0 | BT6: =+W42 -> 0 | BV6: =+D43 -> 0 | BW6: =+D44 -> 0 | BX6: =+D45 -> 0 | BY6: =+D46 -> 0 | BZ6: =+D47 -> 0 | CA6: =+D48 -> 0
A7: 07-A14 | B7: H2 | C7: Air Handling Unit (Air-cooled DX) | J7: 0 | K7: 0 | L7: 0 | M7: 3 | N7: 0 | O7: 0 | P7: 1 | Q7: 0 | R7: 0 | S7: 4 | T7: 4 | U7: 0 | V7: =IFERROR(VLOOKUP($A$5,'Equipment List Template'!$1:$1048576,12,FALSE),"0") -> 1 | W7: =+U7*V7 -> 0
A8: 07-A14 | B8: H3 | C8: Air-Cooled Chiller | G8: 40 | H8: 0 | I8: =+H8*G8 -> 0 | J8: 8 | K8: 0 | L8: 0 | M8: 3 | N8: 0 | O8: 0 | P8: 1 | Q8: 0 | R8: 0 | S8: 12 | T8: 0 | U8: 0 | V8: =IFERROR(VLOOKUP($A$5,'Equipment List Template'!$1:$1048576,13,FALSE),"0") -> 0 | W8: 0
A9: 07-A14 | B9: H4 | C9: Centrifugal Chiller | J9: 11 | K9: 0 | L9: 0 | M9: 0 | N9: 0 | O9: 0 | P9: 1 | Q9: 0 | R9: 0 | S9: 12 | T9: 0 | U9: 0 | V9: =IFERROR(VLOOKUP($A$5,'Equipment List Template'!$1:$1048576,14,FALSE),"0") -> 0 | W9: 0
A10: 07-A14 | B10: H5 | C10: Cooling Tower (Induced Draft) | J10: 8 | K10: 0 | L10: 0 | M10: 3 | N10: 0 | O10: 0 | P10: 1 | Q10: 0 | R10: 0 | S10: 12 | T10: 0 | U10: 0 | V10: =IFERROR(VLOOKUP($A$5,'Equipment List Template'!$1:$1048576,15,FALSE),"0") -> 0 | W10: 0
A11: 07-A14 | B11: H6 | C11: Ice Chiller | J11: 8 | K11: 0 | L11: 0 | M11: 3 | N11: 0 | O11: 0 | P11: 1 | Q11: 0 | R11: 0 | S11: 12 | T11: 0 | U11: 0 | V11: =IFERROR(VLOOKUP($A$5,'Equipment List Template'!$1:$1048576,16,FALSE),"0") -> 0 | W11: 0
A12: 07-A14 | B12: H7 | C12: MultiStack (Geothermal) | J12: 0 | K12: 0 | L12: 0 | M12: 0 | N12: 0 | O12: 0 | P12: 1 | Q12: 0 | R12: 0 | S12: 1 | T12: 0 | U12: 0 | V12: =IFERROR(VLOOKUP($A$5,'Equipment List Template'!$1:$1048576,17,FALSE),"0") -> 0 | W12: 0
A13: 07-A14 | B13: H8 | C13: Water Source Heat Pump | J13: 8 | K13: 0 | L13: 0 | M13: 3 | N13: 0 | O13: 0 | P13: 1 | Q13: 0 | R13: 0 | S13: 12 | T13: 0 | U13: 0 | V13: =IFERROR(VLOOKUP($A$5,'Equipment List Template'!$1:$1048576,18,FALSE),"0") -> 0 | W13: 0
A14: 07-A14 | B14: H9 | C14: Fan Coil System | J14: 0 | K14: 0 | L14: 0 | M14: 3 | N14: 0 | O14: 0 | P14: 1 | Q14: 0 | R14: 0 | S14: 4 | T14: 0 | U14: 0 | V14: =IFERROR(VLOOKUP($A$5,'Equipment List Template'!$1:$1048576,19,FALSE),"0") -> 0 | W14: 0
A15: 07-A14 | B15: H10 | C15: Exhaust Fan | J15: 0 | K15: 0 | L15: 0 | M15: 3 | N15: 0 | O15: 0 | P15: 1 | Q15: 0 | R15: 0 | S15: 4 | T15: 0 | U15: 0 | V15: =IFERROR(VLOOKUP($A$5,'Equipment List Template'!$1:$1048576,20,FALSE),"0") -> 0 | W15: 0
A16: 07-A14 | B16: H11 | C16: HVAC Unique System | J16: 8 | K16: 0 | L16: 0 | M16: 3 | N16: 0 | O16: 0 | P16: 1 | Q16: 0 | R16: 0 | S16: 12 | T16: 0 | U16: 0 | V16: =IFERROR(VLOOKUP($A$5,'Equipment List Template'!$1:$1048576,21,FALSE),"0") -> 0 | W16: 0
A17: 07-A14 | B17: E1 | C17: Electrical Panels | J17: 0 | K17: 0 | L17: 0 | M17: 3 | N17: 0 | O17: 0 | P17: 1 | Q17: 0 | R17: 0 | S17: 4 | T17: 0 | U17: 0 | V17: =IFERROR(VLOOKUP($A$5,'Equipment List Template'!$1:$1048576,22,FALSE),"0") -> 0 | W17: 0
A18: 07-A14 | B18: E2 | C18: Emergency Generator | J18: 0 | K18: 0 | L18: 0 | M18: 3 | N18: 0 | O18: 0 | P18: 1 | Q18: 0 | R18: 0 | S18: 4 | T18: 0 | U18: 0 | V18: =IFERROR(VLOOKUP($A$5,'Equipment List Template'!$1:$1048576,23,FALSE),"0") -> 0 | W18: 0
A19: 07-A14 | B19: E3 | C19: Motor Control Center | J19: 0 | K19: 0 | L19: 0 | M19: 4 | N19: 0 | O19: 0 | P19: 0 | Q19: 0 | R19: 0 | S19: 4 | T19: 0 | U19: 0 | V19: =IFERROR(VLOOKUP($A$5,'Equipment List Template'!$1:$1048576,24,FALSE),"0") -> 0 | W19: 0
A20: 07-A14 | B20: E4 | C20: Primary Switch (High) | J20: 8 | K20: 0 | L20: 0 | M20: 3 | N20: 0 | O20: 0 | P20: 1 | Q20: 0 | R20: 0 | S20: 12 | T20: 12 | U20: 0 | V20: =IFERROR(VLOOKUP($A$5,'Equipment List Template'!$1:$1048576,25,FALSE),"0") -> 1 | W20: 0
A21: 07-A14 | B21: E5 | C21: Primary Switch (Low) | J21: 8 | K21: 0 | L21: 0 | M21: 3 | N21: 0 | O21: 0 | P21: 1 | Q21: 0 | R21: 0 | S21: 12 | T21: 0 | U21: 0 | V21: =IFERROR(VLOOKUP($A$5,'Equipment List Template'!$1:$1048576,26,FALSE),"0") -> 0 | W21: 0
A22: 07-A14 | B22: E6 | C22: Transformer (Dry-Type) | J22: 0 | K22: 0 | L22: 0 | M22: 3 | N22: 0 | O22: 0 | P22: 1 | Q22: 0 | R22: 0 | S22: 4 | T22: 0 | U22: 0 | V22: =IFERROR(VLOOKUP($A$5,'Equipment List Template'!$1:$1048576,27,FALSE),"0") -> 0 | W22: 0
A23: 07-A14 | B23: E7 | C23: Uninterruptible Power Supply (UPS) | J23: 0 | K23: 0 | L23: 0 | M23: 0 | N23: 0 | O23: 0 | P23: 1 | Q23: 0 | R23: 0 | S23: 1 | T23: 0 | U23: 0 | V23: =IFERROR(VLOOKUP($A$5,'Equipment List Template'!$1:$1048576,28,FALSE),"0") -> 0 | W23: 0
A24: 07-A14 | B24: E8 | C24: Electrical Unique System | J24: 8 | K24: 0 | L24: 0 | M24: 3 | N24: 0 | O24: 0 | P24: 1 | Q24: 0 | R24: 0 | S24: 12 | T24: 0 | U24: 0 | V24: =IFERROR(VLOOKUP($A$5,'Equipment List Template'!$1:$1048576,29,FALSE),"0") -> 0 | W24: 0
A25: 07-A14 | B25: L1 | C25: Life Safety | J25: 0 | K25: 0 | L25: 0 | M25: 3 | N25: 0 | O25: 0 | P25: 1 | Q25: 0 | R25: 0 | S25: 4 | T25: 4 | U25: 0 | V25: =IFERROR(VLOOKUP($A$5,'Equipment List Template'!$1:$1048576,30,FALSE),"0") -> 1 | W25: =+U25*V25 -> 0
A26: 07-A14 | B26: L2 | C26: Backflow Preventor(s) | J26: 0 | K26: 0 | L26: 0 | M26: 0 | N26: 0 | O26: 0 | P26: 1 | Q26: 0 | R26: 0 | S26: 1 | T26: 1 | U26: 0 | V26: =IFERROR(VLOOKUP($A$5,'Equipment List Template'!$1:$1048576,31,FALSE),"0") -> 4 | W26: =+U26*V26 -> 0
A27: 07-A14 | B27: P1 | C27: Hot Water Boiler | J27: 8 | K27: 0 | L27: 0 | M27: 3 | N27: 0 | O27: 0 | P27: 1 | Q27: 0 | R27: 0 | S27: 12 | T27: 12 | U27: 0 | V27: =IFERROR(VLOOKUP($A$5,'Equipment List Template'!$1:$1048576,32,FALSE),"0") -> 1 | W27: 0
A28: 07-A14 | B28: P2 | C28: Condensing Water Heater | J28: 0 | K28: 0 | L28: 0 | M28: 0 | N28: 0 | O28: 0 | P28: 1 | Q28: 0 | R28: 0 | S28: 1 | T28: 1 | U28: 0 | V28: =IFERROR(VLOOKUP($A$5,'Equipment List Template'!$1:$1048576,33,FALSE),"0") -> 1 | W28: 0
A29: 07-A14 | B29: P3 | C29: Electric Water Heater | J29: 0 | K29: 0 | L29: 0 | M29: 0 | N29: 0 | O29: 0 | P29: 1 | Q29: 0 | R29: 0 | S29: 1 | T29: 0 | U29: 0 | V29: =IFERROR(VLOOKUP($A$5,'Equipment List Template'!$1:$1048576,34,FALSE),"0") -> 0 | W29: 0
A30: 07-A14 | B30: P4 | C30: Plumbing Unique System | J30: 0 | K30: 0 | L30: 0 | M30: 3 | N30: 0 | O30: 0 | P30: 1 | Q30: 0 | R30: 0 | S30: 4 | T30: 0 | U30: 0 | V30: =IFERROR(VLOOKUP($A$5,'Equipment List Template'!$1:$1048576,35,FALSE),"0") -> 0 | W30: 0
A31: 07-A14 | B31: P5 | C31: Steam System | J31: 0 | K31: 0 | L31: 0 | M31: 3 | N31: 0 | O31: 0 | P31: 1 | Q31: 0 | R31: 0 | S31: 4 | T31: 0 | U31: 0 | V31: =IFERROR(VLOOKUP($A$5,'Equipment List Template'!$1:$1048576,36,FALSE),"0") -> 0 | W31: 0
A32: 07-A14 | B32: P6 | C32: Pneumatic Compressor | J32: 11 | K32: 0 | L32: 0 | M32: 0 | N32: 0 | O32: 0 | P32: 1 | Q32: 0 | R32: 0 | S32: 12 | T32: 0 | U32: 0 | V32: =IFERROR(VLOOKUP($A$5,'Equipment List Template'!$1:$1048576,37,FALSE),"0") -> 0 | W32: 0
A33: 07-A14 | B33: R1 | C33: Rounds and Readings | D33: =IFERROR(IF(VLOOKUP($A33,'Equipment List Template'!$1:$1048576,38,FALSE)=260,248,0),0) -> 0 | E33: 0 | F33: =+E33*D33 -> 0 | G33: =IFERROR(IF(VLOOKUP($A33,'Equipment List Template'!$1:$1048576,38,FALSE)=52,40,0),0) -> 40 | H33: 0 | I33: =+H33*G33 -> 0 | J33: 12 | K33: 0 | L33: 0 | S33: 12 | T33: 12 | U33: =+R33+O33+L33+I33+F33 -> 0 | V33: 1 | W33: =+U33*V33 -> 0
A34: 07-A14 | B34: V1 | C34: Vertical Transportation | J34: 8 | K34: 0 | L34: =+K34*J34 -> 0 | M34: 3 | N34: 0 | O34: =+N34*M34 -> 0 | P34: 1 | Q34: 0 | R34: =+Q34*P34 -> 0 | S34: 12 | T34: 12 | U34: =+R34+O34+L34 -> 0 | V34: =IFERROR(VLOOKUP($A$5,'Equipment List Template'!$1:$1048576,39,FALSE),"0") -> 1 | W34: =+U34*V34 -> 0
A35: 07-A14 | B35: W1 | C35: Water Treatment | D35: =IFERROR(IF(VLOOKUP($A35,'Equipment List Template'!$1:$1048576,40,FALSE)=260,260,0),0) -> 0 | E35: 0 | F35: =+E35*D35 -> 0 | S35: 0 | T35: 0 | U35: =+R35+O35+L35+I35+F35 -> 0 | V35: 1 | W35: 0
A36: 07-A14 | B36: B1 | C36: Building Exterior / Hardscape (Monthly) | J36: 12 | K36: 0 | L36: =+K36*J36 -> 0 | S36: 12 | T36: 12 | U36: 0 | V36: 1 | W36: 0
A37: 07-A14 | B37: F1 | C37: Fountain Maintenance (Monthly) | J37: 12 | K37: 0 | L37: 0 | S37: 12 | T37: 12 | U37: 0 | V37: 1 | W37: 0
A38: 07-A14 | B38: F2 | C38: Fuel Storage Tanks (Quarterly) If applicable | M38: 4 | N38: 0 | O38: =+N38*M38 -> 0 | S38: 4 | T38: 4 | U38: 0 | V38: 1 | W38: 0
A39: 07-A14 | B39: G1 | C39: Landscape Maintenance * | G39: 40 | H39: 0 | I39: =+H39*G39 -> 0 | S39: 0 | T39: 0 | U39: 0 | V39: 1 | W39: 0
A40: 07-A14 | B40: C1 | C40: Account Management and Supervision (Monthly) | J40: 12 | K40: 0 | L40: =+K40*J40 -> 0 | S40: 12 | T40: 12 | U40: 0 | V40: 1 | W40: 0
A41: 07-A14 | B41: C2 | C41: Fee (Monthly) | J41: 12 | K41: 0 | L41: 0 | S41: 12 | T41: 12 | U41: 0 | V41: 1 | W41: 0
Q42: JCC ID | R42: =B2 -> 07-A14 | U42: Total | W42: =SUM(W6:W41) -> 0
B43: S1 | C43: Snow Removal - (crew hourly rate) | D43: 0 | U43: Total # of PM's | W43: =SUM(T5:T41) -> 126
B44: I1 | C44: Unclogging Blocked Toilet - In-custody cell (labor-only) | D44: 0
B45: I2 | C45: Unclogging Blocked Toilet - Public/Court Staff (labor-only) | D45: 0
B46: Hr 1 | C46: Hourly Rate (All Labor categories) | D46: 0
B47: M1 | C47: Markup on Materials (Percentage) | D47: 0
B48: Sub1 | C48: Markup on Subcontractors/Third-Parties (Percentage) | D48: 0
B50: * Landscape Maintenance varies by location on the number of weeks per year it can be preformed. For the purpose of the RFP, all facilities are pre-established at 40 weeks of service. The actual amount paid by facility will be based upon the actual weeks that service has been performed, validated and invoiced.

Sheet 07-A2
B1: JCC ID | C1: Facility Name | D1: Address | F1: City / Town | H1: Zip Code | J1: County | L1: Region | N1: RFP | P1: Proposer
B2: 07-A2 | C2: =IFERROR(VLOOKUP($B$2,'Equipment List Template'!$1:$1048576,2,FALSE),"") -> Wakefield Taylor Courthouse | D2: =IFERROR(VLOOKUP($B$2,'Equipment List Template'!$1:$1048576,3,FALSE),"") -> 725 Court St. | F2: =IFERROR(VLOOKUP($B$2,'Equipment List Template'!$1:$1048576,4,FALSE),"") -> Martinez | H2: =IFERROR(VLOOKUP($B$2,'Equipment List Template'!$1:$1048576,5,FALSE),"") -> 94553 | J2: =IFERROR(VLOOKUP($B$2,'Equipment List Template'!$1:$1048576,6,FALSE),"") -> Contra Costa | L2: =IFERROR(VLOOKUP($B$2,'Equipment List Template'!$1:$1048576,7,FALSE),"") -> BANCRO | N2: ='Summary Pricing Sheet'!B2 -> RFP-FS-SP-2019-03-JP | P2: ='Summary Pricing Sheet'!B3 -> Firm Name TBD
D3: Daily Activity | G3: Weekly Activity | J3: Monthly Activity | M3: Quarterly Activity | P3: Annual Activity | U3: Summary | AG3: System | AH3: HVAC | AS3: Electrical | BA3: Plumbing | BE3: Building Systems | BP3: Corporate | BT3: Fixed Price - Facility Total Annual Cost Year 1
B4: System ID | C4: Subsystem | D4: Quantity | E4: Cost | F4: Daily Total | G4: Quantity | H4: Cost | I4: Weekly Total | J4: Monthly Quantity | K4: Cost | L4: Monthly Total | M4: Quarterly Quantity | N4: Cost | O4: Quarterly Total | P4: Annual Quantity | Q4: Cost | R4: Annual PM Total | T4: Number of PM's | U4: Annual Cost | V4: Quantity | W4: Total Annual Cost | AG4: Subsystem | AH4: Air Cooled DX (Package / Split System) | AI4: Air Handling Unit (Air-cooled DX) | AJ4: Air-Cooled Chiller | AK4: Centrifugal Chiller | AL4: Cooling Tower (Induced Draft) | AM4: Ice Chiller | AN4: Multitask (Geothermal) | AO4: Water Source Heat Pump | AP4: Fan Coil System | AQ4: Exhaust Fan | AR4: HVAC Unique System | AS4: Electrical Panels | AT4: Emergency Generator | AU4: Motor Control Center | AV4: Primary Switch (High) | AW4: Primary Switch (Low) | AX4: Transformer (Dry-Type) | AY4: Uninterruptible Power Supply (UPS) | AZ4: Electrical Unique System | BA4: Hot Water Boiler | BB4: Condensing Water Heater | BC4: Electric Water Heater | BD4: Plumbing Unique System | BE4: Steam System | BF4: Pneumatic Compressor | BG4: Vertical Transportation | BH4: Life Safety | BI4: Backflow Preventor | BJ4: Rounds and Readings | BK4: Access Doors, Gates, Sally Port | BL4: Water Treatment | BM4: Building Exterior / Hardscape (Monthly) | BN4: Fountain Maintenance (Monthly) | BO4: Fuel Storage Tanks (Quarterly) If applicable | BP4: Landscape Maintenance * | BQ4: Account Management and Supervision (Monthly) | BR4: Fee (Monthly) | BV4: Snow Removal - (crew hourly rate) | BW4: Unclogging Blocked Toilet - In-custody holding cell (labor) | BX4: Unclogging Blocked Toilet - Public/Court Staff (labor) | BY4: Hourly Rate | BZ4: Markup on Materials | CA4: Markup on Subcontractors/Third-Parties
A5: =$B$2 -> 07-A2 | B5: A1 | C5: Access Doors, Gates, Sally Port | J5: 11 | K5: 0 | L5: =+K5*J5 -> 0 | M5: 0 | N5: 0 | O5: =+N5*M5 -> 0 | P5: 1 | Q5: 0 | R5: =+Q5*P5 -> 0 | S5: 12 | T5: =IF($V5>0,$S5,0) -> 12 | U5: =+R5+O5+L5+I5+F5 -> 0 | V5: =IFERROR(VLOOKUP($A$5,'Equipment List Template'!$1:$1048576,10,FALSE),"0") -> 1 | W5: =+U5*V5 -> 0 | Z5: JCC ID | AA5: Facility Name | AB5: Address | AC5: City / Town | AD5: County | AE5: Region | AF5: Region | AG5: System ID | AH5: H1 | AI5: H2 | AJ5: H3 | AK5: H4 | AL5: H5 | AM5: H6 | AN5: H7 | AO5: H8 | AP5: H9 | AQ5: H10 | AR5: H11 | AS5: E1 | AT5: E2 | AU5: E3 | AV5: E4 | AW5: E5 | AX5: E6 | AY5: E7 | AZ5: E8 | BA5: P1 | BB5: P2 | BC5: P3 | BD5: P4 | BE5: P5 | BF5: P6 | BG5: V1 | BH5: L1 | BI5: L2 | BJ5: R1 | BK5: A1 | BL5: W1 | BM5: B1 | BN5: F1 | BO5: F2 | BP5: G1 | BQ5: C1 | BR5: C2 | BV5: S1 | BW5: I1 | BX5: I2 | BY5: Hr 1 | BZ5: M1 | CA5: Sub1
A6: =$B$2 -> 07-A2 | B6: H1 | C6: Air Cooled DX (Package / Split System) | J6: 0 | K6: 0 | L6: =+K6*J6 -> 0 | M6: 3 | N6: 0 | O6: =+N6*M6 -> 0 | P6: 1 | Q6: 0 | R6: =+Q6*P6 -> 0 | S6: 4 | T6: =IF($V6>0,$S6,0) -> 4 | U6: =+R6+O6+L6+I6+F6 -> 0 | V6: =IFERROR(VLOOKUP($A$5,'Equipment List Template'!$1:$1048576,11,FALSE),"0") -> 3 | W6: =+U6*V6 -> 0 | Z6: =B2 -> 07-A2 | AA6: =IFERROR(VLOOKUP($Z$6,'Equipment List Template'!$1:$1048576,2,FALSE),"") -> Wakefield Taylor Courthouse | AB6: =IFERROR(VLOOKUP($Z$6,'Equipment List Template'!$1:$1048576,3,FALSE),"") -> 725 Court St. | AC6: =IFERROR(VLOOKUP($Z$6,'Equipment List Template'!$1:$1048576,4,FALSE),"") -> Martinez | AD6: =IFERROR(VLOOKUP($Z$6,'Equipment List Template'!$1:$1048576,5,FALSE),"") -> 94553 | AE6: =IFERROR(VLOOKUP($Z$6,'Equipment List Template'!$1:$1048576,6,FALSE),"") -> Contra Costa | AF6: =IFERROR(VLOOKUP($Z$6,'Equipment List Template'!$1:$1048576,7,FALSE),"") -> BANCRO | AH6: =+$W5 -> 0 | AI6: =+$W6 -> 0 | AJ6: =+$W7 -> 0 | AK6: =+$W8 -> 0 | AL6: =+$W9 -> 0 | AM6: =+$W10 -> 0 | AN6: =+$W11 -> 0 | AO6: =+$W12 -> 0 | AP6: =+$W13 -> 0 | AQ6: =+$W14 -> 0 | AR6: =+$W15 -> 0 | AS6: =+$W16 -> 0 | AT6: =+$W17 -> 0 | AU6: =+$W18 -> 0 | AV6: =+$W19 -> 0 | AW6: =+$W20 -> 0 | AX6: =+$W21 -> 0 | AY6: =+$W22 -> 0 | AZ6: =+$W23 -> 0 | BA6: =+$W24 -> 0 | BB6: =+$W25 -> 0 | BC6: =+$W26 -> 0 | BD6: =+$W27 -> 0 | BE6: =+$W28 -> 0 | BF6: =+$W29 -> 0 | BG6: =+$W30 -> 0 | BH6: =+$W31 -> 0 | BI6: =+$W32 -> 0 | BJ6: =+$W33 -> 0 | BK6: =+$W34 -> 0 | BL6: =+$W35 -> 0 | BM6: =+$W36 -> 0 | BN6: =+$W37 -> 0 | BO6: =+$W38 -> 0 | BP6: =+$W39 -> 0 | BQ6: =+$W40 -> 0 | BR6: =+$W41 -> 0 | BT6: =+W42 -> 0 | BV6: =+D43 -> 0 | BW6: =+D44 -> 0 | BX6: =+D45 -> 0 | BY6: =+D46 -> 0 | BZ6: =+D47 -> 0 | CA6: =+D48 -> 0
A7: 07-A2 | B7: H2 | C7: Air Handling Unit (Air-cooled DX) | J7: 0 | K7: 0 | L7: 0 | M7: 3 | N7: 0 | O7: 0 | P7: 1 | Q7: 0 | R7: 0 | S7: 4 | T7: 0 | U7: 0 | V7: =IFERROR(VLOOKUP($A$5,'Equipment List Template'!$1:$1048576,12,FALSE),"0") -> 0 | W7: =+U7*V7 -> 0
A8: 07-A2 | B8: H3 | C8: Air-Cooled Chiller | G8: 40 | H8: 0 | I8: =+H8*G8 -> 0 | J8: 8 | K8: 0 | L8: 0 | M8: 3 | N8: 0 | O8: 0 | P8: 1 | Q8: 0 | R8: 0 | S8: 12 | T8: 0 | U8: 0 | V8: =IFERROR(VLOOKUP($A$5,'Equipment List Template'!$1:$1048576,13,FALSE),"0") -> 0 | W8: 0
A9: 07-A2 | B9: H4 | C9: Centrifugal Chiller | J9: 11 | K9: 0 | L9: 0 | M9: 0 | N9: 0 | O9: 0 | P9: 1 | Q9: 0 | R9: 0 | S9: 12 | T9: 0 | U9: 0 | V9: =IFERROR(VLOOKUP($A$5,'Equipment List Template'!$1:$1048576,14,FALSE),"0") -> 0 | W9: 0
A10: 07-A2 | B10: H5 | C10: Cooling Tower (Induced Draft) | J10: 8 | K10: 0 | L10: 0 | M10: 3 | N10: 0 | O10: 0 | P10: 1 | Q10: 0 | R10: 0 | S10: 12 | T10: 12 | U10: 0 | V10: =IFERROR(VLOOKUP($A$5,'Equipment List Template'!$1:$1048576,15,FALSE),"0") -> 1 | W10: 0
A11: 07-A2 | B11: H6 | C11: Ice Chiller | J11: 8 | K11: 0 | L11: 0 | M11: 3 | N11: 0 | O11: 0 | P11: 1 | Q11: 0 | R11: 0 | S11: 12 | T11: 0 | U11: 0 | V11: =IFERROR(VLOOKUP($A$5,'Equipment List Template'!$1:$1048576,16,FALSE),"0") -> 0 | W11: 0
A12: 07-A2 | B12: H7 | C12: MultiStack (Geothermal) | J12: 0 | K12: 0 | L12: 0 | M12: 0 | N12: 0 | O12: 0 | P12: 1 | Q12: 0 | R12: 0 | S12: 1 | T12: 0 | U12: 0 | V12: =IFERROR(VLOOKUP($A$5,'Equipment List Template'!$1:$1048576,17,FALSE),"0") -> 0 | W12: 0
A13: 07-A2 | B13: H8 | C13: Water Source Heat Pump | J13: 8 | K13: 0 | L13: 0 | M13: 3 | N13: 0 | O13: 0 | P13: 1 | Q13: 0 | R13: 0 | S13: 12 | T13: 12 | U13: 0 | V13: =IFERROR(VLOOKUP($A$5,'Equipment List Template'!$1:$1048576,18,FALSE),"0") -> 2 | W13: 0
A14: 07-A2 | B14: H9 | C14: Fan Coil System | J14: 0 | K14: 0 | L14: 0 | M14: 3 | N14: 0 | O14: 0 | P14: 1 | Q14: 0 | R14: 0 | S14: 4 | T14: 0 | U14: 0 | V14: =IFERROR(VLOOKUP($A$5,'Equipment List Template'!$1:$1048576,19,FALSE),"0") -> 0 | W14: 0
A15: 07-A2 | B15: H10 | C15: Exhaust Fan | J15: 0 | K15: 0 | L15: 0 | M15: 3 | N15: 0 | O15: 0 | P15: 1 | Q15: 0 | R15: 0 | S15: 4 | T15: 4 | U15: 0 | V15: =IFERROR(VLOOKUP($A$5,'Equipment List Template'!$1:$1048576,20,FALSE),"0") -> 6 | W15: 0
A16: 07-A2 | B16: H11 | C16: HVAC Unique System | J16: 8 | K16: 0 | L16: 0 | M16: 3 | N16: 0 | O16: 0 | P16: 1 | Q16: 0 | R16: 0 | S16: 12 | T16: 0 | U16: 0 | V16: =IFERROR(VLOOKUP($A$5,'Equipment List Template'!$1:$1048576,21,FALSE),"0") -> 0 | W16: 0
A17: 07-A2 | B17: E1 | C17: Electrical Panels | J17: 0 | K17: 0 | L17: 0 | M17: 3 | N17: 0 | O17: 0 | P17: 1 | Q17: 0 | R17: 0 | S17: 4 | T17: 0 | U17: 0 | V17: =IFERROR(VLOOKUP($A$5,'Equipment List Template'!$1:$1048576,22,FALSE),"0") -> 0 | W17: 0
A18: 07-A2 | B18: E2 | C18: Emergency Generator | J18: 0 | K18: 0 | L18: 0 | M18: 3 | N18: 0 | O18: 0 | P18: 1 | Q18: 0 | R18: 0 | S18: 4 | T18: 4 | U18: 0 | V18: =IFERROR(VLOOKUP($A$5,'Equipment List Template'!$1:$1048576,23,FALSE),"0") -> 1 | W18: 0
A19: 07-A2 | B19: E3 | C19: Motor Control Center | J19: 0 | K19: 0 | L19: 0 | M19: 4 | N19: 0 | O19: 0 | P19: 0 | Q19: 0 | R19: 0 | S19: 4 | T19: 0 | U19: 0 | V19: =IFERROR(VLOOKUP($A$5,'Equipment List Template'!$1:$1048576,24,FALSE),"0") -> 0 | W19: 0
A20: 07-A2 | B20: E4 | C20: Primary Switch (High) | J20: 8 | K20: 0 | L20: 0 | M20: 3 | N20: 0 | O20: 0 | P20: 1 | Q20: 0 | R20: 0 | S20: 12 | T20: 12 | U20: 0 | V20: =IFERROR(VLOOKUP($A$5,'Equipment List Template'!$1:$1048576,25,FALSE),"0") -> 1 | W20: 0
A21: 07-A2 | B21: E5 | C21: Primary Switch (Low) | J21: 8 | K21: 0 | L21: 0 | M21: 3 | N21: 0 | O21: 0 | P21: 1 | Q21: 0 | R21: 0 | S21: 12 | T21: 0 | U21: 0 | V21: =IFERROR(VLOOKUP($A$5,'Equipment List Template'!$1:$1048576,26,FALSE),"0") -> 0 | W21: 0
A22: 07-A2 | B22: E6 | C22: Transformer (Dry-Type) | J22: 0 | K22: 0 | L22: 0 | M22: 3 | N22: 0 | O22: 0 | P22: 1 | Q22: 0 | R22: 0 | S22: 4 | T22: 0 | U22: 0 | V22: =IFERROR(VLOOKUP($A$5,'Equipment List Template'!$1:$1048576,27,FALSE),"0") -> 0 | W22: 0
A23: 07-A2 | B23: E7 | C23: Uninterruptible Power Supply (UPS) | J23: 0 | K23: 0 | L23: 0 | M23: 0 | N23: 0 | O23: 0 | P23: 1 | Q23: 0 | R23: 0 | S23: 1 | T23: 0 | U23: 0 | V23: =IFERROR(VLOOKUP($A$5,'Equipment List Template'!$1:$1048576,28,FALSE),"0") -> 0 | W23: 0
A24: 07-A2 | B24: E8 | C24: Electrical Unique System | J24: 8 | K24: 0 | L24: 0 | M24: 3 | N24: 0 | O24: 0 | P24: 1 | Q24: 0 | R24: 0 | S24: 12 | T24: 0 | U24: 0 | V24: =IFERROR(VLOOKUP($A$5,'Equipment List Template'!$1:$1048576,29,FALSE),"0") -> 0 | W24: 0
A25: 07-A2 | B25: L1 | C25: Life Safety | J25: 0 | K25: 0 | L25: 0 | M25: 3 | N25: 0 | O25: 0 | P25: 1 | Q25: 0 | R25: 0 | S25: 4 | T25: 4 | U25: 0 | V25: =IFERROR(VLOOKUP($A$5,'Equipment List Template'!$1:$1048576,30,FALSE),"0") -> 1 | W25: =+U25*V25 -> 0
A26: 07-A2 | B26: L2 | C26: Backflow Preventor(s) | J26: 0 | K26: 0 | L26: 0 | M26: 0 | N26: 0 | O26: 0 | P26: 1 | Q26: 0 | R26: 0 | S26: 1 | T26: 1 | U26: 0 | V26: =IFERROR(VLOOKUP($A$5,'Equipment List Template'!$1:$1048576,31,FALSE),"0") -> 6 | W26: =+U26*V26 -> 0
A27: 07-A2 | B27: P1 | C27: Hot Water Boiler | J27: 8 | K27: 0 | L27: 0 | M27: 3 | N27: 0 | O27: 0 | P27: 1 | Q27: 0 | R27: 0 | S27: 12 | T27: 12 | U27: 0 | V27: =IFERROR(VLOOKUP($A$5,'Equipment List Template'!$1:$1048576,32,FALSE),"0") -> 2 | W27: 0
A28: 07-A2 | B28: P2 | C28: Condensing Water Heater | J28: 0 | K28: 0 | L28: 0 | M28: 0 | N28: 0 | O28: 0 | P28: 1 | Q28: 0 | R28: 0 | S28: 1 | T28: 0 | U28: 0 | V28: =IFERROR(VLOOKUP($A$5,'Equipment List Template'!$1:$1048576,33,FALSE),"0") -> 0 | W28: 0
A29: 07-A2 | B29: P3 | C29: Electric Water Heater | J29: 0 | K29: 0 | L29: 0 | M29: 0 | N29: 0 | O29: 0 | P29: 1 | Q29: 0 | R29: 0 | S29: 1 | T29: 0 | U29: 0 | V29: =IFERROR(VLOOKUP($A$5,'Equipment List Template'!$1:$1048576,34,FALSE),"0") -> 0 | W29: 0
A30: 07-A2 | B30: P4 | C30: Plumbing Unique System | J30: 0 | K30: 0 | L30: 0 | M30: 3 | N30: 0 | O30: 0 | P30: 1 | Q30: 0 | R30: 0 | S30: 4 | T30: 0 | U30: 0 | V30: =IFERROR(VLOOKUP($A$5,'Equipment List Template'!$1:$1048576,35,FALSE),"0") -> 0 | W30: 0
A31: 07-A2 | B31: P5 | C31: Steam System | J31: 0 | K31: 0 | L31: 0 | M31: 3 | N31: 0 | O31: 0 | P31: 1 | Q31: 0 | R31: 0 | S31: 4 | T31: 0 | U31: 0 | V31: =IFERROR(VLOOKUP($A$5,'Equipment List Template'!$1:$1048576,36,FALSE),"0") -> 0 | W31: 0
A32: 07-A2 | B32: P6 | C32: Pneumatic Compressor | J32: 11 | K32: 0 | L32: 0 | M32: 0 | N32: 0 | O32: 0 | P32: 1 | Q32: 0 | R32: 0 | S32: 12 | T32: 12 | U32: 0 | V32: =IFERROR(VLOOKUP($A$5,'Equipment List Template'!$1:$1048576,37,FALSE),"0") -> 3 | W32: 0
A33: 07-A2 | B33: R1 | C33: Rounds and Readings | D33: =IFERROR(IF(VLOOKUP($A33,'Equipment List Template'!$1:$1048576,38,FALSE)=260,248,0),0) -> 248 | E33: 0 | F33: =+E33*D33 -> 0 | G33: =IFERROR(IF(VLOOKUP($A33,'Equipment List Template'!$1:$1048576,38,FALSE)=52,40,0),0) -> 0 | H33: 0 | I33: =+H33*G33 -> 0 | J33: 12 | K33: 0 | L33: 0 | S33: 12 | T33: 12 | U33: =+R33+O33+L33+I33+F33 -> 0 | V33: 1 | W33: =+U33*V33 -> 0
A34: 07-A2 | B34: V1 | C34: Vertical Transportation | J34: 8 | K34: 0 | L34: =+K34*J34 -> 0 | M34: 3 | N34: 0 | O34: =+N34*M34 -> 0 | P34: 1 | Q34: 0 | R34: =+Q34*P34 -> 0 | S34: 12 | T34: 12 | U34: =+R34+O34+L34 -> 0 | V34: =IFERROR(VLOOKUP($A$5,'Equipment List Template'!$1:$1048576,39,FALSE),"0") -> 2 | W34: =+U34*V34 -> 0
A35: 07-A2 | B35: W1 | C35: Water Treatment | D35: =IFERROR(IF(VLOOKUP($A35,'Equipment List Template'!$1:$1048576,40,FALSE)=260,260,0),0) -> 260 | E35: 0 | F35: =+E35*D35 -> 0 | S35: 0 | T35: 0 | U35: =+R35+O35+L35+I35+F35 -> 0 | V35: 1 | W35: 0
A36: 07-A2 | B36: B1 | C36: Building Exterior / Hardscape (Monthly) | J36: 12 | K36: 0 | L36: =+K36*J36 -> 0 | S36: 12 | T36: 12 | U36: 0 | V36: 1 | W36: 0
A37: 07-A2 | B37: F1 | C37: Fountain Maintenance (Monthly) | J37: 12 | K37: 0 | L37: 0 | S37: 12 | T37: 12 | U37: 0 | V37: 1 | W37: 0
A38: 07-A2 | B38: F2 | C38: Fuel Storage Tanks (Quarterly) If applicable | M38: 4 | N38: 0 | O38: =+N38*M38 -> 0 | S38: 4 | T38: 4 | U38: 0 | V38: 1 | W38: 0
A39: 07-A2 | B39: G1 | C39: Landscape Maintenance * | G39: 40 | H39: 0 | I39: =+H39*G39 -> 0 | S39: 0 | T39: 0 | U39: 0 | V39: 1 | W39: 0
A40: 07-A2 | B40: C1 | C40: Account Management and Supervision (Monthly) | J40: 12 | K40: 0 | L40: =+K40*J40 -> 0 | S40: 12 | T40: 12 | U40: 0 | V40: 1 | W40: 0
A41: 07-A2 | B41: C2 | C41: Fee (Monthly) | J41: 12 | K41: 0 | L41: 0 | S41: 12 | T41: 12 | U41: 0 | V41: 1 | W41: 0
Q42: JCC ID | R42: =B2 -> 07-A2 | U42: Total | W42: =SUM(W6:W41) -> 0
B43: S1 | C43: Snow Removal - (crew hourly rate) | D43: 0 | U43: Total # of PM's | W43: =SUM(T5:T41) -> 165
B44: I1 | C44: Unclogging Blocked Toilet - In-custody cell (labor-only) | D44: 0
B45: I2 | C45: Unclogging Blocked Toilet - Public/Court Staff (labor-only) | D45: 0
B46: Hr 1 | C46: Hourly Rate (All Labor categories) | D46: 0
B47: M1 | C47: Markup on Materials (Percentage) | D47: 0
B48: Sub1 | C48: Markup on Subcontractors/Third-Parties (Percentage) | D48: 0
B50: * Landscape Maintenance varies by location on the number of weeks per year it can be preformed. For the purpose of the RFP, all facilities are pre-established at 40 weeks of service. The actual amount paid by facility will be based upon the actual weeks that service has been performed, validated and invoiced.

Sheet 07-A3
B1: JCC ID | C1: Facility Name | D1: Address | F1: City / Town | H1: Zip Code | J1: County | L1: Region | N1: RFP | P1: Proposer
B2: 07-A3 | C2: =IFERROR(VLOOKUP($B$2,'Equipment List Template'!$1:$1048576,2,FALSE),"") -> Bray Courts | D2: =IFERROR(VLOOKUP($B$2,'Equipment List Template'!$1:$1048576,3,FALSE),"") -> 1020 Ward St. | F2: =IFERROR(VLOOKUP($B$2,'Equipment List Template'!$1:$1048576,4,FALSE),"") -> Martinez | H2: =IFERROR(VLOOKUP($B$2,'Equipment List Template'!$1:$1048576,5,FALSE),"") -> 94553 | J2: =IFERROR(VLOOKUP($B$2,'Equipment List Template'!$1:$1048576,6,FALSE),"") -> Contra Costa | L2: =IFERROR(VLOOKUP($B$2,'Equipment List Template'!$1:$1048576,7,FALSE),"") -> BANCRO | N2: ='Summary Pricing Sheet'!B2 -> RFP-FS-SP-2019-03-JP | P2: ='Summary Pricing Sheet'!B3 -> Firm Name TBD
D3: Daily Activity | G3: Weekly Activity | J3: Monthly Activity | M3: Quarterly Activity | P3: Annual Activity | U3: Summary | AG3: System | AH3: HVAC | AS3: Electrical | BA3: Plumbing | BE3: Building Systems | BP3: Corporate | BT3: Fixed Price - Facility Total Annual Cost Year 1
B4: System ID | C4: Subsystem | D4: Quantity | E4: Cost | F4: Daily Total | G4: Quantity | H4: Cost | I4: Weekly Total | J4: Monthly Quantity | K4: Cost | L4: Monthly Total | M4: Quarterly Quantity | N4: Cost | O4: Quarterly Total | P4: Annual Quantity | Q4: Cost | R4: Annual PM Total | T4: Number of PM's | U4: Annual Cost | V4: Quantity | W4: Total Annual Cost | AG4: Subsystem | AH4: Air Cooled DX (Package / Split System) | AI4: Air Handling Unit (Air-cooled DX) | AJ4: Air-Cooled Chiller | AK4: Centrifugal Chiller | AL4: Cooling Tower (Induced Draft) | AM4: Ice Chiller | AN4: Multitask (Geothermal) | AO4: Water Source Heat Pump | AP4: Fan Coil System | AQ4: Exhaust Fan | AR4: HVAC Unique System | AS4: Electrical Panels | AT4: Emergency Generator | AU4: Motor Control Center | AV4: Primary Switch (High) | AW4: Primary Switch (Low) | AX4: Transformer (Dry-Type) | AY4: Uninterruptible Power Supply (UPS) | AZ4: Electrical Unique System | BA4: Hot Water Boiler | BB4: Condensing Water Heater | BC4: Electric Water Heater | BD4: Plumbing Unique System | BE4: Steam System | BF4: Pneumatic Compressor | BG4: Vertical Transportation | BH4: Life Safety | BI4: Backflow Preventor | BJ4: Rounds and Readings | BK4: Access Doors, Gates, Sally Port | BL4: Water Treatment | BM4: Building Exterior / Hardscape (Monthly) | BN4: Fountain Maintenance (Monthly) | BO4: Fuel Storage Tanks (Quarterly) If applicable | BP4: Landscape Maintenance * | BQ4: Account Management and Supervision (Monthly) | BR4: Fee (Monthly) | BV4: Snow Removal - (crew hourly rate) | BW4: Unclogging Blocked Toilet - In-custody holding cell (labor) | BX4: Unclogging Blocked Toilet - Public/Court Staff (labor) | BY4: Hourly Rate | BZ4: Markup on Materials | CA4: Markup on Subcontractors/Third-Parties
A5: =$B$2 -> 07-A3 | B5: A1 | C5: Access Doors, Gates, Sally Port | J5: 11 | K5: 0 | L5: =+K5*J5 -> 0 | M5: 0 | N5: 0 | O5: =+N5*M5 -> 0 | P5: 1 | Q5: 0 | R5: =+Q5*P5 -> 0 | S5: 12 | T5: =IF($V5>0,$S5,0) -> 12 | U5: =+R5+O5+L5+I5+F5 -> 0 | V5: =IFERROR(VLOOKUP($A$5,'Equipment List Template'!$1:$1048576,10,FALSE),"0") -> 1 | W5: =+U5*V5 -> 0 | Z5: JCC ID | AA5: Facility Name | AB5: Address | AC5: City / Town | AD5: County | AE5: Region | AF5: Region | AG5: System ID | AH5: H1 | AI5: H2 | AJ5: H3 | AK5: H4 | AL5: H5 | AM5: H6 | AN5: H7 | AO5: H8 | AP5: H9 | AQ5: H10 | AR5: H11 | AS5: E1 | AT5: E2 | AU5: E3 | AV5: E4 | AW5: E5 | AX5: E6 | AY5: E7 | AZ5: E8 | BA5: P1 | BB5: P2 | BC5: P3 | BD5: P4 | BE5: P5 | BF5: P6 | BG5: V1 | BH5: L1 | BI5: L2 | BJ5: R1 | BK5: A1 | BL5: W1 | BM5: B1 | BN5: F1 | BO5: F2 | BP5: G1 | BQ5: C1 | BR5: C2 | BV5: S1 | BW5: I1 | BX5: I2 | BY5: Hr 1 | BZ5: M1 | CA5: Sub1
A6: =$B$2 -> 07-A3 | B6: H1 | C6: Air Cooled DX (Package / Split System) | J6: 0 | K6: 0 | L6: =+K6*J6 -> 0 | M6: 3 | N6: 0 | O6: =+N6*M6 -> 0 | P6: 1 | Q6: 0 | R6: =+Q6*P6 -> 0 | S6: 4 | T6: =IF($V6>0,$S6,0) -> 4 | U6: =+R6+O6+L6+I6+F6 -> 0 | V6: =IFERROR(VLOOKUP($A$5,'Equipment List Template'!$1:$1048576,11,FALSE),"0") -> 6 | W6: =+U6*V6 -> 0 | Z6: =B2 -> 07-A3 | AA6: =IFERROR(VLOOKUP($Z$6,'Equipment List Template'!$1:$1048576,2,FALSE),"") -> Bray Courts | AB6: =IFERROR(VLOOKUP($Z$6,'Equipment List Template'!$1:$1048576,3,FALSE),"") -> 1020 Ward St. | AC6: =IFERROR(VLOOKUP($Z$6,'Equipment List Template'!$1:$1048576,4,FALSE),"") -> Martinez | AD6: =IFERROR(VLOOKUP($Z$6,'Equipment List Template'!$1:$1048576,5,FALSE),"") -> 94553 | AE6: =IFERROR(VLOOKUP($Z$6,'Equipment List Template'!$1:$1048576,6,FALSE),"") -> Contra Costa | AF6: =IFERROR(VLOOKUP($Z$6,'Equipment List Template'!$1:$1048576,7,FALSE),"") -> BANCRO | AH6: =+$W5 -> 0 | AI6: =+$W6 -> 0 | AJ6: =+$W7 -> 0 | AK6: =+$W8 -> 0 | AL6: =+$W9 -> 0 | AM6: =+$W10 -> 0 | AN6: =+$W11 -> 0 | AO6: =+$W12 -> 0 | AP6: =+$W13 -> 0 | AQ6: =+$W14 -> 0 | AR6: =+$W15 -> 0 | AS6: =+$W16 -> 0 | AT6: =+$W17 -> 0 | AU6: =+$W18 -> 0 | AV6: =+$W19 -> 0 | AW6: =+$W20 -> 0 | AX6: =+$W21 -> 0 | AY6: =+$W22 -> 0 | AZ6: =+$W23 -> 0 | BA6: =+$W24 -> 0 | BB6: =+$W25 -> 0 | BC6: =+$W26 -> 0 | BD6: =+$W27 -> 0 | BE6: =+$W28 -> 0 | BF6: =+$W29 -> 0 | BG6: =+$W30 -> 0 | BH6: =+$W31 -> 0 | BI6: =+$W32 -> 0 | BJ6: =+$W33 -> 0 | BK6: =+$W34 -> 0 | BL6: =+$W35 -> 0 | BM6: =+$W36 -> 0 | BN6: =+$W37 -> 0 | BO6: =+$W38 -> 0 | BP6: =+$W39 -> 0 | BQ6: =+$W40 -> 0 | BR6: =+$W41 -> 0 | BT6: =+W42 -> 0 | BV6: =+D43 -> 0 | BW6: =+D44 -> 0 | BX6: =+D45 -> 0 | BY6: =+D46 -> 0 | BZ6: =+D47 -> 0 | CA6: =+D48 -> 0
A7: 07-A3 | B7: H2 | C7: Air Handling Unit (Air-cooled DX) | J7: 0 | K7: 0 | L7: 0 | M7: 3 | N7: 0 | O7: 0 | P7: 1 | Q7: 0 | R7: 0 | S7: 4 | T7: 0 | U7: 0 | V7: =IFERROR(VLOOKUP($A$5,'Equipment List Template'!$1:$1048576,12,FALSE),"0") -> 0 | W7: =+U7*V7 -> 0
A8: 07-A3 | B8: H3 | C8: Air-Cooled Chiller | G8: 40 | H8: 0 | I8: =+H8*G8 -> 0 | J8: 8 | K8: 0 | L8: 0 | M8: 3 | N8: 0 | O8: 0 | P8: 1 | Q8: 0 | R8: 0 | S8: 12 | T8: 0 | U8: 0 | V8: =IFERROR(VLOOKUP($A$5,'Equipment List Template'!$1:$1048576,13,FALSE),"0") -> 0 | W8: 0
A9: 07-A3 | B9: H4 | C9: Centrifugal Chiller | J9: 11 | K9: 0 | L9: 0 | M9: 0 | N9: 0 | O9: 0 | P9: 1 | Q9: 0 | R9: 0 | S9: 12 | T9: 0 | U9: 0 | V9: =IFERROR(VLOOKUP($A$5,'Equipment List Template'!$1:$1048576,14,FALSE),"0") -> 0 | W9: 0
A10: 07-A3 | B10: H5 | C10: Cooling Tower (Induced Draft) | J10: 8 | K10: 0 | L10: 0 | M10: 3 | N10: 0 | O10: 0 | P10: 1 | Q10: 0 | R10: 0 | S10: 12 | T10: 0 | U10: 0 | V10: =IFERROR(VLOOKUP($A$5,'Equipment List Template'!$1:$1048576,15,FALSE),"0") -> 0 | W10: 0
A11: 07-A3 | B11: H6 | C11: Ice Chiller | J11: 8 | K11: 0 | L11: 0 | M11: 3 | N11: 0 | O11: 0 | P11: 1 | Q11: 0 | R11: 0 | S11: 12 | T11: 0 | U11: 0 | V11: =IFERROR(VLOOKUP($A$5,'Equipment List Template'!$1:$1048576,16,FALSE),"0") -> 0 | W11: 0
A12: 07-A3 | B12: H7 | C12: MultiStack (Geothermal) | J12: 0 | K12: 0 | L12: 0 | M12: 0 | N12: 0 | O12: 0 | P12: 1 | Q12: 0 | R12: 0 | S12: 1 | T12: 0 | U12: 0 | V12: =IFERROR(VLOOKUP($A$5,'Equipment List Template'!$1:$1048576,17,FALSE),"0") -> 0 | W12: 0
A13: 07-A3 | B13: H8 | C13: Water Source Heat Pump | J13: 8 | K13: 0 | L13: 0 | M13: 3 | N13: 0 | O13: 0 | P13: 1 | Q13: 0 | R13: 0 | S13: 12 | T13: 0 | U13: 0 | V13: =IFERROR(VLOOKUP($A$5,'Equipment List Template'!$1:$1048576,18,FALSE),"0") -> 0 | W13: 0
A14: 07-A3 | B14: H9 | C14: Fan Coil System | J14: 0 | K14: 0 | L14: 0 | M14: 3 | N14: 0 | O14: 0 | P14: 1 | Q14: 0 | R14: 0 | S14: 4 | T14: 0 | U14: 0 | V14: =IFERROR(VLOOKUP($A$5,'Equipment List Template'!$1:$1048576,19,FALSE),"0") -> 0 | W14: 0
A15: 07-A3 | B15: H10 | C15: Exhaust Fan | J15: 0 | K15: 0 | L15: 0 | M15: 3 | N15: 0 | O15: 0 | P15: 1 | Q15: 0 | R15: 0 | S15: 4 | T15: 4 | U15: 0 | V15: =IFERROR(VLOOKUP($A$5,'Equipment List Template'!$1:$1048576,20,FALSE),"0") -> 12 | W15: 0
A16: 07-A3 | B16: H11 | C16: HVAC Unique System | J16: 8 | K16: 0 | L16: 0 | M16: 3 | N16: 0 | O16: 0 | P16: 1 | Q16: 0 | R16: 0 | S16: 12 | T16: 0 | U16: 0 | V16: =IFERROR(VLOOKUP($A$5,'Equipment List Template'!$1:$1048576,21,FALSE),"0") -> 0 | W16: 0
A17: 07-A3 | B17: E1 | C17: Electrical Panels | J17: 0 | K17: 0 | L17: 0 | M17: 3 | N17: 0 | O17: 0 | P17: 1 | Q17: 0 | R17: 0 | S17: 4 | T17: 0 | U17: 0 | V17: =IFERROR(VLOOKUP($A$5,'Equipment List Template'!$1:$1048576,22,FALSE),"0") -> 0 | W17: 0
A18: 07-A3 | B18: E2 | C18: Emergency Generator | J18: 0 | K18: 0 | L18: 0 | M18: 3 | N18: 0 | O18: 0 | P18: 1 | Q18: 0 | R18: 0 | S18: 4 | T18: 4 | U18: 0 | V18: =IFERROR(VLOOKUP($A$5,'Equipment List Template'!$1:$1048576,23,FALSE),"0") -> 1 | W18: 0
A19: 07-A3 | B19: E3 | C19: Motor Control Center | J19: 0 | K19: 0 | L19: 0 | M19: 4 | N19: 0 | O19: 0 | P19: 0 | Q19: 0 | R19: 0 | S19: 4 | T19: 0 | U19: 0 | V19: =IFERROR(VLOOKUP($A$5,'Equipment List Template'!$1:$1048576,24,FALSE),"0") -> 0 | W19: 0
A20: 07-A3 | B20: E4 | C20: Primary Switch (High) | J20: 8 | K20: 0 | L20: 0 | M20: 3 | N20: 0 | O20: 0 | P20: 1 | Q20: 0 | R20: 0 | S20: 12 | T20: 12 | U20: 0 | V20: =IFERROR(VLOOKUP($A$5,'Equipment List Template'!$1:$1048576,25,FALSE),"0") -> 1 | W20: 0
A21: 07-A3 | B21: E5 | C21: Primary Switch (Low) | J21: 8 | K21: 0 | L21: 0 | M21: 3 | N21: 0 | O21: 0 | P21: 1 | Q21: 0 | R21: 0 | S21: 12 | T21: 0 | U21: 0 | V21: =IFERROR(VLOOKUP($A$5,'Equipment List Template'!$1:$1048576,26,FALSE),"0") -> 0 | W21: 0
A22: 07-A3 | B22: E6 | C22: Transformer (Dry-Type) | J22: 0 | K22: 0 | L22: 0 | M22: 3 | N22: 0 | O22: 0 | P22: 1 | Q22: 0 | R22: 0 | S22: 4 | T22: 0 | U22: 0 | V22: =IFERROR(VLOOKUP($A$5,'Equipment List Template'!$1:$1048576,27,FALSE),"0") -> 0 | W22: 0
A23: 07-A3 | B23: E7 | C23: Uninterruptible Power Supply (UPS) | J23: 0 | K23: 0 | L23: 0 | M23: 0 | N23: 0 | O23: 0 | P23: 1 | Q23: 0 | R23: 0 | S23: 1 | T23: 0 | U23: 0 | V23: =IFERROR(VLOOKUP($A$5,'Equipment List Template'!$1:$1048576,28,FALSE),"0") -> 0 | W23: 0
A24: 07-A3 | B24: E8 | C24: Electrical Unique System | J24: 8 | K24: 0 | L24: 0 | M24: 3 | N24: 0 | O24: 0 | P24: 1 | Q24: 0 | R24: 0 | S24: 12 | T24: 0 | U24: 0 | V24: =IFERROR(VLOOKUP($A$5,'Equipment List Template'!$1:$1048576,29,FALSE),"0") -> 0 | W24: 0
A25: 07-A3 | B25: L1 | C25: Life Safety | J25: 0 | K25: 0 | L25: 0 | M25: 3 | N25: 0 | O25: 0 | P25: 1 | Q25: 0 | R25: 0 | S25: 4 | T25: 4 | U25: 0 | V25: =IFERROR(VLOOKUP($A$5,'Equipment List Template'!$1:$1048576,30,FALSE),"0") -> 1 | W25: =+U25*V25 -> 0
A26: 07-A3 | B26: L2 | C26: Backflow Preventor(s) | J26: 0 | K26: 0 | L26: 0 | M26: 0 | N26: 0 | O26: 0 | P26: 1 | Q26: 0 | R26: 0 | S26: 1 | T26: 1 | U26: 0 | V26: =IFERROR(VLOOKUP($A$5,'Equipment List Template'!$1:$1048576,31,FALSE),"0") -> 5 | W26: =+U26*V26 -> 0
A27: 07-A3 | B27: P1 | C27: Hot Water Boiler | J27: 8 | K27: 0 | L27: 0 | M27: 3 | N27: 0 | O27: 0 | P27: 1 | Q27: 0 | R27: 0 | S27: 12 | T27: 12 | U27: 0 | V27: =IFERROR(VLOOKUP($A$5,'Equipment List Template'!$1:$1048576,32,FALSE),"0") -> 1 | W27: 0
A28: 07-A3 | B28: P2 | C28: Condensing Water Heater | J28: 0 | K28: 0 | L28: 0 | M28: 0 | N28: 0 | O28: 0 | P28: 1 | Q28: 0 | R28: 0 | S28: 1 | T28: 0 | U28: 0 | V28: =IFERROR(VLOOKUP($A$5,'Equipment List Template'!$1:$1048576,33,FALSE),"0") -> 0 | W28: 0
A29: 07-A3 | B29: P3 | C29: Electric Water Heater | J29: 0 | K29: 0 | L29: 0 | M29: 0 | N29: 0 | O29: 0 | P29: 1 | Q29: 0 | R29: 0 | S29: 1 | T29: 0 | U29: 0 | V29: =IFERROR(VLOOKUP($A$5,'Equipment List Template'!$1:$1048576,34,FALSE),"0") -> 0 | W29: 0
A30: 07-A3 | B30: P4 | C30: Plumbing Unique System | J30: 0 | K30: 0 | L30: 0 | M30: 3 | N30: 0 | O30: 0 | P30: 1 | Q30: 0 | R30: 0 | S30: 4 | T30: 0 | U30: 0 | V30: =IFERROR(VLOOKUP($A$5,'Equipment List Template'!$1:$1048576,35,FALSE),"0") -> 0 | W30: 0
A31: 07-A3 | B31: P5 | C31: Steam System | J31: 0 | K31: 0 | L31: 0 | M31: 3 | N31: 0 | O31: 0 | P31: 1 | Q31: 0 | R31: 0 | S31: 4 | T31: 0 | U31: 0 | V31: =IFERROR(VLOOKUP($A$5,'Equipment List Template'!$1:$1048576,36,FALSE),"0") -> 0 | W31: 0
A32: 07-A3 | B32: P6 | C32: Pneumatic Compressor | J32: 11 | K32: 0 | L32: 0 | M32: 0 | N32: 0 | O32: 0 | P32: 1 | Q32: 0 | R32: 0 | S32: 12 | T32: 0 | U32: 0 | V32: =IFERROR(VLOOKUP($A$5,'Equipment List Template'!$1:$1048576,37,FALSE),"0") -> 0 | W32: 0
A33: 07-A3 | B33: R1 | C33: Rounds and Readings | D33: =IFERROR(IF(VLOOKUP($A33,'Equipment List Template'!$1:$1048576,38,FALSE)=260,248,0),0) -> 0 | E33: 0 | F33: =+E33*D33 -> 0 | G33: =IFERROR(IF(VLOOKUP($A33,'Equipment List Template'!$1:$1048576,38,FALSE)=52,40,0),0) -> 40 | H33: 0 | I33: =+H33*G33 -> 0 | J33: 12 | K33: 0 | L33: 0 | S33: 12 | T33: 12 | U33: =+R33+O33+L33+I33+F33 -> 0 | V33: 1 | W33: =+U33*V33 -> 0
A34: 07-A3 | B34: V1 | C34: Vertical Transportation | J34: 8 | K34: 0 | L34: =+K34*J34 -> 0 | M34: 3 | N34: 0 | O34: =+N34*M34 -> 0 | P34: 1 | Q34: 0 | R34: =+Q34*P34 -> 0 | S34: 12 | T34: 12 | U34: =+R34+O34+L34 -> 0 | V34: =IFERROR(VLOOKUP($A$5,'Equipment List Template'!$1:$1048576,39,FALSE),"0") -> 3 | W34: =+U34*V34 -> 0
A35: 07-A3 | B35: W1 | C35: Water Treatment | D35: =IFERROR(IF(VLOOKUP($A35,'Equipment List Template'!$1:$1048576,40,FALSE)=260,260,0),0) -> 0 | E35: 0 | F35: =+E35*D35 -> 0 | S35: 0 | T35: 0 | U35: =+R35+O35+L35+I35+F35 -> 0 | V35: 1 | W35: 0
A36: 07-A3 | B36: B1 | C36: Building Exterior / Hardscape (Monthly) | J36: 12 | K36: 0 | L36: =+K36*J36 -> 0 | S36: 12 | T36: 12 | U36: 0 | V36: 1 | W36: 0
A37: 07-A3 | B37: F1 | C37: Fountain Maintenance (Monthly) | J37: 12 | K37: 0 | L37: 0 | S37: 12 | T37: 12 | U37: 0 | V37: 1 | W37: 0
A38: 07-A3 | B38: F2 | C38: Fuel Storage Tanks (Quarterly) If applicable | M38: 4 | N38: 0 | O38: =+N38*M38 -> 0 | S38: 4 | T38: 4 | U38: 0 | V38: 1 | W38: 0
A39: 07-A3 | B39: G1 | C39: Landscape Maintenance * | G39: 40 | H39: 0 | I39: =+H39*G39 -> 0 | S39: 0 | T39: 0 | U39: 0 | V39: 1 | W39: 0
A40: 07-A3 | B40: C1 | C40: Account Management and Supervision (Monthly) | J40: 12 | K40: 0 | L40: =+K40*J40 -> 0 | S40: 12 | T40: 12 | U40: 0 | V40: 1 | W40: 0
A41: 07-A3 | B41: C2 | C41: Fee (Monthly) | J41: 12 | K41: 0 | L41: 0 | S41: 12 | T41: 12 | U41: 0 | V41: 1 | W41: 0
Q42: JCC ID | R42: =B2 -> 07-A3 | U42: Total | W42: =SUM(W6:W41) -> 0
B43: S1 | C43: Snow Removal - (crew hourly rate) | D43: 0 | U43: Total # of PM's | W43: =SUM(T5:T41) -> 129
B44: I1 | C44: Unclogging Blocked Toilet - In-custody cell (labor-only) | D44: 0
B45: I2 | C45: Unclogging Blocked Toilet - Public/Court Staff (labor-only) | D45: 0
B46: Hr 1 | C46: Hourly Rate (All Labor categories) | D46: 0
B47: M1 | C47: Markup on Materials (Percentage) | D47: 0
B48: Sub1 | C48: Markup on Subcontractors/Third-Parties (Percentage) | D48: 0
B50: * Landscape Maintenance varies by location on the number of weeks per year it can be preformed. For the purpose of the RFP, all facilities are pre-established at 40 weeks of service. The actual amount paid by facility will be based upon the actual weeks that service has been performed, validated and invoiced.

Sheet 07-C1
B1: JCC ID | C1: Facility Name | D1: Address | F1: City / Town | H1: Zip Code | J1: County | L1: Region | N1: RFP | P1: Proposer
B2: 07-C1 | C2: =IFERROR(VLOOKUP($B$2,'Equipment List Template'!$1:$1048576,2,FALSE),"") -> Walnut Creek Courthouse | D2: =IFERROR(VLOOKUP($B$2,'Equipment List Template'!$1:$1048576,3,FALSE),"") -> 640 Ygnacio Valley Rd. | F2: =IFERROR(VLOOKUP($B$2,'Equipment List Template'!$1:$1048576,4,FALSE),"") -> Walnut Creek | H2: =IFERROR(VLOOKUP($B$2,'Equipment List Template'!$1:$1048576,5,FALSE),"") -> 94596 | J2: =IFERROR(VLOOKUP($B$2,'Equipment List Template'!$1:$1048576,6,FALSE),"") -> Contra Costa | L2: =IFERROR(VLOOKUP($B$2,'Equipment List Template'!$1:$1048576,7,FALSE),"") -> BANCRO | N2: ='Summary Pricing Sheet'!B2 -> RFP-FS-SP-2019-03-JP | P2: ='Summary Pricing Sheet'!B3 -> Firm Name TBD
D3: Daily Activity | G3: Weekly Activity | J3: Monthly Activity | M3: Quarterly Activity | P3: Annual Activity | U3: Summary | AG3: System | AH3: HVAC | AS3: Electrical | BA3: Plumbing | BE3: Building Systems | BP3: Corporate | BT3: Fixed Price - Facility Total Annual Cost Year 1
B4: System ID | C4: Subsystem | D4: Quantity | E4: Cost | F4: Daily Total | G4: Quantity | H4: Cost | I4: Weekly Total | J4: Monthly Quantity | K4: Cost | L4: Monthly Total | M4: Quarterly Quantity | N4: Cost | O4: Quarterly Total | P4: Annual Quantity | Q4: Cost | R4: Annual PM Total | T4: Number of PM's | U4: Annual Cost | V4: Quantity | W4: Total Annual Cost | AG4: Subsystem | AH4: Air Cooled DX (Package / Split System) | AI4: Air Handling Unit (Air-cooled DX) | AJ4: Air-Cooled Chiller | AK4: Centrifugal Chiller | AL4: Cooling Tower (Induced Draft) | AM4: Ice Chiller | AN4: Multitask (Geothermal) | AO4: Water Source Heat Pump | AP4: Fan Coil System | AQ4: Exhaust Fan | AR4: HVAC Unique System | AS4: Electrical Panels | AT4: Emergency Generator | AU4: Motor Control Center | AV4: Primary Switch (High) | AW4: Primary Switch (Low) | AX4: Transformer (Dry-Type) | AY4: Uninterruptible Power Supply (UPS) | AZ4: Electrical Unique System | BA4: Hot Water Boiler | BB4: Condensing Water Heater | BC4: Electric Water Heater | BD4: Plumbing Unique System | BE4: Steam System | BF4: Pneumatic Compressor | BG4: Vertical Transportation | BH4: Life Safety | BI4: Backflow Preventor | BJ4: Rounds and Readings | BK4: Access Doors, Gates, Sally Port | BL4: Water Treatment | BM4: Building Exterior / Hardscape (Monthly) | BN4: Fountain Maintenance (Monthly) | BO4: Fuel Storage Tanks (Quarterly) If applicable | BP4: Landscape Maintenance * | BQ4: Account Management and Supervision (Monthly) | BR4: Fee (Monthly) | BV4: Snow Removal - (crew hourly rate) | BW4: Unclogging Blocked Toilet - In-custody holding cell (labor) | BX4: Unclogging Blocked Toilet - Public/Court Staff (labor) | BY4: Hourly Rate | BZ4: Markup on Materials | CA4: Markup on Subcontractors/Third-Parties
A5: =$B$2 -> 07-C1 | B5: A1 | C5: Access Doors, Gates, Sally Port | J5: 11 | K5: 0 | L5: =+K5*J5 -> 0 | M5: 0 | N5: 0 | O5: =+N5*M5 -> 0 | P5: 1 | Q5: 0 | R5: =+Q5*P5 -> 0 | S5: 12 | T5: =IF($V5>0,$S5,0) -> 12 | U5: =+R5+O5+L5+I5+F5 -> 0 | V5: =IFERROR(VLOOKUP($A$5,'Equipment List Template'!$1:$1048576,10,FALSE),"0") -> 1 | W5: =+U5*V5 -> 0 | Z5: JCC ID | AA5: Facility Name | AB5: Address | AC5: City / Town | AD5: County | AE5: Region | AF5: Region | AG5: System ID | AH5: H1 | AI5: H2 | AJ5: H3 | AK5: H4 | AL5: H5 | AM5: H6 | AN5: H7 | AO5: H8 | AP5: H9 | AQ5: H10 | AR5: H11 | AS5: E1 | AT5: E2 | AU5: E3 | AV5: E4 | AW5: E5 | AX5: E6 | AY5: E7 | AZ5: E8 | BA5: P1 | BB5: P2 | BC5: P3 | BD5: P4 | BE5: P5 | BF5: P6 | BG5: V1 | BH5: L1 | BI5: L2 | BJ5: R1 | BK5: A1 | BL5: W1 | BM5: B1 | BN5: F1 | BO5: F2 | BP5: G1 | BQ5: C1 | BR5: C2 | BV5: S1 | BW5: I1 | BX5: I2 | BY5: Hr 1 | BZ5: M1 | CA5: Sub1
A6: =$B$2 -> 07-C1 | B6: H1 | C6: Air Cooled DX (Package / Split System) | J6: 0 | K6: 0 | L6: =+K6*J6 -> 0 | M6: 3 | N6: 0 | O6: =+N6*M6 -> 0 | P6: 1 | Q6: 0 | R6: =+Q6*P6 -> 0 | S6: 4 | T6: =IF($V6>0,$S6,0) -> 0 | U6: =+R6+O6+L6+I6+F6 -> 0 | V6: =IFERROR(VLOOKUP($A$5,'Equipment List Template'!$1:$1048576,11,FALSE),"0") -> 0 | W6: =+U6*V6 -> 0 | Z6: =B2 -> 07-C1 | AA6: =IFERROR(VLOOKUP($Z$6,'Equipment List Template'!$1:$1048576,2,FALSE),"") -> Walnut Creek Courthouse | AB6: =IFERROR(VLOOKUP($Z$6,'Equipment List Template'!$1:$1048576,3,FALSE),"") -> 640 Ygnacio Valley Rd. | AC6: =IFERROR(VLOOKUP($Z$6,'Equipment List Template'!$1:$1048576,4,FALSE),"") -> Walnut Creek | AD6: =IFERROR(VLOOKUP($Z$6,'Equipment List Template'!$1:$1048576,5,FALSE),"") -> 94596 | AE6: =IFERROR(VLOOKUP($Z$6,'Equipment List Template'!$1:$1048576,6,FALSE),"") -> Contra Costa | AF6: =IFERROR(VLOOKUP($Z$6,'Equipment List Template'!$1:$1048576,7,FALSE),"") -> BANCRO | AH6: =+$W5 -> 0 | AI6: =+$W6 -> 0 | AJ6: =+$W7 -> 0 | AK6: =+$W8 -> 0 | AL6: =+$W9 -> 0 | AM6: =+$W10 -> 0 | AN6: =+$W11 -> 0 | AO6: =+$W12 -> 0 | AP6: =+$W13 -> 0 | AQ6: =+$W14 -> 0 | AR6: =+$W15 -> 0 | AS6: =+$W16 -> 0 | AT6: =+$W17 -> 0 | AU6: =+$W18 -> 0 | AV6: =+$W19 -> 0 | AW6: =+$W20 -> 0 | AX6: =+$W21 -> 0 | AY6: =+$W22 -> 0 | AZ6: =+$W23 -> 0 | BA6: =+$W24 -> 0 | BB6: =+$W25 -> 0 | BC6: =+$W26 -> 0 | BD6: =+$W27 -> 0 | BE6: =+$W28 -> 0 | BF6: =+$W29 -> 0 | BG6: =+$W30 -> 0 | BH6: =+$W31 -> 0 | BI6: =+$W32 -> 0 | BJ6: =+$W33 -> 0 | BK6: =+$W34 -> 0 | BL6: =+$W35 -> 0 | BM6: =+$W36 -> 0 | BN6: =+$W37 -> 0 | BO6: =+$W38 -> 0 | BP6: =+$W39 -> 0 | BQ6: =+$W40 -> 0 | BR6: =+$W41 -> 0 | BT6: =+W42 -> 0 | BV6: =+D43 -> 0 | BW6: =+D44 -> 0 | BX6: =+D45 -> 0 | BY6: =+D46 -> 0 | BZ6: =+D47 -> 0 | CA6: =+D48 -> 0
A7: 07-C1 | B7: H2 | C7: Air Handling Unit (Air-cooled DX) | J7: 0 | K7: 0 | L7: 0 | M7: 3 | N7: 0 | O7: 0 | P7: 1 | Q7: 0 | R7: 0 | S7: 4 | T7: 4 | U7: 0 | V7: =IFERROR(VLOOKUP($A$5,'Equipment List Template'!$1:$1048576,12,FALSE),"0") -> 11 | W7: =+U7*V7 -> 0
A8: 07-C1 | B8: H3 | C8: Air-Cooled Chiller | G8: 40 | H8: 0 | I8: =+H8*G8 -> 0 | J8: 8 | K8: 0 | L8: 0 | M8: 3 | N8: 0 | O8: 0 | P8: 1 | Q8: 0 | R8: 0 | S8: 12 | T8: 0 | U8: 0 | V8: =IFERROR(VLOOKUP($A$5,'Equipment List Template'!$1:$1048576,13,FALSE),"0") -> 0 | W8: 0
A9: 07-C1 | B9: H4 | C9: Centrifugal Chiller | J9: 11 | K9: 0 | L9: 0 | M9: 0 | N9: 0 | O9: 0 | P9: 1 | Q9: 0 | R9: 0 | S9: 12 | T9: 0 | U9: 0 | V9: =IFERROR(VLOOKUP($A$5,'Equipment List Template'!$1:$1048576,14,FALSE),"0") -> 0 | W9: 0
A10: 07-C1 | B10: H5 | C10: Cooling Tower (Induced Draft) | J10: 8 | K10: 0 | L10: 0 | M10: 3 | N10: 0 | O10: 0 | P10: 1 | Q10: 0 | R10: 0 | S10: 12 | T10: 0 | U10: 0 | V10: =IFERROR(VLOOKUP($A$5,'Equipment List Template'!$1:$1048576,15,FALSE),"0") -> 0 | W10: 0
A11: 07-C1 | B11: H6 | C11: Ice Chiller | J11: 8 | K11: 0 | L11: 0 | M11: 3 | N11: 0 | O11: 0 | P11: 1 | Q11: 0 | R11: 0 | S11: 12 | T11: 0 | U11: 0 | V11: =IFERROR(VLOOKUP($A$5,'Equipment List Template'!$1:$1048576,16,FALSE),"0") -> 0 | W11: 0
A12: 07-C1 | B12: H7 | C12: MultiStack (Geothermal) | J12: 0 | K12: 0 | L12: 0 | M12: 0 | N12: 0 | O12: 0 | P12: 1 | Q12: 0 | R12: 0 | S12: 1 | T12: 0 | U12: 0 | V12: =IFERROR(VLOOKUP($A$5,'Equipment List Template'!$1:$1048576,17,FALSE),"0") -> 0 | W12: 0
A13: 07-C1 | B13: H8 | C13: Water Source Heat Pump | J13: 8 | K13: 0 | L13: 0 | M13: 3 | N13: 0 | O13: 0 | P13: 1 | Q13: 0 | R13: 0 | S13: 12 | T13: 0 | U13: 0 | V13: =IFERROR(VLOOKUP($A$5,'Equipment List Template'!$1:$1048576,18,FALSE),"0") -> 0 | W13: 0
A14: 07-C1 | B14: H9 | C14: Fan Coil System | J14: 0 | K14: 0 | L14: 0 | M14: 3 | N14: 0 | O14: 0 | P14: 1 | Q14: 0 | R14: 0 | S14: 4 | T14: 0 | U14: 0 | V14: =IFERROR(VLOOKUP($A$5,'Equipment List Template'!$1:$1048576,19,FALSE),"0") -> 0 | W14: 0
A15: 07-C1 | B15: H10 | C15: Exhaust Fan | J15: 0 | K15: 0 | L15: 0 | M15: 3 | N15: 0 | O15: 0 | P15: 1 | Q15: 0 | R15: 0 | S15: 4 | T15: 4 | U15: 0 | V15: =IFERROR(VLOOKUP($A$5,'Equipment List Template'!$1:$1048576,20,FALSE),"0") -> 6 | W15: 0
A16: 07-C1 | B16: H11 | C16: HVAC Unique System | J16: 8 | K16: 0 | L16: 0 | M16: 3 | N16: 0 | O16: 0 | P16: 1 | Q16: 0 | R16: 0 | S16: 12 | T16: 0 | U16: 0 | V16: =IFERROR(VLOOKUP($A$5,'Equipment List Template'!$1:$1048576,21,FALSE),"0") -> 0 | W16: 0
A17: 07-C1 | B17: E1 | C17: Electrical Panels | J17: 0 | K17: 0 | L17: 0 | M17: 3 | N17: 0 | O17: 0 | P17: 1 | Q17: 0 | R17: 0 | S17: 4 | T17: 0 | U17: 0 | V17: =IFERROR(VLOOKUP($A$5,'Equipment List Template'!$1:$1048576,22,FALSE),"0") -> 0 | W17: 0
A18: 07-C1 | B18: E2 | C18: Emergency Generator | J18: 0 | K18: 0 | L18: 0 | M18: 3 | N18: 0 | O18: 0 | P18: 1 | Q18: 0 | R18: 0 | S18: 4 | T18: 4 | U18: 0 | V18: =IFERROR(VLOOKUP($A$5,'Equipment List Template'!$1:$1048576,23,FALSE),"0") -> 1 | W18: 0
A19: 07-C1 | B19: E3 | C19: Motor Control Center | J19: 0 | K19: 0 | L19: 0 | M19: 4 | N19: 0 | O19: 0 | P19: 0 | Q19: 0 | R19: 0 | S19: 4 | T19: 0 | U19: 0 | V19: =IFERROR(VLOOKUP($A$5,'Equipment List Template'!$1:$1048576,24,FALSE),"0") -> 0 | W19: 0
A20: 07-C1 | B20: E4 | C20: Primary Switch (High) | J20: 8 | K20: 0 | L20: 0 | M20: 3 | N20: 0 | O20: 0 | P20: 1 | Q20: 0 | R20: 0 | S20: 12 | T20: 12 | U20: 0 | V20: =IFERROR(VLOOKUP($A$5,'Equipment List Template'!$1:$1048576,25,FALSE),"0") -> 1 | W20: 0
A21: 07-C1 | B21: E5 | C21: Primary Switch (Low) | J21: 8 | K21: 0 | L21: 0 | M21: 3 | N21: 0 | O21: 0 | P21: 1 | Q21: 0 | R21: 0 | S21: 12 | T21: 0 | U21: 0 | V21: =IFERROR(VLOOKUP($A$5,'Equipment List Template'!$1:$1048576,26,FALSE),"0") -> 0 | W21: 0
A22: 07-C1 | B22: E6 | C22: Transformer (Dry-Type) | J22: 0 | K22: 0 | L22: 0 | M22: 3 | N22: 0 | O22: 0 | P22: 1 | Q22: 0 | R22: 0 | S22: 4 | T22: 0 | U22: 0 | V22: =IFERROR(VLOOKUP($A$5,'Equipment List Template'!$1:$1048576,27,FALSE),"0") -> 0 | W22: 0
A23: 07-C1 | B23: E7 | C23: Uninterruptible Power Supply (UPS) | J23: 0 | K23: 0 | L23: 0 | M23: 0 | N23: 0 | O23: 0 | P23: 1 | Q23: 0 | R23: 0 | S23: 1 | T23: 0 | U23: 0 | V23: =IFERROR(VLOOKUP($A$5,'Equipment List Template'!$1:$1048576,28,FALSE),"0") -> 0 | W23: 0
A24: 07-C1 | B24: E8 | C24: Electrical Unique System | J24: 8 | K24: 0 | L24: 0 | M24: 3 | N24: 0 | O24: 0 | P24: 1 | Q24: 0 | R24: 0 | S24: 12 | T24: 0 | U24: 0 | V24: =IFERROR(VLOOKUP($A$5,'Equipment List Template'!$1:$1048576,29,FALSE),"0") -> 0 | W24: 0
A25: 07-C1 | B25: L1 | C25: Life Safety | J25: 0 | K25: 0 | L25: 0 | M25: 3 | N25: 0 | O25: 0 | P25: 1 | Q25: 0 | R25: 0 | S25: 4 | T25: 4 | U25: 0 | V25: =IFERROR(VLOOKUP($A$5,'Equipment List Template'!$1:$1048576,30,FALSE),"0") -> 1 | W25: =+U25*V25 -> 0
A26: 07-C1 | B26: L2 | C26: Backflow Preventor(s) | J26: 0 | K26: 0 | L26: 0 | M26: 0 | N26: 0 | O26: 0 | P26: 1 | Q26: 0 | R26: 0 | S26: 1 | T26: 0 | U26: 0 | V26: =IFERROR(VLOOKUP($A$5,'Equipment List Template'!$1:$1048576,31,FALSE),"0") -> 0 | W26: =+U26*V26 -> 0
A27: 07-C1 | B27: P1 | C27: Hot Water Boiler | J27: 8 | K27: 0 | L27: 0 | M27: 3 | N27: 0 | O27: 0 | P27: 1 | Q27: 0 | R27: 0 | S27: 12 | T27: 0 | U27: 0 | V27: =IFERROR(VLOOKUP($A$5,'Equipment List Template'!$1:$1048576,32,FALSE),"0") -> 0 | W27: 0
A28: 07-C1 | B28: P2 | C28: Condensing Water Heater | J28: 0 | K28: 0 | L28: 0 | M28: 0 | N28: 0 | O28: 0 | P28: 1 | Q28: 0 | R28: 0 | S28: 1 | T28: 0 | U28: 0 | V28: =IFERROR(VLOOKUP($A$5,'Equipment List Template'!$1:$1048576,33,FALSE),"0") -> 0 | W28: 0
A29: 07-C1 | B29: P3 | C29: Electric Water Heater | J29: 0 | K29: 0 | L29: 0 | M29: 0 | N29: 0 | O29: 0 | P29: 1 | Q29: 0 | R29: 0 | S29: 1 | T29: 0 | U29: 0 | V29: =IFERROR(VLOOKUP($A$5,'Equipment List Template'!$1:$1048576,34,FALSE),"0") -> 0 | W29: 0
A30: 07-C1 | B30: P4 | C30: Plumbing Unique System | J30: 0 | K30: 0 | L30: 0 | M30: 3 | N30: 0 | O30: 0 | P30: 1 | Q30: 0 | R30: 0 | S30: 4 | T30: 0 | U30: 0 | V30: =IFERROR(VLOOKUP($A$5,'Equipment List Template'!$1:$1048576,35,FALSE),"0") -> 0 | W30: 0
A31: 07-C1 | B31: P5 | C31: Steam System | J31: 0 | K31: 0 | L31: 0 | M31: 3 | N31: 0 | O31: 0 | P31: 1 | Q31: 0 | R31: 0 | S31: 4 | T31: 0 | U31: 0 | V31: =IFERROR(VLOOKUP($A$5,'Equipment List Template'!$1:$1048576,36,FALSE),"0") -> 0 | W31: 0
A32: 07-C1 | B32: P6 | C32: Pneumatic Compressor | J32: 11 | K32: 0 | L32: 0 | M32: 0 | N32: 0 | O32: 0 | P32: 1 | Q32: 0 | R32: 0 | S32: 12 | T32: 12 | U32: 0 | V32: =IFERROR(VLOOKUP($A$5,'Equipment List Template'!$1:$1048576,37,FALSE),"0") -> 1 | W32: 0
A33: 07-C1 | B33: R1 | C33: Rounds and Readings | D33: =IFERROR(IF(VLOOKUP($A33,'Equipment List Template'!$1:$1048576,38,FALSE)=260,248,0),0) -> 0 | E33: 0 | F33: =+E33*D33 -> 0 | G33: =IFERROR(IF(VLOOKUP($A33,'Equipment List Template'!$1:$1048576,38,FALSE)=52,40,0),0) -> 40 | H33: 0 | I33: =+H33*G33 -> 0 | J33: 12 | K33: 0 | L33: 0 | S33: 12 | T33: 12 | U33: =+R33+O33+L33+I33+F33 -> 0 | V33: 1 | W33: =+U33*V33 -> 0
A34: 07-C1 | B34: V1 | C34: Vertical Transportation | J34: 8 | K34: 0 | L34: =+K34*J34 -> 0 | M34: 3 | N34: 0 | O34: =+N34*M34 -> 0 | P34: 1 | Q34: 0 | R34: =+Q34*P34 -> 0 | S34: 12 | T34: 12 | U34: =+R34+O34+L34 -> 0 | V34: =IFERROR(VLOOKUP($A$5,'Equipment List Template'!$1:$1048576,39,FALSE),"0") -> 1 | W34: =+U34*V34 -> 0
A35: 07-C1 | B35: W1 | C35: Water Treatment | D35: =IFERROR(IF(VLOOKUP($A35,'Equipment List Template'!$1:$1048576,40,FALSE)=260,260,0),0) -> 0 | E35: 0 | F35: =+E35*D35 -> 0 | S35: 0 | T35: 0 | U35: =+R35+O35+L35+I35+F35 -> 0 | V35: 1 | W35: 0
A36: 07-C1 | B36: B1 | C36: Building Exterior / Hardscape (Monthly) | J36: 12 | K36: 0 | L36: =+K36*J36 -> 0 | S36: 12 | T36: 12 | U36: 0 | V36: 1 | W36: 0
A37: 07-C1 | B37: F1 | C37: Fountain Maintenance (Monthly) | J37: 12 | K37: 0 | L37: 0 | S37: 12 | T37: 12 | U37: 0 | V37: 1 | W37: 0
A38: 07-C1 | B38: F2 | C38: Fuel Storage Tanks (Quarterly) If applicable | M38: 4 | N38: 0 | O38: =+N38*M38 -> 0 | S38: 4 | T38: 4 | U38: 0 | V38: 1 | W38: 0
A39: 07-C1 | B39: G1 | C39: Landscape Maintenance * | G39: 40 | H39: 0 | I39: =+H39*G39 -> 0 | S39: 0 | T39: 0 | U39: 0 | V39: 1 | W39: 0
A40: 07-C1 | B40: C1 | C40: Account Management and Supervision (Monthly) | J40: 12 | K40: 0 | L40: =+K40*J40 -> 0 | S40: 12 | T40: 12 | U40: 0 | V40: 1 | W40: 0
A41: 07-C1 | B41: C2 | C41: Fee (Monthly) | J41: 12 | K41: 0 | L41: 0 | S41: 12 | T41: 12 | U41: 0 | V41: 1 | W41: 0
Q42: JCC ID | R42: =B2 -> 07-C1 | U42: Total | W42: =SUM(W6:W41) -> 0
B43: S1 | C43: Snow Removal - (crew hourly rate) | D43: 0 | U43: Total # of PM's | W43: =SUM(T5:T41) -> 128
B44: I1 | C44: Unclogging Blocked Toilet - In-custody cell (labor-only) | D44: 0
B45: I2 | C45: Unclogging Blocked Toilet - Public/Court Staff (labor-only) | D45: 0
B46: Hr 1 | C46: Hourly Rate (All Labor categories) | D46: 0
B47: M1 | C47: Markup on Materials (Percentage) | D47: 0
B48: Sub1 | C48: Markup on Subcontractors/Third-Parties (Percentage) | D48: 0
B50: * Landscape Maintenance varies by location on the number of weeks per year it can be preformed. For the purpose of the RFP, all facilities are pre-established at 40 weeks of service. The actual amount paid by facility will be based upon the actual weeks that service has been performed, validated and invoiced.

Sheet 07-E3
B1: JCC ID | C1: Facility Name | D1: Address | F1: City / Town | H1: Zip Code | J1: County | L1: Region | N1: RFP | P1: Proposer
B2: 07-E3 | C2: =IFERROR(VLOOKUP($B$2,'Equipment List Template'!$1:$1048576,2,FALSE),"") -> Richard E. Arnason Justice Center | D2: =IFERROR(VLOOKUP($B$2,'Equipment List Template'!$1:$1048576,3,FALSE),"") -> 1000 Center Drive | F2: =IFERROR(VLOOKUP($B$2,'Equipment List Template'!$1:$1048576,4,FALSE),"") -> Pittsburg | H2: =IFERROR(VLOOKUP($B$2,'Equipment List Template'!$1:$1048576,5,FALSE),"") -> 94565 | J2: =IFERROR(VLOOKUP($B$2,'Equipment List Template'!$1:$1048576,6,FALSE),"") -> Contra Costa | L2: =IFERROR(VLOOKUP($B$2,'Equipment List Template'!$1:$1048576,7,FALSE),"") -> BANCRO | N2: ='Summary Pricing Sheet'!B2 -> RFP-FS-SP-2019-03-JP | P2: ='Summary Pricing Sheet'!B3 -> Firm Name TBD
D3: Daily Activity | G3: Weekly Activity | J3: Monthly Activity | M3: Quarterly Activity | P3: Annual Activity | U3: Summary | AG3: System | AH3: HVAC | AS3: Electrical | BA3: Plumbing | BE3: Building Systems | BP3: Corporate | BT3: Fixed Price - Facility Total Annual Cost Year 1
B4: System ID | C4: Subsystem | D4: Quantity | E4: Cost | F4: Daily Total | G4: Quantity | H4: Cost | I4: Weekly Total | J4: Monthly Quantity | K4: Cost | L4: Monthly Total | M4: Quarterly Quantity | N4: Cost | O4: Quarterly Total | P4: Annual Quantity | Q4: Cost | R4: Annual PM Total | T4: Number of PM's | U4: Annual Cost | V4: Quantity | W4: Total Annual Cost | AG4: Subsystem | AH4: Air Cooled DX (Package / Split System) | AI4: Air Handling Unit (Air-cooled DX) | AJ4: Air-Cooled Chiller | AK4: Centrifugal Chiller | AL4: Cooling Tower (Induced Draft) | AM4: Ice Chiller | AN4: Multitask (Geothermal) | AO4: Water Source Heat Pump | AP4: Fan Coil System | AQ4: Exhaust Fan | AR4: HVAC Unique System | AS4: Electrical Panels | AT4: Emergency Generator | AU4: Motor Control Center | AV4: Primary Switch (High) | AW4: Primary Switch (Low) | AX4: Transformer (Dry-Type) | AY4: Uninterruptible Power Supply (UPS) | AZ4: Electrical Unique System | BA4: Hot Water Boiler | BB4: Condensing Water Heater | BC4: Electric Water Heater | BD4: Plumbing Unique System | BE4: Steam System | BF4: Pneumatic Compressor | BG4: Vertical Transportation | BH4: Life Safety | BI4: Backflow Preventor | BJ4: Rounds and Readings | BK4: Access Doors, Gates, Sally Port | BL4: Water Treatment | BM4: Building Exterior / Hardscape (Monthly) | BN4: Fountain Maintenance (Monthly) | BO4: Fuel Storage Tanks (Quarterly) If applicable | BP4: Landscape Maintenance * | BQ4: Account Management and Supervision (Monthly) | BR4: Fee (Monthly) | BV4: Snow Removal - (crew hourly rate) | BW4: Unclogging Blocked Toilet - In-custody holding cell (labor) | BX4: Unclogging Blocked Toilet - Public/Court Staff (labor) | BY4: Hourly Rate | BZ4: Markup on Materials | CA4: Markup on Subcontractors/Third-Parties
A5: =$B$2 -> 07-E3 | B5: A1 | C5: Access Doors, Gates, Sally Port | J5: 11 | K5: 0 | L5: =+K5*J5 -> 0 | M5: 0 | N5: 0 | O5: =+N5*M5 -> 0 | P5: 1 | Q5: 0 | R5: =+Q5*P5 -> 0 | S5: 12 | T5: =IF($V5>0,$S5,0) -> 12 | U5: =+R5+O5+L5+I5+F5 -> 0 | V5: =IFERROR(VLOOKUP($A$5,'Equipment List Template'!$1:$1048576,10,FALSE),"0") -> 1 | W5: =+U5*V5 -> 0 | Z5: JCC ID | AA5: Facility Name | AB5: Address | AC5: City / Town | AD5: County | AE5: Region | AF5: Region | AG5: System ID | AH5: H1 | AI5: H2 | AJ5: H3 | AK5: H4 | AL5: H5 | AM5: H6 | AN5: H7 | AO5: H8 | AP5: H9 | AQ5: H10 | AR5: H11 | AS5: E1 | AT5: E2 | AU5: E3 | AV5: E4 | AW5: E5 | AX5: E6 | AY5: E7 | AZ5: E8 | BA5: P1 | BB5: P2 | BC5: P3 | BD5: P4 | BE5: P5 | BF5: P6 | BG5: V1 | BH5: L1 | BI5: L2 | BJ5: R1 | BK5: A1 | BL5: W1 | BM5: B1 | BN5: F1 | BO5: F2 | BP5: G1 | BQ5: C1 | BR5: C2 | BV5: S1 | BW5: I1 | BX5: I2 | BY5: Hr 1 | BZ5: M1 | CA5: Sub1
A6: =$B$2 -> 07-E3 | B6: H1 | C6: Air Cooled DX (Package / Split System) | J6: 0 | K6: 0 | L6: =+K6*J6 -> 0 | M6: 3 | N6: 0 | O6: =+N6*M6 -> 0 | P6: 1 | Q6: 0 | R6: =+Q6*P6 -> 0 | S6: 4 | T6: =IF($V6>0,$S6,0) -> 4 | U6: =+R6+O6+L6+I6+F6 -> 0 | V6: =IFERROR(VLOOKUP($A$5,'Equipment List Template'!$1:$1048576,11,FALSE),"0") -> 12 | W6: =+U6*V6 -> 0 | Z6: =B2 -> 07-E3 | AA6: =IFERROR(VLOOKUP($Z$6,'Equipment List Template'!$1:$1048576,2,FALSE),"") -> Richard E. Arnason Justice Center | AB6: =IFERROR(VLOOKUP($Z$6,'Equipment List Template'!$1:$1048576,3,FALSE),"") -> 1000 Center Drive | AC6: =IFERROR(VLOOKUP($Z$6,'Equipment List Template'!$1:$1048576,4,FALSE),"") -> Pittsburg | AD6: =IFERROR(VLOOKUP($Z$6,'Equipment List Template'!$1:$1048576,5,FALSE),"") -> 94565 | AE6: =IFERROR(VLOOKUP($Z$6,'Equipment List Template'!$1:$1048576,6,FALSE),"") -> Contra Costa | AF6: =IFERROR(VLOOKUP($Z$6,'Equipment List Template'!$1:$1048576,7,FALSE),"") -> BANCRO | AH6: =+$W5 -> 0 | AI6: =+$W6 -> 0 | AJ6: =+$W7 -> 0 | AK6: =+$W8 -> 0 | AL6: =+$W9 -> 0 | AM6: =+$W10 -> 0 | AN6: =+$W11 -> 0 | AO6: =+$W12 -> 0 | AP6: =+$W13 -> 0 | AQ6: =+$W14 -> 0 | AR6: =+$W15 -> 0 | AS6: =+$W16 -> 0 | AT6: =+$W17 -> 0 | AU6: =+$W18 -> 0 | AV6: =+$W19 -> 0 | AW6: =+$W20 -> 0 | AX6: =+$W21 -> 0 | AY6: =+$W22 -> 0 | AZ6: =+$W23 -> 0 | BA6: =+$W24 -> 0 | BB6: =+$W25 -> 0 | BC6: =+$W26 -> 0 | BD6: =+$W27 -> 0 | BE6: =+$W28 -> 0 | BF6: =+$W29 -> 0 | BG6: =+$W30 -> 0 | BH6: =+$W31 -> 0 | BI6: =+$W32 -> 0 | BJ6: =+$W33 -> 0 | BK6: =+$W34 -> 0 | BL6: =+$W35 -> 0 | BM6: =+$W36 -> 0 | BN6: =+$W37 -> 0 | BO6: =+$W38 -> 0 | BP6: =+$W39 -> 0 | BQ6: =+$W40 -> 0 | BR6: =+$W41 -> 0 | BT6: =+W42 -> 0 | BV6: =+D43 -> 0 | BW6: =+D44 -> 0 | BX6: =+D45 -> 0 | BY6: =+D46 -> 0 | BZ6: =+D47 -> 0 | CA6: =+D48 -> 0
A7: 07-E3 | B7: H2 | C7: Air Handling Unit (Air-cooled DX) | J7: 0 | K7: 0 | L7: 0 | M7: 3 | N7: 0 | O7: 0 | P7: 1 | Q7: 0 | R7: 0 | S7: 4 | T7: 4 | U7: 0 | V7: =IFERROR(VLOOKUP($A$5,'Equipment List Template'!$1:$1048576,12,FALSE),"0") -> 1 | W7: =+U7*V7 -> 0
A8: 07-E3 | B8: H3 | C8: Air-Cooled Chiller | G8: 40 | H8: 0 | I8: =+H8*G8 -> 0 | J8: 8 | K8: 0 | L8: 0 | M8: 3 | N8: 0 | O8: 0 | P8: 1 | Q8: 0 | R8: 0 | S8: 12 | T8: 0 | U8: 0 | V8: =IFERROR(VLOOKUP($A$5,'Equipment List Template'!$1:$1048576,13,FALSE),"0") -> 0 | W8: 0
A9: 07-E3 | B9: H4 | C9: Centrifugal Chiller | J9: 11 | K9: 0 | L9: 0 | M9: 0 | N9: 0 | O9: 0 | P9: 1 | Q9: 0 | R9: 0 | S9: 12 | T9: 12 | U9: 0 | V9: =IFERROR(VLOOKUP($A$5,'Equipment List Template'!$1:$1048576,14,FALSE),"0") -> 2 | W9: 0
A10: 07-E3 | B10: H5 | C10: Cooling Tower (Induced Draft) | J10: 8 | K10: 0 | L10: 0 | M10: 3 | N10: 0 | O10: 0 | P10: 1 | Q10: 0 | R10: 0 | S10: 12 | T10: 12 | U10: 0 | V10: =IFERROR(VLOOKUP($A$5,'Equipment List Template'!$1:$1048576,15,FALSE),"0") -> 1 | W10: 0
A11: 07-E3 | B11: H6 | C11: Ice Chiller | J11: 8 | K11: 0 | L11: 0 | M11: 3 | N11: 0 | O11: 0 | P11: 1 | Q11: 0 | R11: 0 | S11: 12 | T11: 0 | U11: 0 | V11: =IFERROR(VLOOKUP($A$5,'Equipment List Template'!$1:$1048576,16,FALSE),"0") -> 0 | W11: 0
A12: 07-E3 | B12: H7 | C12: MultiStack (Geothermal) | J12: 0 | K12: 0 | L12: 0 | M12: 0 | N12: 0 | O12: 0 | P12: 1 | Q12: 0 | R12: 0 | S12: 1 | T12: 0 | U12: 0 | V12: =IFERROR(VLOOKUP($A$5,'Equipment List Template'!$1:$1048576,17,FALSE),"0") -> 0 | W12: 0
A13: 07-E3 | B13: H8 | C13: Water Source Heat Pump | J13: 8 | K13: 0 | L13: 0 | M13: 3 | N13: 0 | O13: 0 | P13: 1 | Q13: 0 | R13: 0 | S13: 12 | T13: 12 | U13: 0 | V13: =IFERROR(VLOOKUP($A$5,'Equipment List Template'!$1:$1048576,18,FALSE),"0") -> 2 | W13: 0
A14: 07-E3 | B14: H9 | C14: Fan Coil System | J14: 0 | K14: 0 | L14: 0 | M14: 3 | N14: 0 | O14: 0 | P14: 1 | Q14: 0 | R14: 0 | S14: 4 | T14: 4 | U14: 0 | V14: =IFERROR(VLOOKUP($A$5,'Equipment List Template'!$1:$1048576,19,FALSE),"0") -> 1 | W14: 0
A15: 07-E3 | B15: H10 | C15: Exhaust Fan | J15: 0 | K15: 0 | L15: 0 | M15: 3 | N15: 0 | O15: 0 | P15: 1 | Q15: 0 | R15: 0 | S15: 4 | T15: 4 | U15: 0 | V15: =IFERROR(VLOOKUP($A$5,'Equipment List Template'!$1:$1048576,20,FALSE),"0") -> 2 | W15: 0
A16: 07-E3 | B16: H11 | C16: HVAC Unique System | J16: 8 | K16: 0 | L16: 0 | M16: 3 | N16: 0 | O16: 0 | P16: 1 | Q16: 0 | R16: 0 | S16: 12 | T16: 0 | U16: 0 | V16: =IFERROR(VLOOKUP($A$5,'Equipment List Template'!$1:$1048576,21,FALSE),"0") -> 0 | W16: 0
A17: 07-E3 | B17: E1 | C17: Electrical Panels | J17: 0 | K17: 0 | L17: 0 | M17: 3 | N17: 0 | O17: 0 | P17: 1 | Q17: 0 | R17: 0 | S17: 4 | T17: 0 | U17: 0 | V17: =IFERROR(VLOOKUP($A$5,'Equipment List Template'!$1:$1048576,22,FALSE),"0") -> 0 | W17: 0
A18: 07-E3 | B18: E2 | C18: Emergency Generator | J18: 0 | K18: 0 | L18: 0 | M18: 3 | N18: 0 | O18: 0 | P18: 1 | Q18: 0 | R18: 0 | S18: 4 | T18: 4 | U18: 0 | V18: =IFERROR(VLOOKUP($A$5,'Equipment List Template'!$1:$1048576,23,FALSE),"0") -> 1 | W18: 0
A19: 07-E3 | B19: E3 | C19: Motor Control Center | J19: 0 | K19: 0 | L19: 0 | M19: 4 | N19: 0 | O19: 0 | P19: 0 | Q19: 0 | R19: 0 | S19: 4 | T19: 0 | U19: 0 | V19: =IFERROR(VLOOKUP($A$5,'Equipment List Template'!$1:$1048576,24,FALSE),"0") -> 0 | W19: 0
A20: 07-E3 | B20: E4 | C20: Primary Switch (High) | J20: 8 | K20: 0 | L20: 0 | M20: 3 | N20: 0 | O20: 0 | P20: 1 | Q20: 0 | R20: 0 | S20: 12 | T20: 12 | U20: 0 | V20: =IFERROR(VLOOKUP($A$5,'Equipment List Template'!$1:$1048576,25,FALSE),"0") -> 1 | W20: 0
A21: 07-E3 | B21: E5 | C21: Primary Switch (Low) | J21: 8 | K21: 0 | L21: 0 | M21: 3 | N21: 0 | O21: 0 | P21: 1 | Q21: 0 | R21: 0 | S21: 12 | T21: 0 | U21: 0 | V21: =IFERROR(VLOOKUP($A$5,'Equipment List Template'!$1:$1048576,26,FALSE),"0") -> 0 | W21: 0
A22: 07-E3 | B22: E6 | C22: Transformer (Dry-Type) | J22: 0 | K22: 0 | L22: 0 | M22: 3 | N22: 0 | O22: 0 | P22: 1 | Q22: 0 | R22: 0 | S22: 4 | T22: 0 | U22: 0 | V22: =IFERROR(VLOOKUP($A$5,'Equipment List Template'!$1:$1048576,27,FALSE),"0") -> 0 | W22: 0
A23: 07-E3 | B23: E7 | C23: Uninterruptible Power Supply (UPS) | J23: 0 | K23: 0 | L23: 0 | M23: 0 | N23: 0 | O23: 0 | P23: 1 | Q23: 0 | R23: 0 | S23: 1 | T23: 1 | U23: 0 | V23: =IFERROR(VLOOKUP($A$5,'Equipment List Template'!$1:$1048576,28,FALSE),"0") -> 1 | W23: 0
A24: 07-E3 | B24: E8 | C24: Electrical Unique System | J24: 8 | K24: 0 | L24: 0 | M24: 3 | N24: 0 | O24: 0 | P24: 1 | Q24: 0 | R24: 0 | S24: 12 | T24: 0 | U24: 0 | V24: =IFERROR(VLOOKUP($A$5,'Equipment List Template'!$1:$1048576,29,FALSE),"0") -> 0 | W24: 0
A25: 07-E3 | B25: L1 | C25: Life Safety | J25: 0 | K25: 0 | L25: 0 | M25: 3 | N25: 0 | O25: 0 | P25: 1 | Q25: 0 | R25: 0 | S25: 4 | T25: 4 | U25: 0 | V25: =IFERROR(VLOOKUP($A$5,'Equipment List Template'!$1:$1048576,30,FALSE),"0") -> 1 | W25: =+U25*V25 -> 0
A26: 07-E3 | B26: L2 | C26: Backflow Preventor(s) | J26: 0 | K26: 0 | L26: 0 | M26: 0 | N26: 0 | O26: 0 | P26: 1 | Q26: 0 | R26: 0 | S26: 1 | T26: 1 | U26: 0 | V26: =IFERROR(VLOOKUP($A$5,'Equipment List Template'!$1:$1048576,31,FALSE),"0") -> 11 | W26: =+U26*V26 -> 0
A27: 07-E3 | B27: P1 | C27: Hot Water Boiler | J27: 8 | K27: 0 | L27: 0 | M27: 3 | N27: 0 | O27: 0 | P27: 1 | Q27: 0 | R27: 0 | S27: 12 | T27: 12 | U27: 0 | V27: =IFERROR(VLOOKUP($A$5,'Equipment List Template'!$1:$1048576,32,FALSE),"0") -> 2 | W27: 0
A28: 07-E3 | B28: P2 | C28: Condensing Water Heater | J28: 0 | K28: 0 | L28: 0 | M28: 0 | N28: 0 | O28: 0 | P28: 1 | Q28: 0 | R28: 0 | S28: 1 | T28: 0 | U28: 0 | V28: =IFERROR(VLOOKUP($A$5,'Equipment List Template'!$1:$1048576,33,FALSE),"0") -> 0 | W28: 0
A29: 07-E3 | B29: P3 | C29: Electric Water Heater | J29: 0 | K29: 0 | L29: 0 | M29: 0 | N29: 0 | O29: 0 | P29: 1 | Q29: 0 | R29: 0 | S29: 1 | T29: 0 | U29: 0 | V29: =IFERROR(VLOOKUP($A$5,'Equipment List Template'!$1:$1048576,34,FALSE),"0") -> 0 | W29: 0
A30: 07-E3 | B30: P4 | C30: Plumbing Unique System | J30: 0 | K30: 0 | L30: 0 | M30: 3 | N30: 0 | O30: 0 | P30: 1 | Q30: 0 | R30: 0 | S30: 4 | T30: 0 | U30: 0 | V30: =IFERROR(VLOOKUP($A$5,'Equipment List Template'!$1:$1048576,35,FALSE),"0") -> 0 | W30: 0
A31: 07-E3 | B31: P5 | C31: Steam System | J31: 0 | K31: 0 | L31: 0 | M31: 3 | N31: 0 | O31: 0 | P31: 1 | Q31: 0 | R31: 0 | S31: 4 | T31: 0 | U31: 0 | V31: =IFERROR(VLOOKUP($A$5,'Equipment List Template'!$1:$1048576,36,FALSE),"0") -> 0 | W31: 0
A32: 07-E3 | B32: P6 | C32: Pneumatic Compressor | J32: 11 | K32: 0 | L32: 0 | M32: 0 | N32: 0 | O32: 0 | P32: 1 | Q32: 0 | R32: 0 | S32: 12 | T32: 0 | U32: 0 | V32: =IFERROR(VLOOKUP($A$5,'Equipment List Template'!$1:$1048576,37,FALSE),"0") -> 0 | W32: 0
A33: 07-E3 | B33: R1 | C33: Rounds and Readings | D33: =IFERROR(IF(VLOOKUP($A33,'Equipment List Template'!$1:$1048576,38,FALSE)=260,248,0),0) -> 248 | E33: 0 | F33: =+E33*D33 -> 0 | G33: =IFERROR(IF(VLOOKUP($A33,'Equipment List Template'!$1:$1048576,38,FALSE)=52,40,0),0) -> 0 | H33: 0 | I33: =+H33*G33 -> 0 | J33: 12 | K33: 0 | L33: 0 | S33: 12 | T33: 12 | U33: =+R33+O33+L33+I33+F33 -> 0 | V33: 1 | W33: =+U33*V33 -> 0
A34: 07-E3 | B34: V1 | C34: Vertical Transportation | J34: 8 | K34: 0 | L34: =+K34*J34 -> 0 | M34: 3 | N34: 0 | O34: =+N34*M34 -> 0 | P34: 1 | Q34: 0 | R34: =+Q34*P34 -> 0 | S34: 12 | T34: 12 | U34: =+R34+O34+L34 -> 0 | V34: =IFERROR(VLOOKUP($A$5,'Equipment List Template'!$1:$1048576,39,FALSE),"0") -> 5 | W34: =+U34*V34 -> 0
A35: 07-E3 | B35: W1 | C35: Water Treatment | D35: =IFERROR(IF(VLOOKUP($A35,'Equipment List Template'!$1:$1048576,40,FALSE)=260,260,0),0) -> 260 | E35: 0 | F35: =+E35*D35 -> 0 | S35: 0 | T35: 0 | U35: =+R35+O35+L35+I35+F35 -> 0 | V35: 1 | W35: 0
A36: 07-E3 | B36: B1 | C36: Building Exterior / Hardscape (Monthly) | J36: 12 | K36: 0 | L36: =+K36*J36 -> 0 | S36: 12 | T36: 12 | U36: 0 | V36: 1 | W36: 0
A37: 07-E3 | B37: F1 | C37: Fountain Maintenance (Monthly) | J37: 12 | K37: 0 | L37: 0 | S37: 12 | T37: 12 | U37: 0 | V37: 1 | W37: 0
A38: 07-E3 | B38: F2 | C38: Fuel Storage Tanks (Quarterly) If applicable | M38: 4 | N38: 0 | O38: =+N38*M38 -> 0 | S38: 4 | T38: 4 | U38: 0 | V38: 1 | W38: 0
A39: 07-E3 | B39: G1 | C39: Landscape Maintenance * | G39: 40 | H39: 0 | I39: =+H39*G39 -> 0 | S39: 0 | T39: 0 | U39: 0 | V39: 1 | W39: 0
A40: 07-E3 | B40: C1 | C40: Account Management and Supervision (Monthly) | J40: 12 | K40: 0 | L40: =+K40*J40 -> 0 | S40: 12 | T40: 12 | U40: 0 | V40: 1 | W40: 0
A41: 07-E3 | B41: C2 | C41: Fee (Monthly) | J41: 12 | K41: 0 | L41: 0 | S41: 12 | T41: 12 | U41: 0 | V41: 1 | W41: 0
Q42: JCC ID | R42: =B2 -> 07-E3 | U42: Total | W42: =SUM(W6:W41) -> 0
B43: S1 | C43: Snow Removal - (crew hourly rate) | D43: 0 | U43: Total # of PM's | W43: =SUM(T5:T41) -> 174
B44: I1 | C44: Unclogging Blocked Toilet - In-custody cell (labor-only) | D44: 0
B45: I2 | C45: Unclogging Blocked Toilet - Public/Court Staff (labor-only) | D45: 0
B46: Hr 1 | C46: Hourly Rate (All Labor categories) | D46: 0
B47: M1 | C47: Markup on Materials (Percentage) | D47: 0
B48: Sub1 | C48: Markup on Subcontractors/Third-Parties (Percentage) | D48: 0
B50: * Landscape Maintenance varies by location on the number of weeks per year it can be preformed. For the purpose of the RFP, all facilities are pre-established at 40 weeks of service. The actual amount paid by facility will be based upon the actual weeks that service has been performed, validated and invoiced.

Sheet 07-F1
B1: JCC ID | C1: Facility Name | D1: Address | F1: City / Town | H1: Zip Code | J1: County | L1: Region | N1: RFP | P1: Proposer
B2: 07-F1 | C2: =IFERROR(VLOOKUP($B$2,'Equipment List Template'!$1:$1048576,2,FALSE),"") -> George D. Carroll Courthouse | D2: =IFERROR(VLOOKUP($B$2,'Equipment List Template'!$1:$1048576,3,FALSE),"") -> 100 37th St. | F2: =IFERROR(VLOOKUP($B$2,'Equipment List Template'!$1:$1048576,4,FALSE),"") -> Richmond | H2: =IFERROR(VLOOKUP($B$2,'Equipment List Template'!$1:$1048576,5,FALSE),"") -> 94805 | J2: =IFERROR(VLOOKUP($B$2,'Equipment List Template'!$1:$1048576,6,FALSE),"") -> Contra Costa | L2: =IFERROR(VLOOKUP($B$2,'Equipment List Template'!$1:$1048576,7,FALSE),"") -> BANCRO | N2: ='Summary Pricing Sheet'!B2 -> RFP-FS-SP-2019-03-JP | P2: ='Summary Pricing Sheet'!B3 -> Firm Name TBD
D3: Daily Activity | G3: Weekly Activity | J3: Monthly Activity | M3: Quarterly Activity | P3: Annual Activity | U3: Summary | AG3: System | AH3: HVAC | AS3: Electrical | BA3: Plumbing | BE3: Building Systems | BP3: Corporate | BT3: Fixed Price - Facility Total Annual Cost Year 1
B4: System ID | C4: Subsystem | D4: Quantity | E4: Cost | F4: Daily Total | G4: Quantity | H4: Cost | I4: Weekly Total | J4: Monthly Quantity | K4: Cost | L4: Monthly Total | M4: Quarterly Quantity | N4: Cost | O4: Quarterly Total | P4: Annual Quantity | Q4: Cost | R4: Annual PM Total | T4: Number of PM's | U4: Annual Cost | V4: Quantity | W4: Total Annual Cost | AG4: Subsystem | AH4: Air Cooled DX (Package / Split System) | AI4: Air Handling Unit (Air-cooled DX) | AJ4: Air-Cooled Chiller | AK4: Centrifugal Chiller | AL4: Cooling Tower (Induced Draft) | AM4: Ice Chiller | AN4: Multitask (Geothermal) | AO4: Water Source Heat Pump | AP4: Fan Coil System | AQ4: Exhaust Fan | AR4: HVAC Unique System | AS4: Electrical Panels | AT4: Emergency Generator | AU4: Motor Control Center | AV4: Primary Switch (High) | AW4: Primary Switch (Low) | AX4: Transformer (Dry-Type) | AY4: Uninterruptible Power Supply (UPS) | AZ4: Electrical Unique System | BA4: Hot Water Boiler | BB4: Condensing Water Heater | BC4: Electric Water Heater | BD4: Plumbing Unique System | BE4: Steam System | BF4: Pneumatic Compressor | BG4: Vertical Transportation | BH4: Life Safety | BI4: Backflow Preventor | BJ4: Rounds and Readings | BK4: Access Doors, Gates, Sally Port | BL4: Water Treatment | BM4: Building Exterior / Hardscape (Monthly) | BN4: Fountain Maintenance (Monthly) | BO4: Fuel Storage Tanks (Quarterly) If applicable | BP4: Landscape Maintenance * | BQ4: Account Management and Supervision (Monthly) | BR4: Fee (Monthly) | BV4: Snow Removal - (crew hourly rate) | BW4: Unclogging Blocked Toilet - In-custody holding cell (labor) | BX4: Unclogging Blocked Toilet - Public/Court Staff (labor) | BY4: Hourly Rate | BZ4: Markup on Materials | CA4: Markup on Subcontractors/Third-Parties
A5: =$B$2 -> 07-F1 | B5: A1 | C5: Access Doors, Gates, Sally Port | J5: 11 | K5: 0 | L5: =+K5*J5 -> 0 | M5: 0 | N5: 0 | O5: =+N5*M5 -> 0 | P5: 1 | Q5: 0 | R5: =+Q5*P5 -> 0 | S5: 12 | T5: =IF($V5>0,$S5,0) -> 12 | U5: =+R5+O5+L5+I5+F5 -> 0 | V5: =IFERROR(VLOOKUP($A$5,'Equipment List Template'!$1:$1048576,10,FALSE),"0") -> 1 | W5: =+U5*V5 -> 0 | Z5: JCC ID | AA5: Facility Name | AB5: Address | AC5: City / Town | AD5: County | AE5: Region | AF5: Region | AG5: System ID | AH5: H1 | AI5: H2 | AJ5: H3 | AK5: H4 | AL5: H5 | AM5: H6 | AN5: H7 | AO5: H8 | AP5: H9 | AQ5: H10 | AR5: H11 | AS5: E1 | AT5: E2 | AU5: E3 | AV5: E4 | AW5: E5 | AX5: E6 | AY5: E7 | AZ5: E8 | BA5: P1 | BB5: P2 | BC5: P3 | BD5: P4 | BE5: P5 | BF5: P6 | BG5: V1 | BH5: L1 | BI5: L2 | BJ5: R1 | BK5: A1 | BL5: W1 | BM5: B1 | BN5: F1 | BO5: F2 | BP5: G1 | BQ5: C1 | BR5: C2 | BV5: S1 | BW5: I1 | BX5: I2 | BY5: Hr 1 | BZ5: M1 | CA5: Sub1
A6: =$B$2 -> 07-F1 | B6: H1 | C6: Air Cooled DX (Package / Split System) | J6: 0 | K6: 0 | L6: =+K6*J6 -> 0 | M6: 3 | N6: 0 | O6: =+N6*M6 -> 0 | P6: 1 | Q6: 0 | R6: =+Q6*P6 -> 0 | S6: 4 | T6: =IF($V6>0,$S6,0) -> 4 | U6: =+R6+O6+L6+I6+F6 -> 0 | V6: =IFERROR(VLOOKUP($A$5,'Equipment List Template'!$1:$1048576,11,FALSE),"0") -> 2 | W6: =+U6*V6 -> 0 | Z6: =B2 -> 07-F1 | AA6: =IFERROR(VLOOKUP($Z$6,'Equipment List Template'!$1:$1048576,2,FALSE),"") -> George D. Carroll Courthouse | AB6: =IFERROR(VLOOKUP($Z$6,'Equipment List Template'!$1:$1048576,3,FALSE),"") -> 100 37th St. | AC6: =IFERROR(VLOOKUP($Z$6,'Equipment List Template'!$1:$1048576,4,FALSE),"") -> Richmond | AD6: =IFERROR(VLOOKUP($Z$6,'Equipment List Template'!$1:$1048576,5,FALSE),"") -> 94805 | AE6: =IFERROR(VLOOKUP($Z$6,'Equipment List Template'!$1:$1048576,6,FALSE),"") -> Contra Costa | AF6: =IFERROR(VLOOKUP($Z$6,'Equipment List Template'!$1:$1048576,7,FALSE),"") -> BANCRO | AH6: =+$W5 -> 0 | AI6: =+$W6 -> 0 | AJ6: =+$W7 -> 0 | AK6: =+$W8 -> 0 | AL6: =+$W9 -> 0 | AM6: =+$W10 -> 0 | AN6: =+$W11 -> 0 | AO6: =+$W12 -> 0 | AP6: =+$W13 -> 0 | AQ6: =+$W14 -> 0 | AR6: =+$W15 -> 0 | AS6: =+$W16 -> 0 | AT6: =+$W17 -> 0 | AU6: =+$W18 -> 0 | AV6: =+$W19 -> 0 | AW6: =+$W20 -> 0 | AX6: =+$W21 -> 0 | AY6: =+$W22 -> 0 | AZ6: =+$W23 -> 0 | BA6: =+$W24 -> 0 | BB6: =+$W25 -> 0 | BC6: =+$W26 -> 0 | BD6: =+$W27 -> 0 | BE6: =+$W28 -> 0 | BF6: =+$W29 -> 0 | BG6: =+$W30 -> 0 | BH6: =+$W31 -> 0 | BI6: =+$W32 -> 0 | BJ6: =+$W33 -> 0 | BK6: =+$W34 -> 0 | BL6: =+$W35 -> 0 | BM6: =+$W36 -> 0 | BN6: =+$W37 -> 0 | BO6: =+$W38 -> 0 | BP6: =+$W39 -> 0 | BQ6: =+$W40 -> 0 | BR6: =+$W41 -> 0 | BT6: =+W42 -> 0 | BV6: =+D43 -> 0 | BW6: =+D44 -> 0 | BX6: =+D45 -> 0 | BY6: =+D46 -> 0 | BZ6: =+D47 -> 0 | CA6: =+D48 -> 0
A7: 07-F1 | B7: H2 | C7: Air Handling Unit (Air-cooled DX) | J7: 0 | K7: 0 | L7: 0 | M7: 3 | N7: 0 | O7: 0 | P7: 1 | Q7: 0 | R7: 0 | S7: 4 | T7: 4 | U7: 0 | V7: =IFERROR(VLOOKUP($A$5,'Equipment List Template'!$1:$1048576,12,FALSE),"0") -> 14 | W7: =+U7*V7 -> 0
A8: 07-F1 | B8: H3 | C8: Air-Cooled Chiller | G8: 40 | H8: 0 | I8: =+H8*G8 -> 0 | J8: 8 | K8: 0 | L8: 0 | M8: 3 | N8: 0 | O8: 0 | P8: 1 | Q8: 0 | R8: 0 | S8: 12 | T8: 0 | U8: 0 | V8: =IFERROR(VLOOKUP($A$5,'Equipment List Template'!$1:$1048576,13,FALSE),"0") -> 0 | W8: 0
A9: 07-F1 | B9: H4 | C9: Centrifugal Chiller | J9: 11 | K9: 0 | L9: 0 | M9: 0 | N9: 0 | O9: 0 | P9: 1 | Q9: 0 | R9: 0 | S9: 12 | T9: 0 | U9: 0 | V9: =IFERROR(VLOOKUP($A$5,'Equipment List Template'!$1:$1048576,14,FALSE),"0") -> 0 | W9: 0
A10: 07-F1 | B10: H5 | C10: Cooling Tower (Induced Draft) | J10: 8 | K10: 0 | L10: 0 | M10: 3 | N10: 0 | O10: 0 | P10: 1 | Q10: 0 | R10: 0 | S10: 12 | T10: 0 | U10: 0 | V10: =IFERROR(VLOOKUP($A$5,'Equipment List Template'!$1:$1048576,15,FALSE),"0") -> 0 | W10: 0
A11: 07-F1 | B11: H6 | C11: Ice Chiller | J11: 8 | K11: 0 | L11: 0 | M11: 3 | N11: 0 | O11: 0 | P11: 1 | Q11: 0 | R11: 0 | S11: 12 | T11: 0 | U11: 0 | V11: =IFERROR(VLOOKUP($A$5,'Equipment List Template'!$1:$1048576,16,FALSE),"0") -> 0 | W11: 0
A12: 07-F1 | B12: H7 | C12: MultiStack (Geothermal) | J12: 0 | K12: 0 | L12: 0 | M12: 0 | N12: 0 | O12: 0 | P12: 1 | Q12: 0 | R12: 0 | S12: 1 | T12: 0 | U12: 0 | V12: =IFERROR(VLOOKUP($A$5,'Equipment List Template'!$1:$1048576,17,FALSE),"0") -> 0 | W12: 0
A13: 07-F1 | B13: H8 | C13: Water Source Heat Pump | J13: 8 | K13: 0 | L13: 0 | M13: 3 | N13: 0 | O13: 0 | P13: 1 | Q13: 0 | R13: 0 | S13: 12 | T13: 0 | U13: 0 | V13: =IFERROR(VLOOKUP($A$5,'Equipment List Template'!$1:$1048576,18,FALSE),"0") -> 0 | W13: 0
A14: 07-F1 | B14: H9 | C14: Fan Coil System | J14: 0 | K14: 0 | L14: 0 | M14: 3 | N14: 0 | O14: 0 | P14: 1 | Q14: 0 | R14: 0 | S14: 4 | T14: 0 | U14: 0 | V14: =IFERROR(VLOOKUP($A$5,'Equipment List Template'!$1:$1048576,19,FALSE),"0") -> 0 | W14: 0
A15: 07-F1 | B15: H10 | C15: Exhaust Fan | J15: 0 | K15: 0 | L15: 0 | M15: 3 | N15: 0 | O15: 0 | P15: 1 | Q15: 0 | R15: 0 | S15: 4 | T15: 0 | U15: 0 | V15: =IFERROR(VLOOKUP($A$5,'Equipment List Template'!$1:$1048576,20,FALSE),"0") -> 0 | W15: 0
A16: 07-F1 | B16: H11 | C16: HVAC Unique System | J16: 8 | K16: 0 | L16: 0 | M16: 3 | N16: 0 | O16: 0 | P16: 1 | Q16: 0 | R16: 0 | S16: 12 | T16: 0 | U16: 0 | V16: =IFERROR(VLOOKUP($A$5,'Equipment List Template'!$1:$1048576,21,FALSE),"0") -> 0 | W16: 0
A17: 07-F1 | B17: E1 | C17: Electrical Panels | J17: 0 | K17: 0 | L17: 0 | M17: 3 | N17: 0 | O17: 0 | P17: 1 | Q17: 0 | R17: 0 | S17: 4 | T17: 0 | U17: 0 | V17: =IFERROR(VLOOKUP($A$5,'Equipment List Template'!$1:$1048576,22,FALSE),"0") -> 0 | W17: 0
A18: 07-F1 | B18: E2 | C18: Emergency Generator | J18: 0 | K18: 0 | L18: 0 | M18: 3 | N18: 0 | O18: 0 | P18: 1 | Q18: 0 | R18: 0 | S18: 4 | T18: 0 | U18: 0 | V18: =IFERROR(VLOOKUP($A$5,'Equipment List Template'!$1:$1048576,23,FALSE),"0") -> 0 | W18: 0
A19: 07-F1 | B19: E3 | C19: Motor Control Center | J19: 0 | K19: 0 | L19: 0 | M19: 4 | N19: 0 | O19: 0 | P19: 0 | Q19: 0 | R19: 0 | S19: 4 | T19: 0 | U19: 0 | V19: =IFERROR(VLOOKUP($A$5,'Equipment List Template'!$1:$1048576,24,FALSE),"0") -> 0 | W19: 0
A20: 07-F1 | B20: E4 | C20: Primary Switch (High) | J20: 8 | K20: 0 | L20: 0 | M20: 3 | N20: 0 | O20: 0 | P20: 1 | Q20: 0 | R20: 0 | S20: 12 | T20: 12 | U20: 0 | V20: =IFERROR(VLOOKUP($A$5,'Equipment List Template'!$1:$1048576,25,FALSE),"0") -> 1 | W20: 0
A21: 07-F1 | B21: E5 | C21: Primary Switch (Low) | J21: 8 | K21: 0 | L21: 0 | M21: 3 | N21: 0 | O21: 0 | P21: 1 | Q21: 0 | R21: 0 | S21: 12 | T21: 0 | U21: 0 | V21: =IFERROR(VLOOKUP($A$5,'Equipment List Template'!$1:$1048576,26,FALSE),"0") -> 0 | W21: 0
A22: 07-F1 | B22: E6 | C22: Transformer (Dry-Type) | J22: 0 | K22: 0 | L22: 0 | M22: 3 | N22: 0 | O22: 0 | P22: 1 | Q22: 0 | R22: 0 | S22: 4 | T22: 0 | U22: 0 | V22: =IFERROR(VLOOKUP($A$5,'Equipment List Template'!$1:$1048576,27,FALSE),"0") -> 0 | W22: 0
A23: 07-F1 | B23: E7 | C23: Uninterruptible Power Supply (UPS) | J23: 0 | K23: 0 | L23: 0 | M23: 0 | N23: 0 | O23: 0 | P23: 1 | Q23: 0 | R23: 0 | S23: 1 | T23: 0 | U23: 0 | V23: =IFERROR(VLOOKUP($A$5,'Equipment List Template'!$1:$1048576,28,FALSE),"0") -> 0 | W23: 0
A24: 07-F1 | B24: E8 | C24: Electrical Unique System | J24: 8 | K24: 0 | L24: 0 | M24: 3 | N24: 0 | O24: 0 | P24: 1 | Q24: 0 | R24: 0 | S24: 12 | T24: 0 | U24: 0 | V24: =IFERROR(VLOOKUP($A$5,'Equipment List Template'!$1:$1048576,29,FALSE),"0") -> 0 | W24: 0
A25: 07-F1 | B25: L1 | C25: Life Safety | J25: 0 | K25: 0 | L25: 0 | M25: 3 | N25: 0 | O25: 0 | P25: 1 | Q25: 0 | R25: 0 | S25: 4 | T25: 4 | U25: 0 | V25: =IFERROR(VLOOKUP($A$5,'Equipment List Template'!$1:$1048576,30,FALSE),"0") -> 1 | W25: =+U25*V25 -> 0
A26: 07-F1 | B26: L2 | C26: Backflow Preventor(s) | J26: 0 | K26: 0 | L26: 0 | M26: 0 | N26: 0 | O26: 0 | P26: 1 | Q26: 0 | R26: 0 | S26: 1 | T26: 1 | U26: 0 | V26: =IFERROR(VLOOKUP($A$5,'Equipment List Template'!$1:$1048576,31,FALSE),"0") -> 1 | W26: =+U26*V26 -> 0
A27: 07-F1 | B27: P1 | C27: Hot Water Boiler | J27: 8 | K27: 0 | L27: 0 | M27: 3 | N27: 0 | O27: 0 | P27: 1 | Q27: 0 | R27: 0 | S27: 12 | T27: 12 | U27: 0 | V27: =IFERROR(VLOOKUP($A$5,'Equipment List Template'!$1:$1048576,32,FALSE),"0") -> 2 | W27: 0
A28: 07-F1 | B28: P2 | C28: Condensing Water Heater | J28: 0 | K28: 0 | L28: 0 | M28: 0 | N28: 0 | O28: 0 | P28: 1 | Q28: 0 | R28: 0 | S28: 1 | T28: 0 | U28: 0 | V28: =IFERROR(VLOOKUP($A$5,'Equipment List Template'!$1:$1048576,33,FALSE),"0") -> 0 | W28: 0
A29: 07-F1 | B29: P3 | C29: Electric Water Heater | J29: 0 | K29: 0 | L29: 0 | M29: 0 | N29: 0 | O29: 0 | P29: 1 | Q29: 0 | R29: 0 | S29: 1 | T29: 0 | U29: 0 | V29: =IFERROR(VLOOKUP($A$5,'Equipment List Template'!$1:$1048576,34,FALSE),"0") -> 0 | W29: 0
A30: 07-F1 | B30: P4 | C30: Plumbing Unique System | J30: 0 | K30: 0 | L30: 0 | M30: 3 | N30: 0 | O30: 0 | P30: 1 | Q30: 0 | R30: 0 | S30: 4 | T30: 0 | U30: 0 | V30: =IFERROR(VLOOKUP($A$5,'Equipment List Template'!$1:$1048576,35,FALSE),"0") -> 0 | W30: 0
A31: 07-F1 | B31: P5 | C31: Steam System | J31: 0 | K31: 0 | L31: 0 | M31: 3 | N31: 0 | O31: 0 | P31: 1 | Q31: 0 | R31: 0 | S31: 4 | T31: 0 | U31: 0 | V31: =IFERROR(VLOOKUP($A$5,'Equipment List Template'!$1:$1048576,36,FALSE),"0") -> 0 | W31: 0
A32: 07-F1 | B32: P6 | C32: Pneumatic Compressor | J32: 11 | K32: 0 | L32: 0 | M32: 0 | N32: 0 | O32: 0 | P32: 1 | Q32: 0 | R32: 0 | S32: 12 | T32: 12 | U32: 0 | V32: =IFERROR(VLOOKUP($A$5,'Equipment List Template'!$1:$1048576,37,FALSE),"0") -> 2 | W32: 0
A33: 07-F1 | B33: R1 | C33: Rounds and Readings | D33: =IFERROR(IF(VLOOKUP($A33,'Equipment List Template'!$1:$1048576,38,FALSE)=260,248,0),0) -> 0 | E33: 0 | F33: =+E33*D33 -> 0 | G33: =IFERROR(IF(VLOOKUP($A33,'Equipment List Template'!$1:$1048576,38,FALSE)=52,40,0),0) -> 40 | H33: 0 | I33: =+H33*G33 -> 0 | J33: 12 | K33: 0 | L33: 0 | S33: 12 | T33: 12 | U33: =+R33+O33+L33+I33+F33 -> 0 | V33: 1 | W33: =+U33*V33 -> 0
A34: 07-F1 | B34: V1 | C34: Vertical Transportation | J34: 8 | K34: 0 | L34: =+K34*J34 -> 0 | M34: 3 | N34: 0 | O34: =+N34*M34 -> 0 | P34: 1 | Q34: 0 | R34: =+Q34*P34 -> 0 | S34: 12 | T34: 12 | U34: =+R34+O34+L34 -> 0 | V34: =IFERROR(VLOOKUP($A$5,'Equipment List Template'!$1:$1048576,39,FALSE),"0") -> 1 | W34: =+U34*V34 -> 0
A35: 07-F1 | B35: W1 | C35: Water Treatment | D35: =IFERROR(IF(VLOOKUP($A35,'Equipment List Template'!$1:$1048576,40,FALSE)=260,260,0),0) -> 0 | E35: 0 | F35: =+E35*D35 -> 0 | S35: 0 | T35: 0 | U35: =+R35+O35+L35+I35+F35 -> 0 | V35: 1 | W35: 0
A36: 07-F1 | B36: B1 | C36: Building Exterior / Hardscape (Monthly) | J36: 12 | K36: 0 | L36: =+K36*J36 -> 0 | S36: 12 | T36: 12 | U36: 0 | V36: 1 | W36: 0
A37: 07-F1 | B37: F1 | C37: Fountain Maintenance (Monthly) | J37: 12 | K37: 0 | L37: 0 | S37: 12 | T37: 12 | U37: 0 | V37: 1 | W37: 0
A38: 07-F1 | B38: F2 | C38: Fuel Storage Tanks (Quarterly) If applicable | M38: 4 | N38: 0 | O38: =+N38*M38 -> 0 | S38: 4 | T38: 4 | U38: 0 | V38: 1 | W38: 0
A39: 07-F1 | B39: G1 | C39: Landscape Maintenance * | G39: 40 | H39: 0 | I39: =+H39*G39 -> 0 | S39: 0 | T39: 0 | U39: 0 | V39: 1 | W39: 0
A40: 07-F1 | B40: C1 | C40: Account Management and Supervision (Monthly) | J40: 12 | K40: 0 | L40: =+K40*J40 -> 0 | S40: 12 | T40: 12 | U40: 0 | V40: 1 | W40: 0
A41: 07-F1 | B41: C2 | C41: Fee (Monthly) | J41: 12 | K41: 0 | L41: 0 | S41: 12 | T41: 12 | U41: 0 | V41: 1 | W41: 0
Q42: JCC ID | R42: =B2 -> 07-F1 | U42: Total | W42: =SUM(W6:W41) -> 0
B43: S1 | C43: Snow Removal - (crew hourly rate) | D43: 0 | U43: Total # of PM's | W43: =SUM(T5:T41) -> 137
B44: I1 | C44: Unclogging Blocked Toilet - In-custody cell (labor-only) | D44: 0
B45: I2 | C45: Unclogging Blocked Toilet - Public/Court Staff (labor-only) | D45: 0
B46: Hr 1 | C46: Hourly Rate (All Labor categories) | D46: 0
B47: M1 | C47: Markup on Materials (Percentage) | D47: 0
B48: Sub1 | C48: Markup on Subcontractors/Third-Parties (Percentage) | D48: 0
B50: * Landscape Maintenance varies by location on the number of weeks per year it can be preformed. For the purpose of the RFP, all facilities are pre-established at 40 weeks of service. The actual amount paid by facility will be based upon the actual weeks that service has been performed, validated and invoiced.

Sheet 08-A1
B1: JCC ID | C1: Facility Name | D1: Address | F1: City / Town | H1: Zip Code | J1: County | L1: Region | N1: RFP | P1: Proposer
B2: 08-A1 | C2: =IFERROR(VLOOKUP($B$2,'Equipment List Template'!$1:$1048576,2,FALSE),"") -> Del Norte County Superior Court | D2: =IFERROR(VLOOKUP($B$2,'Equipment List Template'!$1:$1048576,3,FALSE),"") -> 450 'H' St. | F2: =IFERROR(VLOOKUP($B$2,'Equipment List Template'!$1:$1048576,4,FALSE),"") -> Crescent City | H2: =IFERROR(VLOOKUP($B$2,'Equipment List Template'!$1:$1048576,5,FALSE),"") -> 95531 | J2: =IFERROR(VLOOKUP($B$2,'Equipment List Template'!$1:$1048576,6,FALSE),"") -> Del Norte | L2: =IFERROR(VLOOKUP($B$2,'Equipment List Template'!$1:$1048576,7,FALSE),"") -> BANCRO | N2: ='Summary Pricing Sheet'!B2 -> RFP-FS-SP-2019-03-JP | P2: ='Summary Pricing Sheet'!B3 -> Firm Name TBD
D3: Daily Activity | G3: Weekly Activity | J3: Monthly Activity | M3: Quarterly Activity | P3: Annual Activity | U3: Summary | AG3: System | AH3: HVAC | AS3: Electrical | BA3: Plumbing | BE3: Building Systems | BP3: Corporate | BT3: Fixed Price - Facility Total Annual Cost Year 1
B4: System ID | C4: Subsystem | D4: Quantity | E4: Cost | F4: Daily Total | G4: Quantity | H4: Cost | I4: Weekly Total | J4: Monthly Quantity | K4: Cost | L4: Monthly Total | M4: Quarterly Quantity | N4: Cost | O4: Quarterly Total | P4: Annual Quantity | Q4: Cost | R4: Annual PM Total | T4: Number of PM's | U4: Annual Cost | V4: Quantity | W4: Total Annual Cost | AG4: Subsystem | AH4: Air Cooled DX (Package / Split System) | AI4: Air Handling Unit (Air-cooled DX) | AJ4: Air-Cooled Chiller | AK4: Centrifugal Chiller | AL4: Cooling Tower (Induced Draft) | AM4: Ice Chiller | AN4: Multitask (Geothermal) | AO4: Water Source Heat Pump | AP4: Fan Coil System | AQ4: Exhaust Fan | AR4: HVAC Unique System | AS4: Electrical Panels | AT4: Emergency Generator | AU4: Motor Control Center | AV4: Primary Switch (High) | AW4: Primary Switch (Low) | AX4: Transformer (Dry-Type) | AY4: Uninterruptible Power Supply (UPS) | AZ4: Electrical Unique System | BA4: Hot Water Boiler | BB4: Condensing Water Heater | BC4: Electric Water Heater | BD4: Plumbing Unique System | BE4: Steam System | BF4: Pneumatic Compressor | BG4: Vertical Transportation | BH4: Life Safety | BI4: Backflow Preventor | BJ4: Rounds and Readings | BK4: Access Doors, Gates, Sally Port | BL4: Water Treatment | BM4: Building Exterior / Hardscape (Monthly) | BN4: Fountain Maintenance (Monthly) | BO4: Fuel Storage Tanks (Quarterly) If applicable | BP4: Landscape Maintenance * | BQ4: Account Management and Supervision (Monthly) | BR4: Fee (Monthly) | BV4: Snow Removal - (crew hourly rate) | BW4: Unclogging Blocked Toilet - In-custody holding cell (labor) | BX4: Unclogging Blocked Toilet - Public/Court Staff (labor) | BY4: Hourly Rate | BZ4: Markup on Materials | CA4: Markup on Subcontractors/Third-Parties
A5: =$B$2 -> 08-A1 | B5: A1 | C5: Access Doors, Gates, Sally Port | J5: 11 | K5: 0 | L5: =+K5*J5 -> 0 | M5: 0 | N5: 0 | O5: =+N5*M5 -> 0 | P5: 1 | Q5: 0 | R5: =+Q5*P5 -> 0 | S5: 12 | T5: =IF($V5>0,$S5,0) -> 12 | U5: =+R5+O5+L5+I5+F5 -> 0 | V5: =IFERROR(VLOOKUP($A$5,'Equipment List Template'!$1:$1048576,10,FALSE),"0") -> 1 | W5: =+U5*V5 -> 0 | Z5: JCC ID | AA5: Facility Name | AB5: Address | AC5: City / Town | AD5: County | AE5: Region | AF5: Region | AG5: System ID | AH5: H1 | AI5: H2 | AJ5: H3 | AK5: H4 | AL5: H5 | AM5: H6 | AN5: H7 | AO5: H8 | AP5: H9 | AQ5: H10 | AR5: H11 | AS5: E1 | AT5: E2 | AU5: E3 | AV5: E4 | AW5: E5 | AX5: E6 | AY5: E7 | AZ5: E8 | BA5: P1 | BB5: P2 | BC5: P3 | BD5: P4 | BE5: P5 | BF5: P6 | BG5: V1 | BH5: L1 | BI5: L2 | BJ5: R1 | BK5: A1 | BL5: W1 | BM5: B1 | BN5: F1 | BO5: F2 | BP5: G1 | BQ5: C1 | BR5: C2 | BV5: S1 | BW5: I1 | BX5: I2 | BY5: Hr 1 | BZ5: M1 | CA5: Sub1
A6: =$B$2 -> 08-A1 | B6: H1 | C6: Air Cooled DX (Package / Split System) | J6: 0 | K6: 0 | L6: =+K6*J6 -> 0 | M6: 3 | N6: 0 | O6: =+N6*M6 -> 0 | P6: 1 | Q6: 0 | R6: =+Q6*P6 -> 0 | S6: 4 | T6: =IF($V6>0,$S6,0) -> 0 | U6: =+R6+O6+L6+I6+F6 -> 0 | V6: =IFERROR(VLOOKUP($A$5,'Equipment List Template'!$1:$1048576,11,FALSE),"0") -> 0 | W6: =+U6*V6 -> 0 | Z6: =B2 -> 08-A1 | AA6: =IFERROR(VLOOKUP($Z$6,'Equipment List Template'!$1:$1048576,2,FALSE),"") -> Del Norte County Superior Court | AB6: =IFERROR(VLOOKUP($Z$6,'Equipment List Template'!$1:$1048576,3,FALSE),"") -> 450 'H' St. | AC6: =IFERROR(VLOOKUP($Z$6,'Equipment List Template'!$1:$1048576,4,FALSE),"") -> Crescent City | AD6: =IFERROR(VLOOKUP($Z$6,'Equipment List Template'!$1:$1048576,5,FALSE),"") -> 95531 | AE6: =IFERROR(VLOOKUP($Z$6,'Equipment List Template'!$1:$1048576,6,FALSE),"") -> Del Norte | AF6: =IFERROR(VLOOKUP($Z$6,'Equipment List Template'!$1:$1048576,7,FALSE),"") -> BANCRO | AH6: =+$W5 -> 0 | AI6: =+$W6 -> 0 | AJ6: =+$W7 -> 0 | AK6: =+$W8 -> 0 | AL6: =+$W9 -> 0 | AM6: =+$W10 -> 0 | AN6: =+$W11 -> 0 | AO6: =+$W12 -> 0 | AP6: =+$W13 -> 0 | AQ6: =+$W14 -> 0 | AR6: =+$W15 -> 0 | AS6: =+$W16 -> 0 | AT6: =+$W17 -> 0 | AU6: =+$W18 -> 0 | AV6: =+$W19 -> 0 | AW6: =+$W20 -> 0 | AX6: =+$W21 -> 0 | AY6: =+$W22 -> 0 | AZ6: =+$W23 -> 0 | BA6: =+$W24 -> 0 | BB6: =+$W25 -> 0 | BC6: =+$W26 -> 0 | BD6: =+$W27 -> 0 | BE6: =+$W28 -> 0 | BF6: =+$W29 -> 0 | BG6: =+$W30 -> 0 | BH6: =+$W31 -> 0 | BI6: =+$W32 -> 0 | BJ6: =+$W33 -> 0 | BK6: =+$W34 -> 0 | BL6: =+$W35 -> 0 | BM6: =+$W36 -> 0 | BN6: =+$W37 -> 0 | BO6: =+$W38 -> 0 | BP6: =+$W39 -> 0 | BQ6: =+$W40 -> 0 | BR6: =+$W41 -> 0 | BT6: =+W42 -> 0 | BV6: =+D43 -> 0 | BW6: =+D44 -> 0 | BX6: =+D45 -> 0 | BY6: =+D46 -> 0 | BZ6: =+D47 -> 0 | CA6: =+D48 -> 0
A7: 08-A1 | B7: H2 | C7: Air Handling Unit (Air-cooled DX) | J7: 0 | K7: 0 | L7: 0 | M7: 3 | N7: 0 | O7: 0 | P7: 1 | Q7: 0 | R7: 0 | S7: 4 | T7: 4 | U7: 0 | V7: =IFERROR(VLOOKUP($A$5,'Equipment List Template'!$1:$1048576,12,FALSE),"0") -> 6 | W7: =+U7*V7 -> 0
A8: 08-A1 | B8: H3 | C8: Air-Cooled Chiller | G8: 40 | H8: 0 | I8: =+H8*G8 -> 0 | J8: 8 | K8: 0 | L8: 0 | M8: 3 | N8: 0 | O8: 0 | P8: 1 | Q8: 0 | R8: 0 | S8: 12 | T8: 0 | U8: 0 | V8: =IFERROR(VLOOKUP($A$5,'Equipment List Template'!$1:$1048576,13,FALSE),"0") -> 0 | W8: 0
A9: 08-A1 | B9: H4 | C9: Centrifugal Chiller | J9: 11 | K9: 0 | L9: 0 | M9: 0 | N9: 0 | O9: 0 | P9: 1 | Q9: 0 | R9: 0 | S9: 12 | T9: 0 | U9: 0 | V9: =IFERROR(VLOOKUP($A$5,'Equipment List Template'!$1:$1048576,14,FALSE),"0") -> 0 | W9: 0
A10: 08-A1 | B10: H5 | C10: Cooling Tower (Induced Draft) | J10: 8 | K10: 0 | L10: 0 | M10: 3 | N10: 0 | O10: 0 | P10: 1 | Q10: 0 | R10: 0 | S10: 12 | T10: 0 | U10: 0 | V10: =IFERROR(VLOOKUP($A$5,'Equipment List Template'!$1:$1048576,15,FALSE),"0") -> 0 | W10: 0
A11: 08-A1 | B11: H6 | C11: Ice Chiller | J11: 8 | K11: 0 | L11: 0 | M11: 3 | N11: 0 | O11: 0 | P11: 1 | Q11: 0 | R11: 0 | S11: 12 | T11: 0 | U11: 0 | V11: =IFERROR(VLOOKUP($A$5,'Equipment List Template'!$1:$1048576,16,FALSE),"0") -> 0 | W11: 0
A12: 08-A1 | B12: H7 | C12: MultiStack (Geothermal) | J12: 0 | K12: 0 | L12: 0 | M12: 0 | N12: 0 | O12: 0 | P12: 1 | Q12: 0 | R12: 0 | S12: 1 | T12: 0 | U12: 0 | V12: =IFERROR(VLOOKUP($A$5,'Equipment List Template'!$1:$1048576,17,FALSE),"0") -> 0 | W12: 0
A13: 08-A1 | B13: H8 | C13: Water Source Heat Pump | J13: 8 | K13: 0 | L13: 0 | M13: 3 | N13: 0 | O13: 0 | P13: 1 | Q13: 0 | R13: 0 | S13: 12 | T13: 0 | U13: 0 | V13: =IFERROR(VLOOKUP($A$5,'Equipment List Template'!$1:$1048576,18,FALSE),"0") -> 0 | W13: 0
A14: 08-A1 | B14: H9 | C14: Fan Coil System | J14: 0 | K14: 0 | L14: 0 | M14: 3 | N14: 0 | O14: 0 | P14: 1 | Q14: 0 | R14: 0 | S14: 4 | T14: 0 | U14: 0 | V14: =IFERROR(VLOOKUP($A$5,'Equipment List Template'!$1:$1048576,19,FALSE),"0") -> 0 | W14: 0
A15: 08-A1 | B15: H10 | C15: Exhaust Fan | J15: 0 | K15: 0 | L15: 0 | M15: 3 | N15: 0 | O15: 0 | P15: 1 | Q15: 0 | R15: 0 | S15: 4 | T15: 0 | U15: 0 | V15: =IFERROR(VLOOKUP($A$5,'Equipment List Template'!$1:$1048576,20,FALSE),"0") -> 0 | W15: 0
A16: 08-A1 | B16: H11 | C16: HVAC Unique System | J16: 8 | K16: 0 | L16: 0 | M16: 3 | N16: 0 | O16: 0 | P16: 1 | Q16: 0 | R16: 0 | S16: 12 | T16: 0 | U16: 0 | V16: =IFERROR(VLOOKUP($A$5,'Equipment List Template'!$1:$1048576,21,FALSE),"0") -> 0 | W16: 0
A17: 08-A1 | B17: E1 | C17: Electrical Panels | J17: 0 | K17: 0 | L17: 0 | M17: 3 | N17: 0 | O17: 0 | P17: 1 | Q17: 0 | R17: 0 | S17: 4 | T17: 0 | U17: 0 | V17: =IFERROR(VLOOKUP($A$5,'Equipment List Template'!$1:$1048576,22,FALSE),"0") -> 0 | W17: 0
A18: 08-A1 | B18: E2 | C18: Emergency Generator | J18: 0 | K18: 0 | L18: 0 | M18: 3 | N18: 0 | O18: 0 | P18: 1 | Q18: 0 | R18: 0 | S18: 4 | T18: 4 | U18: 0 | V18: =IFERROR(VLOOKUP($A$5,'Equipment List Template'!$1:$1048576,23,FALSE),"0") -> 1 | W18: 0
A19: 08-A1 | B19: E3 | C19: Motor Control Center | J19: 0 | K19: 0 | L19: 0 | M19: 4 | N19: 0 | O19: 0 | P19: 0 | Q19: 0 | R19: 0 | S19: 4 | T19: 0 | U19: 0 | V19: =IFERROR(VLOOKUP($A$5,'Equipment List Template'!$1:$1048576,24,FALSE),"0") -> 0 | W19: 0
A20: 08-A1 | B20: E4 | C20: Primary Switch (High) | J20: 8 | K20: 0 | L20: 0 | M20: 3 | N20: 0 | O20: 0 | P20: 1 | Q20: 0 | R20: 0 | S20: 12 | T20: 12 | U20: 0 | V20: =IFERROR(VLOOKUP($A$5,'Equipment List Template'!$1:$1048576,25,FALSE),"0") -> 1 | W20: 0
A21: 08-A1 | B21: E5 | C21: Primary Switch (Low) | J21: 8 | K21: 0 | L21: 0 | M21: 3 | N21: 0 | O21: 0 | P21: 1 | Q21: 0 | R21: 0 | S21: 12 | T21: 0 | U21: 0 | V21: =IFERROR(VLOOKUP($A$5,'Equipment List Template'!$1:$1048576,26,FALSE),"0") -> 0 | W21: 0
A22: 08-A1 | B22: E6 | C22: Transformer (Dry-Type) | J22: 0 | K22: 0 | L22: 0 | M22: 3 | N22: 0 | O22: 0 | P22: 1 | Q22: 0 | R22: 0 | S22: 4 | T22: 0 | U22: 0 | V22: =IFERROR(VLOOKUP($A$5,'Equipment List Template'!$1:$1048576,27,FALSE),"0") -> 0 | W22: 0
A23: 08-A1 | B23: E7 | C23: Uninterruptible Power Supply (UPS) | J23: 0 | K23: 0 | L23: 0 | M23: 0 | N23: 0 | O23: 0 | P23: 1 | Q23: 0 | R23: 0 | S23: 1 | T23: 0 | U23: 0 | V23: =IFERROR(VLOOKUP($A$5,'Equipment List Template'!$1:$1048576,28,FALSE),"0") -> 0 | W23: 0
A24: 08-A1 | B24: E8 | C24: Electrical Unique System | J24: 8 | K24: 0 | L24: 0 | M24: 3 | N24: 0 | O24: 0 | P24: 1 | Q24: 0 | R24: 0 | S24: 12 | T24: 0 | U24: 0 | V24: =IFERROR(VLOOKUP($A$5,'Equipment List Template'!$1:$1048576,29,FALSE),"0") -> 0 | W24: 0
A25: 08-A1 | B25: L1 | C25: Life Safety | J25: 0 | K25: 0 | L25: 0 | M25: 3 | N25: 0 | O25: 0 | P25: 1 | Q25: 0 | R25: 0 | S25: 4 | T25: 4 | U25: 0 | V25: =IFERROR(VLOOKUP($A$5,'Equipment List Template'!$1:$1048576,30,FALSE),"0") -> 1 | W25: =+U25*V25 -> 0
A26: 08-A1 | B26: L2 | C26: Backflow Preventor(s) | J26: 0 | K26: 0 | L26: 0 | M26: 0 | N26: 0 | O26: 0 | P26: 1 | Q26: 0 | R26: 0 | S26: 1 | T26: 1 | U26: 0 | V26: =IFERROR(VLOOKUP($A$5,'Equipment List Template'!$1:$1048576,31,FALSE),"0") -> 2 | W26: =+U26*V26 -> 0
A27: 08-A1 | B27: P1 | C27: Hot Water Boiler | J27: 8 | K27: 0 | L27: 0 | M27: 3 | N27: 0 | O27: 0 | P27: 1 | Q27: 0 | R27: 0 | S27: 12 | T27: 0 | U27: 0 | V27: =IFERROR(VLOOKUP($A$5,'Equipment List Template'!$1:$1048576,32,FALSE),"0") -> 0 | W27: 0
A28: 08-A1 | B28: P2 | C28: Condensing Water Heater | J28: 0 | K28: 0 | L28: 0 | M28: 0 | N28: 0 | O28: 0 | P28: 1 | Q28: 0 | R28: 0 | S28: 1 | T28: 0 | U28: 0 | V28: =IFERROR(VLOOKUP($A$5,'Equipment List Template'!$1:$1048576,33,FALSE),"0") -> 0 | W28: 0
A29: 08-A1 | B29: P3 | C29: Electric Water Heater | J29: 0 | K29: 0 | L29: 0 | M29: 0 | N29: 0 | O29: 0 | P29: 1 | Q29: 0 | R29: 0 | S29: 1 | T29: 0 | U29: 0 | V29: =IFERROR(VLOOKUP($A$5,'Equipment List Template'!$1:$1048576,34,FALSE),"0") -> 0 | W29: 0
A30: 08-A1 | B30: P4 | C30: Plumbing Unique System | J30: 0 | K30: 0 | L30: 0 | M30: 3 | N30: 0 | O30: 0 | P30: 1 | Q30: 0 | R30: 0 | S30: 4 | T30: 0 | U30: 0 | V30: =IFERROR(VLOOKUP($A$5,'Equipment List Template'!$1:$1048576,35,FALSE),"0") -> 0 | W30: 0
A31: 08-A1 | B31: P5 | C31: Steam System | J31: 0 | K31: 0 | L31: 0 | M31: 3 | N31: 0 | O31: 0 | P31: 1 | Q31: 0 | R31: 0 | S31: 4 | T31: 0 | U31: 0 | V31: =IFERROR(VLOOKUP($A$5,'Equipment List Template'!$1:$1048576,36,FALSE),"0") -> 0 | W31: 0
A32: 08-A1 | B32: P6 | C32: Pneumatic Compressor | J32: 11 | K32: 0 | L32: 0 | M32: 0 | N32: 0 | O32: 0 | P32: 1 | Q32: 0 | R32: 0 | S32: 12 | T32: 0 | U32: 0 | V32: =IFERROR(VLOOKUP($A$5,'Equipment List Template'!$1:$1048576,37,FALSE),"0") -> 0 | W32: 0
A33: 08-A1 | B33: R1 | C33: Rounds and Readings | D33: =IFERROR(IF(VLOOKUP($A33,'Equipment List Template'!$1:$1048576,38,FALSE)=260,248,0),0) -> 0 | E33: 0 | F33: =+E33*D33 -> 0 | G33: =IFERROR(IF(VLOOKUP($A33,'Equipment List Template'!$1:$1048576,38,FALSE)=52,40,0),0) -> 40 | H33: 0 | I33: =+H33*G33 -> 0 | J33: 12 | K33: 0 | L33: 0 | S33: 12 | T33: 12 | U33: =+R33+O33+L33+I33+F33 -> 0 | V33: 1 | W33: =+U33*V33 -> 0
A34: 08-A1 | B34: V1 | C34: Vertical Transportation | J34: 8 | K34: 0 | L34: =+K34*J34 -> 0 | M34: 3 | N34: 0 | O34: =+N34*M34 -> 0 | P34: 1 | Q34: 0 | R34: =+Q34*P34 -> 0 | S34: 12 | T34: 0 | U34: =+R34+O34+L34 -> 0 | V34: =IFERROR(VLOOKUP($A$5,'Equipment List Template'!$1:$1048576,39,FALSE),"0") -> 0 | W34: =+U34*V34 -> 0
A35: 08-A1 | B35: W1 | C35: Water Treatment | D35: =IFERROR(IF(VLOOKUP($A35,'Equipment List Template'!$1:$1048576,40,FALSE)=260,260,0),0) -> 0 | E35: 0 | F35: =+E35*D35 -> 0 | S35: 0 | T35: 0 | U35: =+R35+O35+L35+I35+F35 -> 0 | V35: 1 | W35: 0
A36: 08-A1 | B36: B1 | C36: Building Exterior / Hardscape (Monthly) | J36: 12 | K36: 0 | L36: =+K36*J36 -> 0 | S36: 12 | T36: 12 | U36: 0 | V36: 1 | W36: 0
A37: 08-A1 | B37: F1 | C37: Fountain Maintenance (Monthly) | J37: 12 | K37: 0 | L37: 0 | S37: 12 | T37: 12 | U37: 0 | V37: 1 | W37: 0
A38: 08-A1 | B38: F2 | C38: Fuel Storage Tanks (Quarterly) If applicable | M38: 4 | N38: 0 | O38: =+N38*M38 -> 0 | S38: 4 | T38: 4 | U38: 0 | V38: 1 | W38: 0
A39: 08-A1 | B39: G1 | C39: Landscape Maintenance * | G39: 40 | H39: 0 | I39: =+H39*G39 -> 0 | S39: 0 | T39: 0 | U39: 0 | V39: 1 | W39: 0
A40: 08-A1 | B40: C1 | C40: Account Management and Supervision (Monthly) | J40: 12 | K40: 0 | L40: =+K40*J40 -> 0 | S40: 12 | T40: 12 | U40: 0 | V40: 1 | W40: 0
A41: 08-A1 | B41: C2 | C41: Fee (Monthly) | J41: 12 | K41: 0 | L41: 0 | S41: 12 | T41: 12 | U41: 0 | V41: 1 | W41: 0
Q42: JCC ID | R42: =B2 -> 08-A1 | U42: Total | W42: =SUM(W6:W41) -> 0
B43: S1 | C43: Snow Removal - (crew hourly rate) | D43: 0 | U43: Total # of PM's | W43: =SUM(T5:T41) -> 101
B44: I1 | C44: Unclogging Blocked Toilet - In-custody cell (labor-only) | D44: 0
B45: I2 | C45: Unclogging Blocked Toilet - Public/Court Staff (labor-only) | D45: 0
B46: Hr 1 | C46: Hourly Rate (All Labor categories) | D46: 0
B47: M1 | C47: Markup on Materials (Percentage) | D47: 0
B48: Sub1 | C48: Markup on Subcontractors/Third-Parties (Percentage) | D48: 0
B50: * Landscape Maintenance varies by location on the number of weeks per year it can be preformed. For the purpose of the RFP, all facilities are pre-established at 40 weeks of service. The actual amount paid by facility will be based upon the actual weeks that service has been performed, validated and invoiced.

Sheet 17-B1
B1: JCC ID | C1: Facility Name | D1: Address | F1: City / Town | H1: Zip Code | J1: County | L1: Region | N1: RFP | P1: Proposer
B2: 17-B1 | C2: =IFERROR(VLOOKUP($B$2,'Equipment List Template'!$1:$1048576,2,FALSE),"") -> South Civic Center | D2: =IFERROR(VLOOKUP($B$2,'Equipment List Template'!$1:$1048576,3,FALSE),"") -> 7000A S. Center Dr. | F2: =IFERROR(VLOOKUP($B$2,'Equipment List Template'!$1:$1048576,4,FALSE),"") -> Clearlake | H2: =IFERROR(VLOOKUP($B$2,'Equipment List Template'!$1:$1048576,5,FALSE),"") -> 95422 | J2: =IFERROR(VLOOKUP($B$2,'Equipment List Template'!$1:$1048576,6,FALSE),"") -> Lake | L2: =IFERROR(VLOOKUP($B$2,'Equipment List Template'!$1:$1048576,7,FALSE),"") -> BANCRO | N2: ='Summary Pricing Sheet'!B2 -> RFP-FS-SP-2019-03-JP | P2: ='Summary Pricing Sheet'!B3 -> Firm Name TBD
D3: Daily Activity | G3: Weekly Activity | J3: Monthly Activity | M3: Quarterly Activity | P3: Annual Activity | U3: Summary | AG3: System | AH3: HVAC | AS3: Electrical | BA3: Plumbing | BE3: Building Systems | BP3: Corporate | BT3: Fixed Price - Facility Total Annual Cost Year 1
B4: System ID | C4: Subsystem | D4: Quantity | E4: Cost | F4: Daily Total | G4: Quantity | H4: Cost | I4: Weekly Total | J4: Monthly Quantity | K4: Cost | L4: Monthly Total | M4: Quarterly Quantity | N4: Cost | O4: Quarterly Total | P4: Annual Quantity | Q4: Cost | R4: Annual PM Total | T4: Number of PM's | U4: Annual Cost | V4: Quantity | W4: Total Annual Cost | AG4: Subsystem | AH4: Air Cooled DX (Package / Split System) | AI4: Air Handling Unit (Air-cooled DX) | AJ4: Air-Cooled Chiller | AK4: Centrifugal Chiller | AL4: Cooling Tower (Induced Draft) | AM4: Ice Chiller | AN4: Multitask (Geothermal) | AO4: Water Source Heat Pump | AP4: Fan Coil System | AQ4: Exhaust Fan | AR4: HVAC Unique System | AS4: Electrical Panels | AT4: Emergency Generator | AU4: Motor Control Center | AV4: Primary Switch (High) | AW4: Primary Switch (Low) | AX4: Transformer (Dry-Type) | AY4: Uninterruptible Power Supply (UPS) | AZ4: Electrical Unique System | BA4: Hot Water Boiler | BB4: Condensing Water Heater | BC4: Electric Water Heater | BD4: Plumbing Unique System | BE4: Steam System | BF4: Pneumatic Compressor | BG4: Vertical Transportation | BH4: Life Safety | BI4: Backflow Preventor | BJ4: Rounds and Readings | BK4: Access Doors, Gates, Sally Port | BL4: Water Treatment | BM4: Building Exterior / Hardscape (Monthly) | BN4: Fountain Maintenance (Monthly) | BO4: Fuel Storage Tanks (Quarterly) If applicable | BP4: Landscape Maintenance * | BQ4: Account Management and Supervision (Monthly) | BR4: Fee (Monthly) | BV4: Snow Removal - (crew hourly rate) | BW4: Unclogging Blocked Toilet - In-custody holding cell (labor) | BX4: Unclogging Blocked Toilet - Public/Court Staff (labor) | BY4: Hourly Rate | BZ4: Markup on Materials | CA4: Markup on Subcontractors/Third-Parties
A5: =$B$2 -> 17-B1 | B5: A1 | C5: Access Doors, Gates, Sally Port | J5: 11 | K5: 0 | L5: =+K5*J5 -> 0 | M5: 0 | N5: 0 | O5: =+N5*M5 -> 0 | P5: 1 | Q5: 0 | R5: =+Q5*P5 -> 0 | S5: 12 | T5: =IF($V5>0,$S5,0) -> 12 | U5: =+R5+O5+L5+I5+F5 -> 0 | V5: =IFERROR(VLOOKUP($A$5,'Equipment List Template'!$1:$1048576,10,FALSE),"0") -> 1 | W5: =+U5*V5 -> 0 | Z5: JCC ID | AA5: Facility Name | AB5: Address | AC5: City / Town | AD5: County | AE5: Region | AF5: Region | AG5: System ID | AH5: H1 | AI5: H2 | AJ5: H3 | AK5: H4 | AL5: H5 | AM5: H6 | AN5: H7 | AO5: H8 | AP5: H9 | AQ5: H10 | AR5: H11 | AS5: E1 | AT5: E2 | AU5: E3 | AV5: E4 | AW5: E5 | AX5: E6 | AY5: E7 | AZ5: E8 | BA5: P1 | BB5: P2 | BC5: P3 | BD5: P4 | BE5: P5 | BF5: P6 | BG5: V1 | BH5: L1 | BI5: L2 | BJ5: R1 | BK5: A1 | BL5: W1 | BM5: B1 | BN5: F1 | BO5: F2 | BP5: G1 | BQ5: C1 | BR5: C2 | BV5: S1 | BW5: I1 | BX5: I2 | BY5: Hr 1 | BZ5: M1 | CA5: Sub1
A6: =$B$2 -> 17-B1 | B6: H1 | C6: Air Cooled DX (Package / Split System) | J6: 0 | K6: 0 | L6: =+K6*J6 -> 0 | M6: 3 | N6: 0 | O6: =+N6*M6 -> 0 | P6: 1 | Q6: 0 | R6: =+Q6*P6 -> 0 | S6: 4 | T6: =IF($V6>0,$S6,0) -> 4 | U6: =+R6+O6+L6+I6+F6 -> 0 | V6: =IFERROR(VLOOKUP($A$5,'Equipment List Template'!$1:$1048576,11,FALSE),"0") -> 4 | W6: =+U6*V6 -> 0 | Z6: =B2 -> 17-B1 | AA6: =IFERROR(VLOOKUP($Z$6,'Equipment List Template'!$1:$1048576,2,FALSE),"") -> South Civic Center | AB6: =IFERROR(VLOOKUP($Z$6,'Equipment List Template'!$1:$1048576,3,FALSE),"") -> 7000A S. Center Dr. | AC6: =IFERROR(VLOOKUP($Z$6,'Equipment List Template'!$1:$1048576,4,FALSE),"") -> Clearlake | AD6: =IFERROR(VLOOKUP($Z$6,'Equipment List Template'!$1:$1048576,5,FALSE),"") -> 95422 | AE6: =IFERROR(VLOOKUP($Z$6,'Equipment List Template'!$1:$1048576,6,FALSE),"") -> Lake | AF6: =IFERROR(VLOOKUP($Z$6,'Equipment List Template'!$1:$1048576,7,FALSE),"") -> BANCRO | AH6: =+$W5 -> 0 | AI6: =+$W6 -> 0 | AJ6: =+$W7 -> 0 | AK6: =+$W8 -> 0 | AL6: =+$W9 -> 0 | AM6: =+$W10 -> 0 | AN6: =+$W11 -> 0 | AO6: =+$W12 -> 0 | AP6: =+$W13 -> 0 | AQ6: =+$W14 -> 0 | AR6: =+$W15 -> 0 | AS6: =+$W16 -> 0 | AT6: =+$W17 -> 0 | AU6: =+$W18 -> 0 | AV6: =+$W19 -> 0 | AW6: =+$W20 -> 0 | AX6: =+$W21 -> 0 | AY6: =+$W22 -> 0 | AZ6: =+$W23 -> 0 | BA6: =+$W24 -> 0 | BB6: =+$W25 -> 0 | BC6: =+$W26 -> 0 | BD6: =+$W27 -> 0 | BE6: =+$W28 -> 0 | BF6: =+$W29 -> 0 | BG6: =+$W30 -> 0 | BH6: =+$W31 -> 0 | BI6: =+$W32 -> 0 | BJ6: =+$W33 -> 0 | BK6: =+$W34 -> 0 | BL6: =+$W35 -> 0 | BM6: =+$W36 -> 0 | BN6: =+$W37 -> 0 | BO6: =+$W38 -> 0 | BP6: =+$W39 -> 0 | BQ6: =+$W40 -> 0 | BR6: =+$W41 -> 0 | BT6: =+W42 -> 0 | BV6: =+D43 -> 0 | BW6: =+D44 -> 0 | BX6: =+D45 -> 0 | BY6: =+D46 -> 0 | BZ6: =+D47 -> 0 | CA6: =+D48 -> 0
A7: 17-B1 | B7: H2 | C7: Air Handling Unit (Air-cooled DX) | J7: 0 | K7: 0 | L7: 0 | M7: 3 | N7: 0 | O7: 0 | P7: 1 | Q7: 0 | R7: 0 | S7: 4 | T7: 4 | U7: 0 | V7: =IFERROR(VLOOKUP($A$5,'Equipment List Template'!$1:$1048576,12,FALSE),"0") -> 3 | W7: =+U7*V7 -> 0
A8: 17-B1 | B8: H3 | C8: Air-Cooled Chiller | G8: 40 | H8: 0 | I8: =+H8*G8 -> 0 | J8: 8 | K8: 0 | L8: 0 | M8: 3 | N8: 0 | O8: 0 | P8: 1 | Q8: 0 | R8: 0 | S8: 12 | T8: 0 | U8: 0 | V8: =IFERROR(VLOOKUP($A$5,'Equipment List Template'!$1:$1048576,13,FALSE),"0") -> 0 | W8: 0
A9: 17-B1 | B9: H4 | C9: Centrifugal Chiller | J9: 11 | K9: 0 | L9: 0 | M9: 0 | N9: 0 | O9: 0 | P9: 1 | Q9: 0 | R9: 0 | S9: 12 | T9: 0 | U9: 0 | V9: =IFERROR(VLOOKUP($A$5,'Equipment List Template'!$1:$1048576,14,FALSE),"0") -> 0 | W9: 0
